Workbook

Sheet ÍNDICE

Sheet SURF
A6: LINHA | B6: REFERENCIA | C6: DESCRIÇÃO | D6: À VISTA | E6: À PRAZO | F6: SUGESTÃO | G6: MARK UP | H6: IPI | I6: ENTREGA
A7: 1 - FLEXXXA TOP | B7: SU001M32FTO3A | C7: =IFERROR(VLOOKUP(B7,'[1]Din Rep'!$B:$M,2,0),"") -> LONG JOHN MANGA LONGA CHESTZIP 3/2 MM MASCULINO FLEXXXA TOP 3 A SURF MORMAII | D7: =IFERROR(IFERROR(VLOOKUP(B7,'[1]Din Rep'!$B:$M,5,0),VLOOKUP(C7,'[1]Din Rep'!$C:$M,4,0)),"") -> 719.06005 | E7: =IFERROR(IFERROR(VLOOKUP(B7,'[1]Din Rep'!$B:$M,7,0),VLOOKUP(C7,'[1]Din Rep'!$C:$M,6,0)),"") -> 764.9575 | F7: =IFERROR(IFERROR(VLOOKUP(B7,'[1]Din Rep'!$B:$M,8,0),VLOOKUP(C7,'[1]Din Rep'!$C:$M,7,0)),"") -> 1799.9 | G7: =IFERROR(IFERROR(VLOOKUP(B7,'[1]Din Rep'!$B:$M,10,0),VLOOKUP(C7,'[1]Din Rep'!$C:$M,9,0)),"") -> 2.352941176 | H7: =IFERROR(IFERROR(VLOOKUP(B7,'[1]Din Rep'!$B:$M,11,0),VLOOKUP(C7,'[1]Din Rep'!$C:$M,10,0)),"") -> 0 | I7: =IFERROR(IFERROR(VLOOKUP(B7,'[1]Din Rep'!$B:$M,12,0),VLOOKUP(C7,'[1]Din Rep'!$C:$M,11,0)),"") -> 45 DD
B8: SU001M20FTO3A | C8: =IFERROR(VLOOKUP(B8,'[1]Din Rep'!$B:$M,2,0),"") -> LONG JOHN MANGA LONGA CHESTZIP 2 MM MASCULINO FLEXXXA TOP 3 A SURF MORMAII | D8: =IFERROR(IFERROR(VLOOKUP(B8,'[1]Din Rep'!$B:$M,5,0),VLOOKUP(C8,'[1]Din Rep'!$C:$M,4,0)),"") -> 687.10005 | E8: =IFERROR(IFERROR(VLOOKUP(B8,'[1]Din Rep'!$B:$M,7,0),VLOOKUP(C8,'[1]Din Rep'!$C:$M,6,0)),"") -> 730.9575 | F8: =IFERROR(IFERROR(VLOOKUP(B8,'[1]Din Rep'!$B:$M,8,0),VLOOKUP(C8,'[1]Din Rep'!$C:$M,7,0)),"") -> 1719.9 | G8: =IFERROR(IFERROR(VLOOKUP(B8,'[1]Din Rep'!$B:$M,10,0),VLOOKUP(C8,'[1]Din Rep'!$C:$M,9,0)),"") -> 2.352941176 | H8: =IFERROR(IFERROR(VLOOKUP(B8,'[1]Din Rep'!$B:$M,11,0),VLOOKUP(C8,'[1]Din Rep'!$C:$M,10,0)),"") -> 0 | I8: =IFERROR(IFERROR(VLOOKUP(B8,'[1]Din Rep'!$B:$M,12,0),VLOOKUP(C8,'[1]Din Rep'!$C:$M,11,0)),"") -> 45 DD
A9: 1 - FLEXXXA PRO | B9: SU001M32FPR4A | C9: =IFERROR(VLOOKUP(B9,'[1]Din Rep'!$B:$M,2,0),"") -> LONG JOHN MANGA LONGA UTOPIA SYSTEM 3/2 MM MASCULINO FLEXXXA PRO 4 A SURF MORMAII | D9: =IFERROR(IFERROR(VLOOKUP(B9,'[1]Din Rep'!$B:$M,5,0),VLOOKUP(C9,'[1]Din Rep'!$C:$M,4,0)),"") -> 559.26005 | E9: =IFERROR(IFERROR(VLOOKUP(B9,'[1]Din Rep'!$B:$M,7,0),VLOOKUP(C9,'[1]Din Rep'!$C:$M,6,0)),"") -> 594.9575 | F9: =IFERROR(IFERROR(VLOOKUP(B9,'[1]Din Rep'!$B:$M,8,0),VLOOKUP(C9,'[1]Din Rep'!$C:$M,7,0)),"") -> 1399.9 | G9: =IFERROR(IFERROR(VLOOKUP(B9,'[1]Din Rep'!$B:$M,10,0),VLOOKUP(C9,'[1]Din Rep'!$C:$M,9,0)),"") -> 2.352941176 | H9: =IFERROR(IFERROR(VLOOKUP(B9,'[1]Din Rep'!$B:$M,11,0),VLOOKUP(C9,'[1]Din Rep'!$C:$M,10,0)),"") -> 0 | I9: =IFERROR(IFERROR(VLOOKUP(B9,'[1]Din Rep'!$B:$M,12,0),VLOOKUP(C9,'[1]Din Rep'!$C:$M,11,0)),"") -> 45 DD
B10: SU001M20FPR4A | C10: =IFERROR(VLOOKUP(B10,'[1]Din Rep'!$B:$M,2,0),"") -> LONG JOHN MANGA LONGA UTOPIA SYSTEM 2/2 MM MASCULINO FLEXXXA PRO 4 A SURF MORMAII | D10: =IFERROR(IFERROR(VLOOKUP(B10,'[1]Din Rep'!$B:$M,5,0),VLOOKUP(C10,'[1]Din Rep'!$C:$M,4,0)),"") -> 538.9255 | E10: =IFERROR(IFERROR(VLOOKUP(B10,'[1]Din Rep'!$B:$M,7,0),VLOOKUP(C10,'[1]Din Rep'!$C:$M,6,0)),"") -> 573.325 | F10: =IFERROR(IFERROR(VLOOKUP(B10,'[1]Din Rep'!$B:$M,8,0),VLOOKUP(C10,'[1]Din Rep'!$C:$M,7,0)),"") -> 1349 | G10: =IFERROR(IFERROR(VLOOKUP(B10,'[1]Din Rep'!$B:$M,10,0),VLOOKUP(C10,'[1]Din Rep'!$C:$M,9,0)),"") -> 2.352941176 | H10: =IFERROR(IFERROR(VLOOKUP(B10,'[1]Din Rep'!$B:$M,11,0),VLOOKUP(C10,'[1]Din Rep'!$C:$M,10,0)),"") -> 0 | I10: =IFERROR(IFERROR(VLOOKUP(B10,'[1]Din Rep'!$B:$M,12,0),VLOOKUP(C10,'[1]Din Rep'!$C:$M,11,0)),"") -> 45 DD
B11: SU001M32FPR4B | C11: =IFERROR(VLOOKUP(B11,'[1]Din Rep'!$B:$M,2,0),"") -> LONG JOHN MANGA LONGA CHEST 3/2 MM MASCULINO FLEXXXA PRO 4 B SURF MORMAII | D11: =IFERROR(IFERROR(VLOOKUP(B11,'[1]Din Rep'!$B:$M,5,0),VLOOKUP(C11,'[1]Din Rep'!$C:$M,4,0)),"") -> 559.26005 | E11: =IFERROR(IFERROR(VLOOKUP(B11,'[1]Din Rep'!$B:$M,7,0),VLOOKUP(C11,'[1]Din Rep'!$C:$M,6,0)),"") -> 594.9575 | F11: =IFERROR(IFERROR(VLOOKUP(B11,'[1]Din Rep'!$B:$M,8,0),VLOOKUP(C11,'[1]Din Rep'!$C:$M,7,0)),"") -> 1399.9 | G11: =IFERROR(IFERROR(VLOOKUP(B11,'[1]Din Rep'!$B:$M,10,0),VLOOKUP(C11,'[1]Din Rep'!$C:$M,9,0)),"") -> 2.352941176 | H11: =IFERROR(IFERROR(VLOOKUP(B11,'[1]Din Rep'!$B:$M,11,0),VLOOKUP(C11,'[1]Din Rep'!$C:$M,10,0)),"") -> 0 | I11: =IFERROR(IFERROR(VLOOKUP(B11,'[1]Din Rep'!$B:$M,12,0),VLOOKUP(C11,'[1]Din Rep'!$C:$M,11,0)),"") -> 45 DD
B12: SU001M20FPR4B | C12: =IFERROR(VLOOKUP(B12,'[1]Din Rep'!$B:$M,2,0),"") -> LONG JOHN MANGA LONGA CHEST 2/2 MM MASCULINO FLEXXXA PRO 4 B SURF MORMAII | D12: =IFERROR(IFERROR(VLOOKUP(B12,'[1]Din Rep'!$B:$M,5,0),VLOOKUP(C12,'[1]Din Rep'!$C:$M,4,0)),"") -> 539.28505 | E12: =IFERROR(IFERROR(VLOOKUP(B12,'[1]Din Rep'!$B:$M,7,0),VLOOKUP(C12,'[1]Din Rep'!$C:$M,6,0)),"") -> 573.7075 | F12: =IFERROR(IFERROR(VLOOKUP(B12,'[1]Din Rep'!$B:$M,8,0),VLOOKUP(C12,'[1]Din Rep'!$C:$M,7,0)),"") -> 1349.9 | G12: =IFERROR(IFERROR(VLOOKUP(B12,'[1]Din Rep'!$B:$M,10,0),VLOOKUP(C12,'[1]Din Rep'!$C:$M,9,0)),"") -> 2.352941176 | H12: =IFERROR(IFERROR(VLOOKUP(B12,'[1]Din Rep'!$B:$M,11,0),VLOOKUP(C12,'[1]Din Rep'!$C:$M,10,0)),"") -> 0 | I12: =IFERROR(IFERROR(VLOOKUP(B12,'[1]Din Rep'!$B:$M,12,0),VLOOKUP(C12,'[1]Din Rep'!$C:$M,11,0)),"") -> 45 DD
B13: SU001M10FPR4A | C13: =IFERROR(VLOOKUP(B13,'[1]Din Rep'!$B:$M,2,0),"") -> LONG JOHN MANGA LONGA CHESTZIP1.0MM MASCULINO FLEXXXA PRO 1 A SURF MORMAII | D13: =IFERROR(IFERROR(VLOOKUP(B13,'[1]Din Rep'!$B:$M,5,0),VLOOKUP(C13,'[1]Din Rep'!$C:$M,4,0)),"") -> 279.61005 | E13: =IFERROR(IFERROR(VLOOKUP(B13,'[1]Din Rep'!$B:$M,7,0),VLOOKUP(C13,'[1]Din Rep'!$C:$M,6,0)),"") -> 297.4575 | F13: =IFERROR(IFERROR(VLOOKUP(B13,'[1]Din Rep'!$B:$M,8,0),VLOOKUP(C13,'[1]Din Rep'!$C:$M,7,0)),"") -> 699.9 | G13: =IFERROR(IFERROR(VLOOKUP(B13,'[1]Din Rep'!$B:$M,10,0),VLOOKUP(C13,'[1]Din Rep'!$C:$M,9,0)),"") -> 2.352941176 | H13: =IFERROR(IFERROR(VLOOKUP(B13,'[1]Din Rep'!$B:$M,11,0),VLOOKUP(C13,'[1]Din Rep'!$C:$M,10,0)),"") -> 0 | I13: =IFERROR(IFERROR(VLOOKUP(B13,'[1]Din Rep'!$B:$M,12,0),VLOOKUP(C13,'[1]Din Rep'!$C:$M,11,0)),"") -> 45 DD
B14: SU005M10FPR4A | C14: =IFERROR(VLOOKUP(B14,'[1]Din Rep'!$B:$M,2,0),"") -> SHORT JOHN MANGA LONGA CHESTZIP 1.0MM MASCULINO FLEXXXA PRO 4 A SURF MORMAII | D14: =IFERROR(IFERROR(VLOOKUP(B14,'[1]Din Rep'!$B:$M,5,0),VLOOKUP(C14,'[1]Din Rep'!$C:$M,4,0)),"") -> 239.66005 | E14: =IFERROR(IFERROR(VLOOKUP(B14,'[1]Din Rep'!$B:$M,7,0),VLOOKUP(C14,'[1]Din Rep'!$C:$M,6,0)),"") -> 254.9575 | F14: =IFERROR(IFERROR(VLOOKUP(B14,'[1]Din Rep'!$B:$M,8,0),VLOOKUP(C14,'[1]Din Rep'!$C:$M,7,0)),"") -> 599.9 | G14: =IFERROR(IFERROR(VLOOKUP(B14,'[1]Din Rep'!$B:$M,10,0),VLOOKUP(C14,'[1]Din Rep'!$C:$M,9,0)),"") -> 2.352941176 | H14: =IFERROR(IFERROR(VLOOKUP(B14,'[1]Din Rep'!$B:$M,11,0),VLOOKUP(C14,'[1]Din Rep'!$C:$M,10,0)),"") -> 0 | I14: =IFERROR(IFERROR(VLOOKUP(B14,'[1]Din Rep'!$B:$M,12,0),VLOOKUP(C14,'[1]Din Rep'!$C:$M,11,0)),"") -> 45 DD
B15: SU030M10FPR4A | C15: =IFERROR(VLOOKUP(B15,'[1]Din Rep'!$B:$M,2,0),"") -> JAQUETA MANGA LONGA 1.0MM MASCULINO FLEXXXA PRO 4 A SURF MORMAII | D15: =IFERROR(IFERROR(VLOOKUP(B15,'[1]Din Rep'!$B:$M,5,0),VLOOKUP(C15,'[1]Din Rep'!$C:$M,4,0)),"") -> 159.76005 | E15: =IFERROR(IFERROR(VLOOKUP(B15,'[1]Din Rep'!$B:$M,7,0),VLOOKUP(C15,'[1]Din Rep'!$C:$M,6,0)),"") -> 169.9575 | F15: =IFERROR(IFERROR(VLOOKUP(B15,'[1]Din Rep'!$B:$M,8,0),VLOOKUP(C15,'[1]Din Rep'!$C:$M,7,0)),"") -> 399.9 | G15: =IFERROR(IFERROR(VLOOKUP(B15,'[1]Din Rep'!$B:$M,10,0),VLOOKUP(C15,'[1]Din Rep'!$C:$M,9,0)),"") -> 2.352941176 | H15: =IFERROR(IFERROR(VLOOKUP(B15,'[1]Din Rep'!$B:$M,11,0),VLOOKUP(C15,'[1]Din Rep'!$C:$M,10,0)),"") -> 0 | I15: =IFERROR(IFERROR(VLOOKUP(B15,'[1]Din Rep'!$B:$M,12,0),VLOOKUP(C15,'[1]Din Rep'!$C:$M,11,0)),"") -> 45 DD
B16: SU054M10FPR4A | C16: =IFERROR(VLOOKUP(B16,'[1]Din Rep'!$B:$M,2,0),"") -> BERMUDA 1.0MM MASCULINOFLEXXXA PRO 4 A SURF MORMAII | D16: =IFERROR(IFERROR(VLOOKUP(B16,'[1]Din Rep'!$B:$M,5,0),VLOOKUP(C16,'[1]Din Rep'!$C:$M,4,0)),"") -> 99.83505 | E16: =IFERROR(IFERROR(VLOOKUP(B16,'[1]Din Rep'!$B:$M,7,0),VLOOKUP(C16,'[1]Din Rep'!$C:$M,6,0)),"") -> 106.2075 | F16: =IFERROR(IFERROR(VLOOKUP(B16,'[1]Din Rep'!$B:$M,8,0),VLOOKUP(C16,'[1]Din Rep'!$C:$M,7,0)),"") -> 249.9 | G16: =IFERROR(IFERROR(VLOOKUP(B16,'[1]Din Rep'!$B:$M,10,0),VLOOKUP(C16,'[1]Din Rep'!$C:$M,9,0)),"") -> 2.352941176 | H16: =IFERROR(IFERROR(VLOOKUP(B16,'[1]Din Rep'!$B:$M,11,0),VLOOKUP(C16,'[1]Din Rep'!$C:$M,10,0)),"") -> 0 | I16: =IFERROR(IFERROR(VLOOKUP(B16,'[1]Din Rep'!$B:$M,12,0),VLOOKUP(C16,'[1]Din Rep'!$C:$M,11,0)),"") -> 45 DD
A17: 2 - ULTRA SKIN | B17: SU001M32USK3B | C17: =IFERROR(VLOOKUP(B17,'[1]Din Rep'!$B:$M,2,0),"") -> LONG JOHN MANGA LONGA BACKZIP 3/2MM MASCULINO ULTRA SKIN 3 B SURF MORMAII | D17: =IFERROR(IFERROR(VLOOKUP(B17,'[1]Din Rep'!$B:$M,5,0),VLOOKUP(C17,'[1]Din Rep'!$C:$M,4,0)),"") -> 439.41005 | E17: =IFERROR(IFERROR(VLOOKUP(B17,'[1]Din Rep'!$B:$M,7,0),VLOOKUP(C17,'[1]Din Rep'!$C:$M,6,0)),"") -> 467.4575 | F17: =IFERROR(IFERROR(VLOOKUP(B17,'[1]Din Rep'!$B:$M,8,0),VLOOKUP(C17,'[1]Din Rep'!$C:$M,7,0)),"") -> 1099.9 | G17: =IFERROR(IFERROR(VLOOKUP(B17,'[1]Din Rep'!$B:$M,10,0),VLOOKUP(C17,'[1]Din Rep'!$C:$M,9,0)),"") -> 2.352941176 | H17: =IFERROR(IFERROR(VLOOKUP(B17,'[1]Din Rep'!$B:$M,11,0),VLOOKUP(C17,'[1]Din Rep'!$C:$M,10,0)),"") -> 0 | I17: =IFERROR(IFERROR(VLOOKUP(B17,'[1]Din Rep'!$B:$M,12,0),VLOOKUP(C17,'[1]Din Rep'!$C:$M,11,0)),"") -> 45 DD
B18: SU001M32USK3A | C18: =IFERROR(VLOOKUP(B18,'[1]Din Rep'!$B:$M,2,0),"") -> LONG JOHN MANGA LONGA CHESTZIP 3/2MM MASCULINO ULTRA SKIN 3 A SURF MORMAII | D18: =IFERROR(IFERROR(VLOOKUP(B18,'[1]Din Rep'!$B:$M,5,0),VLOOKUP(C18,'[1]Din Rep'!$C:$M,4,0)),"") -> 439.41005 | E18: =IFERROR(IFERROR(VLOOKUP(B18,'[1]Din Rep'!$B:$M,7,0),VLOOKUP(C18,'[1]Din Rep'!$C:$M,6,0)),"") -> 467.4575 | F18: =IFERROR(IFERROR(VLOOKUP(B18,'[1]Din Rep'!$B:$M,8,0),VLOOKUP(C18,'[1]Din Rep'!$C:$M,7,0)),"") -> 1099.9 | G18: =IFERROR(IFERROR(VLOOKUP(B18,'[1]Din Rep'!$B:$M,10,0),VLOOKUP(C18,'[1]Din Rep'!$C:$M,9,0)),"") -> 2.352941176 | H18: =IFERROR(IFERROR(VLOOKUP(B18,'[1]Din Rep'!$B:$M,11,0),VLOOKUP(C18,'[1]Din Rep'!$C:$M,10,0)),"") -> 0 | I18: =IFERROR(IFERROR(VLOOKUP(B18,'[1]Din Rep'!$B:$M,12,0),VLOOKUP(C18,'[1]Din Rep'!$C:$M,11,0)),"") -> 45 DD
B19: SU001M20USK3A | C19: =IFERROR(VLOOKUP(B19,'[1]Din Rep'!$B:$M,2,0),"") -> LONG JOHN MANGA LONGA CHESTZIP 2.0MM MASCULINO ULTRA SKIN 3 A SURF MORMAII | D19: =IFERROR(IFERROR(VLOOKUP(B19,'[1]Din Rep'!$B:$M,5,0),VLOOKUP(C19,'[1]Din Rep'!$C:$M,4,0)),"") -> 419.43505 | E19: =IFERROR(IFERROR(VLOOKUP(B19,'[1]Din Rep'!$B:$M,7,0),VLOOKUP(C19,'[1]Din Rep'!$C:$M,6,0)),"") -> 446.2075 | F19: =IFERROR(IFERROR(VLOOKUP(B19,'[1]Din Rep'!$B:$M,8,0),VLOOKUP(C19,'[1]Din Rep'!$C:$M,7,0)),"") -> 1049.9 | G19: =IFERROR(IFERROR(VLOOKUP(B19,'[1]Din Rep'!$B:$M,10,0),VLOOKUP(C19,'[1]Din Rep'!$C:$M,9,0)),"") -> 2.352941176 | H19: =IFERROR(IFERROR(VLOOKUP(B19,'[1]Din Rep'!$B:$M,11,0),VLOOKUP(C19,'[1]Din Rep'!$C:$M,10,0)),"") -> 0 | I19: =IFERROR(IFERROR(VLOOKUP(B19,'[1]Din Rep'!$B:$M,12,0),VLOOKUP(C19,'[1]Din Rep'!$C:$M,11,0)),"") -> 45 DD
B20: SU001M43USK3A | C20: =IFERROR(VLOOKUP(B20,'[1]Din Rep'!$B:$M,2,0),"") -> LONG JOHN MANGA LONGA CHESTZIP 4/3MM MASCULINO ULTRA SKIN 3 A SURF MORMAII | D20: =IFERROR(IFERROR(VLOOKUP(B20,'[1]Din Rep'!$B:$M,5,0),VLOOKUP(C20,'[1]Din Rep'!$C:$M,4,0)),"") -> 518.9505 | E20: =IFERROR(IFERROR(VLOOKUP(B20,'[1]Din Rep'!$B:$M,7,0),VLOOKUP(C20,'[1]Din Rep'!$C:$M,6,0)),"") -> 552.075 | F20: =IFERROR(IFERROR(VLOOKUP(B20,'[1]Din Rep'!$B:$M,8,0),VLOOKUP(C20,'[1]Din Rep'!$C:$M,7,0)),"") -> 1299 | G20: =IFERROR(IFERROR(VLOOKUP(B20,'[1]Din Rep'!$B:$M,10,0),VLOOKUP(C20,'[1]Din Rep'!$C:$M,9,0)),"") -> 2.352941176 | H20: =IFERROR(IFERROR(VLOOKUP(B20,'[1]Din Rep'!$B:$M,11,0),VLOOKUP(C20,'[1]Din Rep'!$C:$M,10,0)),"") -> 0 | I20: =IFERROR(IFERROR(VLOOKUP(B20,'[1]Din Rep'!$B:$M,12,0),VLOOKUP(C20,'[1]Din Rep'!$C:$M,11,0)),"") -> 45 DD
B21: SU005M20USK3A | C21: =IFERROR(VLOOKUP(B21,'[1]Din Rep'!$B:$M,2,0),"") -> SHORT JOHN MANGA LONGA CHESTZIP 2.0MM MASCULINO ULTRA SKIN 3 A SURF MORMAII | D21: =IFERROR(IFERROR(VLOOKUP(B21,'[1]Din Rep'!$B:$M,5,0),VLOOKUP(C21,'[1]Din Rep'!$C:$M,4,0)),"") -> 327.1905 | E21: =IFERROR(IFERROR(VLOOKUP(B21,'[1]Din Rep'!$B:$M,7,0),VLOOKUP(C21,'[1]Din Rep'!$C:$M,6,0)),"") -> 348.075 | F21: =IFERROR(IFERROR(VLOOKUP(B21,'[1]Din Rep'!$B:$M,8,0),VLOOKUP(C21,'[1]Din Rep'!$C:$M,7,0)),"") -> 819 | G21: =IFERROR(IFERROR(VLOOKUP(B21,'[1]Din Rep'!$B:$M,10,0),VLOOKUP(C21,'[1]Din Rep'!$C:$M,9,0)),"") -> 2.352941176 | H21: =IFERROR(IFERROR(VLOOKUP(B21,'[1]Din Rep'!$B:$M,11,0),VLOOKUP(C21,'[1]Din Rep'!$C:$M,10,0)),"") -> 0 | I21: =IFERROR(IFERROR(VLOOKUP(B21,'[1]Din Rep'!$B:$M,12,0),VLOOKUP(C21,'[1]Din Rep'!$C:$M,11,0)),"") -> 45 DD
B22: SU037M00USK3A | C22: =IFERROR(VLOOKUP(B22,'[1]Din Rep'!$B:$M,2,0),"") -> CAMISETA MANGA LONGA RAGLAN DE LYCRA MASCULINO ULTRA SKIN 3 A UV CORE MORMAII | D22: =IFERROR(IFERROR(VLOOKUP(B22,'[1]Din Rep'!$B:$M,5,0),VLOOKUP(C22,'[1]Din Rep'!$C:$M,4,0)),"") -> 79.86005 | E22: =IFERROR(IFERROR(VLOOKUP(B22,'[1]Din Rep'!$B:$M,7,0),VLOOKUP(C22,'[1]Din Rep'!$C:$M,6,0)),"") -> 84.9575 | F22: =IFERROR(IFERROR(VLOOKUP(B22,'[1]Din Rep'!$B:$M,8,0),VLOOKUP(C22,'[1]Din Rep'!$C:$M,7,0)),"") -> 199.9 | G22: =IFERROR(IFERROR(VLOOKUP(B22,'[1]Din Rep'!$B:$M,10,0),VLOOKUP(C22,'[1]Din Rep'!$C:$M,9,0)),"") -> 2.352941176 | H22: =IFERROR(IFERROR(VLOOKUP(B22,'[1]Din Rep'!$B:$M,11,0),VLOOKUP(C22,'[1]Din Rep'!$C:$M,10,0)),"") -> 0 | I22: =IFERROR(IFERROR(VLOOKUP(B22,'[1]Din Rep'!$B:$M,12,0),VLOOKUP(C22,'[1]Din Rep'!$C:$M,11,0)),"") -> 45 DD
A23: 3 - TOW SUITS | B23: SU001M32TWN1A | C23: =IFERROR(VLOOKUP(B23,'[1]Din Rep'!$B:$M,2,0),"") -> LONG JOHN MANGA LONGA BACKZIP COM FLUTUAÇÃO 3/2MM MASCULINO TOW IN 1 A SURF MORMAII | D23: =IFERROR(IFERROR(VLOOKUP(B23,'[1]Din Rep'!$B:$M,5,0),VLOOKUP(C23,'[1]Din Rep'!$C:$M,4,0)),"") -> 1677.86005 | E23: =IFERROR(IFERROR(VLOOKUP(B23,'[1]Din Rep'!$B:$M,7,0),VLOOKUP(C23,'[1]Din Rep'!$C:$M,6,0)),"") -> 1784.9575 | F23: =IFERROR(IFERROR(VLOOKUP(B23,'[1]Din Rep'!$B:$M,8,0),VLOOKUP(C23,'[1]Din Rep'!$C:$M,7,0)),"") -> 4199.9 | G23: =IFERROR(IFERROR(VLOOKUP(B23,'[1]Din Rep'!$B:$M,10,0),VLOOKUP(C23,'[1]Din Rep'!$C:$M,9,0)),"") -> 2.352941176 | H23: =IFERROR(IFERROR(VLOOKUP(B23,'[1]Din Rep'!$B:$M,11,0),VLOOKUP(C23,'[1]Din Rep'!$C:$M,10,0)),"") -> 0 | I23: =IFERROR(IFERROR(VLOOKUP(B23,'[1]Din Rep'!$B:$M,12,0),VLOOKUP(C23,'[1]Din Rep'!$C:$M,11,0)),"") -> 45 DD
B24: SU005M20TWN1A | C24: =IFERROR(VLOOKUP(B24,'[1]Din Rep'!$B:$M,2,0),"") -> SHORT JOHN MANGA LONGA BACKZIP COM FLUTUAÇÃO 2/2MM MASCULINO TOW IN 1 A SURF MORMAII | D24: =IFERROR(IFERROR(VLOOKUP(B24,'[1]Din Rep'!$B:$M,5,0),VLOOKUP(C24,'[1]Din Rep'!$C:$M,4,0)),"") -> 1278.36005 | E24: =IFERROR(IFERROR(VLOOKUP(B24,'[1]Din Rep'!$B:$M,7,0),VLOOKUP(C24,'[1]Din Rep'!$C:$M,6,0)),"") -> 1359.9575 | F24: =IFERROR(IFERROR(VLOOKUP(B24,'[1]Din Rep'!$B:$M,8,0),VLOOKUP(C24,'[1]Din Rep'!$C:$M,7,0)),"") -> 3199.9 | G24: =IFERROR(IFERROR(VLOOKUP(B24,'[1]Din Rep'!$B:$M,10,0),VLOOKUP(C24,'[1]Din Rep'!$C:$M,9,0)),"") -> 2.352941176 | H24: =IFERROR(IFERROR(VLOOKUP(B24,'[1]Din Rep'!$B:$M,11,0),VLOOKUP(C24,'[1]Din Rep'!$C:$M,10,0)),"") -> 0 | I24: =IFERROR(IFERROR(VLOOKUP(B24,'[1]Din Rep'!$B:$M,12,0),VLOOKUP(C24,'[1]Din Rep'!$C:$M,11,0)),"") -> 45 DD
A25: 4 - EXTRA LINE | B25: SU001M32EXL3A | C25: =IFERROR(VLOOKUP(B25,'[1]Din Rep'!$B:$M,2,0),"") -> LONG JOHN MANGA LONGA BACKZIP 3/2MM MASCULINO EXTRA LINE 3 A SURF MORMAII | D25: =IFERROR(IFERROR(VLOOKUP(B25,'[1]Din Rep'!$B:$M,5,0),VLOOKUP(C25,'[1]Din Rep'!$C:$M,4,0)),"") -> 279.61005 | E25: =IFERROR(IFERROR(VLOOKUP(B25,'[1]Din Rep'!$B:$M,7,0),VLOOKUP(C25,'[1]Din Rep'!$C:$M,6,0)),"") -> 297.4575 | F25: =IFERROR(IFERROR(VLOOKUP(B25,'[1]Din Rep'!$B:$M,8,0),VLOOKUP(C25,'[1]Din Rep'!$C:$M,7,0)),"") -> 699.9 | G25: =IFERROR(IFERROR(VLOOKUP(B25,'[1]Din Rep'!$B:$M,10,0),VLOOKUP(C25,'[1]Din Rep'!$C:$M,9,0)),"") -> 2.352941176 | H25: =IFERROR(IFERROR(VLOOKUP(B25,'[1]Din Rep'!$B:$M,11,0),VLOOKUP(C25,'[1]Din Rep'!$C:$M,10,0)),"") -> 0 | I25: =IFERROR(IFERROR(VLOOKUP(B25,'[1]Din Rep'!$B:$M,12,0),VLOOKUP(C25,'[1]Din Rep'!$C:$M,11,0)),"") -> 45 DD
B26: SU001M20EXL3A | C26: =IFERROR(VLOOKUP(B26,'[1]Din Rep'!$B:$M,2,0),"") -> LONG JOHN MANGA LONGA BACKZIP 2.0MM MASCULINO EXTRA LINE 3 A SURF MORMAII | D26: =IFERROR(IFERROR(VLOOKUP(B26,'[1]Din Rep'!$B:$M,5,0),VLOOKUP(C26,'[1]Din Rep'!$C:$M,4,0)),"") -> 271.62005 | E26: =IFERROR(IFERROR(VLOOKUP(B26,'[1]Din Rep'!$B:$M,7,0),VLOOKUP(C26,'[1]Din Rep'!$C:$M,6,0)),"") -> 288.9575 | F26: =IFERROR(IFERROR(VLOOKUP(B26,'[1]Din Rep'!$B:$M,8,0),VLOOKUP(C26,'[1]Din Rep'!$C:$M,7,0)),"") -> 679.9 | G26: =IFERROR(IFERROR(VLOOKUP(B26,'[1]Din Rep'!$B:$M,10,0),VLOOKUP(C26,'[1]Din Rep'!$C:$M,9,0)),"") -> 2.352941176 | H26: =IFERROR(IFERROR(VLOOKUP(B26,'[1]Din Rep'!$B:$M,11,0),VLOOKUP(C26,'[1]Din Rep'!$C:$M,10,0)),"") -> 0 | I26: =IFERROR(IFERROR(VLOOKUP(B26,'[1]Din Rep'!$B:$M,12,0),VLOOKUP(C26,'[1]Din Rep'!$C:$M,11,0)),"") -> 45 DD
B27: SU005M20EXL3A | C27: =IFERROR(VLOOKUP(B27,'[1]Din Rep'!$B:$M,2,0),"") -> SHORT JOHN MANGA LONGA BACKZIP 2.0MM MASCULINO EXTRA LINE 3 A SURF MORMAII | D27: =IFERROR(IFERROR(VLOOKUP(B27,'[1]Din Rep'!$B:$M,5,0),VLOOKUP(C27,'[1]Din Rep'!$C:$M,4,0)),"") -> 219.68505 | E27: =IFERROR(IFERROR(VLOOKUP(B27,'[1]Din Rep'!$B:$M,7,0),VLOOKUP(C27,'[1]Din Rep'!$C:$M,6,0)),"") -> 233.7075 | F27: =IFERROR(IFERROR(VLOOKUP(B27,'[1]Din Rep'!$B:$M,8,0),VLOOKUP(C27,'[1]Din Rep'!$C:$M,7,0)),"") -> 549.9 | G27: =IFERROR(IFERROR(VLOOKUP(B27,'[1]Din Rep'!$B:$M,10,0),VLOOKUP(C27,'[1]Din Rep'!$C:$M,9,0)),"") -> 2.352941176 | H27: =IFERROR(IFERROR(VLOOKUP(B27,'[1]Din Rep'!$B:$M,11,0),VLOOKUP(C27,'[1]Din Rep'!$C:$M,10,0)),"") -> 0 | I27: =IFERROR(IFERROR(VLOOKUP(B27,'[1]Din Rep'!$B:$M,12,0),VLOOKUP(C27,'[1]Din Rep'!$C:$M,11,0)),"") -> 45 DD
B28: SU006M20EXL3A | C28: =IFERROR(VLOOKUP(B28,'[1]Din Rep'!$B:$M,2,0),"") -> SHORT JOHN MANGA CURTA BACKZIP 2.0MM MASCULINO EXTRA LINE 3 A SURF MORMAII | D28: =IFERROR(IFERROR(VLOOKUP(B28,'[1]Din Rep'!$B:$M,5,0),VLOOKUP(C28,'[1]Din Rep'!$C:$M,4,0)),"") -> 199.71005 | E28: =IFERROR(IFERROR(VLOOKUP(B28,'[1]Din Rep'!$B:$M,7,0),VLOOKUP(C28,'[1]Din Rep'!$C:$M,6,0)),"") -> 212.4575 | F28: =IFERROR(IFERROR(VLOOKUP(B28,'[1]Din Rep'!$B:$M,8,0),VLOOKUP(C28,'[1]Din Rep'!$C:$M,7,0)),"") -> 499.9 | G28: =IFERROR(IFERROR(VLOOKUP(B28,'[1]Din Rep'!$B:$M,10,0),VLOOKUP(C28,'[1]Din Rep'!$C:$M,9,0)),"") -> 2.352941176 | H28: =IFERROR(IFERROR(VLOOKUP(B28,'[1]Din Rep'!$B:$M,11,0),VLOOKUP(C28,'[1]Din Rep'!$C:$M,10,0)),"") -> 0 | I28: =IFERROR(IFERROR(VLOOKUP(B28,'[1]Din Rep'!$B:$M,12,0),VLOOKUP(C28,'[1]Din Rep'!$C:$M,11,0)),"") -> 45 DD
B29: SU007M10EXL3A | C29: =IFERROR(VLOOKUP(B29,'[1]Din Rep'!$B:$M,2,0),"") -> SHORT JOHN SEM MANGA SNAP SHOULDER 1.0MM MASCULINO EXTRA LINE 3 A SURF MORMAII | D29: =IFERROR(IFERROR(VLOOKUP(B29,'[1]Din Rep'!$B:$M,5,0),VLOOKUP(C29,'[1]Din Rep'!$C:$M,4,0)),"") -> 167.75005 | E29: =IFERROR(IFERROR(VLOOKUP(B29,'[1]Din Rep'!$B:$M,7,0),VLOOKUP(C29,'[1]Din Rep'!$C:$M,6,0)),"") -> 178.4575 | F29: =IFERROR(IFERROR(VLOOKUP(B29,'[1]Din Rep'!$B:$M,8,0),VLOOKUP(C29,'[1]Din Rep'!$C:$M,7,0)),"") -> 419.9 | G29: =IFERROR(IFERROR(VLOOKUP(B29,'[1]Din Rep'!$B:$M,10,0),VLOOKUP(C29,'[1]Din Rep'!$C:$M,9,0)),"") -> 2.352941176 | H29: =IFERROR(IFERROR(VLOOKUP(B29,'[1]Din Rep'!$B:$M,11,0),VLOOKUP(C29,'[1]Din Rep'!$C:$M,10,0)),"") -> 0 | I29: =IFERROR(IFERROR(VLOOKUP(B29,'[1]Din Rep'!$B:$M,12,0),VLOOKUP(C29,'[1]Din Rep'!$C:$M,11,0)),"") -> 45 DD
B30: SU040M10EXL3A | C30: =IFERROR(VLOOKUP(B30,'[1]Din Rep'!$B:$M,2,0),"") -> CAMISETA MANGA LONGA C/ NEOPRENE NEOLYCRA 1.0MM MASCULINO EXTRA LINE 3 A SURF MORMAII | D30: =IFERROR(IFERROR(VLOOKUP(B30,'[1]Din Rep'!$B:$M,5,0),VLOOKUP(C30,'[1]Din Rep'!$C:$M,4,0)),"") -> 111.82005 | E30: =IFERROR(IFERROR(VLOOKUP(B30,'[1]Din Rep'!$B:$M,7,0),VLOOKUP(C30,'[1]Din Rep'!$C:$M,6,0)),"") -> 118.9575 | F30: =IFERROR(IFERROR(VLOOKUP(B30,'[1]Din Rep'!$B:$M,8,0),VLOOKUP(C30,'[1]Din Rep'!$C:$M,7,0)),"") -> 279.9 | G30: =IFERROR(IFERROR(VLOOKUP(B30,'[1]Din Rep'!$B:$M,10,0),VLOOKUP(C30,'[1]Din Rep'!$C:$M,9,0)),"") -> 2.352941176 | H30: =IFERROR(IFERROR(VLOOKUP(B30,'[1]Din Rep'!$B:$M,11,0),VLOOKUP(C30,'[1]Din Rep'!$C:$M,10,0)),"") -> 0 | I30: =IFERROR(IFERROR(VLOOKUP(B30,'[1]Din Rep'!$B:$M,12,0),VLOOKUP(C30,'[1]Din Rep'!$C:$M,11,0)),"") -> 45 DD
B31: SU037M00EXL3A | C31: =IFERROR(VLOOKUP(B31,'[1]Din Rep'!$B:$M,2,0),"") -> CAMISETA MANGA LONGA LYCRA MASCULINO EXTRA LINE 3 A UV CORE MORMAII | D31: =IFERROR(IFERROR(VLOOKUP(B31,'[1]Din Rep'!$B:$M,5,0),VLOOKUP(C31,'[1]Din Rep'!$C:$M,4,0)),"") -> 67.87505 | E31: =IFERROR(IFERROR(VLOOKUP(B31,'[1]Din Rep'!$B:$M,7,0),VLOOKUP(C31,'[1]Din Rep'!$C:$M,6,0)),"") -> 72.2075 | F31: =IFERROR(IFERROR(VLOOKUP(B31,'[1]Din Rep'!$B:$M,8,0),VLOOKUP(C31,'[1]Din Rep'!$C:$M,7,0)),"") -> 169.9 | G31: =IFERROR(IFERROR(VLOOKUP(B31,'[1]Din Rep'!$B:$M,10,0),VLOOKUP(C31,'[1]Din Rep'!$C:$M,9,0)),"") -> 2.352941176 | H31: =IFERROR(IFERROR(VLOOKUP(B31,'[1]Din Rep'!$B:$M,11,0),VLOOKUP(C31,'[1]Din Rep'!$C:$M,10,0)),"") -> 0 | I31: =IFERROR(IFERROR(VLOOKUP(B31,'[1]Din Rep'!$B:$M,12,0),VLOOKUP(C31,'[1]Din Rep'!$C:$M,11,0)),"") -> 45 DD
B32: SU041M00EXL3A | C32: =IFERROR(VLOOKUP(B32,'[1]Din Rep'!$B:$M,2,0),"") -> CAMISETA MANGA CURTA LYCRA MASCULINO EXTRA LINE 3 A UV CORE MORMAII | D32: =IFERROR(IFERROR(VLOOKUP(B32,'[1]Din Rep'!$B:$M,5,0),VLOOKUP(C32,'[1]Din Rep'!$C:$M,4,0)),"") -> 59.88505 | E32: =IFERROR(IFERROR(VLOOKUP(B32,'[1]Din Rep'!$B:$M,7,0),VLOOKUP(C32,'[1]Din Rep'!$C:$M,6,0)),"") -> 63.7075 | F32: =IFERROR(IFERROR(VLOOKUP(B32,'[1]Din Rep'!$B:$M,8,0),VLOOKUP(C32,'[1]Din Rep'!$C:$M,7,0)),"") -> 149.9 | G32: =IFERROR(IFERROR(VLOOKUP(B32,'[1]Din Rep'!$B:$M,10,0),VLOOKUP(C32,'[1]Din Rep'!$C:$M,9,0)),"") -> 2.352941176 | H32: =IFERROR(IFERROR(VLOOKUP(B32,'[1]Din Rep'!$B:$M,11,0),VLOOKUP(C32,'[1]Din Rep'!$C:$M,10,0)),"") -> 0 | I32: =IFERROR(IFERROR(VLOOKUP(B32,'[1]Din Rep'!$B:$M,12,0),VLOOKUP(C32,'[1]Din Rep'!$C:$M,11,0)),"") -> 45 DD
A33: 5 - DIVA PRO | B33: SU001F32DVP6A | C33: =IFERROR(VLOOKUP(B33,'[1]Din Rep'!$B:$M,2,0),"") -> LONG JOHN MANGA LONGA CHESTZIP 3/2 MM FEMININO DIVA PRO 6 A SURF MORMAII | D33: =IFERROR(IFERROR(VLOOKUP(B33,'[1]Din Rep'!$B:$M,5,0),VLOOKUP(C33,'[1]Din Rep'!$C:$M,4,0)),"") -> 439.41005 | E33: =IFERROR(IFERROR(VLOOKUP(B33,'[1]Din Rep'!$B:$M,7,0),VLOOKUP(C33,'[1]Din Rep'!$C:$M,6,0)),"") -> 467.4575 | F33: =IFERROR(IFERROR(VLOOKUP(B33,'[1]Din Rep'!$B:$M,8,0),VLOOKUP(C33,'[1]Din Rep'!$C:$M,7,0)),"") -> 1099.9 | G33: =IFERROR(IFERROR(VLOOKUP(B33,'[1]Din Rep'!$B:$M,10,0),VLOOKUP(C33,'[1]Din Rep'!$C:$M,9,0)),"") -> 2.352941176 | H33: =IFERROR(IFERROR(VLOOKUP(B33,'[1]Din Rep'!$B:$M,11,0),VLOOKUP(C33,'[1]Din Rep'!$C:$M,10,0)),"") -> 0 | I33: =IFERROR(IFERROR(VLOOKUP(B33,'[1]Din Rep'!$B:$M,12,0),VLOOKUP(C33,'[1]Din Rep'!$C:$M,11,0)),"") -> 45 DD
B34: SU001F10DVP6A | C34: =IFERROR(VLOOKUP(B34,'[1]Din Rep'!$B:$M,2,0),"") -> LONG JOHN MANGA LONGA CHESTZIP 1 MM FEMININO DIVA PRO 6 A SURF MORMAII | D34: =IFERROR(IFERROR(VLOOKUP(B34,'[1]Din Rep'!$B:$M,5,0),VLOOKUP(C34,'[1]Din Rep'!$C:$M,4,0)),"") -> 279.61005 | E34: =IFERROR(IFERROR(VLOOKUP(B34,'[1]Din Rep'!$B:$M,7,0),VLOOKUP(C34,'[1]Din Rep'!$C:$M,6,0)),"") -> 297.4575 | F34: =IFERROR(IFERROR(VLOOKUP(B34,'[1]Din Rep'!$B:$M,8,0),VLOOKUP(C34,'[1]Din Rep'!$C:$M,7,0)),"") -> 699.9 | G34: =IFERROR(IFERROR(VLOOKUP(B34,'[1]Din Rep'!$B:$M,10,0),VLOOKUP(C34,'[1]Din Rep'!$C:$M,9,0)),"") -> 2.352941176 | H34: =IFERROR(IFERROR(VLOOKUP(B34,'[1]Din Rep'!$B:$M,11,0),VLOOKUP(C34,'[1]Din Rep'!$C:$M,10,0)),"") -> 0 | I34: =IFERROR(IFERROR(VLOOKUP(B34,'[1]Din Rep'!$B:$M,12,0),VLOOKUP(C34,'[1]Din Rep'!$C:$M,11,0)),"") -> 45 DD
B35: SU005F10DVP6A | C35: =IFERROR(VLOOKUP(B35,'[1]Din Rep'!$B:$M,2,0),"") -> SHORT JOHN MANGA LONGA FRONTZIP 1.5MM FEMININO DIVA PRO 6 A SURF MORMAII | D35: =IFERROR(IFERROR(VLOOKUP(B35,'[1]Din Rep'!$B:$M,5,0),VLOOKUP(C35,'[1]Din Rep'!$C:$M,4,0)),"") -> 191.72005 | E35: =IFERROR(IFERROR(VLOOKUP(B35,'[1]Din Rep'!$B:$M,7,0),VLOOKUP(C35,'[1]Din Rep'!$C:$M,6,0)),"") -> 203.9575 | F35: =IFERROR(IFERROR(VLOOKUP(B35,'[1]Din Rep'!$B:$M,8,0),VLOOKUP(C35,'[1]Din Rep'!$C:$M,7,0)),"") -> 479.9 | G35: =IFERROR(IFERROR(VLOOKUP(B35,'[1]Din Rep'!$B:$M,10,0),VLOOKUP(C35,'[1]Din Rep'!$C:$M,9,0)),"") -> 2.352941176 | H35: =IFERROR(IFERROR(VLOOKUP(B35,'[1]Din Rep'!$B:$M,11,0),VLOOKUP(C35,'[1]Din Rep'!$C:$M,10,0)),"") -> 0 | I35: =IFERROR(IFERROR(VLOOKUP(B35,'[1]Din Rep'!$B:$M,12,0),VLOOKUP(C35,'[1]Din Rep'!$C:$M,11,0)),"") -> 45 DD
B36: SU037F00DVP6A | C36: =IFERROR(VLOOKUP(B36,'[1]Din Rep'!$B:$M,2,0),"") -> CAMISETA MANGA LONGA LYCRA FEMININO DIVA PRO 6 A UV CORE MORMAII | D36: =IFERROR(IFERROR(VLOOKUP(B36,'[1]Din Rep'!$B:$M,5,0),VLOOKUP(C36,'[1]Din Rep'!$C:$M,4,0)),"") -> 79.86005 | E36: =IFERROR(IFERROR(VLOOKUP(B36,'[1]Din Rep'!$B:$M,7,0),VLOOKUP(C36,'[1]Din Rep'!$C:$M,6,0)),"") -> 84.9575 | F36: =IFERROR(IFERROR(VLOOKUP(B36,'[1]Din Rep'!$B:$M,8,0),VLOOKUP(C36,'[1]Din Rep'!$C:$M,7,0)),"") -> 199.9 | G36: =IFERROR(IFERROR(VLOOKUP(B36,'[1]Din Rep'!$B:$M,10,0),VLOOKUP(C36,'[1]Din Rep'!$C:$M,9,0)),"") -> 2.352941176 | H36: =IFERROR(IFERROR(VLOOKUP(B36,'[1]Din Rep'!$B:$M,11,0),VLOOKUP(C36,'[1]Din Rep'!$C:$M,10,0)),"") -> 0 | I36: =IFERROR(IFERROR(VLOOKUP(B36,'[1]Din Rep'!$B:$M,12,0),VLOOKUP(C36,'[1]Din Rep'!$C:$M,11,0)),"") -> 45 DD
B37: SU054F10DVP6A | C37: =IFERROR(VLOOKUP(B37,'[1]Din Rep'!$B:$M,2,0),"") -> BERMUDA 1.0MM FEMININO DIVA PRO 6 A SURF MORMAII | D37: =IFERROR(IFERROR(VLOOKUP(B37,'[1]Din Rep'!$B:$M,5,0),VLOOKUP(C37,'[1]Din Rep'!$C:$M,4,0)),"") -> 71.87005 | E37: =IFERROR(IFERROR(VLOOKUP(B37,'[1]Din Rep'!$B:$M,7,0),VLOOKUP(C37,'[1]Din Rep'!$C:$M,6,0)),"") -> 76.4575 | F37: =IFERROR(IFERROR(VLOOKUP(B37,'[1]Din Rep'!$B:$M,8,0),VLOOKUP(C37,'[1]Din Rep'!$C:$M,7,0)),"") -> 179.9 | G37: =IFERROR(IFERROR(VLOOKUP(B37,'[1]Din Rep'!$B:$M,10,0),VLOOKUP(C37,'[1]Din Rep'!$C:$M,9,0)),"") -> 2.352941176 | H37: =IFERROR(IFERROR(VLOOKUP(B37,'[1]Din Rep'!$B:$M,11,0),VLOOKUP(C37,'[1]Din Rep'!$C:$M,10,0)),"") -> 0 | I37: =IFERROR(IFERROR(VLOOKUP(B37,'[1]Din Rep'!$B:$M,12,0),VLOOKUP(C37,'[1]Din Rep'!$C:$M,11,0)),"") -> 45 DD
B38: SU023F00DVP6A | C38: =IFERROR(VLOOKUP(B38,'[1]Din Rep'!$B:$M,2,0),"") -> MAIO FEMININO EL LYCRA C/ FORRO DIVA PRO 6 A SURF MORMAII | D38: =IFERROR(IFERROR(VLOOKUP(B38,'[1]Din Rep'!$B:$M,5,0),VLOOKUP(C38,'[1]Din Rep'!$C:$M,4,0)),"") -> 71.87005 | E38: =IFERROR(IFERROR(VLOOKUP(B38,'[1]Din Rep'!$B:$M,7,0),VLOOKUP(C38,'[1]Din Rep'!$C:$M,6,0)),"") -> 76.4575 | F38: =IFERROR(IFERROR(VLOOKUP(B38,'[1]Din Rep'!$B:$M,8,0),VLOOKUP(C38,'[1]Din Rep'!$C:$M,7,0)),"") -> 179.9 | G38: =IFERROR(IFERROR(VLOOKUP(B38,'[1]Din Rep'!$B:$M,10,0),VLOOKUP(C38,'[1]Din Rep'!$C:$M,9,0)),"") -> 2.352941176 | H38: =IFERROR(IFERROR(VLOOKUP(B38,'[1]Din Rep'!$B:$M,11,0),VLOOKUP(C38,'[1]Din Rep'!$C:$M,10,0)),"") -> 0 | I38: =IFERROR(IFERROR(VLOOKUP(B38,'[1]Din Rep'!$B:$M,12,0),VLOOKUP(C38,'[1]Din Rep'!$C:$M,11,0)),"") -> 45 DD
B39: SU052F00DVP6A | C39: =IFERROR(VLOOKUP(B39,'[1]Din Rep'!$B:$M,2,0),"") -> TOP FEMININO EM LYCRA C/ FORRO DIVA PRO 6 A SURF MORMAII | D39: =IFERROR(IFERROR(VLOOKUP(B39,'[1]Din Rep'!$B:$M,5,0),VLOOKUP(C39,'[1]Din Rep'!$C:$M,4,0)),"") -> 39.91005 | E39: =IFERROR(IFERROR(VLOOKUP(B39,'[1]Din Rep'!$B:$M,7,0),VLOOKUP(C39,'[1]Din Rep'!$C:$M,6,0)),"") -> 42.4575 | F39: =IFERROR(IFERROR(VLOOKUP(B39,'[1]Din Rep'!$B:$M,8,0),VLOOKUP(C39,'[1]Din Rep'!$C:$M,7,0)),"") -> 99.9 | G39: =IFERROR(IFERROR(VLOOKUP(B39,'[1]Din Rep'!$B:$M,10,0),VLOOKUP(C39,'[1]Din Rep'!$C:$M,9,0)),"") -> 2.352941176 | H39: =IFERROR(IFERROR(VLOOKUP(B39,'[1]Din Rep'!$B:$M,11,0),VLOOKUP(C39,'[1]Din Rep'!$C:$M,10,0)),"") -> 0 | I39: =IFERROR(IFERROR(VLOOKUP(B39,'[1]Din Rep'!$B:$M,12,0),VLOOKUP(C39,'[1]Din Rep'!$C:$M,11,0)),"") -> 45 DD
B40: SU081F00DVP6A | C40: =IFERROR(VLOOKUP(B40,'[1]Din Rep'!$B:$M,2,0),"") -> SUNKINI FEMININO EM LYCRA S/ FORRO DIVA PRO 6 A SURF MORMAII | D40: =IFERROR(IFERROR(VLOOKUP(B40,'[1]Din Rep'!$B:$M,5,0),VLOOKUP(C40,'[1]Din Rep'!$C:$M,4,0)),"") -> 39.91005 | E40: =IFERROR(IFERROR(VLOOKUP(B40,'[1]Din Rep'!$B:$M,7,0),VLOOKUP(C40,'[1]Din Rep'!$C:$M,6,0)),"") -> 42.4575 | F40: =IFERROR(IFERROR(VLOOKUP(B40,'[1]Din Rep'!$B:$M,8,0),VLOOKUP(C40,'[1]Din Rep'!$C:$M,7,0)),"") -> 99.9 | G40: =IFERROR(IFERROR(VLOOKUP(B40,'[1]Din Rep'!$B:$M,10,0),VLOOKUP(C40,'[1]Din Rep'!$C:$M,9,0)),"") -> 2.352941176 | H40: =IFERROR(IFERROR(VLOOKUP(B40,'[1]Din Rep'!$B:$M,11,0),VLOOKUP(C40,'[1]Din Rep'!$C:$M,10,0)),"") -> 0 | I40: =IFERROR(IFERROR(VLOOKUP(B40,'[1]Din Rep'!$B:$M,12,0),VLOOKUP(C40,'[1]Din Rep'!$C:$M,11,0)),"") -> 45 DD
B41: SU021F00DVP6A | C41: =IFERROR(VLOOKUP(B41,'[1]Din Rep'!$B:$M,2,0),"") -> BODY MANGA LONGA FEMININO EM LYCRA C/ FORRO DIVA PRO 6 A SURF MORMAII | D41: =IFERROR(IFERROR(VLOOKUP(B41,'[1]Din Rep'!$B:$M,5,0),VLOOKUP(C41,'[1]Din Rep'!$C:$M,4,0)),"") -> 79.86005 | E41: =IFERROR(IFERROR(VLOOKUP(B41,'[1]Din Rep'!$B:$M,7,0),VLOOKUP(C41,'[1]Din Rep'!$C:$M,6,0)),"") -> 84.9575 | F41: =IFERROR(IFERROR(VLOOKUP(B41,'[1]Din Rep'!$B:$M,8,0),VLOOKUP(C41,'[1]Din Rep'!$C:$M,7,0)),"") -> 199.9 | G41: =IFERROR(IFERROR(VLOOKUP(B41,'[1]Din Rep'!$B:$M,10,0),VLOOKUP(C41,'[1]Din Rep'!$C:$M,9,0)),"") -> 2.352941176 | H41: =IFERROR(IFERROR(VLOOKUP(B41,'[1]Din Rep'!$B:$M,11,0),VLOOKUP(C41,'[1]Din Rep'!$C:$M,10,0)),"") -> 0 | I41: =IFERROR(IFERROR(VLOOKUP(B41,'[1]Din Rep'!$B:$M,12,0),VLOOKUP(C41,'[1]Din Rep'!$C:$M,11,0)),"") -> 45 DD
A42: 6 - DIVA | B42: SU001F32DIV7A | C42: =IFERROR(VLOOKUP(B42,'[1]Din Rep'!$B:$M,2,0),"") -> LONG JOHN MANGA LONGA BACKZIP 3/2 MM FEMININO DIVA 7 A SURF MORMAII | D42: =IFERROR(IFERROR(VLOOKUP(B42,'[1]Din Rep'!$B:$M,5,0),VLOOKUP(C42,'[1]Din Rep'!$C:$M,4,0)),"") -> 279.61005 | E42: =IFERROR(IFERROR(VLOOKUP(B42,'[1]Din Rep'!$B:$M,7,0),VLOOKUP(C42,'[1]Din Rep'!$C:$M,6,0)),"") -> 297.4575 | F42: =IFERROR(IFERROR(VLOOKUP(B42,'[1]Din Rep'!$B:$M,8,0),VLOOKUP(C42,'[1]Din Rep'!$C:$M,7,0)),"") -> 699.9 | G42: =IFERROR(IFERROR(VLOOKUP(B42,'[1]Din Rep'!$B:$M,10,0),VLOOKUP(C42,'[1]Din Rep'!$C:$M,9,0)),"") -> 2.352941176 | H42: =IFERROR(IFERROR(VLOOKUP(B42,'[1]Din Rep'!$B:$M,11,0),VLOOKUP(C42,'[1]Din Rep'!$C:$M,10,0)),"") -> 0 | I42: =IFERROR(IFERROR(VLOOKUP(B42,'[1]Din Rep'!$B:$M,12,0),VLOOKUP(C42,'[1]Din Rep'!$C:$M,11,0)),"") -> 45 DD
B43: SU001F20DIV7A | C43: =IFERROR(VLOOKUP(B43,'[1]Din Rep'!$B:$M,2,0),"") -> LONG JOHN MANGA LONGA BACKZIP 2MM FEMININO DIVA 7A SURF MORMAII | D43: =IFERROR(IFERROR(VLOOKUP(B43,'[1]Din Rep'!$B:$M,5,0),VLOOKUP(C43,'[1]Din Rep'!$C:$M,4,0)),"") -> 271.62005 | E43: =IFERROR(IFERROR(VLOOKUP(B43,'[1]Din Rep'!$B:$M,7,0),VLOOKUP(C43,'[1]Din Rep'!$C:$M,6,0)),"") -> 288.9575 | F43: =IFERROR(IFERROR(VLOOKUP(B43,'[1]Din Rep'!$B:$M,8,0),VLOOKUP(C43,'[1]Din Rep'!$C:$M,7,0)),"") -> 679.9 | G43: =IFERROR(IFERROR(VLOOKUP(B43,'[1]Din Rep'!$B:$M,10,0),VLOOKUP(C43,'[1]Din Rep'!$C:$M,9,0)),"") -> 2.352941176 | H43: =IFERROR(IFERROR(VLOOKUP(B43,'[1]Din Rep'!$B:$M,11,0),VLOOKUP(C43,'[1]Din Rep'!$C:$M,10,0)),"") -> 0 | I43: =IFERROR(IFERROR(VLOOKUP(B43,'[1]Din Rep'!$B:$M,12,0),VLOOKUP(C43,'[1]Din Rep'!$C:$M,11,0)),"") -> 45 DD
B44: SU005F20DIV7A | C44: =IFERROR(VLOOKUP(B44,'[1]Din Rep'!$B:$M,2,0),"") -> SHORT JOHN MANGA LONGA BACKZIP 2.0MM FEMININO DIVA 7 A SURF MORMAII | D44: =IFERROR(IFERROR(VLOOKUP(B44,'[1]Din Rep'!$B:$M,5,0),VLOOKUP(C44,'[1]Din Rep'!$C:$M,4,0)),"") -> 259.63505 | E44: =IFERROR(IFERROR(VLOOKUP(B44,'[1]Din Rep'!$B:$M,7,0),VLOOKUP(C44,'[1]Din Rep'!$C:$M,6,0)),"") -> 276.2075 | F44: =IFERROR(IFERROR(VLOOKUP(B44,'[1]Din Rep'!$B:$M,8,0),VLOOKUP(C44,'[1]Din Rep'!$C:$M,7,0)),"") -> 649.9 | G44: =IFERROR(IFERROR(VLOOKUP(B44,'[1]Din Rep'!$B:$M,10,0),VLOOKUP(C44,'[1]Din Rep'!$C:$M,9,0)),"") -> 2.352941176 | H44: =IFERROR(IFERROR(VLOOKUP(B44,'[1]Din Rep'!$B:$M,11,0),VLOOKUP(C44,'[1]Din Rep'!$C:$M,10,0)),"") -> 0 | I44: =IFERROR(IFERROR(VLOOKUP(B44,'[1]Din Rep'!$B:$M,12,0),VLOOKUP(C44,'[1]Din Rep'!$C:$M,11,0)),"") -> 45 DD
B45: SU006F20DIV7A | C45: =IFERROR(VLOOKUP(B45,'[1]Din Rep'!$B:$M,2,0),"") -> SHORT JOHN MANGA CURTA BACKZIP 2.0MM FEMININO DIVA 7 A SURF MORMAII | D45: =IFERROR(IFERROR(VLOOKUP(B45,'[1]Din Rep'!$B:$M,5,0),VLOOKUP(C45,'[1]Din Rep'!$C:$M,4,0)),"") -> 199.71005 | E45: =IFERROR(IFERROR(VLOOKUP(B45,'[1]Din Rep'!$B:$M,7,0),VLOOKUP(C45,'[1]Din Rep'!$C:$M,6,0)),"") -> 212.4575 | F45: =IFERROR(IFERROR(VLOOKUP(B45,'[1]Din Rep'!$B:$M,8,0),VLOOKUP(C45,'[1]Din Rep'!$C:$M,7,0)),"") -> 499.9 | G45: =IFERROR(IFERROR(VLOOKUP(B45,'[1]Din Rep'!$B:$M,10,0),VLOOKUP(C45,'[1]Din Rep'!$C:$M,9,0)),"") -> 2.352941176 | H45: =IFERROR(IFERROR(VLOOKUP(B45,'[1]Din Rep'!$B:$M,11,0),VLOOKUP(C45,'[1]Din Rep'!$C:$M,10,0)),"") -> 0 | I45: =IFERROR(IFERROR(VLOOKUP(B45,'[1]Din Rep'!$B:$M,12,0),VLOOKUP(C45,'[1]Din Rep'!$C:$M,11,0)),"") -> 45 DD
B46: SU037F00DIV7A | C46: =IFERROR(VLOOKUP(B46,'[1]Din Rep'!$B:$M,2,0),"") -> CAMISETA MANGA LONGA FEMININO EM LYCRA DIVA 7 A SURF MORMAII | D46: =IFERROR(IFERROR(VLOOKUP(B46,'[1]Din Rep'!$B:$M,5,0),VLOOKUP(C46,'[1]Din Rep'!$C:$M,4,0)),"") -> 59.88505 | E46: =IFERROR(IFERROR(VLOOKUP(B46,'[1]Din Rep'!$B:$M,7,0),VLOOKUP(C46,'[1]Din Rep'!$C:$M,6,0)),"") -> 63.7075 | F46: =IFERROR(IFERROR(VLOOKUP(B46,'[1]Din Rep'!$B:$M,8,0),VLOOKUP(C46,'[1]Din Rep'!$C:$M,7,0)),"") -> 149.9 | G46: =IFERROR(IFERROR(VLOOKUP(B46,'[1]Din Rep'!$B:$M,10,0),VLOOKUP(C46,'[1]Din Rep'!$C:$M,9,0)),"") -> 2.352941176 | H46: =IFERROR(IFERROR(VLOOKUP(B46,'[1]Din Rep'!$B:$M,11,0),VLOOKUP(C46,'[1]Din Rep'!$C:$M,10,0)),"") -> 0 | I46: =IFERROR(IFERROR(VLOOKUP(B46,'[1]Din Rep'!$B:$M,12,0),VLOOKUP(C46,'[1]Din Rep'!$C:$M,11,0)),"") -> 45 DD
A47: 7 - NEXT MASC | B47: SU001M32NXT2A | C47: =IFERROR(VLOOKUP(B47,'[1]Din Rep'!$B:$M,2,0),"") -> LONG JOHN MANGA LONGA CHESTZIP 3/2 MM INFANTIL NEXT 2A SURF MORMAII | D47: =IFERROR(IFERROR(VLOOKUP(B47,'[1]Din Rep'!$B:$M,5,0),VLOOKUP(C47,'[1]Din Rep'!$C:$M,4,0)),"") -> 359.51005 | E47: =IFERROR(IFERROR(VLOOKUP(B47,'[1]Din Rep'!$B:$M,7,0),VLOOKUP(C47,'[1]Din Rep'!$C:$M,6,0)),"") -> 382.4575 | F47: =IFERROR(IFERROR(VLOOKUP(B47,'[1]Din Rep'!$B:$M,8,0),VLOOKUP(C47,'[1]Din Rep'!$C:$M,7,0)),"") -> 899.9 | G47: =IFERROR(IFERROR(VLOOKUP(B47,'[1]Din Rep'!$B:$M,10,0),VLOOKUP(C47,'[1]Din Rep'!$C:$M,9,0)),"") -> 2.352941176 | H47: =IFERROR(IFERROR(VLOOKUP(B47,'[1]Din Rep'!$B:$M,11,0),VLOOKUP(C47,'[1]Din Rep'!$C:$M,10,0)),"") -> 0 | I47: =IFERROR(IFERROR(VLOOKUP(B47,'[1]Din Rep'!$B:$M,12,0),VLOOKUP(C47,'[1]Din Rep'!$C:$M,11,0)),"") -> 45 DD
B48: SU001M32NXT2B | C48: =IFERROR(VLOOKUP(B48,'[1]Din Rep'!$B:$M,2,0),"") -> LONG JOHN MANGA LONGA BACK 3/2 MM INFANTIL NEXT 2A SURF MORMAII | D48: =IFERROR(IFERROR(VLOOKUP(B48,'[1]Din Rep'!$B:$M,5,0),VLOOKUP(C48,'[1]Din Rep'!$C:$M,4,0)),"") -> 359.51005 | E48: =IFERROR(IFERROR(VLOOKUP(B48,'[1]Din Rep'!$B:$M,7,0),VLOOKUP(C48,'[1]Din Rep'!$C:$M,6,0)),"") -> 382.4575 | F48: =IFERROR(IFERROR(VLOOKUP(B48,'[1]Din Rep'!$B:$M,8,0),VLOOKUP(C48,'[1]Din Rep'!$C:$M,7,0)),"") -> 899.9 | G48: =IFERROR(IFERROR(VLOOKUP(B48,'[1]Din Rep'!$B:$M,10,0),VLOOKUP(C48,'[1]Din Rep'!$C:$M,9,0)),"") -> 2.352941176 | H48: =IFERROR(IFERROR(VLOOKUP(B48,'[1]Din Rep'!$B:$M,11,0),VLOOKUP(C48,'[1]Din Rep'!$C:$M,10,0)),"") -> 0 | I48: =IFERROR(IFERROR(VLOOKUP(B48,'[1]Din Rep'!$B:$M,12,0),VLOOKUP(C48,'[1]Din Rep'!$C:$M,11,0)),"") -> 45 DD
B49: SU001M10NXT2A | C49: =IFERROR(VLOOKUP(B49,'[1]Din Rep'!$B:$M,2,0),"") -> LONG JOHN MANGA LONGA BACK 1 MM INFANTIL NEXT 2A SURF MORMAII | D49: =IFERROR(IFERROR(VLOOKUP(B49,'[1]Din Rep'!$B:$M,5,0),VLOOKUP(C49,'[1]Din Rep'!$C:$M,4,0)),"") -> 279.61005 | E49: =IFERROR(IFERROR(VLOOKUP(B49,'[1]Din Rep'!$B:$M,7,0),VLOOKUP(C49,'[1]Din Rep'!$C:$M,6,0)),"") -> 297.4575 | F49: =IFERROR(IFERROR(VLOOKUP(B49,'[1]Din Rep'!$B:$M,8,0),VLOOKUP(C49,'[1]Din Rep'!$C:$M,7,0)),"") -> 699.9 | G49: =IFERROR(IFERROR(VLOOKUP(B49,'[1]Din Rep'!$B:$M,10,0),VLOOKUP(C49,'[1]Din Rep'!$C:$M,9,0)),"") -> 2.352941176 | H49: =IFERROR(IFERROR(VLOOKUP(B49,'[1]Din Rep'!$B:$M,11,0),VLOOKUP(C49,'[1]Din Rep'!$C:$M,10,0)),"") -> 0 | I49: =IFERROR(IFERROR(VLOOKUP(B49,'[1]Din Rep'!$B:$M,12,0),VLOOKUP(C49,'[1]Din Rep'!$C:$M,11,0)),"") -> 45 DD
B50: SU005M10NXT2A | C50: =IFERROR(VLOOKUP(B50,'[1]Din Rep'!$B:$M,2,0),"") -> SHORT JOHN MANGA LONGA CHESTZIP 1MM MASCULINO NEXT 2A SURF MORMAII | D50: =IFERROR(IFERROR(VLOOKUP(B50,'[1]Din Rep'!$B:$M,5,0),VLOOKUP(C50,'[1]Din Rep'!$C:$M,4,0)),"") -> 199.71005 | E50: =IFERROR(IFERROR(VLOOKUP(B50,'[1]Din Rep'!$B:$M,7,0),VLOOKUP(C50,'[1]Din Rep'!$C:$M,6,0)),"") -> 212.4575 | F50: =IFERROR(IFERROR(VLOOKUP(B50,'[1]Din Rep'!$B:$M,8,0),VLOOKUP(C50,'[1]Din Rep'!$C:$M,7,0)),"") -> 499.9 | G50: =IFERROR(IFERROR(VLOOKUP(B50,'[1]Din Rep'!$B:$M,10,0),VLOOKUP(C50,'[1]Din Rep'!$C:$M,9,0)),"") -> 2.352941176 | H50: =IFERROR(IFERROR(VLOOKUP(B50,'[1]Din Rep'!$B:$M,11,0),VLOOKUP(C50,'[1]Din Rep'!$C:$M,10,0)),"") -> 0 | I50: =IFERROR(IFERROR(VLOOKUP(B50,'[1]Din Rep'!$B:$M,12,0),VLOOKUP(C50,'[1]Din Rep'!$C:$M,11,0)),"") -> 45 DD
B51: SU054M10NXT2A | C51: =IFERROR(VLOOKUP(B51,'[1]Din Rep'!$B:$M,2,0),"") -> BERMUDA 1.0MM INFANTIL NEXT 2A SURF MORMAII | D51: =IFERROR(IFERROR(VLOOKUP(B51,'[1]Din Rep'!$B:$M,5,0),VLOOKUP(C51,'[1]Din Rep'!$C:$M,4,0)),"") -> 59.88505 | E51: =IFERROR(IFERROR(VLOOKUP(B51,'[1]Din Rep'!$B:$M,7,0),VLOOKUP(C51,'[1]Din Rep'!$C:$M,6,0)),"") -> 63.7075 | F51: =IFERROR(IFERROR(VLOOKUP(B51,'[1]Din Rep'!$B:$M,8,0),VLOOKUP(C51,'[1]Din Rep'!$C:$M,7,0)),"") -> 149.9 | G51: =IFERROR(IFERROR(VLOOKUP(B51,'[1]Din Rep'!$B:$M,10,0),VLOOKUP(C51,'[1]Din Rep'!$C:$M,9,0)),"") -> 2.352941176 | H51: =IFERROR(IFERROR(VLOOKUP(B51,'[1]Din Rep'!$B:$M,11,0),VLOOKUP(C51,'[1]Din Rep'!$C:$M,10,0)),"") -> 0 | I51: =IFERROR(IFERROR(VLOOKUP(B51,'[1]Din Rep'!$B:$M,12,0),VLOOKUP(C51,'[1]Din Rep'!$C:$M,11,0)),"") -> 45 DD
B52: SU037M00NXT2A | C52: =IFERROR(VLOOKUP(B52,'[1]Din Rep'!$B:$M,2,0),"") -> CAMISETA MANGA LONGA LYCRA INFANTIL NEXT 2A SURF MORMAII | D52: =IFERROR(IFERROR(VLOOKUP(B52,'[1]Din Rep'!$B:$M,5,0),VLOOKUP(C52,'[1]Din Rep'!$C:$M,4,0)),"") -> 59.88505 | E52: =IFERROR(IFERROR(VLOOKUP(B52,'[1]Din Rep'!$B:$M,7,0),VLOOKUP(C52,'[1]Din Rep'!$C:$M,6,0)),"") -> 63.7075 | F52: =IFERROR(IFERROR(VLOOKUP(B52,'[1]Din Rep'!$B:$M,8,0),VLOOKUP(C52,'[1]Din Rep'!$C:$M,7,0)),"") -> 149.9 | G52: =IFERROR(IFERROR(VLOOKUP(B52,'[1]Din Rep'!$B:$M,10,0),VLOOKUP(C52,'[1]Din Rep'!$C:$M,9,0)),"") -> 2.352941176 | H52: =IFERROR(IFERROR(VLOOKUP(B52,'[1]Din Rep'!$B:$M,11,0),VLOOKUP(C52,'[1]Din Rep'!$C:$M,10,0)),"") -> 0 | I52: =IFERROR(IFERROR(VLOOKUP(B52,'[1]Din Rep'!$B:$M,12,0),VLOOKUP(C52,'[1]Din Rep'!$C:$M,11,0)),"") -> 45 DD
B53: SU040M10NXT2A | C53: =IFERROR(VLOOKUP(B53,'[1]Din Rep'!$B:$M,2,0),"") -> CAMISETA DE LYCRA MANGA LONGA COM NEOPRENE 1,0MM INFANTIL NEXT (NOELYCRA) | D53: =IFERROR(IFERROR(VLOOKUP(B53,'[1]Din Rep'!$B:$M,5,0),VLOOKUP(C53,'[1]Din Rep'!$C:$M,4,0)),"") -> 87.85005 | E53: =IFERROR(IFERROR(VLOOKUP(B53,'[1]Din Rep'!$B:$M,7,0),VLOOKUP(C53,'[1]Din Rep'!$C:$M,6,0)),"") -> 93.4575 | F53: =IFERROR(IFERROR(VLOOKUP(B53,'[1]Din Rep'!$B:$M,8,0),VLOOKUP(C53,'[1]Din Rep'!$C:$M,7,0)),"") -> 219.9 | G53: =IFERROR(IFERROR(VLOOKUP(B53,'[1]Din Rep'!$B:$M,10,0),VLOOKUP(C53,'[1]Din Rep'!$C:$M,9,0)),"") -> 2.352941176 | H53: =IFERROR(IFERROR(VLOOKUP(B53,'[1]Din Rep'!$B:$M,11,0),VLOOKUP(C53,'[1]Din Rep'!$C:$M,10,0)),"") -> 0 | I53: =IFERROR(IFERROR(VLOOKUP(B53,'[1]Din Rep'!$B:$M,12,0),VLOOKUP(C53,'[1]Din Rep'!$C:$M,11,0)),"") -> 45 DD
A54: 7 - NEXT FEM | B54: SU001F32NXT2A | C54: =IFERROR(VLOOKUP(B54,'[1]Din Rep'!$B:$M,2,0),"") -> LONG JOHN MANGA LONGA BACKZIP 3/2MM FEMININO NEXT 2A SURF MORMAII | D54: =IFERROR(IFERROR(VLOOKUP(B54,'[1]Din Rep'!$B:$M,5,0),VLOOKUP(C54,'[1]Din Rep'!$C:$M,4,0)),"") -> 359.51005 | E54: =IFERROR(IFERROR(VLOOKUP(B54,'[1]Din Rep'!$B:$M,7,0),VLOOKUP(C54,'[1]Din Rep'!$C:$M,6,0)),"") -> 382.4575 | F54: =IFERROR(IFERROR(VLOOKUP(B54,'[1]Din Rep'!$B:$M,8,0),VLOOKUP(C54,'[1]Din Rep'!$C:$M,7,0)),"") -> 899.9 | G54: =IFERROR(IFERROR(VLOOKUP(B54,'[1]Din Rep'!$B:$M,10,0),VLOOKUP(C54,'[1]Din Rep'!$C:$M,9,0)),"") -> 2.352941176 | H54: =IFERROR(IFERROR(VLOOKUP(B54,'[1]Din Rep'!$B:$M,11,0),VLOOKUP(C54,'[1]Din Rep'!$C:$M,10,0)),"") -> 0 | I54: =IFERROR(IFERROR(VLOOKUP(B54,'[1]Din Rep'!$B:$M,12,0),VLOOKUP(C54,'[1]Din Rep'!$C:$M,11,0)),"") -> 45 DD
B55: SU001F32NXT2B | C55: =IFERROR(VLOOKUP(B55,'[1]Din Rep'!$B:$M,2,0),"") -> LONG JOHN MANGA LONGA CHESTZIP 3/2MM FEMININO NEXT 2B SURF MORMAII | D55: =IFERROR(IFERROR(VLOOKUP(B55,'[1]Din Rep'!$B:$M,5,0),VLOOKUP(C55,'[1]Din Rep'!$C:$M,4,0)),"") -> 359.51005 | E55: =IFERROR(IFERROR(VLOOKUP(B55,'[1]Din Rep'!$B:$M,7,0),VLOOKUP(C55,'[1]Din Rep'!$C:$M,6,0)),"") -> 382.4575 | F55: =IFERROR(IFERROR(VLOOKUP(B55,'[1]Din Rep'!$B:$M,8,0),VLOOKUP(C55,'[1]Din Rep'!$C:$M,7,0)),"") -> 899.9 | G55: =IFERROR(IFERROR(VLOOKUP(B55,'[1]Din Rep'!$B:$M,10,0),VLOOKUP(C55,'[1]Din Rep'!$C:$M,9,0)),"") -> 2.352941176 | H55: =IFERROR(IFERROR(VLOOKUP(B55,'[1]Din Rep'!$B:$M,11,0),VLOOKUP(C55,'[1]Din Rep'!$C:$M,10,0)),"") -> 0 | I55: =IFERROR(IFERROR(VLOOKUP(B55,'[1]Din Rep'!$B:$M,12,0),VLOOKUP(C55,'[1]Din Rep'!$C:$M,11,0)),"") -> 45 DD
B56: SU001F10NXT2A | C56: =IFERROR(VLOOKUP(B56,'[1]Din Rep'!$B:$M,2,0),"") -> LONG JOHN MANGA LONGA CHESTZIP 1MM FEMININO NEXT 2A SURF MORMAII | D56: =IFERROR(IFERROR(VLOOKUP(B56,'[1]Din Rep'!$B:$M,5,0),VLOOKUP(C56,'[1]Din Rep'!$C:$M,4,0)),"") -> 279.61005 | E56: =IFERROR(IFERROR(VLOOKUP(B56,'[1]Din Rep'!$B:$M,7,0),VLOOKUP(C56,'[1]Din Rep'!$C:$M,6,0)),"") -> 297.4575 | F56: =IFERROR(IFERROR(VLOOKUP(B56,'[1]Din Rep'!$B:$M,8,0),VLOOKUP(C56,'[1]Din Rep'!$C:$M,7,0)),"") -> 699.9 | G56: =IFERROR(IFERROR(VLOOKUP(B56,'[1]Din Rep'!$B:$M,10,0),VLOOKUP(C56,'[1]Din Rep'!$C:$M,9,0)),"") -> 2.352941176 | H56: =IFERROR(IFERROR(VLOOKUP(B56,'[1]Din Rep'!$B:$M,11,0),VLOOKUP(C56,'[1]Din Rep'!$C:$M,10,0)),"") -> 0 | I56: =IFERROR(IFERROR(VLOOKUP(B56,'[1]Din Rep'!$B:$M,12,0),VLOOKUP(C56,'[1]Din Rep'!$C:$M,11,0)),"") -> 45 DD
B57: SU005F10NXT2A | C57: =IFERROR(VLOOKUP(B57,'[1]Din Rep'!$B:$M,2,0),"") -> SHORT JOHN MANGA LONGA CHESTZIP 1MM FEMININO NEXT 2A SURF MORMAII | D57: =IFERROR(IFERROR(VLOOKUP(B57,'[1]Din Rep'!$B:$M,5,0),VLOOKUP(C57,'[1]Din Rep'!$C:$M,4,0)),"") -> 191.72005 | E57: =IFERROR(IFERROR(VLOOKUP(B57,'[1]Din Rep'!$B:$M,7,0),VLOOKUP(C57,'[1]Din Rep'!$C:$M,6,0)),"") -> 203.9575 | F57: =IFERROR(IFERROR(VLOOKUP(B57,'[1]Din Rep'!$B:$M,8,0),VLOOKUP(C57,'[1]Din Rep'!$C:$M,7,0)),"") -> 479.9 | G57: =IFERROR(IFERROR(VLOOKUP(B57,'[1]Din Rep'!$B:$M,10,0),VLOOKUP(C57,'[1]Din Rep'!$C:$M,9,0)),"") -> 2.352941176 | H57: =IFERROR(IFERROR(VLOOKUP(B57,'[1]Din Rep'!$B:$M,11,0),VLOOKUP(C57,'[1]Din Rep'!$C:$M,10,0)),"") -> 0 | I57: =IFERROR(IFERROR(VLOOKUP(B57,'[1]Din Rep'!$B:$M,12,0),VLOOKUP(C57,'[1]Din Rep'!$C:$M,11,0)),"") -> 45 DD
B58: SU040F10NXT2A | C58: =IFERROR(VLOOKUP(B58,'[1]Din Rep'!$B:$M,2,0),"") -> CAMISETA DE LYCRA MANGA LONGA C/ NEOPRENE 1MM FEMININO NEXT 2A SURF MORMAII (NOELYCRA) | D58: =IFERROR(IFERROR(VLOOKUP(B58,'[1]Din Rep'!$B:$M,5,0),VLOOKUP(C58,'[1]Din Rep'!$C:$M,4,0)),"") -> 87.85005 | E58: =IFERROR(IFERROR(VLOOKUP(B58,'[1]Din Rep'!$B:$M,7,0),VLOOKUP(C58,'[1]Din Rep'!$C:$M,6,0)),"") -> 93.4575 | F58: =IFERROR(IFERROR(VLOOKUP(B58,'[1]Din Rep'!$B:$M,8,0),VLOOKUP(C58,'[1]Din Rep'!$C:$M,7,0)),"") -> 219.9 | G58: =IFERROR(IFERROR(VLOOKUP(B58,'[1]Din Rep'!$B:$M,10,0),VLOOKUP(C58,'[1]Din Rep'!$C:$M,9,0)),"") -> 2.352941176 | H58: =IFERROR(IFERROR(VLOOKUP(B58,'[1]Din Rep'!$B:$M,11,0),VLOOKUP(C58,'[1]Din Rep'!$C:$M,10,0)),"") -> 0 | I58: =IFERROR(IFERROR(VLOOKUP(B58,'[1]Din Rep'!$B:$M,12,0),VLOOKUP(C58,'[1]Din Rep'!$C:$M,11,0)),"") -> 45 DD
B59: SU037F00NXT2A | C59: =IFERROR(VLOOKUP(B59,'[1]Din Rep'!$B:$M,2,0),"") -> CAMISETA MANGA LONGA LYCRA FEMININO NEXT 2A SURF MORMAII | D59: =IFERROR(IFERROR(VLOOKUP(B59,'[1]Din Rep'!$B:$M,5,0),VLOOKUP(C59,'[1]Din Rep'!$C:$M,4,0)),"") -> 59.88505 | E59: =IFERROR(IFERROR(VLOOKUP(B59,'[1]Din Rep'!$B:$M,7,0),VLOOKUP(C59,'[1]Din Rep'!$C:$M,6,0)),"") -> 63.7075 | F59: =IFERROR(IFERROR(VLOOKUP(B59,'[1]Din Rep'!$B:$M,8,0),VLOOKUP(C59,'[1]Din Rep'!$C:$M,7,0)),"") -> 149.9 | G59: =IFERROR(IFERROR(VLOOKUP(B59,'[1]Din Rep'!$B:$M,10,0),VLOOKUP(C59,'[1]Din Rep'!$C:$M,9,0)),"") -> 2.352941176 | H59: =IFERROR(IFERROR(VLOOKUP(B59,'[1]Din Rep'!$B:$M,11,0),VLOOKUP(C59,'[1]Din Rep'!$C:$M,10,0)),"") -> 0 | I59: =IFERROR(IFERROR(VLOOKUP(B59,'[1]Din Rep'!$B:$M,12,0),VLOOKUP(C59,'[1]Din Rep'!$C:$M,11,0)),"") -> 45 DD
B60: SU054F10NXT2A | C60: =IFERROR(VLOOKUP(B60,'[1]Din Rep'!$B:$M,2,0),"") -> BERMUDA 1MM FEMININO NEXT 2A SURF MORMAII | D60: =IFERROR(IFERROR(VLOOKUP(B60,'[1]Din Rep'!$B:$M,5,0),VLOOKUP(C60,'[1]Din Rep'!$C:$M,4,0)),"") -> 59.88505 | E60: =IFERROR(IFERROR(VLOOKUP(B60,'[1]Din Rep'!$B:$M,7,0),VLOOKUP(C60,'[1]Din Rep'!$C:$M,6,0)),"") -> 63.7075 | F60: =IFERROR(IFERROR(VLOOKUP(B60,'[1]Din Rep'!$B:$M,8,0),VLOOKUP(C60,'[1]Din Rep'!$C:$M,7,0)),"") -> 149.9 | G60: =IFERROR(IFERROR(VLOOKUP(B60,'[1]Din Rep'!$B:$M,10,0),VLOOKUP(C60,'[1]Din Rep'!$C:$M,9,0)),"") -> 2.352941176 | H60: =IFERROR(IFERROR(VLOOKUP(B60,'[1]Din Rep'!$B:$M,11,0),VLOOKUP(C60,'[1]Din Rep'!$C:$M,10,0)),"") -> 0 | I60: =IFERROR(IFERROR(VLOOKUP(B60,'[1]Din Rep'!$B:$M,12,0),VLOOKUP(C60,'[1]Din Rep'!$C:$M,11,0)),"") -> 45 DD
A61: 8 - VENTUS | B61: SU005M10VNT1A | C61: =IFERROR(VLOOKUP(B61,'[1]Din Rep'!$B:$M,2,0),"") -> SHORT JOHN MANGA LONGA EM LYCRA 1,0MM VENTUS | D61: =IFERROR(IFERROR(VLOOKUP(B61,'[1]Din Rep'!$B:$M,5,0),VLOOKUP(C61,'[1]Din Rep'!$C:$M,4,0)),"") -> 203.70505 | E61: =IFERROR(IFERROR(VLOOKUP(B61,'[1]Din Rep'!$B:$M,7,0),VLOOKUP(C61,'[1]Din Rep'!$C:$M,6,0)),"") -> 216.7075 | F61: =IFERROR(IFERROR(VLOOKUP(B61,'[1]Din Rep'!$B:$M,8,0),VLOOKUP(C61,'[1]Din Rep'!$C:$M,7,0)),"") -> 509.9 | G61: =IFERROR(IFERROR(VLOOKUP(B61,'[1]Din Rep'!$B:$M,10,0),VLOOKUP(C61,'[1]Din Rep'!$C:$M,9,0)),"") -> 2.352941176 | H61: =IFERROR(IFERROR(VLOOKUP(B61,'[1]Din Rep'!$B:$M,11,0),VLOOKUP(C61,'[1]Din Rep'!$C:$M,10,0)),"") -> 0 | I61: =IFERROR(IFERROR(VLOOKUP(B61,'[1]Din Rep'!$B:$M,12,0),VLOOKUP(C61,'[1]Din Rep'!$C:$M,11,0)),"") -> 45 DD
B62: SU035M10VNT1A | C62: =IFERROR(VLOOKUP(B62,'[1]Din Rep'!$B:$M,2,0),"") -> JAQUETA SEM MANGA NEOPRENE 1,0MM COM LATERAIS EM LYCRA | D62: =IFERROR(IFERROR(VLOOKUP(B62,'[1]Din Rep'!$B:$M,5,0),VLOOKUP(C62,'[1]Din Rep'!$C:$M,4,0)),"") -> 79.86005 | E62: =IFERROR(IFERROR(VLOOKUP(B62,'[1]Din Rep'!$B:$M,7,0),VLOOKUP(C62,'[1]Din Rep'!$C:$M,6,0)),"") -> 84.9575 | F62: =IFERROR(IFERROR(VLOOKUP(B62,'[1]Din Rep'!$B:$M,8,0),VLOOKUP(C62,'[1]Din Rep'!$C:$M,7,0)),"") -> 199.9 | G62: =IFERROR(IFERROR(VLOOKUP(B62,'[1]Din Rep'!$B:$M,10,0),VLOOKUP(C62,'[1]Din Rep'!$C:$M,9,0)),"") -> 2.352941176 | H62: =IFERROR(IFERROR(VLOOKUP(B62,'[1]Din Rep'!$B:$M,11,0),VLOOKUP(C62,'[1]Din Rep'!$C:$M,10,0)),"") -> 0 | I62: =IFERROR(IFERROR(VLOOKUP(B62,'[1]Din Rep'!$B:$M,12,0),VLOOKUP(C62,'[1]Din Rep'!$C:$M,11,0)),"") -> 45 DD
B63: SU053M10VNT1A | C63: =IFERROR(VLOOKUP(B63,'[1]Din Rep'!$B:$M,2,0),"") -> CALÇA DE LYCRA COM REFORÇO EM NEOPRENE 1,0MM (JOELHOS E NADEGAS) | D63: =IFERROR(IFERROR(VLOOKUP(B63,'[1]Din Rep'!$B:$M,5,0),VLOOKUP(C63,'[1]Din Rep'!$C:$M,4,0)),"") -> 71.87005 | E63: =IFERROR(IFERROR(VLOOKUP(B63,'[1]Din Rep'!$B:$M,7,0),VLOOKUP(C63,'[1]Din Rep'!$C:$M,6,0)),"") -> 76.4575 | F63: =IFERROR(IFERROR(VLOOKUP(B63,'[1]Din Rep'!$B:$M,8,0),VLOOKUP(C63,'[1]Din Rep'!$C:$M,7,0)),"") -> 179.9 | G63: =IFERROR(IFERROR(VLOOKUP(B63,'[1]Din Rep'!$B:$M,10,0),VLOOKUP(C63,'[1]Din Rep'!$C:$M,9,0)),"") -> 2.352941176 | H63: =IFERROR(IFERROR(VLOOKUP(B63,'[1]Din Rep'!$B:$M,11,0),VLOOKUP(C63,'[1]Din Rep'!$C:$M,10,0)),"") -> 0 | I63: =IFERROR(IFERROR(VLOOKUP(B63,'[1]Din Rep'!$B:$M,12,0),VLOOKUP(C63,'[1]Din Rep'!$C:$M,11,0)),"") -> 45 DD
A64: 10 - ACESSÓRIOS SURF | B64: SU079M00INT3A | C64: =IFERROR(VLOOKUP(B64,'[1]Din Rep'!$B:$M,2,0),"") -> SURF PONCHO MASCULINO INTERMEDIÁRIO 3A SURF MORMAII | D64: =IFERROR(IFERROR(VLOOKUP(B64,'[1]Din Rep'!$B:$M,5,0),VLOOKUP(C64,'[1]Din Rep'!$C:$M,4,0)),"") -> 79.86005 | E64: =IFERROR(IFERROR(VLOOKUP(B64,'[1]Din Rep'!$B:$M,7,0),VLOOKUP(C64,'[1]Din Rep'!$C:$M,6,0)),"") -> 84.9575 | F64: =IFERROR(IFERROR(VLOOKUP(B64,'[1]Din Rep'!$B:$M,8,0),VLOOKUP(C64,'[1]Din Rep'!$C:$M,7,0)),"") -> 199.9 | G64: =IFERROR(IFERROR(VLOOKUP(B64,'[1]Din Rep'!$B:$M,10,0),VLOOKUP(C64,'[1]Din Rep'!$C:$M,9,0)),"") -> 2.352941176 | H64: =IFERROR(IFERROR(VLOOKUP(B64,'[1]Din Rep'!$B:$M,11,0),VLOOKUP(C64,'[1]Din Rep'!$C:$M,10,0)),"") -> 0 | I64: =IFERROR(IFERROR(VLOOKUP(B64,'[1]Din Rep'!$B:$M,12,0),VLOOKUP(C64,'[1]Din Rep'!$C:$M,11,0)),"") -> 45 DD
B65: SU079F00INT3A | C65: =IFERROR(VLOOKUP(B65,'[1]Din Rep'!$B:$M,2,0),"") -> SURF PONCHO FEMININO INTERMEDIÁRIO 3A SURF MORMAII | D65: =IFERROR(IFERROR(VLOOKUP(B65,'[1]Din Rep'!$B:$M,5,0),VLOOKUP(C65,'[1]Din Rep'!$C:$M,4,0)),"") -> 79.86005 | E65: =IFERROR(IFERROR(VLOOKUP(B65,'[1]Din Rep'!$B:$M,7,0),VLOOKUP(C65,'[1]Din Rep'!$C:$M,6,0)),"") -> 84.9575 | F65: =IFERROR(IFERROR(VLOOKUP(B65,'[1]Din Rep'!$B:$M,8,0),VLOOKUP(C65,'[1]Din Rep'!$C:$M,7,0)),"") -> 199.9 | G65: =IFERROR(IFERROR(VLOOKUP(B65,'[1]Din Rep'!$B:$M,10,0),VLOOKUP(C65,'[1]Din Rep'!$C:$M,9,0)),"") -> 2.352941176 | H65: =IFERROR(IFERROR(VLOOKUP(B65,'[1]Din Rep'!$B:$M,11,0),VLOOKUP(C65,'[1]Din Rep'!$C:$M,10,0)),"") -> 0 | I65: =IFERROR(IFERROR(VLOOKUP(B65,'[1]Din Rep'!$B:$M,12,0),VLOOKUP(C65,'[1]Din Rep'!$C:$M,11,0)),"") -> 45 DD
B66: SU062U30BAS1A | C66: =IFERROR(VLOOKUP(B66,'[1]Din Rep'!$B:$M,2,0),"") -> BOTA MULTISPORTS CANO LONGO BASICA | D66: =IFERROR(IFERROR(VLOOKUP(B66,'[1]Din Rep'!$B:$M,5,0),VLOOKUP(C66,'[1]Din Rep'!$C:$M,4,0)),"") -> 37.5624 | E66: =IFERROR(IFERROR(VLOOKUP(B66,'[1]Din Rep'!$B:$M,7,0),VLOOKUP(C66,'[1]Din Rep'!$C:$M,6,0)),"") -> 39.96 | F66: =IFERROR(IFERROR(VLOOKUP(B66,'[1]Din Rep'!$B:$M,8,0),VLOOKUP(C66,'[1]Din Rep'!$C:$M,7,0)),"") -> 99.9 | G66: =IFERROR(IFERROR(VLOOKUP(B66,'[1]Din Rep'!$B:$M,10,0),VLOOKUP(C66,'[1]Din Rep'!$C:$M,9,0)),"") -> 2.5 | H66: =IFERROR(IFERROR(VLOOKUP(B66,'[1]Din Rep'!$B:$M,11,0),VLOOKUP(C66,'[1]Din Rep'!$C:$M,10,0)),"") -> 0 | I66: =IFERROR(IFERROR(VLOOKUP(B66,'[1]Din Rep'!$B:$M,12,0),VLOOKUP(C66,'[1]Din Rep'!$C:$M,11,0)),"") -> 45 DD
B67: SU061U00INT1A | C67: =IFERROR(VLOOKUP(B67,'[1]Din Rep'!$B:$M,2,0),"") -> BOTA SURF CANO LONGO INTERMEDIARIA | D67: =IFERROR(IFERROR(VLOOKUP(B67,'[1]Din Rep'!$B:$M,5,0),VLOOKUP(C67,'[1]Din Rep'!$C:$M,4,0)),"") -> 119.81005 | E67: =IFERROR(IFERROR(VLOOKUP(B67,'[1]Din Rep'!$B:$M,7,0),VLOOKUP(C67,'[1]Din Rep'!$C:$M,6,0)),"") -> 127.4575 | F67: =IFERROR(IFERROR(VLOOKUP(B67,'[1]Din Rep'!$B:$M,8,0),VLOOKUP(C67,'[1]Din Rep'!$C:$M,7,0)),"") -> 299.9 | G67: =IFERROR(IFERROR(VLOOKUP(B67,'[1]Din Rep'!$B:$M,10,0),VLOOKUP(C67,'[1]Din Rep'!$C:$M,9,0)),"") -> 2.352941176 | H67: =IFERROR(IFERROR(VLOOKUP(B67,'[1]Din Rep'!$B:$M,11,0),VLOOKUP(C67,'[1]Din Rep'!$C:$M,10,0)),"") -> 0 | I67: =IFERROR(IFERROR(VLOOKUP(B67,'[1]Din Rep'!$B:$M,12,0),VLOOKUP(C67,'[1]Din Rep'!$C:$M,11,0)),"") -> 45 DD
B68: SU061U00TOP1A | C68: =IFERROR(VLOOKUP(B68,'[1]Din Rep'!$B:$M,2,0),"") -> BOTA SURF CANO LONGO TOP | D68: =IFERROR(IFERROR(VLOOKUP(B68,'[1]Din Rep'!$B:$M,5,0),VLOOKUP(C68,'[1]Din Rep'!$C:$M,4,0)),"") -> 167.75005 | E68: =IFERROR(IFERROR(VLOOKUP(B68,'[1]Din Rep'!$B:$M,7,0),VLOOKUP(C68,'[1]Din Rep'!$C:$M,6,0)),"") -> 178.4575 | F68: =IFERROR(IFERROR(VLOOKUP(B68,'[1]Din Rep'!$B:$M,8,0),VLOOKUP(C68,'[1]Din Rep'!$C:$M,7,0)),"") -> 419.9 | G68: =IFERROR(IFERROR(VLOOKUP(B68,'[1]Din Rep'!$B:$M,10,0),VLOOKUP(C68,'[1]Din Rep'!$C:$M,9,0)),"") -> 2.352941176 | H68: =IFERROR(IFERROR(VLOOKUP(B68,'[1]Din Rep'!$B:$M,11,0),VLOOKUP(C68,'[1]Din Rep'!$C:$M,10,0)),"") -> 0 | I68: =IFERROR(IFERROR(VLOOKUP(B68,'[1]Din Rep'!$B:$M,12,0),VLOOKUP(C68,'[1]Din Rep'!$C:$M,11,0)),"") -> 45 DD
B69: SU063U00INT1B | C69: =IFERROR(VLOOKUP(B69,'[1]Din Rep'!$B:$M,2,0),"") -> BOTA SURF CANO CURTO INTERMEDIARIA | D69: =IFERROR(IFERROR(VLOOKUP(B69,'[1]Din Rep'!$B:$M,5,0),VLOOKUP(C69,'[1]Din Rep'!$C:$M,4,0)),"") -> 115.81505 | E69: =IFERROR(IFERROR(VLOOKUP(B69,'[1]Din Rep'!$B:$M,7,0),VLOOKUP(C69,'[1]Din Rep'!$C:$M,6,0)),"") -> 123.2075 | F69: =IFERROR(IFERROR(VLOOKUP(B69,'[1]Din Rep'!$B:$M,8,0),VLOOKUP(C69,'[1]Din Rep'!$C:$M,7,0)),"") -> 289.9 | G69: =IFERROR(IFERROR(VLOOKUP(B69,'[1]Din Rep'!$B:$M,10,0),VLOOKUP(C69,'[1]Din Rep'!$C:$M,9,0)),"") -> 2.352941176 | H69: =IFERROR(IFERROR(VLOOKUP(B69,'[1]Din Rep'!$B:$M,11,0),VLOOKUP(C69,'[1]Din Rep'!$C:$M,10,0)),"") -> 0 | I69: =IFERROR(IFERROR(VLOOKUP(B69,'[1]Din Rep'!$B:$M,12,0),VLOOKUP(C69,'[1]Din Rep'!$C:$M,11,0)),"") -> 45 DD
B70: SU066U00BAS1A | C70: =IFERROR(VLOOKUP(B70,'[1]Din Rep'!$B:$M,2,0),"") -> LUVA NEOPRENE BASICA | D70: =IFERROR(IFERROR(VLOOKUP(B70,'[1]Din Rep'!$B:$M,5,0),VLOOKUP(C70,'[1]Din Rep'!$C:$M,4,0)),"") -> 63.88005 | E70: =IFERROR(IFERROR(VLOOKUP(B70,'[1]Din Rep'!$B:$M,7,0),VLOOKUP(C70,'[1]Din Rep'!$C:$M,6,0)),"") -> 67.9575 | F70: =IFERROR(IFERROR(VLOOKUP(B70,'[1]Din Rep'!$B:$M,8,0),VLOOKUP(C70,'[1]Din Rep'!$C:$M,7,0)),"") -> 159.9 | G70: =IFERROR(IFERROR(VLOOKUP(B70,'[1]Din Rep'!$B:$M,10,0),VLOOKUP(C70,'[1]Din Rep'!$C:$M,9,0)),"") -> 2.352941176 | H70: =IFERROR(IFERROR(VLOOKUP(B70,'[1]Din Rep'!$B:$M,11,0),VLOOKUP(C70,'[1]Din Rep'!$C:$M,10,0)),"") -> 0 | I70: =IFERROR(IFERROR(VLOOKUP(B70,'[1]Din Rep'!$B:$M,12,0),VLOOKUP(C70,'[1]Din Rep'!$C:$M,11,0)),"") -> 45 DD
B71: SU066U00INT1A | C71: =IFERROR(VLOOKUP(B71,'[1]Din Rep'!$B:$M,2,0),"") -> LUVA NEOPRENE INTERMEDIARIA | D71: =IFERROR(IFERROR(VLOOKUP(B71,'[1]Din Rep'!$B:$M,5,0),VLOOKUP(C71,'[1]Din Rep'!$C:$M,4,0)),"") -> 139.78505 | E71: =IFERROR(IFERROR(VLOOKUP(B71,'[1]Din Rep'!$B:$M,7,0),VLOOKUP(C71,'[1]Din Rep'!$C:$M,6,0)),"") -> 148.7075 | F71: =IFERROR(IFERROR(VLOOKUP(B71,'[1]Din Rep'!$B:$M,8,0),VLOOKUP(C71,'[1]Din Rep'!$C:$M,7,0)),"") -> 349.9 | G71: =IFERROR(IFERROR(VLOOKUP(B71,'[1]Din Rep'!$B:$M,10,0),VLOOKUP(C71,'[1]Din Rep'!$C:$M,9,0)),"") -> 2.352941176 | H71: =IFERROR(IFERROR(VLOOKUP(B71,'[1]Din Rep'!$B:$M,11,0),VLOOKUP(C71,'[1]Din Rep'!$C:$M,10,0)),"") -> 0 | I71: =IFERROR(IFERROR(VLOOKUP(B71,'[1]Din Rep'!$B:$M,12,0),VLOOKUP(C71,'[1]Din Rep'!$C:$M,11,0)),"") -> 45 DD
B72: SU066U00TOP1A | C72: =IFERROR(VLOOKUP(B72,'[1]Din Rep'!$B:$M,2,0),"") -> LUVA NEOPRENE TOP | D72: =IFERROR(IFERROR(VLOOKUP(B72,'[1]Din Rep'!$B:$M,5,0),VLOOKUP(C72,'[1]Din Rep'!$C:$M,4,0)),"") -> 143.78005 | E72: =IFERROR(IFERROR(VLOOKUP(B72,'[1]Din Rep'!$B:$M,7,0),VLOOKUP(C72,'[1]Din Rep'!$C:$M,6,0)),"") -> 152.9575 | F72: =IFERROR(IFERROR(VLOOKUP(B72,'[1]Din Rep'!$B:$M,8,0),VLOOKUP(C72,'[1]Din Rep'!$C:$M,7,0)),"") -> 359.9 | G72: =IFERROR(IFERROR(VLOOKUP(B72,'[1]Din Rep'!$B:$M,10,0),VLOOKUP(C72,'[1]Din Rep'!$C:$M,9,0)),"") -> 2.352941176 | H72: =IFERROR(IFERROR(VLOOKUP(B72,'[1]Din Rep'!$B:$M,11,0),VLOOKUP(C72,'[1]Din Rep'!$C:$M,10,0)),"") -> 0 | I72: =IFERROR(IFERROR(VLOOKUP(B72,'[1]Din Rep'!$B:$M,12,0),VLOOKUP(C72,'[1]Din Rep'!$C:$M,11,0)),"") -> 45 DD
B73: SU058U00INT1A | C73: =IFERROR(VLOOKUP(B73,'[1]Din Rep'!$B:$M,2,0),"") -> GORRO NEOPRENE INTERMEDIARIO | D73: =IFERROR(IFERROR(VLOOKUP(B73,'[1]Din Rep'!$B:$M,5,0),VLOOKUP(C73,'[1]Din Rep'!$C:$M,4,0)),"") -> 87.85005 | E73: =IFERROR(IFERROR(VLOOKUP(B73,'[1]Din Rep'!$B:$M,7,0),VLOOKUP(C73,'[1]Din Rep'!$C:$M,6,0)),"") -> 93.4575 | F73: =IFERROR(IFERROR(VLOOKUP(B73,'[1]Din Rep'!$B:$M,8,0),VLOOKUP(C73,'[1]Din Rep'!$C:$M,7,0)),"") -> 219.9 | G73: =IFERROR(IFERROR(VLOOKUP(B73,'[1]Din Rep'!$B:$M,10,0),VLOOKUP(C73,'[1]Din Rep'!$C:$M,9,0)),"") -> 2.352941176 | H73: =IFERROR(IFERROR(VLOOKUP(B73,'[1]Din Rep'!$B:$M,11,0),VLOOKUP(C73,'[1]Din Rep'!$C:$M,10,0)),"") -> 0 | I73: =IFERROR(IFERROR(VLOOKUP(B73,'[1]Din Rep'!$B:$M,12,0),VLOOKUP(C73,'[1]Din Rep'!$C:$M,11,0)),"") -> 45 DD
A74: 11 - BABY | B74: SU017B00GRO5A | C74: =IFERROR(VLOOKUP(B74,'[1]Din Rep'!$B:$M,2,0),"") -> MACAQUINHO MANGA LONGA BABY EM LYCRA GROM 5A SURF MORMAII | D74: =IFERROR(IFERROR(VLOOKUP(B74,'[1]Din Rep'!$B:$M,5,0),VLOOKUP(C74,'[1]Din Rep'!$C:$M,4,0)),"") -> 47.90005 | E74: =IFERROR(IFERROR(VLOOKUP(B74,'[1]Din Rep'!$B:$M,7,0),VLOOKUP(C74,'[1]Din Rep'!$C:$M,6,0)),"") -> 50.9575 | F74: =IFERROR(IFERROR(VLOOKUP(B74,'[1]Din Rep'!$B:$M,8,0),VLOOKUP(C74,'[1]Din Rep'!$C:$M,7,0)),"") -> 131.89 | G74: =IFERROR(IFERROR(VLOOKUP(B74,'[1]Din Rep'!$B:$M,10,0),VLOOKUP(C74,'[1]Din Rep'!$C:$M,9,0)),"") -> 2.588235294 | H74: =IFERROR(IFERROR(VLOOKUP(B74,'[1]Din Rep'!$B:$M,11,0),VLOOKUP(C74,'[1]Din Rep'!$C:$M,10,0)),"") -> 0 | I74: =IFERROR(IFERROR(VLOOKUP(B74,'[1]Din Rep'!$B:$M,12,0),VLOOKUP(C74,'[1]Din Rep'!$C:$M,11,0)),"") -> 45 DD
B75: SU017B00GRO5B | C75: =IFERROR(VLOOKUP(B75,'[1]Din Rep'!$B:$M,2,0),"") -> MACAQUINHO MANGA LONGA BABY EM LYCRA GROM 5B SURF MORMAII | D75: =IFERROR(IFERROR(VLOOKUP(B75,'[1]Din Rep'!$B:$M,5,0),VLOOKUP(C75,'[1]Din Rep'!$C:$M,4,0)),"") -> 47.90005 | E75: =IFERROR(IFERROR(VLOOKUP(B75,'[1]Din Rep'!$B:$M,7,0),VLOOKUP(C75,'[1]Din Rep'!$C:$M,6,0)),"") -> 50.9575 | F75: =IFERROR(IFERROR(VLOOKUP(B75,'[1]Din Rep'!$B:$M,8,0),VLOOKUP(C75,'[1]Din Rep'!$C:$M,7,0)),"") -> 131.89 | G75: =IFERROR(IFERROR(VLOOKUP(B75,'[1]Din Rep'!$B:$M,10,0),VLOOKUP(C75,'[1]Din Rep'!$C:$M,9,0)),"") -> 2.588235294 | H75: =IFERROR(IFERROR(VLOOKUP(B75,'[1]Din Rep'!$B:$M,11,0),VLOOKUP(C75,'[1]Din Rep'!$C:$M,10,0)),"") -> 0 | I75: =IFERROR(IFERROR(VLOOKUP(B75,'[1]Din Rep'!$B:$M,12,0),VLOOKUP(C75,'[1]Din Rep'!$C:$M,11,0)),"") -> 45 DD
B76: SU057B00ACE2A | C76: =IFERROR(VLOOKUP(B76,'[1]Din Rep'!$B:$M,2,0),"") -> CHAPÉU PRAIA BABY EM MICROFIBRA REVERSIVEL MASCULINO ACESSÓRIOS 2A UV MORMAII | D76: =IFERROR(IFERROR(VLOOKUP(B76,'[1]Din Rep'!$B:$M,5,0),VLOOKUP(C76,'[1]Din Rep'!$C:$M,4,0)),"") -> 43.90505 | E76: =IFERROR(IFERROR(VLOOKUP(B76,'[1]Din Rep'!$B:$M,7,0),VLOOKUP(C76,'[1]Din Rep'!$C:$M,6,0)),"") -> 46.7075 | F76: =IFERROR(IFERROR(VLOOKUP(B76,'[1]Din Rep'!$B:$M,8,0),VLOOKUP(C76,'[1]Din Rep'!$C:$M,7,0)),"") -> 120.89 | G76: =IFERROR(IFERROR(VLOOKUP(B76,'[1]Din Rep'!$B:$M,10,0),VLOOKUP(C76,'[1]Din Rep'!$C:$M,9,0)),"") -> 2.588235294 | H76: =IFERROR(IFERROR(VLOOKUP(B76,'[1]Din Rep'!$B:$M,11,0),VLOOKUP(C76,'[1]Din Rep'!$C:$M,10,0)),"") -> 0 | I76: =IFERROR(IFERROR(VLOOKUP(B76,'[1]Din Rep'!$B:$M,12,0),VLOOKUP(C76,'[1]Din Rep'!$C:$M,11,0)),"") -> 45 DD
B77: SU057B00ACE2B | C77: =IFERROR(VLOOKUP(B77,'[1]Din Rep'!$B:$M,2,0),"") -> CHAPÉU PRAIA BABY EM MICROFIBRA REVERSIVEL FEMININO ACESSÓRIOS 2A UV MORMAII | D77: =IFERROR(IFERROR(VLOOKUP(B77,'[1]Din Rep'!$B:$M,5,0),VLOOKUP(C77,'[1]Din Rep'!$C:$M,4,0)),"") -> 43.90505 | E77: =IFERROR(IFERROR(VLOOKUP(B77,'[1]Din Rep'!$B:$M,7,0),VLOOKUP(C77,'[1]Din Rep'!$C:$M,6,0)),"") -> 46.7075 | F77: =IFERROR(IFERROR(VLOOKUP(B77,'[1]Din Rep'!$B:$M,8,0),VLOOKUP(C77,'[1]Din Rep'!$C:$M,7,0)),"") -> 120.89 | G77: =IFERROR(IFERROR(VLOOKUP(B77,'[1]Din Rep'!$B:$M,10,0),VLOOKUP(C77,'[1]Din Rep'!$C:$M,9,0)),"") -> 2.588235294 | H77: =IFERROR(IFERROR(VLOOKUP(B77,'[1]Din Rep'!$B:$M,11,0),VLOOKUP(C77,'[1]Din Rep'!$C:$M,10,0)),"") -> 0 | I77: =IFERROR(IFERROR(VLOOKUP(B77,'[1]Din Rep'!$B:$M,12,0),VLOOKUP(C77,'[1]Din Rep'!$C:$M,11,0)),"") -> 45 DD
B78: SU037B00GRO5A | C78: =IFERROR(VLOOKUP(B78,'[1]Din Rep'!$B:$M,2,0),"") -> CAMISETA MANGA LONGA BABY EM LYCRA GROM 5A SURF MORMAII | D78: =IFERROR(IFERROR(VLOOKUP(B78,'[1]Din Rep'!$B:$M,5,0),VLOOKUP(C78,'[1]Din Rep'!$C:$M,4,0)),"") -> 39.91005 | E78: =IFERROR(IFERROR(VLOOKUP(B78,'[1]Din Rep'!$B:$M,7,0),VLOOKUP(C78,'[1]Din Rep'!$C:$M,6,0)),"") -> 42.4575 | F78: =IFERROR(IFERROR(VLOOKUP(B78,'[1]Din Rep'!$B:$M,8,0),VLOOKUP(C78,'[1]Din Rep'!$C:$M,7,0)),"") -> 109.89 | G78: =IFERROR(IFERROR(VLOOKUP(B78,'[1]Din Rep'!$B:$M,10,0),VLOOKUP(C78,'[1]Din Rep'!$C:$M,9,0)),"") -> 2.588235294 | H78: =IFERROR(IFERROR(VLOOKUP(B78,'[1]Din Rep'!$B:$M,11,0),VLOOKUP(C78,'[1]Din Rep'!$C:$M,10,0)),"") -> 0 | I78: =IFERROR(IFERROR(VLOOKUP(B78,'[1]Din Rep'!$B:$M,12,0),VLOOKUP(C78,'[1]Din Rep'!$C:$M,11,0)),"") -> 45 DD
B79: SU037B00GRO5B | C79: =IFERROR(VLOOKUP(B79,'[1]Din Rep'!$B:$M,2,0),"") -> CAMISETA MANGA LONGA BABY EM LYCRA GROM 5B SURF MORMAII | D79: =IFERROR(IFERROR(VLOOKUP(B79,'[1]Din Rep'!$B:$M,5,0),VLOOKUP(C79,'[1]Din Rep'!$C:$M,4,0)),"") -> 39.91005 | E79: =IFERROR(IFERROR(VLOOKUP(B79,'[1]Din Rep'!$B:$M,7,0),VLOOKUP(C79,'[1]Din Rep'!$C:$M,6,0)),"") -> 42.4575 | F79: =IFERROR(IFERROR(VLOOKUP(B79,'[1]Din Rep'!$B:$M,8,0),VLOOKUP(C79,'[1]Din Rep'!$C:$M,7,0)),"") -> 109.89 | G79: =IFERROR(IFERROR(VLOOKUP(B79,'[1]Din Rep'!$B:$M,10,0),VLOOKUP(C79,'[1]Din Rep'!$C:$M,9,0)),"") -> 2.588235294 | H79: =IFERROR(IFERROR(VLOOKUP(B79,'[1]Din Rep'!$B:$M,11,0),VLOOKUP(C79,'[1]Din Rep'!$C:$M,10,0)),"") -> 0 | I79: =IFERROR(IFERROR(VLOOKUP(B79,'[1]Din Rep'!$B:$M,12,0),VLOOKUP(C79,'[1]Din Rep'!$C:$M,11,0)),"") -> 45 DD
B80: SU056B00ACE2A | C80: =IFERROR(VLOOKUP(B80,'[1]Din Rep'!$B:$M,2,0),"") -> BONÉ LEGIONÁRIO PRAIA BABY MASCULINO ACESSÓRIOS 2A UV MORMAII | D80: =IFERROR(IFERROR(VLOOKUP(B80,'[1]Din Rep'!$B:$M,5,0),VLOOKUP(C80,'[1]Din Rep'!$C:$M,4,0)),"") -> 39.91005 | E80: =IFERROR(IFERROR(VLOOKUP(B80,'[1]Din Rep'!$B:$M,7,0),VLOOKUP(C80,'[1]Din Rep'!$C:$M,6,0)),"") -> 42.4575 | F80: =IFERROR(IFERROR(VLOOKUP(B80,'[1]Din Rep'!$B:$M,8,0),VLOOKUP(C80,'[1]Din Rep'!$C:$M,7,0)),"") -> 109.89 | G80: =IFERROR(IFERROR(VLOOKUP(B80,'[1]Din Rep'!$B:$M,10,0),VLOOKUP(C80,'[1]Din Rep'!$C:$M,9,0)),"") -> 2.588235294 | H80: =IFERROR(IFERROR(VLOOKUP(B80,'[1]Din Rep'!$B:$M,11,0),VLOOKUP(C80,'[1]Din Rep'!$C:$M,10,0)),"") -> 0 | I80: =IFERROR(IFERROR(VLOOKUP(B80,'[1]Din Rep'!$B:$M,12,0),VLOOKUP(C80,'[1]Din Rep'!$C:$M,11,0)),"") -> 45 DD
B81: SU056B00ACE2B | C81: =IFERROR(VLOOKUP(B81,'[1]Din Rep'!$B:$M,2,0),"") -> BONÉ LEGIONÁRIO PRAIA BABY FEMININO ACESSÓRIOS 2B UV MORMAII | D81: =IFERROR(IFERROR(VLOOKUP(B81,'[1]Din Rep'!$B:$M,5,0),VLOOKUP(C81,'[1]Din Rep'!$C:$M,4,0)),"") -> 39.91005 | E81: =IFERROR(IFERROR(VLOOKUP(B81,'[1]Din Rep'!$B:$M,7,0),VLOOKUP(C81,'[1]Din Rep'!$C:$M,6,0)),"") -> 42.4575 | F81: =IFERROR(IFERROR(VLOOKUP(B81,'[1]Din Rep'!$B:$M,8,0),VLOOKUP(C81,'[1]Din Rep'!$C:$M,7,0)),"") -> 109.89 | G81: =IFERROR(IFERROR(VLOOKUP(B81,'[1]Din Rep'!$B:$M,10,0),VLOOKUP(C81,'[1]Din Rep'!$C:$M,9,0)),"") -> 2.588235294 | H81: =IFERROR(IFERROR(VLOOKUP(B81,'[1]Din Rep'!$B:$M,11,0),VLOOKUP(C81,'[1]Din Rep'!$C:$M,10,0)),"") -> 0 | I81: =IFERROR(IFERROR(VLOOKUP(B81,'[1]Din Rep'!$B:$M,12,0),VLOOKUP(C81,'[1]Din Rep'!$C:$M,11,0)),"") -> 45 DD

Sheet UV
A6: LINHA | B6: REFERENCIA | C6: DESCRIÇÃO | D6: À VISTA | E6: À PRAZO | F6: SUGESTÃO | G6: MARK UP | H6: IPI | I6: ENTREGA
A7: 1 - UV MASCULINO | B7: UV037M00DAM2A | C7: =IFERROR(VLOOKUP(B7,'[1]Din Rep'!$B:$M,2,0),"") -> CAMISETA MANGA LONGA MASCULINO DRY ACTION 2A UV MORMAII | D7: =IFERROR(IFERROR(VLOOKUP(B7,'[1]Din Rep'!$B:$M,5,0),VLOOKUP(C7,'[1]Din Rep'!$C:$M,4,0)),"") -> 32.64714 | E7: =IFERROR(IFERROR(VLOOKUP(B7,'[1]Din Rep'!$B:$M,7,0),VLOOKUP(C7,'[1]Din Rep'!$C:$M,6,0)),"") -> 34.731 | F7: =IFERROR(IFERROR(VLOOKUP(B7,'[1]Din Rep'!$B:$M,8,0),VLOOKUP(C7,'[1]Din Rep'!$C:$M,7,0)),"") -> 89.892 | G7: =IFERROR(IFERROR(VLOOKUP(B7,'[1]Din Rep'!$B:$M,10,0),VLOOKUP(C7,'[1]Din Rep'!$C:$M,9,0)),"") -> 2.588235294 | H7: =IFERROR(IFERROR(VLOOKUP(B7,'[1]Din Rep'!$B:$M,11,0),VLOOKUP(C7,'[1]Din Rep'!$C:$M,10,0)),"") -> 0 | I7: =IFERROR(IFERROR(VLOOKUP(B7,'[1]Din Rep'!$B:$M,12,0),VLOOKUP(C7,'[1]Din Rep'!$C:$M,11,0)),"") -> ESTOQUE
B8: UV037M00DAM2B | C8: =IFERROR(VLOOKUP(B8,'[1]Din Rep'!$B:$M,2,0),"") -> CAMISETA MANGA LONGA MASCULINO DRY ACTION 2B UV MORMAII | D8: =IFERROR(IFERROR(VLOOKUP(B8,'[1]Din Rep'!$B:$M,5,0),VLOOKUP(C8,'[1]Din Rep'!$C:$M,4,0)),"") -> 32.64714 | E8: =IFERROR(IFERROR(VLOOKUP(B8,'[1]Din Rep'!$B:$M,7,0),VLOOKUP(C8,'[1]Din Rep'!$C:$M,6,0)),"") -> 34.731 | F8: =IFERROR(IFERROR(VLOOKUP(B8,'[1]Din Rep'!$B:$M,8,0),VLOOKUP(C8,'[1]Din Rep'!$C:$M,7,0)),"") -> 89.892 | G8: =IFERROR(IFERROR(VLOOKUP(B8,'[1]Din Rep'!$B:$M,10,0),VLOOKUP(C8,'[1]Din Rep'!$C:$M,9,0)),"") -> 2.588235294 | H8: =IFERROR(IFERROR(VLOOKUP(B8,'[1]Din Rep'!$B:$M,11,0),VLOOKUP(C8,'[1]Din Rep'!$C:$M,10,0)),"") -> 0 | I8: =IFERROR(IFERROR(VLOOKUP(B8,'[1]Din Rep'!$B:$M,12,0),VLOOKUP(C8,'[1]Din Rep'!$C:$M,11,0)),"") -> ESTOQUE
B9: UV037M00DCO1A | C9: =IFERROR(VLOOKUP(B9,'[1]Din Rep'!$B:$M,2,0),"") -> CAMISETA MANGA LONGA MASCULINO DRY CONFORT 1A UV MORMAII | D9: =IFERROR(IFERROR(VLOOKUP(B9,'[1]Din Rep'!$B:$M,5,0),VLOOKUP(C9,'[1]Din Rep'!$C:$M,4,0)),"") -> 43.5455 | E9: =IFERROR(IFERROR(VLOOKUP(B9,'[1]Din Rep'!$B:$M,7,0),VLOOKUP(C9,'[1]Din Rep'!$C:$M,6,0)),"") -> 46.325 | F9: =IFERROR(IFERROR(VLOOKUP(B9,'[1]Din Rep'!$B:$M,8,0),VLOOKUP(C9,'[1]Din Rep'!$C:$M,7,0)),"") -> 119.9 | G9: =IFERROR(IFERROR(VLOOKUP(B9,'[1]Din Rep'!$B:$M,10,0),VLOOKUP(C9,'[1]Din Rep'!$C:$M,9,0)),"") -> 2.588235294 | H9: =IFERROR(IFERROR(VLOOKUP(B9,'[1]Din Rep'!$B:$M,11,0),VLOOKUP(C9,'[1]Din Rep'!$C:$M,10,0)),"") -> 0 | I9: =IFERROR(IFERROR(VLOOKUP(B9,'[1]Din Rep'!$B:$M,12,0),VLOOKUP(C9,'[1]Din Rep'!$C:$M,11,0)),"") -> ESTOQUE
B10: UV037M00DCO1B | C10: =IFERROR(VLOOKUP(B10,'[1]Din Rep'!$B:$M,2,0),"") -> CAMISETA MANGA LONGA MASCULINO DRY CONFORT 1B UV MORMAII | D10: =IFERROR(IFERROR(VLOOKUP(B10,'[1]Din Rep'!$B:$M,5,0),VLOOKUP(C10,'[1]Din Rep'!$C:$M,4,0)),"") -> 43.5455 | E10: =IFERROR(IFERROR(VLOOKUP(B10,'[1]Din Rep'!$B:$M,7,0),VLOOKUP(C10,'[1]Din Rep'!$C:$M,6,0)),"") -> 46.325 | F10: =IFERROR(IFERROR(VLOOKUP(B10,'[1]Din Rep'!$B:$M,8,0),VLOOKUP(C10,'[1]Din Rep'!$C:$M,7,0)),"") -> 119.9 | G10: =IFERROR(IFERROR(VLOOKUP(B10,'[1]Din Rep'!$B:$M,10,0),VLOOKUP(C10,'[1]Din Rep'!$C:$M,9,0)),"") -> 2.588235294 | H10: =IFERROR(IFERROR(VLOOKUP(B10,'[1]Din Rep'!$B:$M,11,0),VLOOKUP(C10,'[1]Din Rep'!$C:$M,10,0)),"") -> 0 | I10: =IFERROR(IFERROR(VLOOKUP(B10,'[1]Din Rep'!$B:$M,12,0),VLOOKUP(C10,'[1]Din Rep'!$C:$M,11,0)),"") -> ESTOQUE
B11: UV037M00DFX2A | C11: =IFERROR(VLOOKUP(B11,'[1]Din Rep'!$B:$M,2,0),"") -> CAMISETA MANGA LONGA MASCULINO DRY FLEX 2A UV MORMAII | D11: =IFERROR(IFERROR(VLOOKUP(B11,'[1]Din Rep'!$B:$M,5,0),VLOOKUP(C11,'[1]Din Rep'!$C:$M,4,0)),"") -> 54.44386 | E11: =IFERROR(IFERROR(VLOOKUP(B11,'[1]Din Rep'!$B:$M,7,0),VLOOKUP(C11,'[1]Din Rep'!$C:$M,6,0)),"") -> 57.919 | F11: =IFERROR(IFERROR(VLOOKUP(B11,'[1]Din Rep'!$B:$M,8,0),VLOOKUP(C11,'[1]Din Rep'!$C:$M,7,0)),"") -> 149.908 | G11: =IFERROR(IFERROR(VLOOKUP(B11,'[1]Din Rep'!$B:$M,10,0),VLOOKUP(C11,'[1]Din Rep'!$C:$M,9,0)),"") -> 2.588235294 | H11: =IFERROR(IFERROR(VLOOKUP(B11,'[1]Din Rep'!$B:$M,11,0),VLOOKUP(C11,'[1]Din Rep'!$C:$M,10,0)),"") -> 0 | I11: =IFERROR(IFERROR(VLOOKUP(B11,'[1]Din Rep'!$B:$M,12,0),VLOOKUP(C11,'[1]Din Rep'!$C:$M,11,0)),"") -> ESTOQUE
B12: UV037M00DFX2B | C12: =IFERROR(VLOOKUP(B12,'[1]Din Rep'!$B:$M,2,0),"") -> CAMISETA MANGA LONGA MASCULINO DRY FLEX 2B UV MORMAII | D12: =IFERROR(IFERROR(VLOOKUP(B12,'[1]Din Rep'!$B:$M,5,0),VLOOKUP(C12,'[1]Din Rep'!$C:$M,4,0)),"") -> 54.44386 | E12: =IFERROR(IFERROR(VLOOKUP(B12,'[1]Din Rep'!$B:$M,7,0),VLOOKUP(C12,'[1]Din Rep'!$C:$M,6,0)),"") -> 57.919 | F12: =IFERROR(IFERROR(VLOOKUP(B12,'[1]Din Rep'!$B:$M,8,0),VLOOKUP(C12,'[1]Din Rep'!$C:$M,7,0)),"") -> 149.908 | G12: =IFERROR(IFERROR(VLOOKUP(B12,'[1]Din Rep'!$B:$M,10,0),VLOOKUP(C12,'[1]Din Rep'!$C:$M,9,0)),"") -> 2.588235294 | H12: =IFERROR(IFERROR(VLOOKUP(B12,'[1]Din Rep'!$B:$M,11,0),VLOOKUP(C12,'[1]Din Rep'!$C:$M,10,0)),"") -> 0 | I12: =IFERROR(IFERROR(VLOOKUP(B12,'[1]Din Rep'!$B:$M,12,0),VLOOKUP(C12,'[1]Din Rep'!$C:$M,11,0)),"") -> ESTOQUE
B13: UV038M00DCO1A | C13: =IFERROR(VLOOKUP(B13,'[1]Din Rep'!$B:$M,2,0),"") -> CAMISETA MANGA LONGA C/ CAPUZ MASCULINO DRY CONFORT 1A UV MORMAII | D13: =IFERROR(IFERROR(VLOOKUP(B13,'[1]Din Rep'!$B:$M,5,0),VLOOKUP(C13,'[1]Din Rep'!$C:$M,4,0)),"") -> 50.80841 | E13: =IFERROR(IFERROR(VLOOKUP(B13,'[1]Din Rep'!$B:$M,7,0),VLOOKUP(C13,'[1]Din Rep'!$C:$M,6,0)),"") -> 54.0515 | F13: =IFERROR(IFERROR(VLOOKUP(B13,'[1]Din Rep'!$B:$M,8,0),VLOOKUP(C13,'[1]Din Rep'!$C:$M,7,0)),"") -> 139.898 | G13: =IFERROR(IFERROR(VLOOKUP(B13,'[1]Din Rep'!$B:$M,10,0),VLOOKUP(C13,'[1]Din Rep'!$C:$M,9,0)),"") -> 2.588235294 | H13: =IFERROR(IFERROR(VLOOKUP(B13,'[1]Din Rep'!$B:$M,11,0),VLOOKUP(C13,'[1]Din Rep'!$C:$M,10,0)),"") -> 0 | I13: =IFERROR(IFERROR(VLOOKUP(B13,'[1]Din Rep'!$B:$M,12,0),VLOOKUP(C13,'[1]Din Rep'!$C:$M,11,0)),"") -> ESTOQUE
B14: UV038M00DCO1B | C14: =IFERROR(VLOOKUP(B14,'[1]Din Rep'!$B:$M,2,0),"") -> CAMISETA MANGA LONGA C/ CAPUZ MASCULINO DRY CONFORT 1B UV MORMAII | D14: =IFERROR(IFERROR(VLOOKUP(B14,'[1]Din Rep'!$B:$M,5,0),VLOOKUP(C14,'[1]Din Rep'!$C:$M,4,0)),"") -> 54.44386 | E14: =IFERROR(IFERROR(VLOOKUP(B14,'[1]Din Rep'!$B:$M,7,0),VLOOKUP(C14,'[1]Din Rep'!$C:$M,6,0)),"") -> 57.919 | F14: =IFERROR(IFERROR(VLOOKUP(B14,'[1]Din Rep'!$B:$M,8,0),VLOOKUP(C14,'[1]Din Rep'!$C:$M,7,0)),"") -> 149.908 | G14: =IFERROR(IFERROR(VLOOKUP(B14,'[1]Din Rep'!$B:$M,10,0),VLOOKUP(C14,'[1]Din Rep'!$C:$M,9,0)),"") -> 2.588235294 | H14: =IFERROR(IFERROR(VLOOKUP(B14,'[1]Din Rep'!$B:$M,11,0),VLOOKUP(C14,'[1]Din Rep'!$C:$M,10,0)),"") -> 0 | I14: =IFERROR(IFERROR(VLOOKUP(B14,'[1]Din Rep'!$B:$M,12,0),VLOOKUP(C14,'[1]Din Rep'!$C:$M,11,0)),"") -> ESTOQUE
B15: UV038M00DCO1C | C15: =IFERROR(VLOOKUP(B15,'[1]Din Rep'!$B:$M,2,0),"") -> CAMISETA MANGA LONGA C/ CAPUZ MASCULINO DRY CONFORT 1C UV MORMAII | D15: =IFERROR(IFERROR(VLOOKUP(B15,'[1]Din Rep'!$B:$M,5,0),VLOOKUP(C15,'[1]Din Rep'!$C:$M,4,0)),"") -> 58.07132 | E15: =IFERROR(IFERROR(VLOOKUP(B15,'[1]Din Rep'!$B:$M,7,0),VLOOKUP(C15,'[1]Din Rep'!$C:$M,6,0)),"") -> 61.778 | F15: =IFERROR(IFERROR(VLOOKUP(B15,'[1]Din Rep'!$B:$M,8,0),VLOOKUP(C15,'[1]Din Rep'!$C:$M,7,0)),"") -> 159.896 | G15: =IFERROR(IFERROR(VLOOKUP(B15,'[1]Din Rep'!$B:$M,10,0),VLOOKUP(C15,'[1]Din Rep'!$C:$M,9,0)),"") -> 2.588235294 | H15: =IFERROR(IFERROR(VLOOKUP(B15,'[1]Din Rep'!$B:$M,11,0),VLOOKUP(C15,'[1]Din Rep'!$C:$M,10,0)),"") -> 0 | I15: =IFERROR(IFERROR(VLOOKUP(B15,'[1]Din Rep'!$B:$M,12,0),VLOOKUP(C15,'[1]Din Rep'!$C:$M,11,0)),"") -> ESTOQUE
B16: UV041M00DAM2A | C16: =IFERROR(VLOOKUP(B16,'[1]Din Rep'!$B:$M,2,0),"") -> CAMISETA MANGA CURTA MASCULINO DRY ACTION 2A UV MORMAII | D16: =IFERROR(IFERROR(VLOOKUP(B16,'[1]Din Rep'!$B:$M,5,0),VLOOKUP(C16,'[1]Din Rep'!$C:$M,4,0)),"") -> 29.01968 | E16: =IFERROR(IFERROR(VLOOKUP(B16,'[1]Din Rep'!$B:$M,7,0),VLOOKUP(C16,'[1]Din Rep'!$C:$M,6,0)),"") -> 30.872 | F16: =IFERROR(IFERROR(VLOOKUP(B16,'[1]Din Rep'!$B:$M,8,0),VLOOKUP(C16,'[1]Din Rep'!$C:$M,7,0)),"") -> 79.904 | G16: =IFERROR(IFERROR(VLOOKUP(B16,'[1]Din Rep'!$B:$M,10,0),VLOOKUP(C16,'[1]Din Rep'!$C:$M,9,0)),"") -> 2.588235294 | H16: =IFERROR(IFERROR(VLOOKUP(B16,'[1]Din Rep'!$B:$M,11,0),VLOOKUP(C16,'[1]Din Rep'!$C:$M,10,0)),"") -> 0 | I16: =IFERROR(IFERROR(VLOOKUP(B16,'[1]Din Rep'!$B:$M,12,0),VLOOKUP(C16,'[1]Din Rep'!$C:$M,11,0)),"") -> ESTOQUE
B17: UV041M00DAM2B | C17: =IFERROR(VLOOKUP(B17,'[1]Din Rep'!$B:$M,2,0),"") -> CAMISETA MANGA CURTA MASCULINO DRY ACTION 2B UV MORMAII | D17: =IFERROR(IFERROR(VLOOKUP(B17,'[1]Din Rep'!$B:$M,5,0),VLOOKUP(C17,'[1]Din Rep'!$C:$M,4,0)),"") -> 29.01968 | E17: =IFERROR(IFERROR(VLOOKUP(B17,'[1]Din Rep'!$B:$M,7,0),VLOOKUP(C17,'[1]Din Rep'!$C:$M,6,0)),"") -> 30.872 | F17: =IFERROR(IFERROR(VLOOKUP(B17,'[1]Din Rep'!$B:$M,8,0),VLOOKUP(C17,'[1]Din Rep'!$C:$M,7,0)),"") -> 79.904 | G17: =IFERROR(IFERROR(VLOOKUP(B17,'[1]Din Rep'!$B:$M,10,0),VLOOKUP(C17,'[1]Din Rep'!$C:$M,9,0)),"") -> 2.588235294 | H17: =IFERROR(IFERROR(VLOOKUP(B17,'[1]Din Rep'!$B:$M,11,0),VLOOKUP(C17,'[1]Din Rep'!$C:$M,10,0)),"") -> 0 | I17: =IFERROR(IFERROR(VLOOKUP(B17,'[1]Din Rep'!$B:$M,12,0),VLOOKUP(C17,'[1]Din Rep'!$C:$M,11,0)),"") -> ESTOQUE
B18: UV041M00DAM2C | C18: =IFERROR(VLOOKUP(B18,'[1]Din Rep'!$B:$M,2,0),"") -> CAMISETA MANGA CURTA MASCULINO DRY ACTION 2C UV MORMAII | D18: =IFERROR(IFERROR(VLOOKUP(B18,'[1]Din Rep'!$B:$M,5,0),VLOOKUP(C18,'[1]Din Rep'!$C:$M,4,0)),"") -> 29.01968 | E18: =IFERROR(IFERROR(VLOOKUP(B18,'[1]Din Rep'!$B:$M,7,0),VLOOKUP(C18,'[1]Din Rep'!$C:$M,6,0)),"") -> 30.872 | F18: =IFERROR(IFERROR(VLOOKUP(B18,'[1]Din Rep'!$B:$M,8,0),VLOOKUP(C18,'[1]Din Rep'!$C:$M,7,0)),"") -> 79.904 | G18: =IFERROR(IFERROR(VLOOKUP(B18,'[1]Din Rep'!$B:$M,10,0),VLOOKUP(C18,'[1]Din Rep'!$C:$M,9,0)),"") -> 2.588235294 | H18: =IFERROR(IFERROR(VLOOKUP(B18,'[1]Din Rep'!$B:$M,11,0),VLOOKUP(C18,'[1]Din Rep'!$C:$M,10,0)),"") -> 0 | I18: =IFERROR(IFERROR(VLOOKUP(B18,'[1]Din Rep'!$B:$M,12,0),VLOOKUP(C18,'[1]Din Rep'!$C:$M,11,0)),"") -> ESTOQUE
B19: UV041M00DCO1A | C19: =IFERROR(VLOOKUP(B19,'[1]Din Rep'!$B:$M,2,0),"") -> CAMISETA MANGA CURTA MASCULINO DRY CONFORT 1A UV MORMAII | D19: =IFERROR(IFERROR(VLOOKUP(B19,'[1]Din Rep'!$B:$M,5,0),VLOOKUP(C19,'[1]Din Rep'!$C:$M,4,0)),"") -> 39.91005 | E19: =IFERROR(IFERROR(VLOOKUP(B19,'[1]Din Rep'!$B:$M,7,0),VLOOKUP(C19,'[1]Din Rep'!$C:$M,6,0)),"") -> 42.4575 | F19: =IFERROR(IFERROR(VLOOKUP(B19,'[1]Din Rep'!$B:$M,8,0),VLOOKUP(C19,'[1]Din Rep'!$C:$M,7,0)),"") -> 109.89 | G19: =IFERROR(IFERROR(VLOOKUP(B19,'[1]Din Rep'!$B:$M,10,0),VLOOKUP(C19,'[1]Din Rep'!$C:$M,9,0)),"") -> 2.588235294 | H19: =IFERROR(IFERROR(VLOOKUP(B19,'[1]Din Rep'!$B:$M,11,0),VLOOKUP(C19,'[1]Din Rep'!$C:$M,10,0)),"") -> 0 | I19: =IFERROR(IFERROR(VLOOKUP(B19,'[1]Din Rep'!$B:$M,12,0),VLOOKUP(C19,'[1]Din Rep'!$C:$M,11,0)),"") -> ESTOQUE
B20: UV041M00DCO1B | C20: =IFERROR(VLOOKUP(B20,'[1]Din Rep'!$B:$M,2,0),"") -> CAMISETA MANGA CURTA MASCULINO DRY CONFORT 1B UV MORMAII | D20: =IFERROR(IFERROR(VLOOKUP(B20,'[1]Din Rep'!$B:$M,5,0),VLOOKUP(C20,'[1]Din Rep'!$C:$M,4,0)),"") -> 39.91005 | E20: =IFERROR(IFERROR(VLOOKUP(B20,'[1]Din Rep'!$B:$M,7,0),VLOOKUP(C20,'[1]Din Rep'!$C:$M,6,0)),"") -> 42.4575 | F20: =IFERROR(IFERROR(VLOOKUP(B20,'[1]Din Rep'!$B:$M,8,0),VLOOKUP(C20,'[1]Din Rep'!$C:$M,7,0)),"") -> 109.89 | G20: =IFERROR(IFERROR(VLOOKUP(B20,'[1]Din Rep'!$B:$M,10,0),VLOOKUP(C20,'[1]Din Rep'!$C:$M,9,0)),"") -> 2.588235294 | H20: =IFERROR(IFERROR(VLOOKUP(B20,'[1]Din Rep'!$B:$M,11,0),VLOOKUP(C20,'[1]Din Rep'!$C:$M,10,0)),"") -> 0 | I20: =IFERROR(IFERROR(VLOOKUP(B20,'[1]Din Rep'!$B:$M,12,0),VLOOKUP(C20,'[1]Din Rep'!$C:$M,11,0)),"") -> ESTOQUE
B21: UV041M00DFX2A | C21: =IFERROR(VLOOKUP(B21,'[1]Din Rep'!$B:$M,2,0),"") -> CAMISETA MANGA CURTA MASCULINO DRY FLEX 2A UV MORMAII | D21: =IFERROR(IFERROR(VLOOKUP(B21,'[1]Din Rep'!$B:$M,5,0),VLOOKUP(C21,'[1]Din Rep'!$C:$M,4,0)),"") -> 50.80841 | E21: =IFERROR(IFERROR(VLOOKUP(B21,'[1]Din Rep'!$B:$M,7,0),VLOOKUP(C21,'[1]Din Rep'!$C:$M,6,0)),"") -> 54.0515 | F21: =IFERROR(IFERROR(VLOOKUP(B21,'[1]Din Rep'!$B:$M,8,0),VLOOKUP(C21,'[1]Din Rep'!$C:$M,7,0)),"") -> 139.898 | G21: =IFERROR(IFERROR(VLOOKUP(B21,'[1]Din Rep'!$B:$M,10,0),VLOOKUP(C21,'[1]Din Rep'!$C:$M,9,0)),"") -> 2.588235294 | H21: =IFERROR(IFERROR(VLOOKUP(B21,'[1]Din Rep'!$B:$M,11,0),VLOOKUP(C21,'[1]Din Rep'!$C:$M,10,0)),"") -> 0 | I21: =IFERROR(IFERROR(VLOOKUP(B21,'[1]Din Rep'!$B:$M,12,0),VLOOKUP(C21,'[1]Din Rep'!$C:$M,11,0)),"") -> ESTOQUE
A22: 2 - UV FEMININO | B22: UV037F00DAM2A | C22: =IFERROR(VLOOKUP(B22,'[1]Din Rep'!$B:$M,2,0),"") -> CAMISETA MANGA LONGA FEMININO DRY ACTION 2A UV MORMAII | D22: =IFERROR(IFERROR(VLOOKUP(B22,'[1]Din Rep'!$B:$M,5,0),VLOOKUP(C22,'[1]Din Rep'!$C:$M,4,0)),"") -> 32.64714 | E22: =IFERROR(IFERROR(VLOOKUP(B22,'[1]Din Rep'!$B:$M,7,0),VLOOKUP(C22,'[1]Din Rep'!$C:$M,6,0)),"") -> 34.731 | F22: =IFERROR(IFERROR(VLOOKUP(B22,'[1]Din Rep'!$B:$M,8,0),VLOOKUP(C22,'[1]Din Rep'!$C:$M,7,0)),"") -> 89.892 | G22: =IFERROR(IFERROR(VLOOKUP(B22,'[1]Din Rep'!$B:$M,10,0),VLOOKUP(C22,'[1]Din Rep'!$C:$M,9,0)),"") -> 2.588235294 | H22: =IFERROR(IFERROR(VLOOKUP(B22,'[1]Din Rep'!$B:$M,11,0),VLOOKUP(C22,'[1]Din Rep'!$C:$M,10,0)),"") -> 0 | I22: =IFERROR(IFERROR(VLOOKUP(B22,'[1]Din Rep'!$B:$M,12,0),VLOOKUP(C22,'[1]Din Rep'!$C:$M,11,0)),"") -> ESTOQUE
B23: UV037F00DAM2B | C23: =IFERROR(VLOOKUP(B23,'[1]Din Rep'!$B:$M,2,0),"") -> CAMISETA MANGA LONGA FEMININO DRY ACTION 2B UV MORMAII | D23: =IFERROR(IFERROR(VLOOKUP(B23,'[1]Din Rep'!$B:$M,5,0),VLOOKUP(C23,'[1]Din Rep'!$C:$M,4,0)),"") -> 32.64714 | E23: =IFERROR(IFERROR(VLOOKUP(B23,'[1]Din Rep'!$B:$M,7,0),VLOOKUP(C23,'[1]Din Rep'!$C:$M,6,0)),"") -> 34.731 | F23: =IFERROR(IFERROR(VLOOKUP(B23,'[1]Din Rep'!$B:$M,8,0),VLOOKUP(C23,'[1]Din Rep'!$C:$M,7,0)),"") -> 89.892 | G23: =IFERROR(IFERROR(VLOOKUP(B23,'[1]Din Rep'!$B:$M,10,0),VLOOKUP(C23,'[1]Din Rep'!$C:$M,9,0)),"") -> 2.588235294 | H23: =IFERROR(IFERROR(VLOOKUP(B23,'[1]Din Rep'!$B:$M,11,0),VLOOKUP(C23,'[1]Din Rep'!$C:$M,10,0)),"") -> 0 | I23: =IFERROR(IFERROR(VLOOKUP(B23,'[1]Din Rep'!$B:$M,12,0),VLOOKUP(C23,'[1]Din Rep'!$C:$M,11,0)),"") -> ESTOQUE
B24: UV037F00DCO1C | C24: =IFERROR(VLOOKUP(B24,'[1]Din Rep'!$B:$M,2,0),"") -> CAMISETA MANGA LONGA FEMININO DRY CONFORT 1C UV MORMAII | D24: =IFERROR(IFERROR(VLOOKUP(B24,'[1]Din Rep'!$B:$M,5,0),VLOOKUP(C24,'[1]Din Rep'!$C:$M,4,0)),"") -> 43.5455 | E24: =IFERROR(IFERROR(VLOOKUP(B24,'[1]Din Rep'!$B:$M,7,0),VLOOKUP(C24,'[1]Din Rep'!$C:$M,6,0)),"") -> 46.325 | F24: =IFERROR(IFERROR(VLOOKUP(B24,'[1]Din Rep'!$B:$M,8,0),VLOOKUP(C24,'[1]Din Rep'!$C:$M,7,0)),"") -> 119.9 | G24: =IFERROR(IFERROR(VLOOKUP(B24,'[1]Din Rep'!$B:$M,10,0),VLOOKUP(C24,'[1]Din Rep'!$C:$M,9,0)),"") -> 2.588235294 | H24: =IFERROR(IFERROR(VLOOKUP(B24,'[1]Din Rep'!$B:$M,11,0),VLOOKUP(C24,'[1]Din Rep'!$C:$M,10,0)),"") -> 0 | I24: =IFERROR(IFERROR(VLOOKUP(B24,'[1]Din Rep'!$B:$M,12,0),VLOOKUP(C24,'[1]Din Rep'!$C:$M,11,0)),"") -> ESTOQUE
B25: UV037F00DFX2A | C25: =IFERROR(VLOOKUP(B25,'[1]Din Rep'!$B:$M,2,0),"") -> CAMISETA MANGA LONGA FEMININO DRY FLEX 2A UV MORMAII | D25: =IFERROR(IFERROR(VLOOKUP(B25,'[1]Din Rep'!$B:$M,5,0),VLOOKUP(C25,'[1]Din Rep'!$C:$M,4,0)),"") -> 54.44386 | E25: =IFERROR(IFERROR(VLOOKUP(B25,'[1]Din Rep'!$B:$M,7,0),VLOOKUP(C25,'[1]Din Rep'!$C:$M,6,0)),"") -> 57.919 | F25: =IFERROR(IFERROR(VLOOKUP(B25,'[1]Din Rep'!$B:$M,8,0),VLOOKUP(C25,'[1]Din Rep'!$C:$M,7,0)),"") -> 149.908 | G25: =IFERROR(IFERROR(VLOOKUP(B25,'[1]Din Rep'!$B:$M,10,0),VLOOKUP(C25,'[1]Din Rep'!$C:$M,9,0)),"") -> 2.588235294 | H25: =IFERROR(IFERROR(VLOOKUP(B25,'[1]Din Rep'!$B:$M,11,0),VLOOKUP(C25,'[1]Din Rep'!$C:$M,10,0)),"") -> 0 | I25: =IFERROR(IFERROR(VLOOKUP(B25,'[1]Din Rep'!$B:$M,12,0),VLOOKUP(C25,'[1]Din Rep'!$C:$M,11,0)),"") -> ESTOQUE
B26: UV041F00DAM2A | C26: =IFERROR(VLOOKUP(B26,'[1]Din Rep'!$B:$M,2,0),"") -> CAMISETA MANGA CURTA FEMININO DRY ACTION 2A UV MORMAII | D26: =IFERROR(IFERROR(VLOOKUP(B26,'[1]Din Rep'!$B:$M,5,0),VLOOKUP(C26,'[1]Din Rep'!$C:$M,4,0)),"") -> 29.01968 | E26: =IFERROR(IFERROR(VLOOKUP(B26,'[1]Din Rep'!$B:$M,7,0),VLOOKUP(C26,'[1]Din Rep'!$C:$M,6,0)),"") -> 30.872 | F26: =IFERROR(IFERROR(VLOOKUP(B26,'[1]Din Rep'!$B:$M,8,0),VLOOKUP(C26,'[1]Din Rep'!$C:$M,7,0)),"") -> 79.904 | G26: =IFERROR(IFERROR(VLOOKUP(B26,'[1]Din Rep'!$B:$M,10,0),VLOOKUP(C26,'[1]Din Rep'!$C:$M,9,0)),"") -> 2.588235294 | H26: =IFERROR(IFERROR(VLOOKUP(B26,'[1]Din Rep'!$B:$M,11,0),VLOOKUP(C26,'[1]Din Rep'!$C:$M,10,0)),"") -> 0 | I26: =IFERROR(IFERROR(VLOOKUP(B26,'[1]Din Rep'!$B:$M,12,0),VLOOKUP(C26,'[1]Din Rep'!$C:$M,11,0)),"") -> ESTOQUE
B27: UV041F00DAM2B | C27: =IFERROR(VLOOKUP(B27,'[1]Din Rep'!$B:$M,2,0),"") -> CAMISETA MANGA CURTA FEMININO DRY ACTION 2B UV MORMAII | D27: =IFERROR(IFERROR(VLOOKUP(B27,'[1]Din Rep'!$B:$M,5,0),VLOOKUP(C27,'[1]Din Rep'!$C:$M,4,0)),"") -> 29.01968 | E27: =IFERROR(IFERROR(VLOOKUP(B27,'[1]Din Rep'!$B:$M,7,0),VLOOKUP(C27,'[1]Din Rep'!$C:$M,6,0)),"") -> 30.872 | F27: =IFERROR(IFERROR(VLOOKUP(B27,'[1]Din Rep'!$B:$M,8,0),VLOOKUP(C27,'[1]Din Rep'!$C:$M,7,0)),"") -> 79.904 | G27: =IFERROR(IFERROR(VLOOKUP(B27,'[1]Din Rep'!$B:$M,10,0),VLOOKUP(C27,'[1]Din Rep'!$C:$M,9,0)),"") -> 2.588235294 | H27: =IFERROR(IFERROR(VLOOKUP(B27,'[1]Din Rep'!$B:$M,11,0),VLOOKUP(C27,'[1]Din Rep'!$C:$M,10,0)),"") -> 0 | I27: =IFERROR(IFERROR(VLOOKUP(B27,'[1]Din Rep'!$B:$M,12,0),VLOOKUP(C27,'[1]Din Rep'!$C:$M,11,0)),"") -> ESTOQUE
B28: UV041F00DFX2A | C28: =IFERROR(VLOOKUP(B28,'[1]Din Rep'!$B:$M,2,0),"") -> CAMISETA MANGA CURTA FEMININO DRY FLEX 2A UV MORMAII | D28: =IFERROR(IFERROR(VLOOKUP(B28,'[1]Din Rep'!$B:$M,5,0),VLOOKUP(C28,'[1]Din Rep'!$C:$M,4,0)),"") -> 50.80841 | E28: =IFERROR(IFERROR(VLOOKUP(B28,'[1]Din Rep'!$B:$M,7,0),VLOOKUP(C28,'[1]Din Rep'!$C:$M,6,0)),"") -> 54.0515 | F28: =IFERROR(IFERROR(VLOOKUP(B28,'[1]Din Rep'!$B:$M,8,0),VLOOKUP(C28,'[1]Din Rep'!$C:$M,7,0)),"") -> 139.898 | G28: =IFERROR(IFERROR(VLOOKUP(B28,'[1]Din Rep'!$B:$M,10,0),VLOOKUP(C28,'[1]Din Rep'!$C:$M,9,0)),"") -> 2.588235294 | H28: =IFERROR(IFERROR(VLOOKUP(B28,'[1]Din Rep'!$B:$M,11,0),VLOOKUP(C28,'[1]Din Rep'!$C:$M,10,0)),"") -> 0 | I28: =IFERROR(IFERROR(VLOOKUP(B28,'[1]Din Rep'!$B:$M,12,0),VLOOKUP(C28,'[1]Din Rep'!$C:$M,11,0)),"") -> ESTOQUE
A29: 3 - INFANTIL MASCULINO | B29: UV037I00DAM2A | C29: =IFERROR(VLOOKUP(B29,'[1]Din Rep'!$B:$M,2,0),"") -> CAMISETA MANGA LONGA INFANTIL DRY ACTION 2A UV MORMAII | D29: =IFERROR(IFERROR(VLOOKUP(B29,'[1]Din Rep'!$B:$M,5,0),VLOOKUP(C29,'[1]Din Rep'!$C:$M,4,0)),"") -> 32.64714 | E29: =IFERROR(IFERROR(VLOOKUP(B29,'[1]Din Rep'!$B:$M,7,0),VLOOKUP(C29,'[1]Din Rep'!$C:$M,6,0)),"") -> 34.731 | F29: =IFERROR(IFERROR(VLOOKUP(B29,'[1]Din Rep'!$B:$M,8,0),VLOOKUP(C29,'[1]Din Rep'!$C:$M,7,0)),"") -> 89.892 | G29: =IFERROR(IFERROR(VLOOKUP(B29,'[1]Din Rep'!$B:$M,10,0),VLOOKUP(C29,'[1]Din Rep'!$C:$M,9,0)),"") -> 2.588235294 | H29: =IFERROR(IFERROR(VLOOKUP(B29,'[1]Din Rep'!$B:$M,11,0),VLOOKUP(C29,'[1]Din Rep'!$C:$M,10,0)),"") -> 0 | I29: =IFERROR(IFERROR(VLOOKUP(B29,'[1]Din Rep'!$B:$M,12,0),VLOOKUP(C29,'[1]Din Rep'!$C:$M,11,0)),"") -> ESTOQUE
B30: UV037I00DAM2B | C30: =IFERROR(VLOOKUP(B30,'[1]Din Rep'!$B:$M,2,0),"") -> CAMISETA MANGA LONGA INFANTIL DRY ACTION 2B UV MORMAII | D30: =IFERROR(IFERROR(VLOOKUP(B30,'[1]Din Rep'!$B:$M,5,0),VLOOKUP(C30,'[1]Din Rep'!$C:$M,4,0)),"") -> 32.64714 | E30: =IFERROR(IFERROR(VLOOKUP(B30,'[1]Din Rep'!$B:$M,7,0),VLOOKUP(C30,'[1]Din Rep'!$C:$M,6,0)),"") -> 34.731 | F30: =IFERROR(IFERROR(VLOOKUP(B30,'[1]Din Rep'!$B:$M,8,0),VLOOKUP(C30,'[1]Din Rep'!$C:$M,7,0)),"") -> 89.892 | G30: =IFERROR(IFERROR(VLOOKUP(B30,'[1]Din Rep'!$B:$M,10,0),VLOOKUP(C30,'[1]Din Rep'!$C:$M,9,0)),"") -> 2.588235294 | H30: =IFERROR(IFERROR(VLOOKUP(B30,'[1]Din Rep'!$B:$M,11,0),VLOOKUP(C30,'[1]Din Rep'!$C:$M,10,0)),"") -> 0 | I30: =IFERROR(IFERROR(VLOOKUP(B30,'[1]Din Rep'!$B:$M,12,0),VLOOKUP(C30,'[1]Din Rep'!$C:$M,11,0)),"") -> ESTOQUE
B31: UV037I00DFX2A | C31: =IFERROR(VLOOKUP(B31,'[1]Din Rep'!$B:$M,2,0),"") -> CAMISETA MANGA LONGA INFANTIL DRY FLEX 2A UV MORMAII | D31: =IFERROR(IFERROR(VLOOKUP(B31,'[1]Din Rep'!$B:$M,5,0),VLOOKUP(C31,'[1]Din Rep'!$C:$M,4,0)),"") -> 54.44386 | E31: =IFERROR(IFERROR(VLOOKUP(B31,'[1]Din Rep'!$B:$M,7,0),VLOOKUP(C31,'[1]Din Rep'!$C:$M,6,0)),"") -> 57.919 | F31: =IFERROR(IFERROR(VLOOKUP(B31,'[1]Din Rep'!$B:$M,8,0),VLOOKUP(C31,'[1]Din Rep'!$C:$M,7,0)),"") -> 149.908 | G31: =IFERROR(IFERROR(VLOOKUP(B31,'[1]Din Rep'!$B:$M,10,0),VLOOKUP(C31,'[1]Din Rep'!$C:$M,9,0)),"") -> 2.588235294 | H31: =IFERROR(IFERROR(VLOOKUP(B31,'[1]Din Rep'!$B:$M,11,0),VLOOKUP(C31,'[1]Din Rep'!$C:$M,10,0)),"") -> 0 | I31: =IFERROR(IFERROR(VLOOKUP(B31,'[1]Din Rep'!$B:$M,12,0),VLOOKUP(C31,'[1]Din Rep'!$C:$M,11,0)),"") -> ESTOQUE
B32: UV038I00DCO1A | C32: =IFERROR(VLOOKUP(B32,'[1]Din Rep'!$B:$M,2,0),"") -> CAMISETA MANGA LONGA C/ CAPUZ INFANTIL DRY CONFORT 1A UV MORMAII | D32: =IFERROR(IFERROR(VLOOKUP(B32,'[1]Din Rep'!$B:$M,5,0),VLOOKUP(C32,'[1]Din Rep'!$C:$M,4,0)),"") -> 50.80841 | E32: =IFERROR(IFERROR(VLOOKUP(B32,'[1]Din Rep'!$B:$M,7,0),VLOOKUP(C32,'[1]Din Rep'!$C:$M,6,0)),"") -> 54.0515 | F32: =IFERROR(IFERROR(VLOOKUP(B32,'[1]Din Rep'!$B:$M,8,0),VLOOKUP(C32,'[1]Din Rep'!$C:$M,7,0)),"") -> 139.898 | G32: =IFERROR(IFERROR(VLOOKUP(B32,'[1]Din Rep'!$B:$M,10,0),VLOOKUP(C32,'[1]Din Rep'!$C:$M,9,0)),"") -> 2.588235294 | H32: =IFERROR(IFERROR(VLOOKUP(B32,'[1]Din Rep'!$B:$M,11,0),VLOOKUP(C32,'[1]Din Rep'!$C:$M,10,0)),"") -> 0 | I32: =IFERROR(IFERROR(VLOOKUP(B32,'[1]Din Rep'!$B:$M,12,0),VLOOKUP(C32,'[1]Din Rep'!$C:$M,11,0)),"") -> ESTOQUE
B33: UV041I00DAM2A | C33: =IFERROR(VLOOKUP(B33,'[1]Din Rep'!$B:$M,2,0),"") -> CAMISETA MANGA CURTA INFANTIL DRY ACTION 2A UV MORMAII | D33: =IFERROR(IFERROR(VLOOKUP(B33,'[1]Din Rep'!$B:$M,5,0),VLOOKUP(C33,'[1]Din Rep'!$C:$M,4,0)),"") -> 29.01968 | E33: =IFERROR(IFERROR(VLOOKUP(B33,'[1]Din Rep'!$B:$M,7,0),VLOOKUP(C33,'[1]Din Rep'!$C:$M,6,0)),"") -> 30.872 | F33: =IFERROR(IFERROR(VLOOKUP(B33,'[1]Din Rep'!$B:$M,8,0),VLOOKUP(C33,'[1]Din Rep'!$C:$M,7,0)),"") -> 79.904 | G33: =IFERROR(IFERROR(VLOOKUP(B33,'[1]Din Rep'!$B:$M,10,0),VLOOKUP(C33,'[1]Din Rep'!$C:$M,9,0)),"") -> 2.588235294 | H33: =IFERROR(IFERROR(VLOOKUP(B33,'[1]Din Rep'!$B:$M,11,0),VLOOKUP(C33,'[1]Din Rep'!$C:$M,10,0)),"") -> 0 | I33: =IFERROR(IFERROR(VLOOKUP(B33,'[1]Din Rep'!$B:$M,12,0),VLOOKUP(C33,'[1]Din Rep'!$C:$M,11,0)),"") -> ESTOQUE
B34: UV041I00DAM2B | C34: =IFERROR(VLOOKUP(B34,'[1]Din Rep'!$B:$M,2,0),"") -> CAMISETA MANGA CURTA INFANTIL DRY ACTION 2B UV MORMAII | D34: =IFERROR(IFERROR(VLOOKUP(B34,'[1]Din Rep'!$B:$M,5,0),VLOOKUP(C34,'[1]Din Rep'!$C:$M,4,0)),"") -> 29.01968 | E34: =IFERROR(IFERROR(VLOOKUP(B34,'[1]Din Rep'!$B:$M,7,0),VLOOKUP(C34,'[1]Din Rep'!$C:$M,6,0)),"") -> 30.872 | F34: =IFERROR(IFERROR(VLOOKUP(B34,'[1]Din Rep'!$B:$M,8,0),VLOOKUP(C34,'[1]Din Rep'!$C:$M,7,0)),"") -> 79.904 | G34: =IFERROR(IFERROR(VLOOKUP(B34,'[1]Din Rep'!$B:$M,10,0),VLOOKUP(C34,'[1]Din Rep'!$C:$M,9,0)),"") -> 2.588235294 | H34: =IFERROR(IFERROR(VLOOKUP(B34,'[1]Din Rep'!$B:$M,11,0),VLOOKUP(C34,'[1]Din Rep'!$C:$M,10,0)),"") -> 0 | I34: =IFERROR(IFERROR(VLOOKUP(B34,'[1]Din Rep'!$B:$M,12,0),VLOOKUP(C34,'[1]Din Rep'!$C:$M,11,0)),"") -> ESTOQUE
B35: UV041I00DAM2E | C35: =IFERROR(VLOOKUP(B35,'[1]Din Rep'!$B:$M,2,0),"") -> CAMISETA MANGA CURTA INFANTIL DRY ACTION 2E UV MORMAII | D35: =IFERROR(IFERROR(VLOOKUP(B35,'[1]Din Rep'!$B:$M,5,0),VLOOKUP(C35,'[1]Din Rep'!$C:$M,4,0)),"") -> 29.01968 | E35: =IFERROR(IFERROR(VLOOKUP(B35,'[1]Din Rep'!$B:$M,7,0),VLOOKUP(C35,'[1]Din Rep'!$C:$M,6,0)),"") -> 30.872 | F35: =IFERROR(IFERROR(VLOOKUP(B35,'[1]Din Rep'!$B:$M,8,0),VLOOKUP(C35,'[1]Din Rep'!$C:$M,7,0)),"") -> 79.904 | G35: =IFERROR(IFERROR(VLOOKUP(B35,'[1]Din Rep'!$B:$M,10,0),VLOOKUP(C35,'[1]Din Rep'!$C:$M,9,0)),"") -> 2.588235294 | H35: =IFERROR(IFERROR(VLOOKUP(B35,'[1]Din Rep'!$B:$M,11,0),VLOOKUP(C35,'[1]Din Rep'!$C:$M,10,0)),"") -> 0 | I35: =IFERROR(IFERROR(VLOOKUP(B35,'[1]Din Rep'!$B:$M,12,0),VLOOKUP(C35,'[1]Din Rep'!$C:$M,11,0)),"") -> ESTOQUE
B36: UV041I00DCO1A | C36: =IFERROR(VLOOKUP(B36,'[1]Din Rep'!$B:$M,2,0),"") -> CAMISETA MANGA CURTA INFANTIL DRY CONFORT 1A UV MORMAII | D36: =IFERROR(IFERROR(VLOOKUP(B36,'[1]Din Rep'!$B:$M,5,0),VLOOKUP(C36,'[1]Din Rep'!$C:$M,4,0)),"") -> 39.91005 | E36: =IFERROR(IFERROR(VLOOKUP(B36,'[1]Din Rep'!$B:$M,7,0),VLOOKUP(C36,'[1]Din Rep'!$C:$M,6,0)),"") -> 42.4575 | F36: =IFERROR(IFERROR(VLOOKUP(B36,'[1]Din Rep'!$B:$M,8,0),VLOOKUP(C36,'[1]Din Rep'!$C:$M,7,0)),"") -> 109.89 | G36: =IFERROR(IFERROR(VLOOKUP(B36,'[1]Din Rep'!$B:$M,10,0),VLOOKUP(C36,'[1]Din Rep'!$C:$M,9,0)),"") -> 2.588235294 | H36: =IFERROR(IFERROR(VLOOKUP(B36,'[1]Din Rep'!$B:$M,11,0),VLOOKUP(C36,'[1]Din Rep'!$C:$M,10,0)),"") -> 0 | I36: =IFERROR(IFERROR(VLOOKUP(B36,'[1]Din Rep'!$B:$M,12,0),VLOOKUP(C36,'[1]Din Rep'!$C:$M,11,0)),"") -> ESTOQUE
B37: UV041I00DFX2A | C37: =IFERROR(VLOOKUP(B37,'[1]Din Rep'!$B:$M,2,0),"") -> CAMISETA MANGA CURTA INFANTIL DRY FLEX 2A UV MORMAII | D37: =IFERROR(IFERROR(VLOOKUP(B37,'[1]Din Rep'!$B:$M,5,0),VLOOKUP(C37,'[1]Din Rep'!$C:$M,4,0)),"") -> 50.80841 | E37: =IFERROR(IFERROR(VLOOKUP(B37,'[1]Din Rep'!$B:$M,7,0),VLOOKUP(C37,'[1]Din Rep'!$C:$M,6,0)),"") -> 54.0515 | F37: =IFERROR(IFERROR(VLOOKUP(B37,'[1]Din Rep'!$B:$M,8,0),VLOOKUP(C37,'[1]Din Rep'!$C:$M,7,0)),"") -> 139.898 | G37: =IFERROR(IFERROR(VLOOKUP(B37,'[1]Din Rep'!$B:$M,10,0),VLOOKUP(C37,'[1]Din Rep'!$C:$M,9,0)),"") -> 2.588235294 | H37: =IFERROR(IFERROR(VLOOKUP(B37,'[1]Din Rep'!$B:$M,11,0),VLOOKUP(C37,'[1]Din Rep'!$C:$M,10,0)),"") -> 0 | I37: =IFERROR(IFERROR(VLOOKUP(B37,'[1]Din Rep'!$B:$M,12,0),VLOOKUP(C37,'[1]Din Rep'!$C:$M,11,0)),"") -> ESTOQUE
A38: 4 - INFANTIL FEMININO | B38: UV037I00DAM2C | C38: =IFERROR(VLOOKUP(B38,'[1]Din Rep'!$B:$M,2,0),"") -> CAMISETA MANGA LONGA INFANTIL DRY ACTION 2C UV MORMAII | D38: =IFERROR(IFERROR(VLOOKUP(B38,'[1]Din Rep'!$B:$M,5,0),VLOOKUP(C38,'[1]Din Rep'!$C:$M,4,0)),"") -> 32.64714 | E38: =IFERROR(IFERROR(VLOOKUP(B38,'[1]Din Rep'!$B:$M,7,0),VLOOKUP(C38,'[1]Din Rep'!$C:$M,6,0)),"") -> 34.731 | F38: =IFERROR(IFERROR(VLOOKUP(B38,'[1]Din Rep'!$B:$M,8,0),VLOOKUP(C38,'[1]Din Rep'!$C:$M,7,0)),"") -> 89.892 | G38: =IFERROR(IFERROR(VLOOKUP(B38,'[1]Din Rep'!$B:$M,10,0),VLOOKUP(C38,'[1]Din Rep'!$C:$M,9,0)),"") -> 2.588235294 | H38: =IFERROR(IFERROR(VLOOKUP(B38,'[1]Din Rep'!$B:$M,11,0),VLOOKUP(C38,'[1]Din Rep'!$C:$M,10,0)),"") -> 0 | I38: =IFERROR(IFERROR(VLOOKUP(B38,'[1]Din Rep'!$B:$M,12,0),VLOOKUP(C38,'[1]Din Rep'!$C:$M,11,0)),"") -> ESTOQUE
B39: UV037I00DFX2B | C39: =IFERROR(VLOOKUP(B39,'[1]Din Rep'!$B:$M,2,0),"") -> CAMISETA MANGA LONGA INFANTIL DRY FLEX 2B UV MORMAII | D39: =IFERROR(IFERROR(VLOOKUP(B39,'[1]Din Rep'!$B:$M,5,0),VLOOKUP(C39,'[1]Din Rep'!$C:$M,4,0)),"") -> 54.44386 | E39: =IFERROR(IFERROR(VLOOKUP(B39,'[1]Din Rep'!$B:$M,7,0),VLOOKUP(C39,'[1]Din Rep'!$C:$M,6,0)),"") -> 57.919 | F39: =IFERROR(IFERROR(VLOOKUP(B39,'[1]Din Rep'!$B:$M,8,0),VLOOKUP(C39,'[1]Din Rep'!$C:$M,7,0)),"") -> 149.908 | G39: =IFERROR(IFERROR(VLOOKUP(B39,'[1]Din Rep'!$B:$M,10,0),VLOOKUP(C39,'[1]Din Rep'!$C:$M,9,0)),"") -> 2.588235294 | H39: =IFERROR(IFERROR(VLOOKUP(B39,'[1]Din Rep'!$B:$M,11,0),VLOOKUP(C39,'[1]Din Rep'!$C:$M,10,0)),"") -> 0 | I39: =IFERROR(IFERROR(VLOOKUP(B39,'[1]Din Rep'!$B:$M,12,0),VLOOKUP(C39,'[1]Din Rep'!$C:$M,11,0)),"") -> ESTOQUE
B40: UV041I00DAM2C | C40: =IFERROR(VLOOKUP(B40,'[1]Din Rep'!$B:$M,2,0),"") -> CAMISETA MANGA CURTA INFANTIL DRY ACTION 2C UV MORMAII | D40: =IFERROR(IFERROR(VLOOKUP(B40,'[1]Din Rep'!$B:$M,5,0),VLOOKUP(C40,'[1]Din Rep'!$C:$M,4,0)),"") -> 29.01968 | E40: =IFERROR(IFERROR(VLOOKUP(B40,'[1]Din Rep'!$B:$M,7,0),VLOOKUP(C40,'[1]Din Rep'!$C:$M,6,0)),"") -> 30.872 | F40: =IFERROR(IFERROR(VLOOKUP(B40,'[1]Din Rep'!$B:$M,8,0),VLOOKUP(C40,'[1]Din Rep'!$C:$M,7,0)),"") -> 79.904 | G40: =IFERROR(IFERROR(VLOOKUP(B40,'[1]Din Rep'!$B:$M,10,0),VLOOKUP(C40,'[1]Din Rep'!$C:$M,9,0)),"") -> 2.588235294 | H40: =IFERROR(IFERROR(VLOOKUP(B40,'[1]Din Rep'!$B:$M,11,0),VLOOKUP(C40,'[1]Din Rep'!$C:$M,10,0)),"") -> 0 | I40: =IFERROR(IFERROR(VLOOKUP(B40,'[1]Din Rep'!$B:$M,12,0),VLOOKUP(C40,'[1]Din Rep'!$C:$M,11,0)),"") -> ESTOQUE

Sheet UV 19_20
A6: LINHA | B6: REFERENCIA | C6: DESCRIÇÃO | D6: À VISTA | E6: À PRAZO | F6: SUGESTÃO | G6: MARK UP | H6: IPI | I6: ENTREGA
A7: 1 - UV MASCULINO | B7: UV038M00DSM1A | C7: =IFERROR(VLOOKUP(B7,'[1]Din Rep'!$B:$M,2,0),"") -> CAMISETA MANGA LONGA C/ CAPUZ MASCULINO DRY SMART 1A UV MORMAII | D7: =IFERROR(IFERROR(VLOOKUP(B7,'[1]Din Rep'!$B:$M,5,0),VLOOKUP(C7,'[1]Din Rep'!$C:$M,4,0)),"") -> 61.70677 | E7: =IFERROR(IFERROR(VLOOKUP(B7,'[1]Din Rep'!$B:$M,7,0),VLOOKUP(C7,'[1]Din Rep'!$C:$M,6,0)),"") -> 65.6455 | F7: =IFERROR(IFERROR(VLOOKUP(B7,'[1]Din Rep'!$B:$M,8,0),VLOOKUP(C7,'[1]Din Rep'!$C:$M,7,0)),"") -> 169.9 | G7: =IFERROR(IFERROR(VLOOKUP(B7,'[1]Din Rep'!$B:$M,10,0),VLOOKUP(C7,'[1]Din Rep'!$C:$M,9,0)),"") -> 2.588143894 | H7: =IFERROR(IFERROR(VLOOKUP(B7,'[1]Din Rep'!$B:$M,11,0),VLOOKUP(C7,'[1]Din Rep'!$C:$M,10,0)),"") -> 0 | I7: =IFERROR(IFERROR(VLOOKUP(B7,'[1]Din Rep'!$B:$M,12,0),VLOOKUP(C7,'[1]Din Rep'!$C:$M,11,0)),"") -> ESTOQUE
B8: UV037M00DFX3A | C8: =IFERROR(VLOOKUP(B8,'[1]Din Rep'!$B:$M,2,0),"") -> CAMISETA MANGA LONGA MASCULINO DRY FLEX 3A UV MORMAII | D8: =IFERROR(IFERROR(VLOOKUP(B8,'[1]Din Rep'!$B:$M,5,0),VLOOKUP(C8,'[1]Din Rep'!$C:$M,4,0)),"") -> 58.07132 | E8: =IFERROR(IFERROR(VLOOKUP(B8,'[1]Din Rep'!$B:$M,7,0),VLOOKUP(C8,'[1]Din Rep'!$C:$M,6,0)),"") -> 61.778 | F8: =IFERROR(IFERROR(VLOOKUP(B8,'[1]Din Rep'!$B:$M,8,0),VLOOKUP(C8,'[1]Din Rep'!$C:$M,7,0)),"") -> 159.9 | G8: =IFERROR(IFERROR(VLOOKUP(B8,'[1]Din Rep'!$B:$M,10,0),VLOOKUP(C8,'[1]Din Rep'!$C:$M,9,0)),"") -> 2.588300042 | H8: =IFERROR(IFERROR(VLOOKUP(B8,'[1]Din Rep'!$B:$M,11,0),VLOOKUP(C8,'[1]Din Rep'!$C:$M,10,0)),"") -> 0 | I8: =IFERROR(IFERROR(VLOOKUP(B8,'[1]Din Rep'!$B:$M,12,0),VLOOKUP(C8,'[1]Din Rep'!$C:$M,11,0)),"") -> ESTOQUE
B9: UV041M00DFX3A | C9: =IFERROR(VLOOKUP(B9,'[1]Din Rep'!$B:$M,2,0),"") -> CAMISETA MANGA CURTA MASCULINO DRY FLEX 3A UV MORMAII - SILVEIRA | D9: =IFERROR(IFERROR(VLOOKUP(B9,'[1]Din Rep'!$B:$M,5,0),VLOOKUP(C9,'[1]Din Rep'!$C:$M,4,0)),"") -> 54.44386 | E9: =IFERROR(IFERROR(VLOOKUP(B9,'[1]Din Rep'!$B:$M,7,0),VLOOKUP(C9,'[1]Din Rep'!$C:$M,6,0)),"") -> 57.919 | F9: =IFERROR(IFERROR(VLOOKUP(B9,'[1]Din Rep'!$B:$M,8,0),VLOOKUP(C9,'[1]Din Rep'!$C:$M,7,0)),"") -> 149.9 | G9: =IFERROR(IFERROR(VLOOKUP(B9,'[1]Din Rep'!$B:$M,10,0),VLOOKUP(C9,'[1]Din Rep'!$C:$M,9,0)),"") -> 2.58809717 | H9: =IFERROR(IFERROR(VLOOKUP(B9,'[1]Din Rep'!$B:$M,11,0),VLOOKUP(C9,'[1]Din Rep'!$C:$M,10,0)),"") -> 0 | I9: =IFERROR(IFERROR(VLOOKUP(B9,'[1]Din Rep'!$B:$M,12,0),VLOOKUP(C9,'[1]Din Rep'!$C:$M,11,0)),"") -> ESTOQUE
B10: UV041M00DFX3B | C10: =IFERROR(VLOOKUP(B10,'[1]Din Rep'!$B:$M,2,0),"") -> CAMISETA MANGA CURTA MASCULINO DRY FLEX 3A UV MORMAII - CACIMBA DO PADRE | D10: =IFERROR(IFERROR(VLOOKUP(B10,'[1]Din Rep'!$B:$M,5,0),VLOOKUP(C10,'[1]Din Rep'!$C:$M,4,0)),"") -> 54.44386 | E10: =IFERROR(IFERROR(VLOOKUP(B10,'[1]Din Rep'!$B:$M,7,0),VLOOKUP(C10,'[1]Din Rep'!$C:$M,6,0)),"") -> 57.919 | F10: =IFERROR(IFERROR(VLOOKUP(B10,'[1]Din Rep'!$B:$M,8,0),VLOOKUP(C10,'[1]Din Rep'!$C:$M,7,0)),"") -> 149.9 | G10: =IFERROR(IFERROR(VLOOKUP(B10,'[1]Din Rep'!$B:$M,10,0),VLOOKUP(C10,'[1]Din Rep'!$C:$M,9,0)),"") -> 2.58809717 | H10: =IFERROR(IFERROR(VLOOKUP(B10,'[1]Din Rep'!$B:$M,11,0),VLOOKUP(C10,'[1]Din Rep'!$C:$M,10,0)),"") -> 0 | I10: =IFERROR(IFERROR(VLOOKUP(B10,'[1]Din Rep'!$B:$M,12,0),VLOOKUP(C10,'[1]Din Rep'!$C:$M,11,0)),"") -> ESTOQUE
B11: UV041M00DFX3C | C11: =IFERROR(VLOOKUP(B11,'[1]Din Rep'!$B:$M,2,0),"") -> CAMISETA MANGA CURTA MASCULINO DRY FLEX 3A UV MORMAII - PRAIA DO FORTE | D11: =IFERROR(IFERROR(VLOOKUP(B11,'[1]Din Rep'!$B:$M,5,0),VLOOKUP(C11,'[1]Din Rep'!$C:$M,4,0)),"") -> 54.44386 | E11: =IFERROR(IFERROR(VLOOKUP(B11,'[1]Din Rep'!$B:$M,7,0),VLOOKUP(C11,'[1]Din Rep'!$C:$M,6,0)),"") -> 57.919 | F11: =IFERROR(IFERROR(VLOOKUP(B11,'[1]Din Rep'!$B:$M,8,0),VLOOKUP(C11,'[1]Din Rep'!$C:$M,7,0)),"") -> 149.9 | G11: =IFERROR(IFERROR(VLOOKUP(B11,'[1]Din Rep'!$B:$M,10,0),VLOOKUP(C11,'[1]Din Rep'!$C:$M,9,0)),"") -> 2.58809717 | H11: =IFERROR(IFERROR(VLOOKUP(B11,'[1]Din Rep'!$B:$M,11,0),VLOOKUP(C11,'[1]Din Rep'!$C:$M,10,0)),"") -> 0 | I11: =IFERROR(IFERROR(VLOOKUP(B11,'[1]Din Rep'!$B:$M,12,0),VLOOKUP(C11,'[1]Din Rep'!$C:$M,11,0)),"") -> ESTOQUE
B12: UV038M00DCO2A | C12: =IFERROR(VLOOKUP(B12,'[1]Din Rep'!$B:$M,2,0),"") -> CAMISETA MANGA LONGA C/ CAPUZ MASCULINO DRY COMFORT 2A UV MORMAII | D12: =IFERROR(IFERROR(VLOOKUP(B12,'[1]Din Rep'!$B:$M,5,0),VLOOKUP(C12,'[1]Din Rep'!$C:$M,4,0)),"") -> 54.44386 | E12: =IFERROR(IFERROR(VLOOKUP(B12,'[1]Din Rep'!$B:$M,7,0),VLOOKUP(C12,'[1]Din Rep'!$C:$M,6,0)),"") -> 57.919 | F12: =IFERROR(IFERROR(VLOOKUP(B12,'[1]Din Rep'!$B:$M,8,0),VLOOKUP(C12,'[1]Din Rep'!$C:$M,7,0)),"") -> 149.9 | G12: =IFERROR(IFERROR(VLOOKUP(B12,'[1]Din Rep'!$B:$M,10,0),VLOOKUP(C12,'[1]Din Rep'!$C:$M,9,0)),"") -> 2.58809717 | H12: =IFERROR(IFERROR(VLOOKUP(B12,'[1]Din Rep'!$B:$M,11,0),VLOOKUP(C12,'[1]Din Rep'!$C:$M,10,0)),"") -> 0 | I12: =IFERROR(IFERROR(VLOOKUP(B12,'[1]Din Rep'!$B:$M,12,0),VLOOKUP(C12,'[1]Din Rep'!$C:$M,11,0)),"") -> ESTOQUE
B13: UV037M00DCO2A | C13: =IFERROR(VLOOKUP(B13,'[1]Din Rep'!$B:$M,2,0),"") -> CAMISETA MANGA LONGA MASCULINO DRY COMFORT 2A UV MORMAII | D13: =IFERROR(IFERROR(VLOOKUP(B13,'[1]Din Rep'!$B:$M,5,0),VLOOKUP(C13,'[1]Din Rep'!$C:$M,4,0)),"") -> 50.80841 | E13: =IFERROR(IFERROR(VLOOKUP(B13,'[1]Din Rep'!$B:$M,7,0),VLOOKUP(C13,'[1]Din Rep'!$C:$M,6,0)),"") -> 54.0515 | F13: =IFERROR(IFERROR(VLOOKUP(B13,'[1]Din Rep'!$B:$M,8,0),VLOOKUP(C13,'[1]Din Rep'!$C:$M,7,0)),"") -> 139.9 | G13: =IFERROR(IFERROR(VLOOKUP(B13,'[1]Din Rep'!$B:$M,10,0),VLOOKUP(C13,'[1]Din Rep'!$C:$M,9,0)),"") -> 2.588272296 | H13: =IFERROR(IFERROR(VLOOKUP(B13,'[1]Din Rep'!$B:$M,11,0),VLOOKUP(C13,'[1]Din Rep'!$C:$M,10,0)),"") -> 0 | I13: =IFERROR(IFERROR(VLOOKUP(B13,'[1]Din Rep'!$B:$M,12,0),VLOOKUP(C13,'[1]Din Rep'!$C:$M,11,0)),"") -> ESTOQUE
B14: UV041M00DCO2A | C14: =IFERROR(VLOOKUP(B14,'[1]Din Rep'!$B:$M,2,0),"") -> CAMISETA MANGA CURTA MASCULINO DRY COMFORT 2A UV MORMAII | D14: =IFERROR(IFERROR(VLOOKUP(B14,'[1]Din Rep'!$B:$M,5,0),VLOOKUP(C14,'[1]Din Rep'!$C:$M,4,0)),"") -> 47.18095 | E14: =IFERROR(IFERROR(VLOOKUP(B14,'[1]Din Rep'!$B:$M,7,0),VLOOKUP(C14,'[1]Din Rep'!$C:$M,6,0)),"") -> 50.1925 | F14: =IFERROR(IFERROR(VLOOKUP(B14,'[1]Din Rep'!$B:$M,8,0),VLOOKUP(C14,'[1]Din Rep'!$C:$M,7,0)),"") -> 129.9 | G14: =IFERROR(IFERROR(VLOOKUP(B14,'[1]Din Rep'!$B:$M,10,0),VLOOKUP(C14,'[1]Din Rep'!$C:$M,9,0)),"") -> 2.588036061 | H14: =IFERROR(IFERROR(VLOOKUP(B14,'[1]Din Rep'!$B:$M,11,0),VLOOKUP(C14,'[1]Din Rep'!$C:$M,10,0)),"") -> 0 | I14: =IFERROR(IFERROR(VLOOKUP(B14,'[1]Din Rep'!$B:$M,12,0),VLOOKUP(C14,'[1]Din Rep'!$C:$M,11,0)),"") -> ESTOQUE
B15: UV037M00DMO1A | C15: =IFERROR(VLOOKUP(B15,'[1]Din Rep'!$B:$M,2,0),"") -> CAMISETA MANGA LONGA MASCULINO DRY MOVE 1A UV MORMAII | D15: =IFERROR(IFERROR(VLOOKUP(B15,'[1]Din Rep'!$B:$M,5,0),VLOOKUP(C15,'[1]Din Rep'!$C:$M,4,0)),"") -> 58.07132 | E15: =IFERROR(IFERROR(VLOOKUP(B15,'[1]Din Rep'!$B:$M,7,0),VLOOKUP(C15,'[1]Din Rep'!$C:$M,6,0)),"") -> 61.778 | F15: =IFERROR(IFERROR(VLOOKUP(B15,'[1]Din Rep'!$B:$M,8,0),VLOOKUP(C15,'[1]Din Rep'!$C:$M,7,0)),"") -> 159.9 | G15: =IFERROR(IFERROR(VLOOKUP(B15,'[1]Din Rep'!$B:$M,10,0),VLOOKUP(C15,'[1]Din Rep'!$C:$M,9,0)),"") -> 2.588300042 | H15: =IFERROR(IFERROR(VLOOKUP(B15,'[1]Din Rep'!$B:$M,11,0),VLOOKUP(C15,'[1]Din Rep'!$C:$M,10,0)),"") -> 0 | I15: =IFERROR(IFERROR(VLOOKUP(B15,'[1]Din Rep'!$B:$M,12,0),VLOOKUP(C15,'[1]Din Rep'!$C:$M,11,0)),"") -> ESTOQUE
B16: UV041M00DMO1A | C16: =IFERROR(VLOOKUP(B16,'[1]Din Rep'!$B:$M,2,0),"") -> CAMISETA MANGA CURTA MASCULINO DRY MOVE 1A UV MORMAII | D16: =IFERROR(IFERROR(VLOOKUP(B16,'[1]Din Rep'!$B:$M,5,0),VLOOKUP(C16,'[1]Din Rep'!$C:$M,4,0)),"") -> 50.80841 | E16: =IFERROR(IFERROR(VLOOKUP(B16,'[1]Din Rep'!$B:$M,7,0),VLOOKUP(C16,'[1]Din Rep'!$C:$M,6,0)),"") -> 54.0515 | F16: =IFERROR(IFERROR(VLOOKUP(B16,'[1]Din Rep'!$B:$M,8,0),VLOOKUP(C16,'[1]Din Rep'!$C:$M,7,0)),"") -> 139.9 | G16: =IFERROR(IFERROR(VLOOKUP(B16,'[1]Din Rep'!$B:$M,10,0),VLOOKUP(C16,'[1]Din Rep'!$C:$M,9,0)),"") -> 2.588272296 | H16: =IFERROR(IFERROR(VLOOKUP(B16,'[1]Din Rep'!$B:$M,11,0),VLOOKUP(C16,'[1]Din Rep'!$C:$M,10,0)),"") -> 0 | I16: =IFERROR(IFERROR(VLOOKUP(B16,'[1]Din Rep'!$B:$M,12,0),VLOOKUP(C16,'[1]Din Rep'!$C:$M,11,0)),"") -> ESTOQUE
B17: UV037M00DSM1B | C17: =IFERROR(VLOOKUP(B17,'[1]Din Rep'!$B:$M,2,0),"") -> CAMISETA MANGA LONGA MASCULINO DRY SMART 1B UV MORMAII | D17: =IFERROR(IFERROR(VLOOKUP(B17,'[1]Din Rep'!$B:$M,5,0),VLOOKUP(C17,'[1]Din Rep'!$C:$M,4,0)),"") -> 36.28259 | E17: =IFERROR(IFERROR(VLOOKUP(B17,'[1]Din Rep'!$B:$M,7,0),VLOOKUP(C17,'[1]Din Rep'!$C:$M,6,0)),"") -> 38.5985 | F17: =IFERROR(IFERROR(VLOOKUP(B17,'[1]Din Rep'!$B:$M,8,0),VLOOKUP(C17,'[1]Din Rep'!$C:$M,7,0)),"") -> 99.9 | G17: =IFERROR(IFERROR(VLOOKUP(B17,'[1]Din Rep'!$B:$M,10,0),VLOOKUP(C17,'[1]Din Rep'!$C:$M,9,0)),"") -> 2.588183479 | H17: =IFERROR(IFERROR(VLOOKUP(B17,'[1]Din Rep'!$B:$M,11,0),VLOOKUP(C17,'[1]Din Rep'!$C:$M,10,0)),"") -> 0 | I17: =IFERROR(IFERROR(VLOOKUP(B17,'[1]Din Rep'!$B:$M,12,0),VLOOKUP(C17,'[1]Din Rep'!$C:$M,11,0)),"") -> ESTOQUE
B18: UV037M00DAM3A | C18: =IFERROR(VLOOKUP(B18,'[1]Din Rep'!$B:$M,2,0),"") -> CAMISETA MANGA LONGA MASCULINO DRY ACTION 3A UV MORMAII | D18: =IFERROR(IFERROR(VLOOKUP(B18,'[1]Din Rep'!$B:$M,5,0),VLOOKUP(C18,'[1]Din Rep'!$C:$M,4,0)),"") -> 32.64714 | E18: =IFERROR(IFERROR(VLOOKUP(B18,'[1]Din Rep'!$B:$M,7,0),VLOOKUP(C18,'[1]Din Rep'!$C:$M,6,0)),"") -> 34.731 | F18: =IFERROR(IFERROR(VLOOKUP(B18,'[1]Din Rep'!$B:$M,8,0),VLOOKUP(C18,'[1]Din Rep'!$C:$M,7,0)),"") -> 89.9 | G18: =IFERROR(IFERROR(VLOOKUP(B18,'[1]Din Rep'!$B:$M,10,0),VLOOKUP(C18,'[1]Din Rep'!$C:$M,9,0)),"") -> 2.588465636 | H18: =IFERROR(IFERROR(VLOOKUP(B18,'[1]Din Rep'!$B:$M,11,0),VLOOKUP(C18,'[1]Din Rep'!$C:$M,10,0)),"") -> 0 | I18: =IFERROR(IFERROR(VLOOKUP(B18,'[1]Din Rep'!$B:$M,12,0),VLOOKUP(C18,'[1]Din Rep'!$C:$M,11,0)),"") -> ESTOQUE
B19: UV041M00DAM3A | C19: =IFERROR(VLOOKUP(B19,'[1]Din Rep'!$B:$M,2,0),"") -> CAMISETA MANGA CURTA MASCULINO DRY ACTION 3A UV MORMAII | D19: =IFERROR(IFERROR(VLOOKUP(B19,'[1]Din Rep'!$B:$M,5,0),VLOOKUP(C19,'[1]Din Rep'!$C:$M,4,0)),"") -> 29.01968 | E19: =IFERROR(IFERROR(VLOOKUP(B19,'[1]Din Rep'!$B:$M,7,0),VLOOKUP(C19,'[1]Din Rep'!$C:$M,6,0)),"") -> 30.872 | F19: =IFERROR(IFERROR(VLOOKUP(B19,'[1]Din Rep'!$B:$M,8,0),VLOOKUP(C19,'[1]Din Rep'!$C:$M,7,0)),"") -> 79.9 | G19: =IFERROR(IFERROR(VLOOKUP(B19,'[1]Din Rep'!$B:$M,10,0),VLOOKUP(C19,'[1]Din Rep'!$C:$M,9,0)),"") -> 2.588105727 | H19: =IFERROR(IFERROR(VLOOKUP(B19,'[1]Din Rep'!$B:$M,11,0),VLOOKUP(C19,'[1]Din Rep'!$C:$M,10,0)),"") -> 0 | I19: =IFERROR(IFERROR(VLOOKUP(B19,'[1]Din Rep'!$B:$M,12,0),VLOOKUP(C19,'[1]Din Rep'!$C:$M,11,0)),"") -> ESTOQUE
A20: 2 - UV FEMININO | B20: UV037F00DMO1A | C20: =IFERROR(VLOOKUP(B20,'[1]Din Rep'!$B:$M,2,0),"") -> CAMISETA MANGA LONGA FEMININO DRY MOVE 1A UV MORMAII | D20: =IFERROR(IFERROR(VLOOKUP(B20,'[1]Din Rep'!$B:$M,5,0),VLOOKUP(C20,'[1]Din Rep'!$C:$M,4,0)),"") -> 47.18095 | E20: =IFERROR(IFERROR(VLOOKUP(B20,'[1]Din Rep'!$B:$M,7,0),VLOOKUP(C20,'[1]Din Rep'!$C:$M,6,0)),"") -> 50.1925 | F20: =IFERROR(IFERROR(VLOOKUP(B20,'[1]Din Rep'!$B:$M,8,0),VLOOKUP(C20,'[1]Din Rep'!$C:$M,7,0)),"") -> 129.9 | G20: =IFERROR(IFERROR(VLOOKUP(B20,'[1]Din Rep'!$B:$M,10,0),VLOOKUP(C20,'[1]Din Rep'!$C:$M,9,0)),"") -> 2.588036061 | H20: =IFERROR(IFERROR(VLOOKUP(B20,'[1]Din Rep'!$B:$M,11,0),VLOOKUP(C20,'[1]Din Rep'!$C:$M,10,0)),"") -> 0 | I20: =IFERROR(IFERROR(VLOOKUP(B20,'[1]Din Rep'!$B:$M,12,0),VLOOKUP(C20,'[1]Din Rep'!$C:$M,11,0)),"") -> ESTOQUE
B21: UV041F00DMO1A | C21: =IFERROR(VLOOKUP(B21,'[1]Din Rep'!$B:$M,2,0),"") -> CAMISETA MANGA CURTA FEMININO DRY MOVE 1A UV MORMAII | D21: =IFERROR(IFERROR(VLOOKUP(B21,'[1]Din Rep'!$B:$M,5,0),VLOOKUP(C21,'[1]Din Rep'!$C:$M,4,0)),"") -> 43.5455 | E21: =IFERROR(IFERROR(VLOOKUP(B21,'[1]Din Rep'!$B:$M,7,0),VLOOKUP(C21,'[1]Din Rep'!$C:$M,6,0)),"") -> 46.325 | F21: =IFERROR(IFERROR(VLOOKUP(B21,'[1]Din Rep'!$B:$M,8,0),VLOOKUP(C21,'[1]Din Rep'!$C:$M,7,0)),"") -> 119.9 | G21: =IFERROR(IFERROR(VLOOKUP(B21,'[1]Din Rep'!$B:$M,10,0),VLOOKUP(C21,'[1]Din Rep'!$C:$M,9,0)),"") -> 2.588235294 | H21: =IFERROR(IFERROR(VLOOKUP(B21,'[1]Din Rep'!$B:$M,11,0),VLOOKUP(C21,'[1]Din Rep'!$C:$M,10,0)),"") -> 0 | I21: =IFERROR(IFERROR(VLOOKUP(B21,'[1]Din Rep'!$B:$M,12,0),VLOOKUP(C21,'[1]Din Rep'!$C:$M,11,0)),"") -> ESTOQUE
B22: UV037F00DSM1A | C22: =IFERROR(VLOOKUP(B22,'[1]Din Rep'!$B:$M,2,0),"") -> CAMISETA MANGA LONGA FEMININO DRY SMART 1A UV MORMAII | D22: =IFERROR(IFERROR(VLOOKUP(B22,'[1]Din Rep'!$B:$M,5,0),VLOOKUP(C22,'[1]Din Rep'!$C:$M,4,0)),"") -> 36.28259 | E22: =IFERROR(IFERROR(VLOOKUP(B22,'[1]Din Rep'!$B:$M,7,0),VLOOKUP(C22,'[1]Din Rep'!$C:$M,6,0)),"") -> 38.5985 | F22: =IFERROR(IFERROR(VLOOKUP(B22,'[1]Din Rep'!$B:$M,8,0),VLOOKUP(C22,'[1]Din Rep'!$C:$M,7,0)),"") -> 99.9 | G22: =IFERROR(IFERROR(VLOOKUP(B22,'[1]Din Rep'!$B:$M,10,0),VLOOKUP(C22,'[1]Din Rep'!$C:$M,9,0)),"") -> 2.588183479 | H22: =IFERROR(IFERROR(VLOOKUP(B22,'[1]Din Rep'!$B:$M,11,0),VLOOKUP(C22,'[1]Din Rep'!$C:$M,10,0)),"") -> 0 | I22: =IFERROR(IFERROR(VLOOKUP(B22,'[1]Din Rep'!$B:$M,12,0),VLOOKUP(C22,'[1]Din Rep'!$C:$M,11,0)),"") -> ESTOQUE
B23: UV041F00DSM1A | C23: =IFERROR(VLOOKUP(B23,'[1]Din Rep'!$B:$M,2,0),"") -> CAMISETA MANGA CURTA FEMININO DRY SMART 1A UV MORMAII | D23: =IFERROR(IFERROR(VLOOKUP(B23,'[1]Din Rep'!$B:$M,5,0),VLOOKUP(C23,'[1]Din Rep'!$C:$M,4,0)),"") -> 32.64714 | E23: =IFERROR(IFERROR(VLOOKUP(B23,'[1]Din Rep'!$B:$M,7,0),VLOOKUP(C23,'[1]Din Rep'!$C:$M,6,0)),"") -> 34.731 | F23: =IFERROR(IFERROR(VLOOKUP(B23,'[1]Din Rep'!$B:$M,8,0),VLOOKUP(C23,'[1]Din Rep'!$C:$M,7,0)),"") -> 89.9 | G23: =IFERROR(IFERROR(VLOOKUP(B23,'[1]Din Rep'!$B:$M,10,0),VLOOKUP(C23,'[1]Din Rep'!$C:$M,9,0)),"") -> 2.588465636 | H23: =IFERROR(IFERROR(VLOOKUP(B23,'[1]Din Rep'!$B:$M,11,0),VLOOKUP(C23,'[1]Din Rep'!$C:$M,10,0)),"") -> 0 | I23: =IFERROR(IFERROR(VLOOKUP(B23,'[1]Din Rep'!$B:$M,12,0),VLOOKUP(C23,'[1]Din Rep'!$C:$M,11,0)),"") -> ESTOQUE
B24: UV037F00DAM3A | C24: =IFERROR(VLOOKUP(B24,'[1]Din Rep'!$B:$M,2,0),"") -> CAMISETA MANGA LONGA FEMININO DRY ACTION 3A UV MORMAII | D24: =IFERROR(IFERROR(VLOOKUP(B24,'[1]Din Rep'!$B:$M,5,0),VLOOKUP(C24,'[1]Din Rep'!$C:$M,4,0)),"") -> 32.64714 | E24: =IFERROR(IFERROR(VLOOKUP(B24,'[1]Din Rep'!$B:$M,7,0),VLOOKUP(C24,'[1]Din Rep'!$C:$M,6,0)),"") -> 34.731 | F24: =IFERROR(IFERROR(VLOOKUP(B24,'[1]Din Rep'!$B:$M,8,0),VLOOKUP(C24,'[1]Din Rep'!$C:$M,7,0)),"") -> 89.9 | G24: =IFERROR(IFERROR(VLOOKUP(B24,'[1]Din Rep'!$B:$M,10,0),VLOOKUP(C24,'[1]Din Rep'!$C:$M,9,0)),"") -> 2.588465636 | H24: =IFERROR(IFERROR(VLOOKUP(B24,'[1]Din Rep'!$B:$M,11,0),VLOOKUP(C24,'[1]Din Rep'!$C:$M,10,0)),"") -> 0 | I24: =IFERROR(IFERROR(VLOOKUP(B24,'[1]Din Rep'!$B:$M,12,0),VLOOKUP(C24,'[1]Din Rep'!$C:$M,11,0)),"") -> ESTOQUE
B25: UV041F00DAM3A | C25: =IFERROR(VLOOKUP(B25,'[1]Din Rep'!$B:$M,2,0),"") -> CAMISETA MANGA CURTA FEMININO DRY ACTION 3A UV MORMAII | D25: =IFERROR(IFERROR(VLOOKUP(B25,'[1]Din Rep'!$B:$M,5,0),VLOOKUP(C25,'[1]Din Rep'!$C:$M,4,0)),"") -> 29.01968 | E25: =IFERROR(IFERROR(VLOOKUP(B25,'[1]Din Rep'!$B:$M,7,0),VLOOKUP(C25,'[1]Din Rep'!$C:$M,6,0)),"") -> 30.872 | F25: =IFERROR(IFERROR(VLOOKUP(B25,'[1]Din Rep'!$B:$M,8,0),VLOOKUP(C25,'[1]Din Rep'!$C:$M,7,0)),"") -> 79.9 | G25: =IFERROR(IFERROR(VLOOKUP(B25,'[1]Din Rep'!$B:$M,10,0),VLOOKUP(C25,'[1]Din Rep'!$C:$M,9,0)),"") -> 2.588105727 | H25: =IFERROR(IFERROR(VLOOKUP(B25,'[1]Din Rep'!$B:$M,11,0),VLOOKUP(C25,'[1]Din Rep'!$C:$M,10,0)),"") -> 0 | I25: =IFERROR(IFERROR(VLOOKUP(B25,'[1]Din Rep'!$B:$M,12,0),VLOOKUP(C25,'[1]Din Rep'!$C:$M,11,0)),"") -> ESTOQUE
A26: 3 - INFANTIL MASCULINO | B26: UV037I00DSM1D | C26: =IFERROR(VLOOKUP(B26,'[1]Din Rep'!$B:$M,2,0),"") -> CAMISETA MANGA LONGA INFANTIL DRY SMART 1D UV MORMAII | D26: =IFERROR(IFERROR(VLOOKUP(B26,'[1]Din Rep'!$B:$M,5,0),VLOOKUP(C26,'[1]Din Rep'!$C:$M,4,0)),"") -> 43.5455 | E26: =IFERROR(IFERROR(VLOOKUP(B26,'[1]Din Rep'!$B:$M,7,0),VLOOKUP(C26,'[1]Din Rep'!$C:$M,6,0)),"") -> 46.325 | F26: =IFERROR(IFERROR(VLOOKUP(B26,'[1]Din Rep'!$B:$M,8,0),VLOOKUP(C26,'[1]Din Rep'!$C:$M,7,0)),"") -> 119.9 | G26: =IFERROR(IFERROR(VLOOKUP(B26,'[1]Din Rep'!$B:$M,10,0),VLOOKUP(C26,'[1]Din Rep'!$C:$M,9,0)),"") -> 2.588235294 | H26: =IFERROR(IFERROR(VLOOKUP(B26,'[1]Din Rep'!$B:$M,11,0),VLOOKUP(C26,'[1]Din Rep'!$C:$M,10,0)),"") -> 0 | I26: =IFERROR(IFERROR(VLOOKUP(B26,'[1]Din Rep'!$B:$M,12,0),VLOOKUP(C26,'[1]Din Rep'!$C:$M,11,0)),"") -> ESTOQUE
B27: UV037I00DSM1C | C27: =IFERROR(VLOOKUP(B27,'[1]Din Rep'!$B:$M,2,0),"") -> CAMISETA MANGA LONGA INFANTIL DRY SMART 1C UV MORMAII | D27: =IFERROR(IFERROR(VLOOKUP(B27,'[1]Din Rep'!$B:$M,5,0),VLOOKUP(C27,'[1]Din Rep'!$C:$M,4,0)),"") -> 43.5455 | E27: =IFERROR(IFERROR(VLOOKUP(B27,'[1]Din Rep'!$B:$M,7,0),VLOOKUP(C27,'[1]Din Rep'!$C:$M,6,0)),"") -> 46.325 | F27: =IFERROR(IFERROR(VLOOKUP(B27,'[1]Din Rep'!$B:$M,8,0),VLOOKUP(C27,'[1]Din Rep'!$C:$M,7,0)),"") -> 119.9 | G27: =IFERROR(IFERROR(VLOOKUP(B27,'[1]Din Rep'!$B:$M,10,0),VLOOKUP(C27,'[1]Din Rep'!$C:$M,9,0)),"") -> 2.588235294 | H27: =IFERROR(IFERROR(VLOOKUP(B27,'[1]Din Rep'!$B:$M,11,0),VLOOKUP(C27,'[1]Din Rep'!$C:$M,10,0)),"") -> 0 | I27: =IFERROR(IFERROR(VLOOKUP(B27,'[1]Din Rep'!$B:$M,12,0),VLOOKUP(C27,'[1]Din Rep'!$C:$M,11,0)),"") -> ESTOQUE
B28: UV041I00DSM1C | C28: =IFERROR(VLOOKUP(B28,'[1]Din Rep'!$B:$M,2,0),"") -> CAMISETA MANGA CURTA INFANTIL DRY SMART 1C UV MORMAII | D28: =IFERROR(IFERROR(VLOOKUP(B28,'[1]Din Rep'!$B:$M,5,0),VLOOKUP(C28,'[1]Din Rep'!$C:$M,4,0)),"") -> 39.91005 | E28: =IFERROR(IFERROR(VLOOKUP(B28,'[1]Din Rep'!$B:$M,7,0),VLOOKUP(C28,'[1]Din Rep'!$C:$M,6,0)),"") -> 42.4575 | F28: =IFERROR(IFERROR(VLOOKUP(B28,'[1]Din Rep'!$B:$M,8,0),VLOOKUP(C28,'[1]Din Rep'!$C:$M,7,0)),"") -> 109.9 | G28: =IFERROR(IFERROR(VLOOKUP(B28,'[1]Din Rep'!$B:$M,10,0),VLOOKUP(C28,'[1]Din Rep'!$C:$M,9,0)),"") -> 2.588470824 | H28: =IFERROR(IFERROR(VLOOKUP(B28,'[1]Din Rep'!$B:$M,11,0),VLOOKUP(C28,'[1]Din Rep'!$C:$M,10,0)),"") -> 0 | I28: =IFERROR(IFERROR(VLOOKUP(B28,'[1]Din Rep'!$B:$M,12,0),VLOOKUP(C28,'[1]Din Rep'!$C:$M,11,0)),"") -> ESTOQUE
B29: UV041I00DSM1B | C29: =IFERROR(VLOOKUP(B29,'[1]Din Rep'!$B:$M,2,0),"") -> CAMISETA MANGA CURTA INFANTIL DRY SMART 1B UV MORMAII | D29: =IFERROR(IFERROR(VLOOKUP(B29,'[1]Din Rep'!$B:$M,5,0),VLOOKUP(C29,'[1]Din Rep'!$C:$M,4,0)),"") -> 39.91005 | E29: =IFERROR(IFERROR(VLOOKUP(B29,'[1]Din Rep'!$B:$M,7,0),VLOOKUP(C29,'[1]Din Rep'!$C:$M,6,0)),"") -> 42.4575 | F29: =IFERROR(IFERROR(VLOOKUP(B29,'[1]Din Rep'!$B:$M,8,0),VLOOKUP(C29,'[1]Din Rep'!$C:$M,7,0)),"") -> 109.9 | G29: =IFERROR(IFERROR(VLOOKUP(B29,'[1]Din Rep'!$B:$M,10,0),VLOOKUP(C29,'[1]Din Rep'!$C:$M,9,0)),"") -> 2.588470824 | H29: =IFERROR(IFERROR(VLOOKUP(B29,'[1]Din Rep'!$B:$M,11,0),VLOOKUP(C29,'[1]Din Rep'!$C:$M,10,0)),"") -> 0 | I29: =IFERROR(IFERROR(VLOOKUP(B29,'[1]Din Rep'!$B:$M,12,0),VLOOKUP(C29,'[1]Din Rep'!$C:$M,11,0)),"") -> ESTOQUE
B30: UV037I00DAM3A | C30: =IFERROR(VLOOKUP(B30,'[1]Din Rep'!$B:$M,2,0),"") -> CAMISETA MANGA LONGA INFANTIL DRY ACTION 3A UV MORMAII | D30: =IFERROR(IFERROR(VLOOKUP(B30,'[1]Din Rep'!$B:$M,5,0),VLOOKUP(C30,'[1]Din Rep'!$C:$M,4,0)),"") -> 32.64714 | E30: =IFERROR(IFERROR(VLOOKUP(B30,'[1]Din Rep'!$B:$M,7,0),VLOOKUP(C30,'[1]Din Rep'!$C:$M,6,0)),"") -> 34.731 | F30: =IFERROR(IFERROR(VLOOKUP(B30,'[1]Din Rep'!$B:$M,8,0),VLOOKUP(C30,'[1]Din Rep'!$C:$M,7,0)),"") -> 89.9 | G30: =IFERROR(IFERROR(VLOOKUP(B30,'[1]Din Rep'!$B:$M,10,0),VLOOKUP(C30,'[1]Din Rep'!$C:$M,9,0)),"") -> 2.588465636 | H30: =IFERROR(IFERROR(VLOOKUP(B30,'[1]Din Rep'!$B:$M,11,0),VLOOKUP(C30,'[1]Din Rep'!$C:$M,10,0)),"") -> 0 | I30: =IFERROR(IFERROR(VLOOKUP(B30,'[1]Din Rep'!$B:$M,12,0),VLOOKUP(C30,'[1]Din Rep'!$C:$M,11,0)),"") -> ESTOQUE
B31: UV041I00DAM3A | C31: =IFERROR(VLOOKUP(B31,'[1]Din Rep'!$B:$M,2,0),"") -> CAMISETA MANGA CURTA INFANTIL DRY ACTION 3A UV MORMAII | D31: =IFERROR(IFERROR(VLOOKUP(B31,'[1]Din Rep'!$B:$M,5,0),VLOOKUP(C31,'[1]Din Rep'!$C:$M,4,0)),"") -> 29.01968 | E31: =IFERROR(IFERROR(VLOOKUP(B31,'[1]Din Rep'!$B:$M,7,0),VLOOKUP(C31,'[1]Din Rep'!$C:$M,6,0)),"") -> 30.872 | F31: =IFERROR(IFERROR(VLOOKUP(B31,'[1]Din Rep'!$B:$M,8,0),VLOOKUP(C31,'[1]Din Rep'!$C:$M,7,0)),"") -> 79.9 | G31: =IFERROR(IFERROR(VLOOKUP(B31,'[1]Din Rep'!$B:$M,10,0),VLOOKUP(C31,'[1]Din Rep'!$C:$M,9,0)),"") -> 2.588105727 | H31: =IFERROR(IFERROR(VLOOKUP(B31,'[1]Din Rep'!$B:$M,11,0),VLOOKUP(C31,'[1]Din Rep'!$C:$M,10,0)),"") -> 0 | I31: =IFERROR(IFERROR(VLOOKUP(B31,'[1]Din Rep'!$B:$M,12,0),VLOOKUP(C31,'[1]Din Rep'!$C:$M,11,0)),"") -> ESTOQUE
A32: 4 - INFANTIL FEMININO | B32: UV021I00DSM1A | C32: =IFERROR(VLOOKUP(B32,'[1]Din Rep'!$B:$M,2,0),"") -> BODY MANGA LONGA INFANTIL DRY SMART 1A UV MORMAII | D32: =IFERROR(IFERROR(VLOOKUP(B32,'[1]Din Rep'!$B:$M,5,0),VLOOKUP(C32,'[1]Din Rep'!$C:$M,4,0)),"") -> 58.07132 | E32: =IFERROR(IFERROR(VLOOKUP(B32,'[1]Din Rep'!$B:$M,7,0),VLOOKUP(C32,'[1]Din Rep'!$C:$M,6,0)),"") -> 61.778 | F32: =IFERROR(IFERROR(VLOOKUP(B32,'[1]Din Rep'!$B:$M,8,0),VLOOKUP(C32,'[1]Din Rep'!$C:$M,7,0)),"") -> 159.9 | G32: =IFERROR(IFERROR(VLOOKUP(B32,'[1]Din Rep'!$B:$M,10,0),VLOOKUP(C32,'[1]Din Rep'!$C:$M,9,0)),"") -> 2.588300042 | H32: =IFERROR(IFERROR(VLOOKUP(B32,'[1]Din Rep'!$B:$M,11,0),VLOOKUP(C32,'[1]Din Rep'!$C:$M,10,0)),"") -> 0 | I32: =IFERROR(IFERROR(VLOOKUP(B32,'[1]Din Rep'!$B:$M,12,0),VLOOKUP(C32,'[1]Din Rep'!$C:$M,11,0)),"") -> ESTOQUE
B33: UV037I00DSM1B | C33: =IFERROR(VLOOKUP(B33,'[1]Din Rep'!$B:$M,2,0),"") -> CAMISETA MANGA LONGA INFANTIL DRY SMART 1B UV MORMAII | D33: =IFERROR(IFERROR(VLOOKUP(B33,'[1]Din Rep'!$B:$M,5,0),VLOOKUP(C33,'[1]Din Rep'!$C:$M,4,0)),"") -> 43.5455 | E33: =IFERROR(IFERROR(VLOOKUP(B33,'[1]Din Rep'!$B:$M,7,0),VLOOKUP(C33,'[1]Din Rep'!$C:$M,6,0)),"") -> 46.325 | F33: =IFERROR(IFERROR(VLOOKUP(B33,'[1]Din Rep'!$B:$M,8,0),VLOOKUP(C33,'[1]Din Rep'!$C:$M,7,0)),"") -> 119.9 | G33: =IFERROR(IFERROR(VLOOKUP(B33,'[1]Din Rep'!$B:$M,10,0),VLOOKUP(C33,'[1]Din Rep'!$C:$M,9,0)),"") -> 2.588235294 | H33: =IFERROR(IFERROR(VLOOKUP(B33,'[1]Din Rep'!$B:$M,11,0),VLOOKUP(C33,'[1]Din Rep'!$C:$M,10,0)),"") -> 0 | I33: =IFERROR(IFERROR(VLOOKUP(B33,'[1]Din Rep'!$B:$M,12,0),VLOOKUP(C33,'[1]Din Rep'!$C:$M,11,0)),"") -> ESTOQUE
B34: UV037I00DSM1A | C34: =IFERROR(VLOOKUP(B34,'[1]Din Rep'!$B:$M,2,0),"") -> CAMISETA MANGA LONGA INFANTIL DRY SMART 1A UV MORMAII | D34: =IFERROR(IFERROR(VLOOKUP(B34,'[1]Din Rep'!$B:$M,5,0),VLOOKUP(C34,'[1]Din Rep'!$C:$M,4,0)),"") -> 43.5455 | E34: =IFERROR(IFERROR(VLOOKUP(B34,'[1]Din Rep'!$B:$M,7,0),VLOOKUP(C34,'[1]Din Rep'!$C:$M,6,0)),"") -> 46.325 | F34: =IFERROR(IFERROR(VLOOKUP(B34,'[1]Din Rep'!$B:$M,8,0),VLOOKUP(C34,'[1]Din Rep'!$C:$M,7,0)),"") -> 119.9 | G34: =IFERROR(IFERROR(VLOOKUP(B34,'[1]Din Rep'!$B:$M,10,0),VLOOKUP(C34,'[1]Din Rep'!$C:$M,9,0)),"") -> 2.588235294 | H34: =IFERROR(IFERROR(VLOOKUP(B34,'[1]Din Rep'!$B:$M,11,0),VLOOKUP(C34,'[1]Din Rep'!$C:$M,10,0)),"") -> 0 | I34: =IFERROR(IFERROR(VLOOKUP(B34,'[1]Din Rep'!$B:$M,12,0),VLOOKUP(C34,'[1]Din Rep'!$C:$M,11,0)),"") -> ESTOQUE
B35: UV041I00DSM1A | C35: =IFERROR(VLOOKUP(B35,'[1]Din Rep'!$B:$M,2,0),"") -> CAMISETA MANGA CURTA INFANTIL DRY SMART 1A UV MORMAII | D35: =IFERROR(IFERROR(VLOOKUP(B35,'[1]Din Rep'!$B:$M,5,0),VLOOKUP(C35,'[1]Din Rep'!$C:$M,4,0)),"") -> 39.91005 | E35: =IFERROR(IFERROR(VLOOKUP(B35,'[1]Din Rep'!$B:$M,7,0),VLOOKUP(C35,'[1]Din Rep'!$C:$M,6,0)),"") -> 42.4575 | F35: =IFERROR(IFERROR(VLOOKUP(B35,'[1]Din Rep'!$B:$M,8,0),VLOOKUP(C35,'[1]Din Rep'!$C:$M,7,0)),"") -> 109.9 | G35: =IFERROR(IFERROR(VLOOKUP(B35,'[1]Din Rep'!$B:$M,10,0),VLOOKUP(C35,'[1]Din Rep'!$C:$M,9,0)),"") -> 2.588470824 | H35: =IFERROR(IFERROR(VLOOKUP(B35,'[1]Din Rep'!$B:$M,11,0),VLOOKUP(C35,'[1]Din Rep'!$C:$M,10,0)),"") -> 0 | I35: =IFERROR(IFERROR(VLOOKUP(B35,'[1]Din Rep'!$B:$M,12,0),VLOOKUP(C35,'[1]Din Rep'!$C:$M,11,0)),"") -> ESTOQUE
B36: UV037I00DAM3C | C36: =IFERROR(VLOOKUP(B36,'[1]Din Rep'!$B:$M,2,0),"") -> CAMISETA MANGA LONGA INFANTIL DRY ACTION 3C UV MORMAII | D36: =IFERROR(IFERROR(VLOOKUP(B36,'[1]Din Rep'!$B:$M,5,0),VLOOKUP(C36,'[1]Din Rep'!$C:$M,4,0)),"") -> 32.64714 | E36: =IFERROR(IFERROR(VLOOKUP(B36,'[1]Din Rep'!$B:$M,7,0),VLOOKUP(C36,'[1]Din Rep'!$C:$M,6,0)),"") -> 34.731 | F36: =IFERROR(IFERROR(VLOOKUP(B36,'[1]Din Rep'!$B:$M,8,0),VLOOKUP(C36,'[1]Din Rep'!$C:$M,7,0)),"") -> 89.9 | G36: =IFERROR(IFERROR(VLOOKUP(B36,'[1]Din Rep'!$B:$M,10,0),VLOOKUP(C36,'[1]Din Rep'!$C:$M,9,0)),"") -> 2.588465636 | H36: =IFERROR(IFERROR(VLOOKUP(B36,'[1]Din Rep'!$B:$M,11,0),VLOOKUP(C36,'[1]Din Rep'!$C:$M,10,0)),"") -> 0 | I36: =IFERROR(IFERROR(VLOOKUP(B36,'[1]Din Rep'!$B:$M,12,0),VLOOKUP(C36,'[1]Din Rep'!$C:$M,11,0)),"") -> ESTOQUE
B37: UV041I00DAM3C | C37: =IFERROR(VLOOKUP(B37,'[1]Din Rep'!$B:$M,2,0),"") -> CAMISETA MANGA CURTA INFANTIL DRY ACTION 3C UV MORMAII | D37: =IFERROR(IFERROR(VLOOKUP(B37,'[1]Din Rep'!$B:$M,5,0),VLOOKUP(C37,'[1]Din Rep'!$C:$M,4,0)),"") -> 29.01968 | E37: =IFERROR(IFERROR(VLOOKUP(B37,'[1]Din Rep'!$B:$M,7,0),VLOOKUP(C37,'[1]Din Rep'!$C:$M,6,0)),"") -> 30.872 | F37: =IFERROR(IFERROR(VLOOKUP(B37,'[1]Din Rep'!$B:$M,8,0),VLOOKUP(C37,'[1]Din Rep'!$C:$M,7,0)),"") -> 79.9 | G37: =IFERROR(IFERROR(VLOOKUP(B37,'[1]Din Rep'!$B:$M,10,0),VLOOKUP(C37,'[1]Din Rep'!$C:$M,9,0)),"") -> 2.588105727 | H37: =IFERROR(IFERROR(VLOOKUP(B37,'[1]Din Rep'!$B:$M,11,0),VLOOKUP(C37,'[1]Din Rep'!$C:$M,10,0)),"") -> 0 | I37: =IFERROR(IFERROR(VLOOKUP(B37,'[1]Din Rep'!$B:$M,12,0),VLOOKUP(C37,'[1]Din Rep'!$C:$M,11,0)),"") -> ESTOQUE
A38: 5 - BABY | B38: UV056B00ACE2A | C38: =IFERROR(VLOOKUP(B38,'[1]Din Rep'!$B:$M,2,0),"") -> BONE LEGIONARIOS MASCULINO | D38: =IFERROR(IFERROR(VLOOKUP(B38,'[1]Din Rep'!$B:$M,5,0),VLOOKUP(C38,'[1]Din Rep'!$C:$M,4,0)),"") -> 39.91005 | E38: =IFERROR(IFERROR(VLOOKUP(B38,'[1]Din Rep'!$B:$M,7,0),VLOOKUP(C38,'[1]Din Rep'!$C:$M,6,0)),"") -> 42.4575 | F38: =IFERROR(IFERROR(VLOOKUP(B38,'[1]Din Rep'!$B:$M,8,0),VLOOKUP(C38,'[1]Din Rep'!$C:$M,7,0)),"") -> 109.89 | G38: =IFERROR(IFERROR(VLOOKUP(B38,'[1]Din Rep'!$B:$M,10,0),VLOOKUP(C38,'[1]Din Rep'!$C:$M,9,0)),"") -> 2.588235294 | H38: =IFERROR(IFERROR(VLOOKUP(B38,'[1]Din Rep'!$B:$M,11,0),VLOOKUP(C38,'[1]Din Rep'!$C:$M,10,0)),"") -> 0 | I38: =IFERROR(IFERROR(VLOOKUP(B38,'[1]Din Rep'!$B:$M,12,0),VLOOKUP(C38,'[1]Din Rep'!$C:$M,11,0)),"") -> ESTOQUE
B39: UV056B00ACE2B | C39: =IFERROR(VLOOKUP(B39,'[1]Din Rep'!$B:$M,2,0),"") -> BONE LEGIONARIOS FEMININO | D39: =IFERROR(IFERROR(VLOOKUP(B39,'[1]Din Rep'!$B:$M,5,0),VLOOKUP(C39,'[1]Din Rep'!$C:$M,4,0)),"") -> 39.91005 | E39: =IFERROR(IFERROR(VLOOKUP(B39,'[1]Din Rep'!$B:$M,7,0),VLOOKUP(C39,'[1]Din Rep'!$C:$M,6,0)),"") -> 42.4575 | F39: =IFERROR(IFERROR(VLOOKUP(B39,'[1]Din Rep'!$B:$M,8,0),VLOOKUP(C39,'[1]Din Rep'!$C:$M,7,0)),"") -> 109.89 | G39: =IFERROR(IFERROR(VLOOKUP(B39,'[1]Din Rep'!$B:$M,10,0),VLOOKUP(C39,'[1]Din Rep'!$C:$M,9,0)),"") -> 2.588235294 | H39: =IFERROR(IFERROR(VLOOKUP(B39,'[1]Din Rep'!$B:$M,11,0),VLOOKUP(C39,'[1]Din Rep'!$C:$M,10,0)),"") -> 0 | I39: =IFERROR(IFERROR(VLOOKUP(B39,'[1]Din Rep'!$B:$M,12,0),VLOOKUP(C39,'[1]Din Rep'!$C:$M,11,0)),"") -> ESTOQUE
B40: UV057B00ACE2A | C40: =IFERROR(VLOOKUP(B40,'[1]Din Rep'!$B:$M,2,0),"") -> CHAPEU REVERSIVEL MASCULINO | D40: =IFERROR(IFERROR(VLOOKUP(B40,'[1]Din Rep'!$B:$M,5,0),VLOOKUP(C40,'[1]Din Rep'!$C:$M,4,0)),"") -> 43.90505 | E40: =IFERROR(IFERROR(VLOOKUP(B40,'[1]Din Rep'!$B:$M,7,0),VLOOKUP(C40,'[1]Din Rep'!$C:$M,6,0)),"") -> 46.7075 | F40: =IFERROR(IFERROR(VLOOKUP(B40,'[1]Din Rep'!$B:$M,8,0),VLOOKUP(C40,'[1]Din Rep'!$C:$M,7,0)),"") -> 120.89 | G40: =IFERROR(IFERROR(VLOOKUP(B40,'[1]Din Rep'!$B:$M,10,0),VLOOKUP(C40,'[1]Din Rep'!$C:$M,9,0)),"") -> 2.588235294 | H40: =IFERROR(IFERROR(VLOOKUP(B40,'[1]Din Rep'!$B:$M,11,0),VLOOKUP(C40,'[1]Din Rep'!$C:$M,10,0)),"") -> 0 | I40: =IFERROR(IFERROR(VLOOKUP(B40,'[1]Din Rep'!$B:$M,12,0),VLOOKUP(C40,'[1]Din Rep'!$C:$M,11,0)),"") -> ESTOQUE
B41: UV057B00ACE2B | C41: =IFERROR(VLOOKUP(B41,'[1]Din Rep'!$B:$M,2,0),"") -> CHAPEU REVERSIVEL FEMININO | D41: =IFERROR(IFERROR(VLOOKUP(B41,'[1]Din Rep'!$B:$M,5,0),VLOOKUP(C41,'[1]Din Rep'!$C:$M,4,0)),"") -> 43.90505 | E41: =IFERROR(IFERROR(VLOOKUP(B41,'[1]Din Rep'!$B:$M,7,0),VLOOKUP(C41,'[1]Din Rep'!$C:$M,6,0)),"") -> 46.7075 | F41: =IFERROR(IFERROR(VLOOKUP(B41,'[1]Din Rep'!$B:$M,8,0),VLOOKUP(C41,'[1]Din Rep'!$C:$M,7,0)),"") -> 120.89 | G41: =IFERROR(IFERROR(VLOOKUP(B41,'[1]Din Rep'!$B:$M,10,0),VLOOKUP(C41,'[1]Din Rep'!$C:$M,9,0)),"") -> 2.588235294 | H41: =IFERROR(IFERROR(VLOOKUP(B41,'[1]Din Rep'!$B:$M,11,0),VLOOKUP(C41,'[1]Din Rep'!$C:$M,10,0)),"") -> 0 | I41: =IFERROR(IFERROR(VLOOKUP(B41,'[1]Din Rep'!$B:$M,12,0),VLOOKUP(C41,'[1]Din Rep'!$C:$M,11,0)),"") -> ESTOQUE
B42: UV017B00DSM1A | C42: =IFERROR(VLOOKUP(B42,'[1]Din Rep'!$B:$M,2,0),"") -> MACAQUINHO MANGA LONGA MASCULINO | D42: =IFERROR(IFERROR(VLOOKUP(B42,'[1]Din Rep'!$B:$M,5,0),VLOOKUP(C42,'[1]Din Rep'!$C:$M,4,0)),"") -> 70.79939 | E42: =IFERROR(IFERROR(VLOOKUP(B42,'[1]Din Rep'!$B:$M,7,0),VLOOKUP(C42,'[1]Din Rep'!$C:$M,6,0)),"") -> 75.3185 | F42: =IFERROR(IFERROR(VLOOKUP(B42,'[1]Din Rep'!$B:$M,8,0),VLOOKUP(C42,'[1]Din Rep'!$C:$M,7,0)),"") -> 194.94 | G42: =IFERROR(IFERROR(VLOOKUP(B42,'[1]Din Rep'!$B:$M,10,0),VLOOKUP(C42,'[1]Din Rep'!$C:$M,9,0)),"") -> 2.58820874 | H42: =IFERROR(IFERROR(VLOOKUP(B42,'[1]Din Rep'!$B:$M,11,0),VLOOKUP(C42,'[1]Din Rep'!$C:$M,10,0)),"") -> 0 | I42: =IFERROR(IFERROR(VLOOKUP(B42,'[1]Din Rep'!$B:$M,12,0),VLOOKUP(C42,'[1]Din Rep'!$C:$M,11,0)),"") -> ESTOQUE
B43: UV017B00DSM1B | C43: =IFERROR(VLOOKUP(B43,'[1]Din Rep'!$B:$M,2,0),"") -> MACAQUINHO MANGA LONGA FEMININO | D43: =IFERROR(IFERROR(VLOOKUP(B43,'[1]Din Rep'!$B:$M,5,0),VLOOKUP(C43,'[1]Din Rep'!$C:$M,4,0)),"") -> 70.79939 | E43: =IFERROR(IFERROR(VLOOKUP(B43,'[1]Din Rep'!$B:$M,7,0),VLOOKUP(C43,'[1]Din Rep'!$C:$M,6,0)),"") -> 75.3185 | F43: =IFERROR(IFERROR(VLOOKUP(B43,'[1]Din Rep'!$B:$M,8,0),VLOOKUP(C43,'[1]Din Rep'!$C:$M,7,0)),"") -> 194.94 | G43: =IFERROR(IFERROR(VLOOKUP(B43,'[1]Din Rep'!$B:$M,10,0),VLOOKUP(C43,'[1]Din Rep'!$C:$M,9,0)),"") -> 2.58820874 | H43: =IFERROR(IFERROR(VLOOKUP(B43,'[1]Din Rep'!$B:$M,11,0),VLOOKUP(C43,'[1]Din Rep'!$C:$M,10,0)),"") -> 0 | I43: =IFERROR(IFERROR(VLOOKUP(B43,'[1]Din Rep'!$B:$M,12,0),VLOOKUP(C43,'[1]Din Rep'!$C:$M,11,0)),"") -> ESTOQUE
B44: UV037B00DSM1A | C44: =IFERROR(VLOOKUP(B44,'[1]Din Rep'!$B:$M,2,0),"") -> CAMISETA MANGA LONGA BABY MASCULINO | D44: =IFERROR(IFERROR(VLOOKUP(B44,'[1]Din Rep'!$B:$M,5,0),VLOOKUP(C44,'[1]Din Rep'!$C:$M,4,0)),"") -> 39.91005 | E44: =IFERROR(IFERROR(VLOOKUP(B44,'[1]Din Rep'!$B:$M,7,0),VLOOKUP(C44,'[1]Din Rep'!$C:$M,6,0)),"") -> 42.4575 | F44: =IFERROR(IFERROR(VLOOKUP(B44,'[1]Din Rep'!$B:$M,8,0),VLOOKUP(C44,'[1]Din Rep'!$C:$M,7,0)),"") -> 109.89 | G44: =IFERROR(IFERROR(VLOOKUP(B44,'[1]Din Rep'!$B:$M,10,0),VLOOKUP(C44,'[1]Din Rep'!$C:$M,9,0)),"") -> 2.588235294 | H44: =IFERROR(IFERROR(VLOOKUP(B44,'[1]Din Rep'!$B:$M,11,0),VLOOKUP(C44,'[1]Din Rep'!$C:$M,10,0)),"") -> 0 | I44: =IFERROR(IFERROR(VLOOKUP(B44,'[1]Din Rep'!$B:$M,12,0),VLOOKUP(C44,'[1]Din Rep'!$C:$M,11,0)),"") -> ESTOQUE
B45: UV037B00DSM1B | C45: =IFERROR(VLOOKUP(B45,'[1]Din Rep'!$B:$M,2,0),"") -> CAMISETA MANGA LONGA BABY FEMININO | D45: =IFERROR(IFERROR(VLOOKUP(B45,'[1]Din Rep'!$B:$M,5,0),VLOOKUP(C45,'[1]Din Rep'!$C:$M,4,0)),"") -> 39.91005 | E45: =IFERROR(IFERROR(VLOOKUP(B45,'[1]Din Rep'!$B:$M,7,0),VLOOKUP(C45,'[1]Din Rep'!$C:$M,6,0)),"") -> 42.4575 | F45: =IFERROR(IFERROR(VLOOKUP(B45,'[1]Din Rep'!$B:$M,8,0),VLOOKUP(C45,'[1]Din Rep'!$C:$M,7,0)),"") -> 109.89 | G45: =IFERROR(IFERROR(VLOOKUP(B45,'[1]Din Rep'!$B:$M,10,0),VLOOKUP(C45,'[1]Din Rep'!$C:$M,9,0)),"") -> 2.588235294 | H45: =IFERROR(IFERROR(VLOOKUP(B45,'[1]Din Rep'!$B:$M,11,0),VLOOKUP(C45,'[1]Din Rep'!$C:$M,10,0)),"") -> 0 | I45: =IFERROR(IFERROR(VLOOKUP(B45,'[1]Din Rep'!$B:$M,12,0),VLOOKUP(C45,'[1]Din Rep'!$C:$M,11,0)),"") -> ESTOQUE

Sheet MERGULHO-CAÇA
A6: LINHA | B6: REFERENCIA | C6: DESCRIÇÃO | D6: À VISTA | E6: À PRAZO | F6: SUGESTÃO | G6: MARK UP | H6: IPI | I6: ENTREGA
A7: 1 - NEXXXUS | B7: MNO1352B | C7: =IFERROR(VLOOKUP(B7,'[1]Din Rep'!$B:$M,2,0),"") -> MACACÃO MANGA LONGA NOZIP 5 MM MASCULINO NEXXXUS 1A MERGULHO MORMAII | D7: =IFERROR(IFERROR(VLOOKUP(B7,'[1]Din Rep'!$B:$M,5,0),VLOOKUP(C7,'[1]Din Rep'!$C:$M,4,0)),"") -> 511.32005 | E7: =IFERROR(IFERROR(VLOOKUP(B7,'[1]Din Rep'!$B:$M,7,0),VLOOKUP(C7,'[1]Din Rep'!$C:$M,6,0)),"") -> 543.9575 | F7: =IFERROR(IFERROR(VLOOKUP(B7,'[1]Din Rep'!$B:$M,8,0),VLOOKUP(C7,'[1]Din Rep'!$C:$M,7,0)),"") -> 1023.92 | G7: =IFERROR(IFERROR(VLOOKUP(B7,'[1]Din Rep'!$B:$M,10,0),VLOOKUP(C7,'[1]Din Rep'!$C:$M,9,0)),"") -> 1.882352941 | H7: =IFERROR(IFERROR(VLOOKUP(B7,'[1]Din Rep'!$B:$M,11,0),VLOOKUP(C7,'[1]Din Rep'!$C:$M,10,0)),"") -> 0 | I7: =IFERROR(IFERROR(VLOOKUP(B7,'[1]Din Rep'!$B:$M,12,0),VLOOKUP(C7,'[1]Din Rep'!$C:$M,11,0)),"") -> 45 DD
A8: 2 - ATLANTIS | B8: MAFG30832B | C8: =IFERROR(VLOOKUP(B8,'[1]Din Rep'!$B:$M,2,0),"") -> SHORT JOHN MANGA CURTA BACKZIP 3 MM FEMININO ATLANTIS 2A MERGULHO MORMAII | D8: =IFERROR(IFERROR(VLOOKUP(B8,'[1]Din Rep'!$B:$M,5,0),VLOOKUP(C8,'[1]Din Rep'!$C:$M,4,0)),"") -> 231.67005 | E8: =IFERROR(IFERROR(VLOOKUP(B8,'[1]Din Rep'!$B:$M,7,0),VLOOKUP(C8,'[1]Din Rep'!$C:$M,6,0)),"") -> 246.4575 | F8: =IFERROR(IFERROR(VLOOKUP(B8,'[1]Din Rep'!$B:$M,8,0),VLOOKUP(C8,'[1]Din Rep'!$C:$M,7,0)),"") -> 463.92 | G8: =IFERROR(IFERROR(VLOOKUP(B8,'[1]Din Rep'!$B:$M,10,0),VLOOKUP(C8,'[1]Din Rep'!$C:$M,9,0)),"") -> 1.882352941 | H8: =IFERROR(IFERROR(VLOOKUP(B8,'[1]Din Rep'!$B:$M,11,0),VLOOKUP(C8,'[1]Din Rep'!$C:$M,10,0)),"") -> 0 | I8: =IFERROR(IFERROR(VLOOKUP(B8,'[1]Din Rep'!$B:$M,12,0),VLOOKUP(C8,'[1]Din Rep'!$C:$M,11,0)),"") -> 45 DD
B9: MAFG31342B | C9: =IFERROR(VLOOKUP(B9,'[1]Din Rep'!$B:$M,2,0),"") -> MACACÃO MANGA LONGA FRONTZIP 4 MM FEMININO ATLANTIS 2A MERGULHO MORMAII | D9: =IFERROR(IFERROR(VLOOKUP(B9,'[1]Din Rep'!$B:$M,5,0),VLOOKUP(C9,'[1]Din Rep'!$C:$M,4,0)),"") -> 449.3875625 | E9: =IFERROR(IFERROR(VLOOKUP(B9,'[1]Din Rep'!$B:$M,7,0),VLOOKUP(C9,'[1]Din Rep'!$C:$M,6,0)),"") -> 478.071875 | F9: =IFERROR(IFERROR(VLOOKUP(B9,'[1]Din Rep'!$B:$M,8,0),VLOOKUP(C9,'[1]Din Rep'!$C:$M,7,0)),"") -> 899.9 | G9: =IFERROR(IFERROR(VLOOKUP(B9,'[1]Din Rep'!$B:$M,10,0),VLOOKUP(C9,'[1]Din Rep'!$C:$M,9,0)),"") -> 1.882352941 | H9: =IFERROR(IFERROR(VLOOKUP(B9,'[1]Din Rep'!$B:$M,11,0),VLOOKUP(C9,'[1]Din Rep'!$C:$M,10,0)),"") -> 0 | I9: =IFERROR(IFERROR(VLOOKUP(B9,'[1]Din Rep'!$B:$M,12,0),VLOOKUP(C9,'[1]Din Rep'!$C:$M,11,0)),"") -> 45 DD
B10: MAG30832B | C10: =IFERROR(VLOOKUP(B10,'[1]Din Rep'!$B:$M,2,0),"") -> SHORT JOHN MANGA CURTA BACKZIP 3 MM MASCULINO ATLANTIS 2A MERGULHO MORMAII | D10: =IFERROR(IFERROR(VLOOKUP(B10,'[1]Din Rep'!$B:$M,5,0),VLOOKUP(C10,'[1]Din Rep'!$C:$M,4,0)),"") -> 231.67005 | E10: =IFERROR(IFERROR(VLOOKUP(B10,'[1]Din Rep'!$B:$M,7,0),VLOOKUP(C10,'[1]Din Rep'!$C:$M,6,0)),"") -> 246.4575 | F10: =IFERROR(IFERROR(VLOOKUP(B10,'[1]Din Rep'!$B:$M,8,0),VLOOKUP(C10,'[1]Din Rep'!$C:$M,7,0)),"") -> 463.92 | G10: =IFERROR(IFERROR(VLOOKUP(B10,'[1]Din Rep'!$B:$M,10,0),VLOOKUP(C10,'[1]Din Rep'!$C:$M,9,0)),"") -> 1.882352941 | H10: =IFERROR(IFERROR(VLOOKUP(B10,'[1]Din Rep'!$B:$M,11,0),VLOOKUP(C10,'[1]Din Rep'!$C:$M,10,0)),"") -> 0 | I10: =IFERROR(IFERROR(VLOOKUP(B10,'[1]Din Rep'!$B:$M,12,0),VLOOKUP(C10,'[1]Din Rep'!$C:$M,11,0)),"") -> 45 DD
B11: MAG31342B | C11: =IFERROR(VLOOKUP(B11,'[1]Din Rep'!$B:$M,2,0),"") -> MACACÃO MANGA LONGA FRONTZIP 4 MM MASCULINO ATLANTIS 2A MERGULHO MORMAII | D11: =IFERROR(IFERROR(VLOOKUP(B11,'[1]Din Rep'!$B:$M,5,0),VLOOKUP(C11,'[1]Din Rep'!$C:$M,4,0)),"") -> 449.3875625 | E11: =IFERROR(IFERROR(VLOOKUP(B11,'[1]Din Rep'!$B:$M,7,0),VLOOKUP(C11,'[1]Din Rep'!$C:$M,6,0)),"") -> 478.071875 | F11: =IFERROR(IFERROR(VLOOKUP(B11,'[1]Din Rep'!$B:$M,8,0),VLOOKUP(C11,'[1]Din Rep'!$C:$M,7,0)),"") -> 899.9 | G11: =IFERROR(IFERROR(VLOOKUP(B11,'[1]Din Rep'!$B:$M,10,0),VLOOKUP(C11,'[1]Din Rep'!$C:$M,9,0)),"") -> 1.882352941 | H11: =IFERROR(IFERROR(VLOOKUP(B11,'[1]Din Rep'!$B:$M,11,0),VLOOKUP(C11,'[1]Din Rep'!$C:$M,10,0)),"") -> 0 | I11: =IFERROR(IFERROR(VLOOKUP(B11,'[1]Din Rep'!$B:$M,12,0),VLOOKUP(C11,'[1]Din Rep'!$C:$M,11,0)),"") -> 45 DD
A12: 3 - KAPTOR | B12: MK60432 | C12: =IFERROR(VLOOKUP(B12,'[1]Din Rep'!$B:$M,2,0),"") -> CASACO MANGA LONGA C/ CAPUZ 3 MM MASCULINO KAPTOR 1A MERGULHO MORMAII | D12: =IFERROR(IFERROR(VLOOKUP(B12,'[1]Din Rep'!$B:$M,5,0),VLOOKUP(C12,'[1]Din Rep'!$C:$M,4,0)),"") -> 231.67005 | E12: =IFERROR(IFERROR(VLOOKUP(B12,'[1]Din Rep'!$B:$M,7,0),VLOOKUP(C12,'[1]Din Rep'!$C:$M,6,0)),"") -> 246.4575 | F12: =IFERROR(IFERROR(VLOOKUP(B12,'[1]Din Rep'!$B:$M,8,0),VLOOKUP(C12,'[1]Din Rep'!$C:$M,7,0)),"") -> 463.92 | G12: =IFERROR(IFERROR(VLOOKUP(B12,'[1]Din Rep'!$B:$M,10,0),VLOOKUP(C12,'[1]Din Rep'!$C:$M,9,0)),"") -> 1.882352941 | H12: =IFERROR(IFERROR(VLOOKUP(B12,'[1]Din Rep'!$B:$M,11,0),VLOOKUP(C12,'[1]Din Rep'!$C:$M,10,0)),"") -> 0 | I12: =IFERROR(IFERROR(VLOOKUP(B12,'[1]Din Rep'!$B:$M,12,0),VLOOKUP(C12,'[1]Din Rep'!$C:$M,11,0)),"") -> 45 DD
B13: MK61132 | C13: =IFERROR(VLOOKUP(B13,'[1]Din Rep'!$B:$M,2,0),"") -> CALÇA 3 MM MASCULINO KAPTOR 1A MERGULHO MORMAII | D13: =IFERROR(IFERROR(VLOOKUP(B13,'[1]Din Rep'!$B:$M,5,0),VLOOKUP(C13,'[1]Din Rep'!$C:$M,4,0)),"") -> 251.64505 | E13: =IFERROR(IFERROR(VLOOKUP(B13,'[1]Din Rep'!$B:$M,7,0),VLOOKUP(C13,'[1]Din Rep'!$C:$M,6,0)),"") -> 267.7075 | F13: =IFERROR(IFERROR(VLOOKUP(B13,'[1]Din Rep'!$B:$M,8,0),VLOOKUP(C13,'[1]Din Rep'!$C:$M,7,0)),"") -> 503.92 | G13: =IFERROR(IFERROR(VLOOKUP(B13,'[1]Din Rep'!$B:$M,10,0),VLOOKUP(C13,'[1]Din Rep'!$C:$M,9,0)),"") -> 1.882352941 | H13: =IFERROR(IFERROR(VLOOKUP(B13,'[1]Din Rep'!$B:$M,11,0),VLOOKUP(C13,'[1]Din Rep'!$C:$M,10,0)),"") -> 0 | I13: =IFERROR(IFERROR(VLOOKUP(B13,'[1]Din Rep'!$B:$M,12,0),VLOOKUP(C13,'[1]Din Rep'!$C:$M,11,0)),"") -> 45 DD
B14: ME053M40KPT1A | C14: =IFERROR(VLOOKUP(B14,'[1]Din Rep'!$B:$M,2,0),"") -> CALÇA 4 MM MASCULINO KAPTOR 1A MERGULHO MORMAII | D14: =IFERROR(IFERROR(VLOOKUP(B14,'[1]Din Rep'!$B:$M,5,0),VLOOKUP(C14,'[1]Din Rep'!$C:$M,4,0)),"") -> 239.66005 | E14: =IFERROR(IFERROR(VLOOKUP(B14,'[1]Din Rep'!$B:$M,7,0),VLOOKUP(C14,'[1]Din Rep'!$C:$M,6,0)),"") -> 254.9575 | F14: =IFERROR(IFERROR(VLOOKUP(B14,'[1]Din Rep'!$B:$M,8,0),VLOOKUP(C14,'[1]Din Rep'!$C:$M,7,0)),"") -> 479.92 | G14: =IFERROR(IFERROR(VLOOKUP(B14,'[1]Din Rep'!$B:$M,10,0),VLOOKUP(C14,'[1]Din Rep'!$C:$M,9,0)),"") -> 1.882352941 | H14: =IFERROR(IFERROR(VLOOKUP(B14,'[1]Din Rep'!$B:$M,11,0),VLOOKUP(C14,'[1]Din Rep'!$C:$M,10,0)),"") -> 0 | I14: =IFERROR(IFERROR(VLOOKUP(B14,'[1]Din Rep'!$B:$M,12,0),VLOOKUP(C14,'[1]Din Rep'!$C:$M,11,0)),"") -> 45 DD
B15: ME025M40KPT1A | C15: =IFERROR(VLOOKUP(B15,'[1]Din Rep'!$B:$M,2,0),"") -> CASACO MANGA LONGA C/ CAPUZ 4 MM MASCULINO KAPTOR 1A MERGULHO MORMAII | D15: =IFERROR(IFERROR(VLOOKUP(B15,'[1]Din Rep'!$B:$M,5,0),VLOOKUP(C15,'[1]Din Rep'!$C:$M,4,0)),"") -> 259.63505 | E15: =IFERROR(IFERROR(VLOOKUP(B15,'[1]Din Rep'!$B:$M,7,0),VLOOKUP(C15,'[1]Din Rep'!$C:$M,6,0)),"") -> 276.2075 | F15: =IFERROR(IFERROR(VLOOKUP(B15,'[1]Din Rep'!$B:$M,8,0),VLOOKUP(C15,'[1]Din Rep'!$C:$M,7,0)),"") -> 519.92 | G15: =IFERROR(IFERROR(VLOOKUP(B15,'[1]Din Rep'!$B:$M,10,0),VLOOKUP(C15,'[1]Din Rep'!$C:$M,9,0)),"") -> 1.882352941 | H15: =IFERROR(IFERROR(VLOOKUP(B15,'[1]Din Rep'!$B:$M,11,0),VLOOKUP(C15,'[1]Din Rep'!$C:$M,10,0)),"") -> 0 | I15: =IFERROR(IFERROR(VLOOKUP(B15,'[1]Din Rep'!$B:$M,12,0),VLOOKUP(C15,'[1]Din Rep'!$C:$M,11,0)),"") -> 45 DD
B16: ME053M50KPT1A | C16: =IFERROR(VLOOKUP(B16,'[1]Din Rep'!$B:$M,2,0),"") -> CALÇA 5 MM MASCULINO KAPTOR 1A MERGULHO MORMAII | D16: =IFERROR(IFERROR(VLOOKUP(B16,'[1]Din Rep'!$B:$M,5,0),VLOOKUP(C16,'[1]Din Rep'!$C:$M,4,0)),"") -> 255.64005 | E16: =IFERROR(IFERROR(VLOOKUP(B16,'[1]Din Rep'!$B:$M,7,0),VLOOKUP(C16,'[1]Din Rep'!$C:$M,6,0)),"") -> 271.9575 | F16: =IFERROR(IFERROR(VLOOKUP(B16,'[1]Din Rep'!$B:$M,8,0),VLOOKUP(C16,'[1]Din Rep'!$C:$M,7,0)),"") -> 511.92 | G16: =IFERROR(IFERROR(VLOOKUP(B16,'[1]Din Rep'!$B:$M,10,0),VLOOKUP(C16,'[1]Din Rep'!$C:$M,9,0)),"") -> 1.882352941 | H16: =IFERROR(IFERROR(VLOOKUP(B16,'[1]Din Rep'!$B:$M,11,0),VLOOKUP(C16,'[1]Din Rep'!$C:$M,10,0)),"") -> 0 | I16: =IFERROR(IFERROR(VLOOKUP(B16,'[1]Din Rep'!$B:$M,12,0),VLOOKUP(C16,'[1]Din Rep'!$C:$M,11,0)),"") -> 45 DD
B17: ME025M50KPT1A | C17: =IFERROR(VLOOKUP(B17,'[1]Din Rep'!$B:$M,2,0),"") -> CASACO MANGA LONGA C/ CAPUZ 5 MM MASCULINO KAPTOR 1A MERGULHO MORMAII | D17: =IFERROR(IFERROR(VLOOKUP(B17,'[1]Din Rep'!$B:$M,5,0),VLOOKUP(C17,'[1]Din Rep'!$C:$M,4,0)),"") -> 275.61505 | E17: =IFERROR(IFERROR(VLOOKUP(B17,'[1]Din Rep'!$B:$M,7,0),VLOOKUP(C17,'[1]Din Rep'!$C:$M,6,0)),"") -> 293.2075 | F17: =IFERROR(IFERROR(VLOOKUP(B17,'[1]Din Rep'!$B:$M,8,0),VLOOKUP(C17,'[1]Din Rep'!$C:$M,7,0)),"") -> 551.92 | G17: =IFERROR(IFERROR(VLOOKUP(B17,'[1]Din Rep'!$B:$M,10,0),VLOOKUP(C17,'[1]Din Rep'!$C:$M,9,0)),"") -> 1.882352941 | H17: =IFERROR(IFERROR(VLOOKUP(B17,'[1]Din Rep'!$B:$M,11,0),VLOOKUP(C17,'[1]Din Rep'!$C:$M,10,0)),"") -> 0 | I17: =IFERROR(IFERROR(VLOOKUP(B17,'[1]Din Rep'!$B:$M,12,0),VLOOKUP(C17,'[1]Din Rep'!$C:$M,11,0)),"") -> 45 DD
A18: 4 - PRO SUITS | B18: B218 | C18: =IFERROR(VLOOKUP(B18,'[1]Din Rep'!$B:$M,2,0),"") -> LUVA DE ARREBENTAÇÃO NEOPRENE 2MM (Sob encomenda) | D18: =IFERROR(IFERROR(VLOOKUP(B18,'[1]Din Rep'!$B:$M,5,0),VLOOKUP(C18,'[1]Din Rep'!$C:$M,4,0)),"") -> 29.52305 | E18: =IFERROR(IFERROR(VLOOKUP(B18,'[1]Din Rep'!$B:$M,7,0),VLOOKUP(C18,'[1]Din Rep'!$C:$M,6,0)),"") -> 31.4075 | F18: =IFERROR(IFERROR(VLOOKUP(B18,'[1]Din Rep'!$B:$M,8,0),VLOOKUP(C18,'[1]Din Rep'!$C:$M,7,0)),"") -> 59.9 | G18: =IFERROR(IFERROR(VLOOKUP(B18,'[1]Din Rep'!$B:$M,10,0),VLOOKUP(C18,'[1]Din Rep'!$C:$M,9,0)),"") -> 1.907187774 | H18: =IFERROR(IFERROR(VLOOKUP(B18,'[1]Din Rep'!$B:$M,11,0),VLOOKUP(C18,'[1]Din Rep'!$C:$M,10,0)),"") -> 0 | I18: =IFERROR(IFERROR(VLOOKUP(B18,'[1]Din Rep'!$B:$M,12,0),VLOOKUP(C18,'[1]Din Rep'!$C:$M,11,0)),"") -> 45 DD
B19: M13132 | C19: =IFERROR(VLOOKUP(B19,'[1]Din Rep'!$B:$M,2,0),"") -> CAPUZ SUPER LONGO 3MM | D19: =IFERROR(IFERROR(VLOOKUP(B19,'[1]Din Rep'!$B:$M,5,0),VLOOKUP(C19,'[1]Din Rep'!$C:$M,4,0)),"") -> 72.53322 | E19: =IFERROR(IFERROR(VLOOKUP(B19,'[1]Din Rep'!$B:$M,7,0),VLOOKUP(C19,'[1]Din Rep'!$C:$M,6,0)),"") -> 77.163 | F19: =IFERROR(IFERROR(VLOOKUP(B19,'[1]Din Rep'!$B:$M,8,0),VLOOKUP(C19,'[1]Din Rep'!$C:$M,7,0)),"") -> 145.9 | G19: =IFERROR(IFERROR(VLOOKUP(B19,'[1]Din Rep'!$B:$M,10,0),VLOOKUP(C19,'[1]Din Rep'!$C:$M,9,0)),"") -> 1.890802587 | H19: =IFERROR(IFERROR(VLOOKUP(B19,'[1]Din Rep'!$B:$M,11,0),VLOOKUP(C19,'[1]Din Rep'!$C:$M,10,0)),"") -> 0 | I19: =IFERROR(IFERROR(VLOOKUP(B19,'[1]Din Rep'!$B:$M,12,0),VLOOKUP(C19,'[1]Din Rep'!$C:$M,11,0)),"") -> 45 DD
B20: M50412B | C20: =IFERROR(VLOOKUP(B20,'[1]Din Rep'!$B:$M,2,0),"") -> CAMISETA MANGA LONGA C/ NEOPRENE 1 MM MASCULINO PRO SUITS 2A MERGULHO MORMAII | D20: =IFERROR(IFERROR(VLOOKUP(B20,'[1]Din Rep'!$B:$M,5,0),VLOOKUP(C20,'[1]Din Rep'!$C:$M,4,0)),"") -> 79.86005 | E20: =IFERROR(IFERROR(VLOOKUP(B20,'[1]Din Rep'!$B:$M,7,0),VLOOKUP(C20,'[1]Din Rep'!$C:$M,6,0)),"") -> 84.9575 | F20: =IFERROR(IFERROR(VLOOKUP(B20,'[1]Din Rep'!$B:$M,8,0),VLOOKUP(C20,'[1]Din Rep'!$C:$M,7,0)),"") -> 159.92 | G20: =IFERROR(IFERROR(VLOOKUP(B20,'[1]Din Rep'!$B:$M,10,0),VLOOKUP(C20,'[1]Din Rep'!$C:$M,9,0)),"") -> 1.882352941 | H20: =IFERROR(IFERROR(VLOOKUP(B20,'[1]Din Rep'!$B:$M,11,0),VLOOKUP(C20,'[1]Din Rep'!$C:$M,10,0)),"") -> 0 | I20: =IFERROR(IFERROR(VLOOKUP(B20,'[1]Din Rep'!$B:$M,12,0),VLOOKUP(C20,'[1]Din Rep'!$C:$M,11,0)),"") -> 45 DD
B21: M60132B | C21: =IFERROR(VLOOKUP(B21,'[1]Din Rep'!$B:$M,2,0),"") -> CASACO SEM MANGA C/ CAPUZ 2 MM MASCULINO PRO SUITA 2A MERGULHO MORMAII | D21: =IFERROR(IFERROR(VLOOKUP(B21,'[1]Din Rep'!$B:$M,5,0),VLOOKUP(C21,'[1]Din Rep'!$C:$M,4,0)),"") -> 111.82005 | E21: =IFERROR(IFERROR(VLOOKUP(B21,'[1]Din Rep'!$B:$M,7,0),VLOOKUP(C21,'[1]Din Rep'!$C:$M,6,0)),"") -> 118.9575 | F21: =IFERROR(IFERROR(VLOOKUP(B21,'[1]Din Rep'!$B:$M,8,0),VLOOKUP(C21,'[1]Din Rep'!$C:$M,7,0)),"") -> 223.92 | G21: =IFERROR(IFERROR(VLOOKUP(B21,'[1]Din Rep'!$B:$M,10,0),VLOOKUP(C21,'[1]Din Rep'!$C:$M,9,0)),"") -> 1.882352941 | H21: =IFERROR(IFERROR(VLOOKUP(B21,'[1]Din Rep'!$B:$M,11,0),VLOOKUP(C21,'[1]Din Rep'!$C:$M,10,0)),"") -> 0 | I21: =IFERROR(IFERROR(VLOOKUP(B21,'[1]Din Rep'!$B:$M,12,0),VLOOKUP(C21,'[1]Din Rep'!$C:$M,11,0)),"") -> 45 DD
B22: M60432B | C22: =IFERROR(VLOOKUP(B22,'[1]Din Rep'!$B:$M,2,0),"") -> CASACO MANGA LONGA C/ CAPUZ 3 MM MASCULINO HUNTER 2A MERGULHO MORMAII | D22: =IFERROR(IFERROR(VLOOKUP(B22,'[1]Din Rep'!$B:$M,5,0),VLOOKUP(C22,'[1]Din Rep'!$C:$M,4,0)),"") -> 224.6688125 | E22: =IFERROR(IFERROR(VLOOKUP(B22,'[1]Din Rep'!$B:$M,7,0),VLOOKUP(C22,'[1]Din Rep'!$C:$M,6,0)),"") -> 239.009375 | F22: =IFERROR(IFERROR(VLOOKUP(B22,'[1]Din Rep'!$B:$M,8,0),VLOOKUP(C22,'[1]Din Rep'!$C:$M,7,0)),"") -> 449.9 | G22: =IFERROR(IFERROR(VLOOKUP(B22,'[1]Din Rep'!$B:$M,10,0),VLOOKUP(C22,'[1]Din Rep'!$C:$M,9,0)),"") -> 1.882352941 | H22: =IFERROR(IFERROR(VLOOKUP(B22,'[1]Din Rep'!$B:$M,11,0),VLOOKUP(C22,'[1]Din Rep'!$C:$M,10,0)),"") -> 0 | I22: =IFERROR(IFERROR(VLOOKUP(B22,'[1]Din Rep'!$B:$M,12,0),VLOOKUP(C22,'[1]Din Rep'!$C:$M,11,0)),"") -> 45 DD
B23: M60452B | C23: =IFERROR(VLOOKUP(B23,'[1]Din Rep'!$B:$M,2,0),"") -> CASACO MANGA LONGA C/ CAPUZ 5 MM MASCULINO HUNTER 2A MERGULHO MORMAII | D23: =IFERROR(IFERROR(VLOOKUP(B23,'[1]Din Rep'!$B:$M,5,0),VLOOKUP(C23,'[1]Din Rep'!$C:$M,4,0)),"") -> 249.6375625 | E23: =IFERROR(IFERROR(VLOOKUP(B23,'[1]Din Rep'!$B:$M,7,0),VLOOKUP(C23,'[1]Din Rep'!$C:$M,6,0)),"") -> 265.571875 | F23: =IFERROR(IFERROR(VLOOKUP(B23,'[1]Din Rep'!$B:$M,8,0),VLOOKUP(C23,'[1]Din Rep'!$C:$M,7,0)),"") -> 499.9 | G23: =IFERROR(IFERROR(VLOOKUP(B23,'[1]Din Rep'!$B:$M,10,0),VLOOKUP(C23,'[1]Din Rep'!$C:$M,9,0)),"") -> 1.882352941 | H23: =IFERROR(IFERROR(VLOOKUP(B23,'[1]Din Rep'!$B:$M,11,0),VLOOKUP(C23,'[1]Din Rep'!$C:$M,10,0)),"") -> 0 | I23: =IFERROR(IFERROR(VLOOKUP(B23,'[1]Din Rep'!$B:$M,12,0),VLOOKUP(C23,'[1]Din Rep'!$C:$M,11,0)),"") -> 45 DD
B24: M60732B | C24: =IFERROR(VLOOKUP(B24,'[1]Din Rep'!$B:$M,2,0),"") -> CASACO MANGA LONGA FRONTZIP 3 MM MASCULINO PRO SUITS 2A MERGULHO MORMAII | D24: =IFERROR(IFERROR(VLOOKUP(B24,'[1]Din Rep'!$B:$M,5,0),VLOOKUP(C24,'[1]Din Rep'!$C:$M,4,0)),"") -> 231.67005 | E24: =IFERROR(IFERROR(VLOOKUP(B24,'[1]Din Rep'!$B:$M,7,0),VLOOKUP(C24,'[1]Din Rep'!$C:$M,6,0)),"") -> 246.4575 | F24: =IFERROR(IFERROR(VLOOKUP(B24,'[1]Din Rep'!$B:$M,8,0),VLOOKUP(C24,'[1]Din Rep'!$C:$M,7,0)),"") -> 463.92 | G24: =IFERROR(IFERROR(VLOOKUP(B24,'[1]Din Rep'!$B:$M,10,0),VLOOKUP(C24,'[1]Din Rep'!$C:$M,9,0)),"") -> 1.882352941 | H24: =IFERROR(IFERROR(VLOOKUP(B24,'[1]Din Rep'!$B:$M,11,0),VLOOKUP(C24,'[1]Din Rep'!$C:$M,10,0)),"") -> 0 | I24: =IFERROR(IFERROR(VLOOKUP(B24,'[1]Din Rep'!$B:$M,12,0),VLOOKUP(C24,'[1]Din Rep'!$C:$M,11,0)),"") -> 45 DD
B25: M60752B | C25: =IFERROR(VLOOKUP(B25,'[1]Din Rep'!$B:$M,2,0),"") -> CASACO MANGA LONGA FRONTZIP 5 MM MASCULINO PRO SUITS 2A MERGULHO MORMAII | D25: =IFERROR(IFERROR(VLOOKUP(B25,'[1]Din Rep'!$B:$M,5,0),VLOOKUP(C25,'[1]Din Rep'!$C:$M,4,0)),"") -> 239.66005 | E25: =IFERROR(IFERROR(VLOOKUP(B25,'[1]Din Rep'!$B:$M,7,0),VLOOKUP(C25,'[1]Din Rep'!$C:$M,6,0)),"") -> 254.9575 | F25: =IFERROR(IFERROR(VLOOKUP(B25,'[1]Din Rep'!$B:$M,8,0),VLOOKUP(C25,'[1]Din Rep'!$C:$M,7,0)),"") -> 479.92 | G25: =IFERROR(IFERROR(VLOOKUP(B25,'[1]Din Rep'!$B:$M,10,0),VLOOKUP(C25,'[1]Din Rep'!$C:$M,9,0)),"") -> 1.882352941 | H25: =IFERROR(IFERROR(VLOOKUP(B25,'[1]Din Rep'!$B:$M,11,0),VLOOKUP(C25,'[1]Din Rep'!$C:$M,10,0)),"") -> 0 | I25: =IFERROR(IFERROR(VLOOKUP(B25,'[1]Din Rep'!$B:$M,12,0),VLOOKUP(C25,'[1]Din Rep'!$C:$M,11,0)),"") -> 45 DD
B26: M60933B | C26: =IFERROR(VLOOKUP(B26,'[1]Din Rep'!$B:$M,2,0),"") -> SHORT JOHN MANGA LONGA FRONTZIP 3 MM MASCULINO PRO SUITS 2A MERGULHO MORMAII | D26: =IFERROR(IFERROR(VLOOKUP(B26,'[1]Din Rep'!$B:$M,5,0),VLOOKUP(C26,'[1]Din Rep'!$C:$M,4,0)),"") -> 271.62005 | E26: =IFERROR(IFERROR(VLOOKUP(B26,'[1]Din Rep'!$B:$M,7,0),VLOOKUP(C26,'[1]Din Rep'!$C:$M,6,0)),"") -> 288.9575 | F26: =IFERROR(IFERROR(VLOOKUP(B26,'[1]Din Rep'!$B:$M,8,0),VLOOKUP(C26,'[1]Din Rep'!$C:$M,7,0)),"") -> 543.92 | G26: =IFERROR(IFERROR(VLOOKUP(B26,'[1]Din Rep'!$B:$M,10,0),VLOOKUP(C26,'[1]Din Rep'!$C:$M,9,0)),"") -> 1.882352941 | H26: =IFERROR(IFERROR(VLOOKUP(B26,'[1]Din Rep'!$B:$M,11,0),VLOOKUP(C26,'[1]Din Rep'!$C:$M,10,0)),"") -> 0 | I26: =IFERROR(IFERROR(VLOOKUP(B26,'[1]Din Rep'!$B:$M,12,0),VLOOKUP(C26,'[1]Din Rep'!$C:$M,11,0)),"") -> 45 DD
B27: M60953B | C27: =IFERROR(VLOOKUP(B27,'[1]Din Rep'!$B:$M,2,0),"") -> SHORT JOHN MANGA LONGA FRONTZIP 5 MM MASCULINO PRO SUITS 2A MERGULHO MORMAII | D27: =IFERROR(IFERROR(VLOOKUP(B27,'[1]Din Rep'!$B:$M,5,0),VLOOKUP(C27,'[1]Din Rep'!$C:$M,4,0)),"") -> 279.61005 | E27: =IFERROR(IFERROR(VLOOKUP(B27,'[1]Din Rep'!$B:$M,7,0),VLOOKUP(C27,'[1]Din Rep'!$C:$M,6,0)),"") -> 297.4575 | F27: =IFERROR(IFERROR(VLOOKUP(B27,'[1]Din Rep'!$B:$M,8,0),VLOOKUP(C27,'[1]Din Rep'!$C:$M,7,0)),"") -> 559.92 | G27: =IFERROR(IFERROR(VLOOKUP(B27,'[1]Din Rep'!$B:$M,10,0),VLOOKUP(C27,'[1]Din Rep'!$C:$M,9,0)),"") -> 1.882352941 | H27: =IFERROR(IFERROR(VLOOKUP(B27,'[1]Din Rep'!$B:$M,11,0),VLOOKUP(C27,'[1]Din Rep'!$C:$M,10,0)),"") -> 0 | I27: =IFERROR(IFERROR(VLOOKUP(B27,'[1]Din Rep'!$B:$M,12,0),VLOOKUP(C27,'[1]Din Rep'!$C:$M,11,0)),"") -> 45 DD
B28: M61132B | C28: =IFERROR(VLOOKUP(B28,'[1]Din Rep'!$B:$M,2,0),"") -> CALÇA 3 MM MASCULINO PRO SUITS 2A MERGULHO MORMAII | D28: =IFERROR(IFERROR(VLOOKUP(B28,'[1]Din Rep'!$B:$M,5,0),VLOOKUP(C28,'[1]Din Rep'!$C:$M,4,0)),"") -> 191.72005 | E28: =IFERROR(IFERROR(VLOOKUP(B28,'[1]Din Rep'!$B:$M,7,0),VLOOKUP(C28,'[1]Din Rep'!$C:$M,6,0)),"") -> 203.9575 | F28: =IFERROR(IFERROR(VLOOKUP(B28,'[1]Din Rep'!$B:$M,8,0),VLOOKUP(C28,'[1]Din Rep'!$C:$M,7,0)),"") -> 383.92 | G28: =IFERROR(IFERROR(VLOOKUP(B28,'[1]Din Rep'!$B:$M,10,0),VLOOKUP(C28,'[1]Din Rep'!$C:$M,9,0)),"") -> 1.882352941 | H28: =IFERROR(IFERROR(VLOOKUP(B28,'[1]Din Rep'!$B:$M,11,0),VLOOKUP(C28,'[1]Din Rep'!$C:$M,10,0)),"") -> 0 | I28: =IFERROR(IFERROR(VLOOKUP(B28,'[1]Din Rep'!$B:$M,12,0),VLOOKUP(C28,'[1]Din Rep'!$C:$M,11,0)),"") -> 45 DD
B29: M61152B | C29: =IFERROR(VLOOKUP(B29,'[1]Din Rep'!$B:$M,2,0),"") -> CALÇA 5 MM MASCULINO PRO SUITS 2A MERGULHO MORMAII | D29: =IFERROR(IFERROR(VLOOKUP(B29,'[1]Din Rep'!$B:$M,5,0),VLOOKUP(C29,'[1]Din Rep'!$C:$M,4,0)),"") -> 199.71005 | E29: =IFERROR(IFERROR(VLOOKUP(B29,'[1]Din Rep'!$B:$M,7,0),VLOOKUP(C29,'[1]Din Rep'!$C:$M,6,0)),"") -> 212.4575 | F29: =IFERROR(IFERROR(VLOOKUP(B29,'[1]Din Rep'!$B:$M,8,0),VLOOKUP(C29,'[1]Din Rep'!$C:$M,7,0)),"") -> 399.92 | G29: =IFERROR(IFERROR(VLOOKUP(B29,'[1]Din Rep'!$B:$M,10,0),VLOOKUP(C29,'[1]Din Rep'!$C:$M,9,0)),"") -> 1.882352941 | H29: =IFERROR(IFERROR(VLOOKUP(B29,'[1]Din Rep'!$B:$M,11,0),VLOOKUP(C29,'[1]Din Rep'!$C:$M,10,0)),"") -> 0 | I29: =IFERROR(IFERROR(VLOOKUP(B29,'[1]Din Rep'!$B:$M,12,0),VLOOKUP(C29,'[1]Din Rep'!$C:$M,11,0)),"") -> 45 DD
B30: M61232B | C30: =IFERROR(VLOOKUP(B30,'[1]Din Rep'!$B:$M,2,0),"") -> MACACÃO SEM MANGA SNAP SHOULDER 3 MM MASCULINO PRO SUITS 2A MERGULHO MORMAII | D30: =IFERROR(IFERROR(VLOOKUP(B30,'[1]Din Rep'!$B:$M,5,0),VLOOKUP(C30,'[1]Din Rep'!$C:$M,4,0)),"") -> 231.67005 | E30: =IFERROR(IFERROR(VLOOKUP(B30,'[1]Din Rep'!$B:$M,7,0),VLOOKUP(C30,'[1]Din Rep'!$C:$M,6,0)),"") -> 246.4575 | F30: =IFERROR(IFERROR(VLOOKUP(B30,'[1]Din Rep'!$B:$M,8,0),VLOOKUP(C30,'[1]Din Rep'!$C:$M,7,0)),"") -> 463.92 | G30: =IFERROR(IFERROR(VLOOKUP(B30,'[1]Din Rep'!$B:$M,10,0),VLOOKUP(C30,'[1]Din Rep'!$C:$M,9,0)),"") -> 1.882352941 | H30: =IFERROR(IFERROR(VLOOKUP(B30,'[1]Din Rep'!$B:$M,11,0),VLOOKUP(C30,'[1]Din Rep'!$C:$M,10,0)),"") -> 0 | I30: =IFERROR(IFERROR(VLOOKUP(B30,'[1]Din Rep'!$B:$M,12,0),VLOOKUP(C30,'[1]Din Rep'!$C:$M,11,0)),"") -> 45 DD
B31: M61252B | C31: =IFERROR(VLOOKUP(B31,'[1]Din Rep'!$B:$M,2,0),"") -> MACACÃO SEM MANGA SNAP SHOULDER 5 MM MASCULINO PRO SUITS 2A MERGULHO MORMAII | D31: =IFERROR(IFERROR(VLOOKUP(B31,'[1]Din Rep'!$B:$M,5,0),VLOOKUP(C31,'[1]Din Rep'!$C:$M,4,0)),"") -> 239.66005 | E31: =IFERROR(IFERROR(VLOOKUP(B31,'[1]Din Rep'!$B:$M,7,0),VLOOKUP(C31,'[1]Din Rep'!$C:$M,6,0)),"") -> 254.9575 | F31: =IFERROR(IFERROR(VLOOKUP(B31,'[1]Din Rep'!$B:$M,8,0),VLOOKUP(C31,'[1]Din Rep'!$C:$M,7,0)),"") -> 479.92 | G31: =IFERROR(IFERROR(VLOOKUP(B31,'[1]Din Rep'!$B:$M,10,0),VLOOKUP(C31,'[1]Din Rep'!$C:$M,9,0)),"") -> 1.882352941 | H31: =IFERROR(IFERROR(VLOOKUP(B31,'[1]Din Rep'!$B:$M,11,0),VLOOKUP(C31,'[1]Din Rep'!$C:$M,10,0)),"") -> 0 | I31: =IFERROR(IFERROR(VLOOKUP(B31,'[1]Din Rep'!$B:$M,12,0),VLOOKUP(C31,'[1]Din Rep'!$C:$M,11,0)),"") -> 45 DD
B32: M61332B | C32: =IFERROR(VLOOKUP(B32,'[1]Din Rep'!$B:$M,2,0),"") -> MACACÃO MANGA LONGA FRONTZIP 3 MM MASCULINO PRO SUITS 2A MERGULHO MORMAII | D32: =IFERROR(IFERROR(VLOOKUP(B32,'[1]Din Rep'!$B:$M,5,0),VLOOKUP(C32,'[1]Din Rep'!$C:$M,4,0)),"") -> 351.52005 | E32: =IFERROR(IFERROR(VLOOKUP(B32,'[1]Din Rep'!$B:$M,7,0),VLOOKUP(C32,'[1]Din Rep'!$C:$M,6,0)),"") -> 373.9575 | F32: =IFERROR(IFERROR(VLOOKUP(B32,'[1]Din Rep'!$B:$M,8,0),VLOOKUP(C32,'[1]Din Rep'!$C:$M,7,0)),"") -> 703.92 | G32: =IFERROR(IFERROR(VLOOKUP(B32,'[1]Din Rep'!$B:$M,10,0),VLOOKUP(C32,'[1]Din Rep'!$C:$M,9,0)),"") -> 1.882352941 | H32: =IFERROR(IFERROR(VLOOKUP(B32,'[1]Din Rep'!$B:$M,11,0),VLOOKUP(C32,'[1]Din Rep'!$C:$M,10,0)),"") -> 0 | I32: =IFERROR(IFERROR(VLOOKUP(B32,'[1]Din Rep'!$B:$M,12,0),VLOOKUP(C32,'[1]Din Rep'!$C:$M,11,0)),"") -> 45 DD
B33: M61352B | C33: =IFERROR(VLOOKUP(B33,'[1]Din Rep'!$B:$M,2,0),"") -> MACACÃO MANGA LONGA FRONTZIP 5 MM MASCULINO PRO SUITS 2A MERGULHO MORMAII | D33: =IFERROR(IFERROR(VLOOKUP(B33,'[1]Din Rep'!$B:$M,5,0),VLOOKUP(C33,'[1]Din Rep'!$C:$M,4,0)),"") -> 359.51005 | E33: =IFERROR(IFERROR(VLOOKUP(B33,'[1]Din Rep'!$B:$M,7,0),VLOOKUP(C33,'[1]Din Rep'!$C:$M,6,0)),"") -> 382.4575 | F33: =IFERROR(IFERROR(VLOOKUP(B33,'[1]Din Rep'!$B:$M,8,0),VLOOKUP(C33,'[1]Din Rep'!$C:$M,7,0)),"") -> 719.92 | G33: =IFERROR(IFERROR(VLOOKUP(B33,'[1]Din Rep'!$B:$M,10,0),VLOOKUP(C33,'[1]Din Rep'!$C:$M,9,0)),"") -> 1.882352941 | H33: =IFERROR(IFERROR(VLOOKUP(B33,'[1]Din Rep'!$B:$M,11,0),VLOOKUP(C33,'[1]Din Rep'!$C:$M,10,0)),"") -> 0 | I33: =IFERROR(IFERROR(VLOOKUP(B33,'[1]Din Rep'!$B:$M,12,0),VLOOKUP(C33,'[1]Din Rep'!$C:$M,11,0)),"") -> 45 DD
B34: M62132 | C34: =IFERROR(VLOOKUP(B34,'[1]Din Rep'!$B:$M,2,0),"") -> MEIA TRAMADA DE NEOPRENE 3MM P/ MERGULHO | D34: =IFERROR(IFERROR(VLOOKUP(B34,'[1]Din Rep'!$B:$M,5,0),VLOOKUP(C34,'[1]Din Rep'!$C:$M,4,0)),"") -> 26.2871 | E34: =IFERROR(IFERROR(VLOOKUP(B34,'[1]Din Rep'!$B:$M,7,0),VLOOKUP(C34,'[1]Din Rep'!$C:$M,6,0)),"") -> 27.965 | F34: =IFERROR(IFERROR(VLOOKUP(B34,'[1]Din Rep'!$B:$M,8,0),VLOOKUP(C34,'[1]Din Rep'!$C:$M,7,0)),"") -> 54.9 | G34: =IFERROR(IFERROR(VLOOKUP(B34,'[1]Din Rep'!$B:$M,10,0),VLOOKUP(C34,'[1]Din Rep'!$C:$M,9,0)),"") -> 1.963168246 | H34: =IFERROR(IFERROR(VLOOKUP(B34,'[1]Din Rep'!$B:$M,11,0),VLOOKUP(C34,'[1]Din Rep'!$C:$M,10,0)),"") -> 0 | I34: =IFERROR(IFERROR(VLOOKUP(B34,'[1]Din Rep'!$B:$M,12,0),VLOOKUP(C34,'[1]Din Rep'!$C:$M,11,0)),"") -> 45 DD
B35: M62132B | C35: =IFERROR(VLOOKUP(B35,'[1]Din Rep'!$B:$M,2,0),"") -> MEIA BLINDSTITCH 3 MM MASCULINO PRO SUITS 2A MERGULHO MORMAII | D35: =IFERROR(IFERROR(VLOOKUP(B35,'[1]Din Rep'!$B:$M,5,0),VLOOKUP(C35,'[1]Din Rep'!$C:$M,4,0)),"") -> 39.8701 | E35: =IFERROR(IFERROR(VLOOKUP(B35,'[1]Din Rep'!$B:$M,7,0),VLOOKUP(C35,'[1]Din Rep'!$C:$M,6,0)),"") -> 42.415 | F35: =IFERROR(IFERROR(VLOOKUP(B35,'[1]Din Rep'!$B:$M,8,0),VLOOKUP(C35,'[1]Din Rep'!$C:$M,7,0)),"") -> 79.9 | G35: =IFERROR(IFERROR(VLOOKUP(B35,'[1]Din Rep'!$B:$M,10,0),VLOOKUP(C35,'[1]Din Rep'!$C:$M,9,0)),"") -> 1.883767535 | H35: =IFERROR(IFERROR(VLOOKUP(B35,'[1]Din Rep'!$B:$M,11,0),VLOOKUP(C35,'[1]Din Rep'!$C:$M,10,0)),"") -> 0 | I35: =IFERROR(IFERROR(VLOOKUP(B35,'[1]Din Rep'!$B:$M,12,0),VLOOKUP(C35,'[1]Din Rep'!$C:$M,11,0)),"") -> 45 DD
B36: MP300B | C36: =IFERROR(VLOOKUP(B36,'[1]Din Rep'!$B:$M,2,0),"") -> PROTETO DE MÁSCARA 3 MM MASCULINO PRO SUITS MERGULHO MORMAII | D36: =IFERROR(IFERROR(VLOOKUP(B36,'[1]Din Rep'!$B:$M,5,0),VLOOKUP(C36,'[1]Din Rep'!$C:$M,4,0)),"") -> 10.93831 | E36: =IFERROR(IFERROR(VLOOKUP(B36,'[1]Din Rep'!$B:$M,7,0),VLOOKUP(C36,'[1]Din Rep'!$C:$M,6,0)),"") -> 11.6365 | F36: =IFERROR(IFERROR(VLOOKUP(B36,'[1]Din Rep'!$B:$M,8,0),VLOOKUP(C36,'[1]Din Rep'!$C:$M,7,0)),"") -> 21.904 | G36: =IFERROR(IFERROR(VLOOKUP(B36,'[1]Din Rep'!$B:$M,10,0),VLOOKUP(C36,'[1]Din Rep'!$C:$M,9,0)),"") -> 1.882352941 | H36: =IFERROR(IFERROR(VLOOKUP(B36,'[1]Din Rep'!$B:$M,11,0),VLOOKUP(C36,'[1]Din Rep'!$C:$M,10,0)),"") -> 0 | I36: =IFERROR(IFERROR(VLOOKUP(B36,'[1]Din Rep'!$B:$M,12,0),VLOOKUP(C36,'[1]Din Rep'!$C:$M,11,0)),"") -> 45 DD
B37: S033 | C37: =IFERROR(VLOOKUP(B37,'[1]Din Rep'!$B:$M,2,0),"") -> MEIA DE NEOPRENE 2MM P/BODY BOARD (Sob encomenda) | D37: =IFERROR(IFERROR(VLOOKUP(B37,'[1]Din Rep'!$B:$M,5,0),VLOOKUP(C37,'[1]Din Rep'!$C:$M,4,0)),"") -> 22.33205 | E37: =IFERROR(IFERROR(VLOOKUP(B37,'[1]Din Rep'!$B:$M,7,0),VLOOKUP(C37,'[1]Din Rep'!$C:$M,6,0)),"") -> 23.7575 | F37: =IFERROR(IFERROR(VLOOKUP(B37,'[1]Din Rep'!$B:$M,8,0),VLOOKUP(C37,'[1]Din Rep'!$C:$M,7,0)),"") -> 55.9 | G37: =IFERROR(IFERROR(VLOOKUP(B37,'[1]Din Rep'!$B:$M,10,0),VLOOKUP(C37,'[1]Din Rep'!$C:$M,9,0)),"") -> 2.352941176 | H37: =IFERROR(IFERROR(VLOOKUP(B37,'[1]Din Rep'!$B:$M,11,0),VLOOKUP(C37,'[1]Din Rep'!$C:$M,10,0)),"") -> 0 | I37: =IFERROR(IFERROR(VLOOKUP(B37,'[1]Din Rep'!$B:$M,12,0),VLOOKUP(C37,'[1]Din Rep'!$C:$M,11,0)),"") -> 45 DD
A38: 5 - CAÇA/PESCA | B38: C001M | C38: =IFERROR(VLOOKUP(B38,'[1]Din Rep'!$B:$M,2,0),"") -> MACACAO PARA CAÇA E PESCA 4 MM | D38: =IFERROR(IFERROR(VLOOKUP(B38,'[1]Din Rep'!$B:$M,5,0),VLOOKUP(C38,'[1]Din Rep'!$C:$M,4,0)),"") -> 442.646 | E38: =IFERROR(IFERROR(VLOOKUP(B38,'[1]Din Rep'!$B:$M,7,0),VLOOKUP(C38,'[1]Din Rep'!$C:$M,6,0)),"") -> 470.9 | F38: =IFERROR(IFERROR(VLOOKUP(B38,'[1]Din Rep'!$B:$M,8,0),VLOOKUP(C38,'[1]Din Rep'!$C:$M,7,0)),"") -> R$ 886,90 - R$ 1108,00 | G38: =IFERROR(IFERROR(VLOOKUP(B38,'[1]Din Rep'!$B:$M,10,0),VLOOKUP(C38,'[1]Din Rep'!$C:$M,9,0)),"") -> 1,88 - 2,35 | H38: =IFERROR(IFERROR(VLOOKUP(B38,'[1]Din Rep'!$B:$M,11,0),VLOOKUP(C38,'[1]Din Rep'!$C:$M,10,0)),"") -> 0 | I38: =IFERROR(IFERROR(VLOOKUP(B38,'[1]Din Rep'!$B:$M,12,0),VLOOKUP(C38,'[1]Din Rep'!$C:$M,11,0)),"") -> 45 DD

Sheet TRIATHLON
A6: LINHA | B6: REFERENCIA | C6: DESCRIÇÃO | D6: À VISTA | E6: À PRAZO | F6: SUGESTÃO | G6: MARK UP | H6: IPI | I6: ENTREGA
A7: 1 - MASCULINO ÁGUAS ABERTAS 3,1 MM | B7: AA001M31THT4A | C7: =IFERROR(VLOOKUP(B7,'[1]Din Rep'!$B:$M,2,0),"") -> LONG JOHN MANGA LONGA BACKZIP 3/1MM MASCULINO TRIATHLON 4A ÁGUAS ABERTAS MORMAII | D7: =IFERROR(IFERROR(VLOOKUP(B7,'[1]Din Rep'!$B:$M,5,0),VLOOKUP(C7,'[1]Din Rep'!$C:$M,4,0)),"") -> 600.8843545 | E7: =IFERROR(IFERROR(VLOOKUP(B7,'[1]Din Rep'!$B:$M,7,0),VLOOKUP(C7,'[1]Din Rep'!$C:$M,6,0)),"") -> 639.238675 | F7: =IFERROR(IFERROR(VLOOKUP(B7,'[1]Din Rep'!$B:$M,8,0),VLOOKUP(C7,'[1]Din Rep'!$C:$M,7,0)),"") -> 1504.9 | G7: =IFERROR(IFERROR(VLOOKUP(B7,'[1]Din Rep'!$B:$M,10,0),VLOOKUP(C7,'[1]Din Rep'!$C:$M,9,0)),"") -> 2.354206744 | H7: =IFERROR(IFERROR(VLOOKUP(B7,'[1]Din Rep'!$B:$M,11,0),VLOOKUP(C7,'[1]Din Rep'!$C:$M,10,0)),"") -> 0 | I7: =IFERROR(IFERROR(VLOOKUP(B7,'[1]Din Rep'!$B:$M,12,0),VLOOKUP(C7,'[1]Din Rep'!$C:$M,11,0)),"") -> 45 DD
B8: AA004M31THT4A | C8: =IFERROR(VLOOKUP(B8,'[1]Din Rep'!$B:$M,2,0),"") -> LONG JOHN SEM MANGA BACKZIP 3/1MM MASCULINO TRIATHLON 4A ÁGUAS ABERTAS MORMAII | D8: =IFERROR(IFERROR(VLOOKUP(B8,'[1]Din Rep'!$B:$M,5,0),VLOOKUP(C8,'[1]Din Rep'!$C:$M,4,0)),"") -> 513.7933545 | E8: =IFERROR(IFERROR(VLOOKUP(B8,'[1]Din Rep'!$B:$M,7,0),VLOOKUP(C8,'[1]Din Rep'!$C:$M,6,0)),"") -> 546.588675 | F8: =IFERROR(IFERROR(VLOOKUP(B8,'[1]Din Rep'!$B:$M,8,0),VLOOKUP(C8,'[1]Din Rep'!$C:$M,7,0)),"") -> 1289.9 | G8: =IFERROR(IFERROR(VLOOKUP(B8,'[1]Din Rep'!$B:$M,10,0),VLOOKUP(C8,'[1]Din Rep'!$C:$M,9,0)),"") -> 2.359909854 | H8: =IFERROR(IFERROR(VLOOKUP(B8,'[1]Din Rep'!$B:$M,11,0),VLOOKUP(C8,'[1]Din Rep'!$C:$M,10,0)),"") -> 0 | I8: =IFERROR(IFERROR(VLOOKUP(B8,'[1]Din Rep'!$B:$M,12,0),VLOOKUP(C8,'[1]Din Rep'!$C:$M,11,0)),"") -> 45 DD
A9: 2 - FEMININO ÁGUAS ABERTAS 3,1 MM | B9: AA001F31THT4A | C9: =IFERROR(VLOOKUP(B9,'[1]Din Rep'!$B:$M,2,0),"") -> LONG JOHN MANGA LONGA BACKZIP 3/1MM FEMININO TRIATHLON 4A ÁGUAS ABERTAS MORMAII | D9: =IFERROR(IFERROR(VLOOKUP(B9,'[1]Din Rep'!$B:$M,5,0),VLOOKUP(C9,'[1]Din Rep'!$C:$M,4,0)),"") -> 592.1752545 | E9: =IFERROR(IFERROR(VLOOKUP(B9,'[1]Din Rep'!$B:$M,7,0),VLOOKUP(C9,'[1]Din Rep'!$C:$M,6,0)),"") -> 629.973675 | F9: =IFERROR(IFERROR(VLOOKUP(B9,'[1]Din Rep'!$B:$M,8,0),VLOOKUP(C9,'[1]Din Rep'!$C:$M,7,0)),"") -> 1482.9 | G9: =IFERROR(IFERROR(VLOOKUP(B9,'[1]Din Rep'!$B:$M,10,0),VLOOKUP(C9,'[1]Din Rep'!$C:$M,9,0)),"") -> 2.353907884 | H9: =IFERROR(IFERROR(VLOOKUP(B9,'[1]Din Rep'!$B:$M,11,0),VLOOKUP(C9,'[1]Din Rep'!$C:$M,10,0)),"") -> 0 | I9: =IFERROR(IFERROR(VLOOKUP(B9,'[1]Din Rep'!$B:$M,12,0),VLOOKUP(C9,'[1]Din Rep'!$C:$M,11,0)),"") -> 45 DD
B10: AA004F31THT4A | C10: =IFERROR(VLOOKUP(B10,'[1]Din Rep'!$B:$M,2,0),"") -> LONG JOHN SEM MANGA BACKZIP 3/1MM FEMININO TRIATHLON 4A ÁGUAS ABERTAS MORMAII | D10: =IFERROR(IFERROR(VLOOKUP(B10,'[1]Din Rep'!$B:$M,5,0),VLOOKUP(C10,'[1]Din Rep'!$C:$M,4,0)),"") -> 492.0206045 | E10: =IFERROR(IFERROR(VLOOKUP(B10,'[1]Din Rep'!$B:$M,7,0),VLOOKUP(C10,'[1]Din Rep'!$C:$M,6,0)),"") -> 523.426175 | F10: =IFERROR(IFERROR(VLOOKUP(B10,'[1]Din Rep'!$B:$M,8,0),VLOOKUP(C10,'[1]Din Rep'!$C:$M,7,0)),"") -> 1231.9 | G10: =IFERROR(IFERROR(VLOOKUP(B10,'[1]Din Rep'!$B:$M,10,0),VLOOKUP(C10,'[1]Din Rep'!$C:$M,9,0)),"") -> 2.353531518 | H10: =IFERROR(IFERROR(VLOOKUP(B10,'[1]Din Rep'!$B:$M,11,0),VLOOKUP(C10,'[1]Din Rep'!$C:$M,10,0)),"") -> 0 | I10: =IFERROR(IFERROR(VLOOKUP(B10,'[1]Din Rep'!$B:$M,12,0),VLOOKUP(C10,'[1]Din Rep'!$C:$M,11,0)),"") -> 45 DD
A11: 3 - MASCULINO ÁGUAS ABERTAS 2 MM | B11: AA053M20THT4A | C11: =IFERROR(VLOOKUP(B11,'[1]Din Rep'!$B:$M,2,0),"") -> CALÇA 2MM MASCULINO TRIATHLON 4A ÁGUAS ABERTAS MORMAII | D11: =IFERROR(IFERROR(VLOOKUP(B11,'[1]Din Rep'!$B:$M,5,0),VLOOKUP(C11,'[1]Din Rep'!$C:$M,4,0)),"") -> 195.9112045 | E11: =IFERROR(IFERROR(VLOOKUP(B11,'[1]Din Rep'!$B:$M,7,0),VLOOKUP(C11,'[1]Din Rep'!$C:$M,6,0)),"") -> 208.416175 | F11: =IFERROR(IFERROR(VLOOKUP(B11,'[1]Din Rep'!$B:$M,8,0),VLOOKUP(C11,'[1]Din Rep'!$C:$M,7,0)),"") -> 490.9 | G11: =IFERROR(IFERROR(VLOOKUP(B11,'[1]Din Rep'!$B:$M,10,0),VLOOKUP(C11,'[1]Din Rep'!$C:$M,9,0)),"") -> 2.355383405 | H11: =IFERROR(IFERROR(VLOOKUP(B11,'[1]Din Rep'!$B:$M,11,0),VLOOKUP(C11,'[1]Din Rep'!$C:$M,10,0)),"") -> 0 | I11: =IFERROR(IFERROR(VLOOKUP(B11,'[1]Din Rep'!$B:$M,12,0),VLOOKUP(C11,'[1]Din Rep'!$C:$M,11,0)),"") -> 45 DD
B12: AA054M20THT4A | C12: =IFERROR(VLOOKUP(B12,'[1]Din Rep'!$B:$M,2,0),"") -> BERMUDA 2MM MASCULINO TRIATHLON 4A ÁGUAS ABERTAS MORMAII | D12: =IFERROR(IFERROR(VLOOKUP(B12,'[1]Din Rep'!$B:$M,5,0),VLOOKUP(C12,'[1]Din Rep'!$C:$M,4,0)),"") -> 134.555595 | E12: =IFERROR(IFERROR(VLOOKUP(B12,'[1]Din Rep'!$B:$M,7,0),VLOOKUP(C12,'[1]Din Rep'!$C:$M,6,0)),"") -> 143.14425 | F12: =IFERROR(IFERROR(VLOOKUP(B12,'[1]Din Rep'!$B:$M,8,0),VLOOKUP(C12,'[1]Din Rep'!$C:$M,7,0)),"") -> 336.9 | G12: =IFERROR(IFERROR(VLOOKUP(B12,'[1]Din Rep'!$B:$M,10,0),VLOOKUP(C12,'[1]Din Rep'!$C:$M,9,0)),"") -> 2.353569913 | H12: =IFERROR(IFERROR(VLOOKUP(B12,'[1]Din Rep'!$B:$M,11,0),VLOOKUP(C12,'[1]Din Rep'!$C:$M,10,0)),"") -> 0 | I12: =IFERROR(IFERROR(VLOOKUP(B12,'[1]Din Rep'!$B:$M,12,0),VLOOKUP(C12,'[1]Din Rep'!$C:$M,11,0)),"") -> 45 DD
A13: 4 - FEMININO ÁGUAS ABERTAS 2 MM | B13: AA053F20THT4A | C13: =IFERROR(VLOOKUP(B13,'[1]Din Rep'!$B:$M,2,0),"") -> CALÇA 2MM FEMININO TRIATHLON 4A ÁGUAS ABERTAS MORMAII | D13: =IFERROR(IFERROR(VLOOKUP(B13,'[1]Din Rep'!$B:$M,5,0),VLOOKUP(C13,'[1]Din Rep'!$C:$M,4,0)),"") -> 195.9112045 | E13: =IFERROR(IFERROR(VLOOKUP(B13,'[1]Din Rep'!$B:$M,7,0),VLOOKUP(C13,'[1]Din Rep'!$C:$M,6,0)),"") -> 208.416175 | F13: =IFERROR(IFERROR(VLOOKUP(B13,'[1]Din Rep'!$B:$M,8,0),VLOOKUP(C13,'[1]Din Rep'!$C:$M,7,0)),"") -> 490.9 | G13: =IFERROR(IFERROR(VLOOKUP(B13,'[1]Din Rep'!$B:$M,10,0),VLOOKUP(C13,'[1]Din Rep'!$C:$M,9,0)),"") -> 2.355383405 | H13: =IFERROR(IFERROR(VLOOKUP(B13,'[1]Din Rep'!$B:$M,11,0),VLOOKUP(C13,'[1]Din Rep'!$C:$M,10,0)),"") -> 0 | I13: =IFERROR(IFERROR(VLOOKUP(B13,'[1]Din Rep'!$B:$M,12,0),VLOOKUP(C13,'[1]Din Rep'!$C:$M,11,0)),"") -> 45 DD
B14: AA054F20THT4A | C14: =IFERROR(VLOOKUP(B14,'[1]Din Rep'!$B:$M,2,0),"") -> BERMUDA 2MM FEMININO TRIATHLON 4A ÁGUAS ABERTAS MORMAII | D14: =IFERROR(IFERROR(VLOOKUP(B14,'[1]Din Rep'!$B:$M,5,0),VLOOKUP(C14,'[1]Din Rep'!$C:$M,4,0)),"") -> 134.555595 | E14: =IFERROR(IFERROR(VLOOKUP(B14,'[1]Din Rep'!$B:$M,7,0),VLOOKUP(C14,'[1]Din Rep'!$C:$M,6,0)),"") -> 143.14425 | F14: =IFERROR(IFERROR(VLOOKUP(B14,'[1]Din Rep'!$B:$M,8,0),VLOOKUP(C14,'[1]Din Rep'!$C:$M,7,0)),"") -> 336.9 | G14: =IFERROR(IFERROR(VLOOKUP(B14,'[1]Din Rep'!$B:$M,10,0),VLOOKUP(C14,'[1]Din Rep'!$C:$M,9,0)),"") -> 2.353569913 | H14: =IFERROR(IFERROR(VLOOKUP(B14,'[1]Din Rep'!$B:$M,11,0),VLOOKUP(C14,'[1]Din Rep'!$C:$M,10,0)),"") -> 0 | I14: =IFERROR(IFERROR(VLOOKUP(B14,'[1]Din Rep'!$B:$M,12,0),VLOOKUP(C14,'[1]Din Rep'!$C:$M,11,0)),"") -> 45 DD

Sheet COLETE
A6: LINHA | B6: REFERENCIA | C6: DESCRIÇÃO | D6: À VISTA | E6: À PRAZO | F6: SUGESTÃO | G6: MARK UP | H6: IPI | I6: ENTREGA
A7: 1 - COLETES HOMOLOGADO LINHA TOP | B7: S001WBN3 | C7: =IFERROR(VLOOKUP(B7,'[1]Din Rep'!$B:$M,2,0),"") -> COLETE SALVA-VIDAS CLASSE V - COM ZIPPER | D7: =IFERROR(IFERROR(VLOOKUP(B7,'[1]Din Rep'!$B:$M,5,0),VLOOKUP(C7,'[1]Din Rep'!$C:$M,4,0)),"") -> 183.77 | E7: =IFERROR(IFERROR(VLOOKUP(B7,'[1]Din Rep'!$B:$M,7,0),VLOOKUP(C7,'[1]Din Rep'!$C:$M,6,0)),"") -> 195.5 | F7: =IFERROR(IFERROR(VLOOKUP(B7,'[1]Din Rep'!$B:$M,8,0),VLOOKUP(C7,'[1]Din Rep'!$C:$M,7,0)),"") -> 460 | G7: =IFERROR(IFERROR(VLOOKUP(B7,'[1]Din Rep'!$B:$M,10,0),VLOOKUP(C7,'[1]Din Rep'!$C:$M,9,0)),"") -> 2.352941176 | H7: =IFERROR(IFERROR(VLOOKUP(B7,'[1]Din Rep'!$B:$M,11,0),VLOOKUP(C7,'[1]Din Rep'!$C:$M,10,0)),"") -> 0 | I7: =IFERROR(IFERROR(VLOOKUP(B7,'[1]Din Rep'!$B:$M,12,0),VLOOKUP(C7,'[1]Din Rep'!$C:$M,11,0)),"") -> 45 DD
B8: S001WBNG3 | C8: =IFERROR(VLOOKUP(B8,'[1]Din Rep'!$B:$M,2,0),"") -> COLETE SALVA-VIDAS CLASSE V - COM ZIPPER | D8: =IFERROR(IFERROR(VLOOKUP(B8,'[1]Din Rep'!$B:$M,5,0),VLOOKUP(C8,'[1]Din Rep'!$C:$M,4,0)),"") -> 183.77 | E8: =IFERROR(IFERROR(VLOOKUP(B8,'[1]Din Rep'!$B:$M,7,0),VLOOKUP(C8,'[1]Din Rep'!$C:$M,6,0)),"") -> 195.5 | F8: =IFERROR(IFERROR(VLOOKUP(B8,'[1]Din Rep'!$B:$M,8,0),VLOOKUP(C8,'[1]Din Rep'!$C:$M,7,0)),"") -> 460 | G8: =IFERROR(IFERROR(VLOOKUP(B8,'[1]Din Rep'!$B:$M,10,0),VLOOKUP(C8,'[1]Din Rep'!$C:$M,9,0)),"") -> 2.352941176 | H8: =IFERROR(IFERROR(VLOOKUP(B8,'[1]Din Rep'!$B:$M,11,0),VLOOKUP(C8,'[1]Din Rep'!$C:$M,10,0)),"") -> 0 | I8: =IFERROR(IFERROR(VLOOKUP(B8,'[1]Din Rep'!$B:$M,12,0),VLOOKUP(C8,'[1]Din Rep'!$C:$M,11,0)),"") -> 45 DD
B9: S001WBNM3 | C9: =IFERROR(VLOOKUP(B9,'[1]Din Rep'!$B:$M,2,0),"") -> COLETE SALVA-VIDAS CLASSE V - COM ZIPPER | D9: =IFERROR(IFERROR(VLOOKUP(B9,'[1]Din Rep'!$B:$M,5,0),VLOOKUP(C9,'[1]Din Rep'!$C:$M,4,0)),"") -> 183.77 | E9: =IFERROR(IFERROR(VLOOKUP(B9,'[1]Din Rep'!$B:$M,7,0),VLOOKUP(C9,'[1]Din Rep'!$C:$M,6,0)),"") -> 195.5 | F9: =IFERROR(IFERROR(VLOOKUP(B9,'[1]Din Rep'!$B:$M,8,0),VLOOKUP(C9,'[1]Din Rep'!$C:$M,7,0)),"") -> 460 | G9: =IFERROR(IFERROR(VLOOKUP(B9,'[1]Din Rep'!$B:$M,10,0),VLOOKUP(C9,'[1]Din Rep'!$C:$M,9,0)),"") -> 2.352941176 | H9: =IFERROR(IFERROR(VLOOKUP(B9,'[1]Din Rep'!$B:$M,11,0),VLOOKUP(C9,'[1]Din Rep'!$C:$M,10,0)),"") -> 0 | I9: =IFERROR(IFERROR(VLOOKUP(B9,'[1]Din Rep'!$B:$M,12,0),VLOOKUP(C9,'[1]Din Rep'!$C:$M,11,0)),"") -> 45 DD
B10: S001WBNXG3 | C10: =IFERROR(VLOOKUP(B10,'[1]Din Rep'!$B:$M,2,0),"") -> COLETE SALVA-VIDAS CLASSE V - COM ZIPPER | D10: =IFERROR(IFERROR(VLOOKUP(B10,'[1]Din Rep'!$B:$M,5,0),VLOOKUP(C10,'[1]Din Rep'!$C:$M,4,0)),"") -> 183.77 | E10: =IFERROR(IFERROR(VLOOKUP(B10,'[1]Din Rep'!$B:$M,7,0),VLOOKUP(C10,'[1]Din Rep'!$C:$M,6,0)),"") -> 195.5 | F10: =IFERROR(IFERROR(VLOOKUP(B10,'[1]Din Rep'!$B:$M,8,0),VLOOKUP(C10,'[1]Din Rep'!$C:$M,7,0)),"") -> 460 | G10: =IFERROR(IFERROR(VLOOKUP(B10,'[1]Din Rep'!$B:$M,10,0),VLOOKUP(C10,'[1]Din Rep'!$C:$M,9,0)),"") -> 2.352941176 | H10: =IFERROR(IFERROR(VLOOKUP(B10,'[1]Din Rep'!$B:$M,11,0),VLOOKUP(C10,'[1]Din Rep'!$C:$M,10,0)),"") -> 0 | I10: =IFERROR(IFERROR(VLOOKUP(B10,'[1]Din Rep'!$B:$M,12,0),VLOOKUP(C10,'[1]Din Rep'!$C:$M,11,0)),"") -> 45 DD
B11: S001WBNXXG3 | C11: =IFERROR(VLOOKUP(B11,'[1]Din Rep'!$B:$M,2,0),"") -> COLETE SALVA-VIDAS CLASSE V - COM ZIPPER | D11: =IFERROR(IFERROR(VLOOKUP(B11,'[1]Din Rep'!$B:$M,5,0),VLOOKUP(C11,'[1]Din Rep'!$C:$M,4,0)),"") -> 183.77 | E11: =IFERROR(IFERROR(VLOOKUP(B11,'[1]Din Rep'!$B:$M,7,0),VLOOKUP(C11,'[1]Din Rep'!$C:$M,6,0)),"") -> 195.5 | F11: =IFERROR(IFERROR(VLOOKUP(B11,'[1]Din Rep'!$B:$M,8,0),VLOOKUP(C11,'[1]Din Rep'!$C:$M,7,0)),"") -> 460 | G11: =IFERROR(IFERROR(VLOOKUP(B11,'[1]Din Rep'!$B:$M,10,0),VLOOKUP(C11,'[1]Din Rep'!$C:$M,9,0)),"") -> 2.352941176 | H11: =IFERROR(IFERROR(VLOOKUP(B11,'[1]Din Rep'!$B:$M,11,0),VLOOKUP(C11,'[1]Din Rep'!$C:$M,10,0)),"") -> 0 | I11: =IFERROR(IFERROR(VLOOKUP(B11,'[1]Din Rep'!$B:$M,12,0),VLOOKUP(C11,'[1]Din Rep'!$C:$M,11,0)),"") -> 45 DD
A12: 2 - COLETES HOMOLOGADO LINHA INTERMEDIÁRIA | B12: S001EN2 | C12: =IFERROR(VLOOKUP(B12,'[1]Din Rep'!$B:$M,2,0),"") -> COLETE SALVA VIDAS CLASSE V - SEM ZIPPER | D12: =IFERROR(IFERROR(VLOOKUP(B12,'[1]Din Rep'!$B:$M,5,0),VLOOKUP(C12,'[1]Din Rep'!$C:$M,4,0)),"") -> 151.011 | E12: =IFERROR(IFERROR(VLOOKUP(B12,'[1]Din Rep'!$B:$M,7,0),VLOOKUP(C12,'[1]Din Rep'!$C:$M,6,0)),"") -> 160.65 | F12: =IFERROR(IFERROR(VLOOKUP(B12,'[1]Din Rep'!$B:$M,8,0),VLOOKUP(C12,'[1]Din Rep'!$C:$M,7,0)),"") -> 378 | G12: =IFERROR(IFERROR(VLOOKUP(B12,'[1]Din Rep'!$B:$M,10,0),VLOOKUP(C12,'[1]Din Rep'!$C:$M,9,0)),"") -> 2.352941176 | H12: =IFERROR(IFERROR(VLOOKUP(B12,'[1]Din Rep'!$B:$M,11,0),VLOOKUP(C12,'[1]Din Rep'!$C:$M,10,0)),"") -> 0 | I12: =IFERROR(IFERROR(VLOOKUP(B12,'[1]Din Rep'!$B:$M,12,0),VLOOKUP(C12,'[1]Din Rep'!$C:$M,11,0)),"") -> 45 DD
B13: S001ENG2 | C13: =IFERROR(VLOOKUP(B13,'[1]Din Rep'!$B:$M,2,0),"") -> COLETE SALVA VIDAS CLASSE V - SEM ZIPPER | D13: =IFERROR(IFERROR(VLOOKUP(B13,'[1]Din Rep'!$B:$M,5,0),VLOOKUP(C13,'[1]Din Rep'!$C:$M,4,0)),"") -> 151.011 | E13: =IFERROR(IFERROR(VLOOKUP(B13,'[1]Din Rep'!$B:$M,7,0),VLOOKUP(C13,'[1]Din Rep'!$C:$M,6,0)),"") -> 160.65 | F13: =IFERROR(IFERROR(VLOOKUP(B13,'[1]Din Rep'!$B:$M,8,0),VLOOKUP(C13,'[1]Din Rep'!$C:$M,7,0)),"") -> 378 | G13: =IFERROR(IFERROR(VLOOKUP(B13,'[1]Din Rep'!$B:$M,10,0),VLOOKUP(C13,'[1]Din Rep'!$C:$M,9,0)),"") -> 2.352941176 | H13: =IFERROR(IFERROR(VLOOKUP(B13,'[1]Din Rep'!$B:$M,11,0),VLOOKUP(C13,'[1]Din Rep'!$C:$M,10,0)),"") -> 0 | I13: =IFERROR(IFERROR(VLOOKUP(B13,'[1]Din Rep'!$B:$M,12,0),VLOOKUP(C13,'[1]Din Rep'!$C:$M,11,0)),"") -> 45 DD
B14: S001ENM2 | C14: =IFERROR(VLOOKUP(B14,'[1]Din Rep'!$B:$M,2,0),"") -> COLETE SALVA VIDAS CLASSE V - SEM ZIPPER | D14: =IFERROR(IFERROR(VLOOKUP(B14,'[1]Din Rep'!$B:$M,5,0),VLOOKUP(C14,'[1]Din Rep'!$C:$M,4,0)),"") -> 151.011 | E14: =IFERROR(IFERROR(VLOOKUP(B14,'[1]Din Rep'!$B:$M,7,0),VLOOKUP(C14,'[1]Din Rep'!$C:$M,6,0)),"") -> 160.65 | F14: =IFERROR(IFERROR(VLOOKUP(B14,'[1]Din Rep'!$B:$M,8,0),VLOOKUP(C14,'[1]Din Rep'!$C:$M,7,0)),"") -> 378 | G14: =IFERROR(IFERROR(VLOOKUP(B14,'[1]Din Rep'!$B:$M,10,0),VLOOKUP(C14,'[1]Din Rep'!$C:$M,9,0)),"") -> 2.352941176 | H14: =IFERROR(IFERROR(VLOOKUP(B14,'[1]Din Rep'!$B:$M,11,0),VLOOKUP(C14,'[1]Din Rep'!$C:$M,10,0)),"") -> 0 | I14: =IFERROR(IFERROR(VLOOKUP(B14,'[1]Din Rep'!$B:$M,12,0),VLOOKUP(C14,'[1]Din Rep'!$C:$M,11,0)),"") -> 45 DD
B15: S001ENXG2 | C15: =IFERROR(VLOOKUP(B15,'[1]Din Rep'!$B:$M,2,0),"") -> COLETE SALVA VIDAS CLASSE V - SEM ZIPPER | D15: =IFERROR(IFERROR(VLOOKUP(B15,'[1]Din Rep'!$B:$M,5,0),VLOOKUP(C15,'[1]Din Rep'!$C:$M,4,0)),"") -> 151.011 | E15: =IFERROR(IFERROR(VLOOKUP(B15,'[1]Din Rep'!$B:$M,7,0),VLOOKUP(C15,'[1]Din Rep'!$C:$M,6,0)),"") -> 160.65 | F15: =IFERROR(IFERROR(VLOOKUP(B15,'[1]Din Rep'!$B:$M,8,0),VLOOKUP(C15,'[1]Din Rep'!$C:$M,7,0)),"") -> 378 | G15: =IFERROR(IFERROR(VLOOKUP(B15,'[1]Din Rep'!$B:$M,10,0),VLOOKUP(C15,'[1]Din Rep'!$C:$M,9,0)),"") -> 2.352941176 | H15: =IFERROR(IFERROR(VLOOKUP(B15,'[1]Din Rep'!$B:$M,11,0),VLOOKUP(C15,'[1]Din Rep'!$C:$M,10,0)),"") -> 0 | I15: =IFERROR(IFERROR(VLOOKUP(B15,'[1]Din Rep'!$B:$M,12,0),VLOOKUP(C15,'[1]Din Rep'!$C:$M,11,0)),"") -> 45 DD
B16: S001ENXXG2 | C16: =IFERROR(VLOOKUP(B16,'[1]Din Rep'!$B:$M,2,0),"") -> COLETE SALVA VIDAS CLASSE V - SEM ZIPPER | D16: =IFERROR(IFERROR(VLOOKUP(B16,'[1]Din Rep'!$B:$M,5,0),VLOOKUP(C16,'[1]Din Rep'!$C:$M,4,0)),"") -> 151.011 | E16: =IFERROR(IFERROR(VLOOKUP(B16,'[1]Din Rep'!$B:$M,7,0),VLOOKUP(C16,'[1]Din Rep'!$C:$M,6,0)),"") -> 160.65 | F16: =IFERROR(IFERROR(VLOOKUP(B16,'[1]Din Rep'!$B:$M,8,0),VLOOKUP(C16,'[1]Din Rep'!$C:$M,7,0)),"") -> 378 | G16: =IFERROR(IFERROR(VLOOKUP(B16,'[1]Din Rep'!$B:$M,10,0),VLOOKUP(C16,'[1]Din Rep'!$C:$M,9,0)),"") -> 2.352941176 | H16: =IFERROR(IFERROR(VLOOKUP(B16,'[1]Din Rep'!$B:$M,11,0),VLOOKUP(C16,'[1]Din Rep'!$C:$M,10,0)),"") -> 0 | I16: =IFERROR(IFERROR(VLOOKUP(B16,'[1]Din Rep'!$B:$M,12,0),VLOOKUP(C16,'[1]Din Rep'!$C:$M,11,0)),"") -> 45 DD
A17: 3 - COLETES HOMOLOGADO LINHA ECONÔMICA | B17: S001ECO | C17: =IFERROR(VLOOKUP(B17,'[1]Din Rep'!$B:$M,2,0),"") -> COLETE SALVA-VIDAS CLASSE V - COM ZIPPER | D17: =IFERROR(IFERROR(VLOOKUP(B17,'[1]Din Rep'!$B:$M,5,0),VLOOKUP(C17,'[1]Din Rep'!$C:$M,4,0)),"") -> 135.7501 | E17: =IFERROR(IFERROR(VLOOKUP(B17,'[1]Din Rep'!$B:$M,7,0),VLOOKUP(C17,'[1]Din Rep'!$C:$M,6,0)),"") -> 144.415 | F17: =IFERROR(IFERROR(VLOOKUP(B17,'[1]Din Rep'!$B:$M,8,0),VLOOKUP(C17,'[1]Din Rep'!$C:$M,7,0)),"") -> 339.8 | G17: =IFERROR(IFERROR(VLOOKUP(B17,'[1]Din Rep'!$B:$M,10,0),VLOOKUP(C17,'[1]Din Rep'!$C:$M,9,0)),"") -> 2.352941176 | H17: =IFERROR(IFERROR(VLOOKUP(B17,'[1]Din Rep'!$B:$M,11,0),VLOOKUP(C17,'[1]Din Rep'!$C:$M,10,0)),"") -> 0 | I17: =IFERROR(IFERROR(VLOOKUP(B17,'[1]Din Rep'!$B:$M,12,0),VLOOKUP(C17,'[1]Din Rep'!$C:$M,11,0)),"") -> 45 DD
B18: S001ECOG | C18: =IFERROR(VLOOKUP(B18,'[1]Din Rep'!$B:$M,2,0),"") -> COLETE SALVA-VIDAS CLASSE V - COM ZIPPER | D18: =IFERROR(IFERROR(VLOOKUP(B18,'[1]Din Rep'!$B:$M,5,0),VLOOKUP(C18,'[1]Din Rep'!$C:$M,4,0)),"") -> 135.7501 | E18: =IFERROR(IFERROR(VLOOKUP(B18,'[1]Din Rep'!$B:$M,7,0),VLOOKUP(C18,'[1]Din Rep'!$C:$M,6,0)),"") -> 144.415 | F18: =IFERROR(IFERROR(VLOOKUP(B18,'[1]Din Rep'!$B:$M,8,0),VLOOKUP(C18,'[1]Din Rep'!$C:$M,7,0)),"") -> 339.8 | G18: =IFERROR(IFERROR(VLOOKUP(B18,'[1]Din Rep'!$B:$M,10,0),VLOOKUP(C18,'[1]Din Rep'!$C:$M,9,0)),"") -> 2.352941176 | H18: =IFERROR(IFERROR(VLOOKUP(B18,'[1]Din Rep'!$B:$M,11,0),VLOOKUP(C18,'[1]Din Rep'!$C:$M,10,0)),"") -> 0 | I18: =IFERROR(IFERROR(VLOOKUP(B18,'[1]Din Rep'!$B:$M,12,0),VLOOKUP(C18,'[1]Din Rep'!$C:$M,11,0)),"") -> 45 DD
B19: S001ECOM | C19: =IFERROR(VLOOKUP(B19,'[1]Din Rep'!$B:$M,2,0),"") -> COLETE SALVA-VIDAS CLASSE V - COM ZIPPER | D19: =IFERROR(IFERROR(VLOOKUP(B19,'[1]Din Rep'!$B:$M,5,0),VLOOKUP(C19,'[1]Din Rep'!$C:$M,4,0)),"") -> 135.7501 | E19: =IFERROR(IFERROR(VLOOKUP(B19,'[1]Din Rep'!$B:$M,7,0),VLOOKUP(C19,'[1]Din Rep'!$C:$M,6,0)),"") -> 144.415 | F19: =IFERROR(IFERROR(VLOOKUP(B19,'[1]Din Rep'!$B:$M,8,0),VLOOKUP(C19,'[1]Din Rep'!$C:$M,7,0)),"") -> 339.8 | G19: =IFERROR(IFERROR(VLOOKUP(B19,'[1]Din Rep'!$B:$M,10,0),VLOOKUP(C19,'[1]Din Rep'!$C:$M,9,0)),"") -> 2.352941176 | H19: =IFERROR(IFERROR(VLOOKUP(B19,'[1]Din Rep'!$B:$M,11,0),VLOOKUP(C19,'[1]Din Rep'!$C:$M,10,0)),"") -> 0 | I19: =IFERROR(IFERROR(VLOOKUP(B19,'[1]Din Rep'!$B:$M,12,0),VLOOKUP(C19,'[1]Din Rep'!$C:$M,11,0)),"") -> 45 DD
B20: S001ECOXG | C20: =IFERROR(VLOOKUP(B20,'[1]Din Rep'!$B:$M,2,0),"") -> COLETE SALVA-VIDAS CLASSE V - COM ZIPPER | D20: =IFERROR(IFERROR(VLOOKUP(B20,'[1]Din Rep'!$B:$M,5,0),VLOOKUP(C20,'[1]Din Rep'!$C:$M,4,0)),"") -> 135.7501 | E20: =IFERROR(IFERROR(VLOOKUP(B20,'[1]Din Rep'!$B:$M,7,0),VLOOKUP(C20,'[1]Din Rep'!$C:$M,6,0)),"") -> 144.415 | F20: =IFERROR(IFERROR(VLOOKUP(B20,'[1]Din Rep'!$B:$M,8,0),VLOOKUP(C20,'[1]Din Rep'!$C:$M,7,0)),"") -> 339.8 | G20: =IFERROR(IFERROR(VLOOKUP(B20,'[1]Din Rep'!$B:$M,10,0),VLOOKUP(C20,'[1]Din Rep'!$C:$M,9,0)),"") -> 2.352941176 | H20: =IFERROR(IFERROR(VLOOKUP(B20,'[1]Din Rep'!$B:$M,11,0),VLOOKUP(C20,'[1]Din Rep'!$C:$M,10,0)),"") -> 0 | I20: =IFERROR(IFERROR(VLOOKUP(B20,'[1]Din Rep'!$B:$M,12,0),VLOOKUP(C20,'[1]Din Rep'!$C:$M,11,0)),"") -> 45 DD
B21: S001ECOXXG | C21: =IFERROR(VLOOKUP(B21,'[1]Din Rep'!$B:$M,2,0),"") -> COLETE SALVA-VIDAS CLASSE V - COM ZIPPER | D21: =IFERROR(IFERROR(VLOOKUP(B21,'[1]Din Rep'!$B:$M,5,0),VLOOKUP(C21,'[1]Din Rep'!$C:$M,4,0)),"") -> 135.7501 | E21: =IFERROR(IFERROR(VLOOKUP(B21,'[1]Din Rep'!$B:$M,7,0),VLOOKUP(C21,'[1]Din Rep'!$C:$M,6,0)),"") -> 144.415 | F21: =IFERROR(IFERROR(VLOOKUP(B21,'[1]Din Rep'!$B:$M,8,0),VLOOKUP(C21,'[1]Din Rep'!$C:$M,7,0)),"") -> 339.8 | G21: =IFERROR(IFERROR(VLOOKUP(B21,'[1]Din Rep'!$B:$M,10,0),VLOOKUP(C21,'[1]Din Rep'!$C:$M,9,0)),"") -> 2.352941176 | H21: =IFERROR(IFERROR(VLOOKUP(B21,'[1]Din Rep'!$B:$M,11,0),VLOOKUP(C21,'[1]Din Rep'!$C:$M,10,0)),"") -> 0 | I21: =IFERROR(IFERROR(VLOOKUP(B21,'[1]Din Rep'!$B:$M,12,0),VLOOKUP(C21,'[1]Din Rep'!$C:$M,11,0)),"") -> 45 DD
A22: 4 - COLETES UNISSEX LINHA NYLON | B22: S001PSCG | C22: =IFERROR(VLOOKUP(B22,'[1]Din Rep'!$B:$M,2,0),"") -> COLETE SALVA VIDAS CLASSE V-PESCA | D22: =IFERROR(IFERROR(VLOOKUP(B22,'[1]Din Rep'!$B:$M,5,0),VLOOKUP(C22,'[1]Din Rep'!$C:$M,4,0)),"") -> 71.87005 | E22: =IFERROR(IFERROR(VLOOKUP(B22,'[1]Din Rep'!$B:$M,7,0),VLOOKUP(C22,'[1]Din Rep'!$C:$M,6,0)),"") -> 76.4575 | F22: =IFERROR(IFERROR(VLOOKUP(B22,'[1]Din Rep'!$B:$M,8,0),VLOOKUP(C22,'[1]Din Rep'!$C:$M,7,0)),"") -> 179.9 | G22: =IFERROR(IFERROR(VLOOKUP(B22,'[1]Din Rep'!$B:$M,10,0),VLOOKUP(C22,'[1]Din Rep'!$C:$M,9,0)),"") -> 2.352941176 | H22: =IFERROR(IFERROR(VLOOKUP(B22,'[1]Din Rep'!$B:$M,11,0),VLOOKUP(C22,'[1]Din Rep'!$C:$M,10,0)),"") -> 0 | I22: =IFERROR(IFERROR(VLOOKUP(B22,'[1]Din Rep'!$B:$M,12,0),VLOOKUP(C22,'[1]Din Rep'!$C:$M,11,0)),"") -> 45 DD
B23: S001PSCM | C23: =IFERROR(VLOOKUP(B23,'[1]Din Rep'!$B:$M,2,0),"") -> COLETE SALVA VIDAS CLASSE V-PESCA | D23: =IFERROR(IFERROR(VLOOKUP(B23,'[1]Din Rep'!$B:$M,5,0),VLOOKUP(C23,'[1]Din Rep'!$C:$M,4,0)),"") -> 71.87005 | E23: =IFERROR(IFERROR(VLOOKUP(B23,'[1]Din Rep'!$B:$M,7,0),VLOOKUP(C23,'[1]Din Rep'!$C:$M,6,0)),"") -> 76.4575 | F23: =IFERROR(IFERROR(VLOOKUP(B23,'[1]Din Rep'!$B:$M,8,0),VLOOKUP(C23,'[1]Din Rep'!$C:$M,7,0)),"") -> 179.9 | G23: =IFERROR(IFERROR(VLOOKUP(B23,'[1]Din Rep'!$B:$M,10,0),VLOOKUP(C23,'[1]Din Rep'!$C:$M,9,0)),"") -> 2.352941176 | H23: =IFERROR(IFERROR(VLOOKUP(B23,'[1]Din Rep'!$B:$M,11,0),VLOOKUP(C23,'[1]Din Rep'!$C:$M,10,0)),"") -> 0 | I23: =IFERROR(IFERROR(VLOOKUP(B23,'[1]Din Rep'!$B:$M,12,0),VLOOKUP(C23,'[1]Din Rep'!$C:$M,11,0)),"") -> 45 DD
B24: S001PSCXG | C24: =IFERROR(VLOOKUP(B24,'[1]Din Rep'!$B:$M,2,0),"") -> COLETE SALVA VIDAS CLASSE V-PESCA | D24: =IFERROR(IFERROR(VLOOKUP(B24,'[1]Din Rep'!$B:$M,5,0),VLOOKUP(C24,'[1]Din Rep'!$C:$M,4,0)),"") -> 79.86005 | E24: =IFERROR(IFERROR(VLOOKUP(B24,'[1]Din Rep'!$B:$M,7,0),VLOOKUP(C24,'[1]Din Rep'!$C:$M,6,0)),"") -> 84.9575 | F24: =IFERROR(IFERROR(VLOOKUP(B24,'[1]Din Rep'!$B:$M,8,0),VLOOKUP(C24,'[1]Din Rep'!$C:$M,7,0)),"") -> 199.9 | G24: =IFERROR(IFERROR(VLOOKUP(B24,'[1]Din Rep'!$B:$M,10,0),VLOOKUP(C24,'[1]Din Rep'!$C:$M,9,0)),"") -> 2.352941176 | H24: =IFERROR(IFERROR(VLOOKUP(B24,'[1]Din Rep'!$B:$M,11,0),VLOOKUP(C24,'[1]Din Rep'!$C:$M,10,0)),"") -> 0 | I24: =IFERROR(IFERROR(VLOOKUP(B24,'[1]Din Rep'!$B:$M,12,0),VLOOKUP(C24,'[1]Din Rep'!$C:$M,11,0)),"") -> 45 DD
B25: S001PSCXXG | C25: =IFERROR(VLOOKUP(B25,'[1]Din Rep'!$B:$M,2,0),"") -> COLETE SALVA VIDAS CLASSE V-PESCA | D25: =IFERROR(IFERROR(VLOOKUP(B25,'[1]Din Rep'!$B:$M,5,0),VLOOKUP(C25,'[1]Din Rep'!$C:$M,4,0)),"") -> 79.86005 | E25: =IFERROR(IFERROR(VLOOKUP(B25,'[1]Din Rep'!$B:$M,7,0),VLOOKUP(C25,'[1]Din Rep'!$C:$M,6,0)),"") -> 84.9575 | F25: =IFERROR(IFERROR(VLOOKUP(B25,'[1]Din Rep'!$B:$M,8,0),VLOOKUP(C25,'[1]Din Rep'!$C:$M,7,0)),"") -> 199.9 | G25: =IFERROR(IFERROR(VLOOKUP(B25,'[1]Din Rep'!$B:$M,10,0),VLOOKUP(C25,'[1]Din Rep'!$C:$M,9,0)),"") -> 2.352941176 | H25: =IFERROR(IFERROR(VLOOKUP(B25,'[1]Din Rep'!$B:$M,11,0),VLOOKUP(C25,'[1]Din Rep'!$C:$M,10,0)),"") -> 0 | I25: =IFERROR(IFERROR(VLOOKUP(B25,'[1]Din Rep'!$B:$M,12,0),VLOOKUP(C25,'[1]Din Rep'!$C:$M,11,0)),"") -> 45 DD
A26: 5 - COLETES HOMOLOGADO LINHA BABY | B26: S001B2 | C26: =IFERROR(VLOOKUP(B26,'[1]Din Rep'!$B:$M,2,0),"") -> COLETE SALVA VIDAS CLASSE V - BABY | D26: =IFERROR(IFERROR(VLOOKUP(B26,'[1]Din Rep'!$B:$M,5,0),VLOOKUP(C26,'[1]Din Rep'!$C:$M,4,0)),"") -> 95.8001 | E26: =IFERROR(IFERROR(VLOOKUP(B26,'[1]Din Rep'!$B:$M,7,0),VLOOKUP(C26,'[1]Din Rep'!$C:$M,6,0)),"") -> 101.915 | F26: =IFERROR(IFERROR(VLOOKUP(B26,'[1]Din Rep'!$B:$M,8,0),VLOOKUP(C26,'[1]Din Rep'!$C:$M,7,0)),"") -> 239.8 | G26: =IFERROR(IFERROR(VLOOKUP(B26,'[1]Din Rep'!$B:$M,10,0),VLOOKUP(C26,'[1]Din Rep'!$C:$M,9,0)),"") -> 2.352941176 | H26: =IFERROR(IFERROR(VLOOKUP(B26,'[1]Din Rep'!$B:$M,11,0),VLOOKUP(C26,'[1]Din Rep'!$C:$M,10,0)),"") -> 0 | I26: =IFERROR(IFERROR(VLOOKUP(B26,'[1]Din Rep'!$B:$M,12,0),VLOOKUP(C26,'[1]Din Rep'!$C:$M,11,0)),"") -> 45 DD
B27: S001IB2 | C27: =IFERROR(VLOOKUP(B27,'[1]Din Rep'!$B:$M,2,0),"") -> COLETE SALVA VIDAS CLASSE V - 1 A 5 ANOS | D27: =IFERROR(IFERROR(VLOOKUP(B27,'[1]Din Rep'!$B:$M,5,0),VLOOKUP(C27,'[1]Din Rep'!$C:$M,4,0)),"") -> 95.8001 | E27: =IFERROR(IFERROR(VLOOKUP(B27,'[1]Din Rep'!$B:$M,7,0),VLOOKUP(C27,'[1]Din Rep'!$C:$M,6,0)),"") -> 101.915 | F27: =IFERROR(IFERROR(VLOOKUP(B27,'[1]Din Rep'!$B:$M,8,0),VLOOKUP(C27,'[1]Din Rep'!$C:$M,7,0)),"") -> 239.8 | G27: =IFERROR(IFERROR(VLOOKUP(B27,'[1]Din Rep'!$B:$M,10,0),VLOOKUP(C27,'[1]Din Rep'!$C:$M,9,0)),"") -> 2.352941176 | H27: =IFERROR(IFERROR(VLOOKUP(B27,'[1]Din Rep'!$B:$M,11,0),VLOOKUP(C27,'[1]Din Rep'!$C:$M,10,0)),"") -> 0 | I27: =IFERROR(IFERROR(VLOOKUP(B27,'[1]Din Rep'!$B:$M,12,0),VLOOKUP(C27,'[1]Din Rep'!$C:$M,11,0)),"") -> 45 DD
B28: S001II2 | C28: =IFERROR(VLOOKUP(B28,'[1]Din Rep'!$B:$M,2,0),"") -> COLETE SALVA VIDAS CLASSE V - 5 A8 ANOS | D28: =IFERROR(IFERROR(VLOOKUP(B28,'[1]Din Rep'!$B:$M,5,0),VLOOKUP(C28,'[1]Din Rep'!$C:$M,4,0)),"") -> 95.8001 | E28: =IFERROR(IFERROR(VLOOKUP(B28,'[1]Din Rep'!$B:$M,7,0),VLOOKUP(C28,'[1]Din Rep'!$C:$M,6,0)),"") -> 101.915 | F28: =IFERROR(IFERROR(VLOOKUP(B28,'[1]Din Rep'!$B:$M,8,0),VLOOKUP(C28,'[1]Din Rep'!$C:$M,7,0)),"") -> 239.8 | G28: =IFERROR(IFERROR(VLOOKUP(B28,'[1]Din Rep'!$B:$M,10,0),VLOOKUP(C28,'[1]Din Rep'!$C:$M,9,0)),"") -> 2.352941176 | H28: =IFERROR(IFERROR(VLOOKUP(B28,'[1]Din Rep'!$B:$M,11,0),VLOOKUP(C28,'[1]Din Rep'!$C:$M,10,0)),"") -> 0 | I28: =IFERROR(IFERROR(VLOOKUP(B28,'[1]Din Rep'!$B:$M,12,0),VLOOKUP(C28,'[1]Din Rep'!$C:$M,11,0)),"") -> 45 DD
B29: S001III2 | C29: =IFERROR(VLOOKUP(B29,'[1]Din Rep'!$B:$M,2,0),"") -> COLETE SALVA VIDAS CLASSE V - 8 A 11 ANOS | D29: =IFERROR(IFERROR(VLOOKUP(B29,'[1]Din Rep'!$B:$M,5,0),VLOOKUP(C29,'[1]Din Rep'!$C:$M,4,0)),"") -> 95.8001 | E29: =IFERROR(IFERROR(VLOOKUP(B29,'[1]Din Rep'!$B:$M,7,0),VLOOKUP(C29,'[1]Din Rep'!$C:$M,6,0)),"") -> 101.915 | F29: =IFERROR(IFERROR(VLOOKUP(B29,'[1]Din Rep'!$B:$M,8,0),VLOOKUP(C29,'[1]Din Rep'!$C:$M,7,0)),"") -> 239.8 | G29: =IFERROR(IFERROR(VLOOKUP(B29,'[1]Din Rep'!$B:$M,10,0),VLOOKUP(C29,'[1]Din Rep'!$C:$M,9,0)),"") -> 2.352941176 | H29: =IFERROR(IFERROR(VLOOKUP(B29,'[1]Din Rep'!$B:$M,11,0),VLOOKUP(C29,'[1]Din Rep'!$C:$M,10,0)),"") -> 0 | I29: =IFERROR(IFERROR(VLOOKUP(B29,'[1]Din Rep'!$B:$M,12,0),VLOOKUP(C29,'[1]Din Rep'!$C:$M,11,0)),"") -> 45 DD
A30: 6 - COLETE SAIL DE FLUTUAÇÃO | B30: AQ036U15SAI1A | C30: =IFERROR(VLOOKUP(B30,'[1]Din Rep'!$B:$M,2,0),"") -> COLETE DE FLUTUAÇÃO SAIL 1A AQUATICOS MORMAII | D30: =IFERROR(IFERROR(VLOOKUP(B30,'[1]Din Rep'!$B:$M,5,0),VLOOKUP(C30,'[1]Din Rep'!$C:$M,4,0)),"") -> 179.73505 | E30: =IFERROR(IFERROR(VLOOKUP(B30,'[1]Din Rep'!$B:$M,7,0),VLOOKUP(C30,'[1]Din Rep'!$C:$M,6,0)),"") -> 191.2075 | F30: =IFERROR(IFERROR(VLOOKUP(B30,'[1]Din Rep'!$B:$M,8,0),VLOOKUP(C30,'[1]Din Rep'!$C:$M,7,0)),"") -> 449.9 | G30: =IFERROR(IFERROR(VLOOKUP(B30,'[1]Din Rep'!$B:$M,10,0),VLOOKUP(C30,'[1]Din Rep'!$C:$M,9,0)),"") -> 2.352941176 | H30: =IFERROR(IFERROR(VLOOKUP(B30,'[1]Din Rep'!$B:$M,11,0),VLOOKUP(C30,'[1]Din Rep'!$C:$M,10,0)),"") -> 0 | I30: =IFERROR(IFERROR(VLOOKUP(B30,'[1]Din Rep'!$B:$M,12,0),VLOOKUP(C30,'[1]Din Rep'!$C:$M,11,0)),"") -> 45 DD

Sheet ACESSÓRIO
A6: LINHA | B6: REFERENCIA | C6: DESCRIÇÃO | D6: À VISTA | E6: À PRAZO | F6: SUGESTÃO | G6: MARK UP | H6: IPI | I6: ENTREGA
A7: ACESSÓRIOS 2017/18 | B7: A091 | C7: =IFERROR(VLOOKUP(B7,'[1]Din Rep'!$B:$M,2,0),"") -> POCHETE C/ 2 ZIPERS NEOPRENE - MORMAII | D7: =IFERROR(IFERROR(VLOOKUP(B7,'[1]Din Rep'!$B:$M,5,0),VLOOKUP(C7,'[1]Din Rep'!$C:$M,4,0)),"") -> 43.5455 | E7: =IFERROR(IFERROR(VLOOKUP(B7,'[1]Din Rep'!$B:$M,7,0),VLOOKUP(C7,'[1]Din Rep'!$C:$M,6,0)),"") -> 46.325 | F7: =IFERROR(IFERROR(VLOOKUP(B7,'[1]Din Rep'!$B:$M,8,0),VLOOKUP(C7,'[1]Din Rep'!$C:$M,7,0)),"") -> 119.9 | G7: =IFERROR(IFERROR(VLOOKUP(B7,'[1]Din Rep'!$B:$M,10,0),VLOOKUP(C7,'[1]Din Rep'!$C:$M,9,0)),"") -> 2.329411765 | H7: =IFERROR(IFERROR(VLOOKUP(B7,'[1]Din Rep'!$B:$M,11,0),VLOOKUP(C7,'[1]Din Rep'!$C:$M,10,0)),"") -> 0.1 | I7: =IFERROR(IFERROR(VLOOKUP(B7,'[1]Din Rep'!$B:$M,12,0),VLOOKUP(C7,'[1]Din Rep'!$C:$M,11,0)),"") -> 45 DD
B8: A092 | C8: =IFERROR(VLOOKUP(B8,'[1]Din Rep'!$B:$M,2,0),"") -> LIXEIRA DE NEOPRENE P/ CARRO - MORMAII | D8: =IFERROR(IFERROR(VLOOKUP(B8,'[1]Din Rep'!$B:$M,5,0),VLOOKUP(C8,'[1]Din Rep'!$C:$M,4,0)),"") -> 10.77851 | E8: =IFERROR(IFERROR(VLOOKUP(B8,'[1]Din Rep'!$B:$M,7,0),VLOOKUP(C8,'[1]Din Rep'!$C:$M,6,0)),"") -> 11.4665 | F8: =IFERROR(IFERROR(VLOOKUP(B8,'[1]Din Rep'!$B:$M,8,0),VLOOKUP(C8,'[1]Din Rep'!$C:$M,7,0)),"") -> 29.678 | G8: =IFERROR(IFERROR(VLOOKUP(B8,'[1]Din Rep'!$B:$M,10,0),VLOOKUP(C8,'[1]Din Rep'!$C:$M,9,0)),"") -> 2.329411765 | H8: =IFERROR(IFERROR(VLOOKUP(B8,'[1]Din Rep'!$B:$M,11,0),VLOOKUP(C8,'[1]Din Rep'!$C:$M,10,0)),"") -> 0.1 | I8: =IFERROR(IFERROR(VLOOKUP(B8,'[1]Din Rep'!$B:$M,12,0),VLOOKUP(C8,'[1]Din Rep'!$C:$M,11,0)),"") -> 45 DD
B9: A106 | C9: =IFERROR(VLOOKUP(B9,'[1]Din Rep'!$B:$M,2,0),"") -> MOUSE PAD DE NEOPRENE - MORMAII | D9: =IFERROR(IFERROR(VLOOKUP(B9,'[1]Din Rep'!$B:$M,5,0),VLOOKUP(C9,'[1]Din Rep'!$C:$M,4,0)),"") -> 7.23095 | E9: =IFERROR(IFERROR(VLOOKUP(B9,'[1]Din Rep'!$B:$M,7,0),VLOOKUP(C9,'[1]Din Rep'!$C:$M,6,0)),"") -> 7.6925 | F9: =IFERROR(IFERROR(VLOOKUP(B9,'[1]Din Rep'!$B:$M,8,0),VLOOKUP(C9,'[1]Din Rep'!$C:$M,7,0)),"") -> 19.91 | G9: =IFERROR(IFERROR(VLOOKUP(B9,'[1]Din Rep'!$B:$M,10,0),VLOOKUP(C9,'[1]Din Rep'!$C:$M,9,0)),"") -> 2.329411765 | H9: =IFERROR(IFERROR(VLOOKUP(B9,'[1]Din Rep'!$B:$M,11,0),VLOOKUP(C9,'[1]Din Rep'!$C:$M,10,0)),"") -> 0.1 | I9: =IFERROR(IFERROR(VLOOKUP(B9,'[1]Din Rep'!$B:$M,12,0),VLOOKUP(C9,'[1]Din Rep'!$C:$M,11,0)),"") -> 45 DD
B10: A114 | C10: =IFERROR(VLOOKUP(B10,'[1]Din Rep'!$B:$M,2,0),"") -> ESTOJO DE NEOPRENE P/ LÁPIS - MORMAII | D10: =IFERROR(IFERROR(VLOOKUP(B10,'[1]Din Rep'!$B:$M,5,0),VLOOKUP(C10,'[1]Din Rep'!$C:$M,4,0)),"") -> 9.97951 | E10: =IFERROR(IFERROR(VLOOKUP(B10,'[1]Din Rep'!$B:$M,7,0),VLOOKUP(C10,'[1]Din Rep'!$C:$M,6,0)),"") -> 10.6165 | F10: =IFERROR(IFERROR(VLOOKUP(B10,'[1]Din Rep'!$B:$M,8,0),VLOOKUP(C10,'[1]Din Rep'!$C:$M,7,0)),"") -> 27.478 | G10: =IFERROR(IFERROR(VLOOKUP(B10,'[1]Din Rep'!$B:$M,10,0),VLOOKUP(C10,'[1]Din Rep'!$C:$M,9,0)),"") -> 2.329411765 | H10: =IFERROR(IFERROR(VLOOKUP(B10,'[1]Din Rep'!$B:$M,11,0),VLOOKUP(C10,'[1]Din Rep'!$C:$M,10,0)),"") -> 0.1 | I10: =IFERROR(IFERROR(VLOOKUP(B10,'[1]Din Rep'!$B:$M,12,0),VLOOKUP(C10,'[1]Din Rep'!$C:$M,11,0)),"") -> 45 DD
B11: A208 | C11: =IFERROR(VLOOKUP(B11,'[1]Din Rep'!$B:$M,2,0),"") -> SEGURANÇA DE NEOPRENE P/ OCULOS - MORMAII | D11: =IFERROR(IFERROR(VLOOKUP(B11,'[1]Din Rep'!$B:$M,5,0),VLOOKUP(C11,'[1]Din Rep'!$C:$M,4,0)),"") -> 3.605088 | E11: =IFERROR(IFERROR(VLOOKUP(B11,'[1]Din Rep'!$B:$M,7,0),VLOOKUP(C11,'[1]Din Rep'!$C:$M,6,0)),"") -> 3.8352 | F11: =IFERROR(IFERROR(VLOOKUP(B11,'[1]Din Rep'!$B:$M,8,0),VLOOKUP(C11,'[1]Din Rep'!$C:$M,7,0)),"") -> 9.9264 | G11: =IFERROR(IFERROR(VLOOKUP(B11,'[1]Din Rep'!$B:$M,10,0),VLOOKUP(C11,'[1]Din Rep'!$C:$M,9,0)),"") -> 2.329411765 | H11: =IFERROR(IFERROR(VLOOKUP(B11,'[1]Din Rep'!$B:$M,11,0),VLOOKUP(C11,'[1]Din Rep'!$C:$M,10,0)),"") -> 0.1 | I11: =IFERROR(IFERROR(VLOOKUP(B11,'[1]Din Rep'!$B:$M,12,0),VLOOKUP(C11,'[1]Din Rep'!$C:$M,11,0)),"") -> 45 DD
B12: A277 | C12: =IFERROR(VLOOKUP(B12,'[1]Din Rep'!$B:$M,2,0),"") -> SEGURANÇA FLOATER DE NEOPRENE P/ ÓCULOS - MORMAII | D12: =IFERROR(IFERROR(VLOOKUP(B12,'[1]Din Rep'!$B:$M,5,0),VLOOKUP(C12,'[1]Din Rep'!$C:$M,4,0)),"") -> 9.6679 | E12: =IFERROR(IFERROR(VLOOKUP(B12,'[1]Din Rep'!$B:$M,7,0),VLOOKUP(C12,'[1]Din Rep'!$C:$M,6,0)),"") -> 10.285 | F12: =IFERROR(IFERROR(VLOOKUP(B12,'[1]Din Rep'!$B:$M,8,0),VLOOKUP(C12,'[1]Din Rep'!$C:$M,7,0)),"") -> 26.62 | G12: =IFERROR(IFERROR(VLOOKUP(B12,'[1]Din Rep'!$B:$M,10,0),VLOOKUP(C12,'[1]Din Rep'!$C:$M,9,0)),"") -> 2.329411765 | H12: =IFERROR(IFERROR(VLOOKUP(B12,'[1]Din Rep'!$B:$M,11,0),VLOOKUP(C12,'[1]Din Rep'!$C:$M,10,0)),"") -> 0.1 | I12: =IFERROR(IFERROR(VLOOKUP(B12,'[1]Din Rep'!$B:$M,12,0),VLOOKUP(C12,'[1]Din Rep'!$C:$M,11,0)),"") -> 45 DD
B13: A305 | C13: =IFERROR(VLOOKUP(B13,'[1]Din Rep'!$B:$M,2,0),"") -> POCHETE C/ 3 ZIPERS NEOPRENE - MORMAII | D13: =IFERROR(IFERROR(VLOOKUP(B13,'[1]Din Rep'!$B:$M,5,0),VLOOKUP(C13,'[1]Din Rep'!$C:$M,4,0)),"") -> 51.38369 | E13: =IFERROR(IFERROR(VLOOKUP(B13,'[1]Din Rep'!$B:$M,7,0),VLOOKUP(C13,'[1]Din Rep'!$C:$M,6,0)),"") -> 54.6635 | F13: =IFERROR(IFERROR(VLOOKUP(B13,'[1]Din Rep'!$B:$M,8,0),VLOOKUP(C13,'[1]Din Rep'!$C:$M,7,0)),"") -> 141.482 | G13: =IFERROR(IFERROR(VLOOKUP(B13,'[1]Din Rep'!$B:$M,10,0),VLOOKUP(C13,'[1]Din Rep'!$C:$M,9,0)),"") -> 2.329411765 | H13: =IFERROR(IFERROR(VLOOKUP(B13,'[1]Din Rep'!$B:$M,11,0),VLOOKUP(C13,'[1]Din Rep'!$C:$M,10,0)),"") -> 0.1 | I13: =IFERROR(IFERROR(VLOOKUP(B13,'[1]Din Rep'!$B:$M,12,0),VLOOKUP(C13,'[1]Din Rep'!$C:$M,11,0)),"") -> 45 DD
B14: A307 | C14: =IFERROR(VLOOKUP(B14,'[1]Din Rep'!$B:$M,2,0),"") -> POCHETE DE NEOPRENE - MORMAII | D14: =IFERROR(IFERROR(VLOOKUP(B14,'[1]Din Rep'!$B:$M,5,0),VLOOKUP(C14,'[1]Din Rep'!$C:$M,4,0)),"") -> 36.2211469 | E14: =IFERROR(IFERROR(VLOOKUP(B14,'[1]Din Rep'!$B:$M,7,0),VLOOKUP(C14,'[1]Din Rep'!$C:$M,6,0)),"") -> 38.533135 | F14: =IFERROR(IFERROR(VLOOKUP(B14,'[1]Din Rep'!$B:$M,8,0),VLOOKUP(C14,'[1]Din Rep'!$C:$M,7,0)),"") -> 99.73282 | G14: =IFERROR(IFERROR(VLOOKUP(B14,'[1]Din Rep'!$B:$M,10,0),VLOOKUP(C14,'[1]Din Rep'!$C:$M,9,0)),"") -> 2.329411765 | H14: =IFERROR(IFERROR(VLOOKUP(B14,'[1]Din Rep'!$B:$M,11,0),VLOOKUP(C14,'[1]Din Rep'!$C:$M,10,0)),"") -> 0.1 | I14: =IFERROR(IFERROR(VLOOKUP(B14,'[1]Din Rep'!$B:$M,12,0),VLOOKUP(C14,'[1]Din Rep'!$C:$M,11,0)),"") -> 45 DD
B15: A364MC | C15: =IFERROR(VLOOKUP(B15,'[1]Din Rep'!$B:$M,2,0),"") -> CARTEIRA DE NEOPRENE BOLSO INTERNO - MORMAII | D15: =IFERROR(IFERROR(VLOOKUP(B15,'[1]Din Rep'!$B:$M,5,0),VLOOKUP(C15,'[1]Din Rep'!$C:$M,4,0)),"") -> 11.57751 | E15: =IFERROR(IFERROR(VLOOKUP(B15,'[1]Din Rep'!$B:$M,7,0),VLOOKUP(C15,'[1]Din Rep'!$C:$M,6,0)),"") -> 12.3165 | F15: =IFERROR(IFERROR(VLOOKUP(B15,'[1]Din Rep'!$B:$M,8,0),VLOOKUP(C15,'[1]Din Rep'!$C:$M,7,0)),"") -> 31.878 | G15: =IFERROR(IFERROR(VLOOKUP(B15,'[1]Din Rep'!$B:$M,10,0),VLOOKUP(C15,'[1]Din Rep'!$C:$M,9,0)),"") -> 2.329411765 | H15: =IFERROR(IFERROR(VLOOKUP(B15,'[1]Din Rep'!$B:$M,11,0),VLOOKUP(C15,'[1]Din Rep'!$C:$M,10,0)),"") -> 0.1 | I15: =IFERROR(IFERROR(VLOOKUP(B15,'[1]Din Rep'!$B:$M,12,0),VLOOKUP(C15,'[1]Din Rep'!$C:$M,11,0)),"") -> 45 DD
B16: A365MC | C16: =IFERROR(VLOOKUP(B16,'[1]Din Rep'!$B:$M,2,0),"") -> MINI POCHETE INVISIVEL DE NEOPRENE - MORMAII | D16: =IFERROR(IFERROR(VLOOKUP(B16,'[1]Din Rep'!$B:$M,5,0),VLOOKUP(C16,'[1]Din Rep'!$C:$M,4,0)),"") -> 14.49386 | E16: =IFERROR(IFERROR(VLOOKUP(B16,'[1]Din Rep'!$B:$M,7,0),VLOOKUP(C16,'[1]Din Rep'!$C:$M,6,0)),"") -> 15.419 | F16: =IFERROR(IFERROR(VLOOKUP(B16,'[1]Din Rep'!$B:$M,8,0),VLOOKUP(C16,'[1]Din Rep'!$C:$M,7,0)),"") -> 39.908 | G16: =IFERROR(IFERROR(VLOOKUP(B16,'[1]Din Rep'!$B:$M,10,0),VLOOKUP(C16,'[1]Din Rep'!$C:$M,9,0)),"") -> 2.329411765 | H16: =IFERROR(IFERROR(VLOOKUP(B16,'[1]Din Rep'!$B:$M,11,0),VLOOKUP(C16,'[1]Din Rep'!$C:$M,10,0)),"") -> 0.1 | I16: =IFERROR(IFERROR(VLOOKUP(B16,'[1]Din Rep'!$B:$M,12,0),VLOOKUP(C16,'[1]Din Rep'!$C:$M,11,0)),"") -> 45 DD
B17: AC0127 | C17: =IFERROR(VLOOKUP(B17,'[1]Din Rep'!$B:$M,2,0),"") -> KIT PULSEIRA DE NEOPRENE ACESSÓRIOS MORMAII | D17: =IFERROR(IFERROR(VLOOKUP(B17,'[1]Din Rep'!$B:$M,5,0),VLOOKUP(C17,'[1]Din Rep'!$C:$M,4,0)),"") -> 3.60349 | E17: =IFERROR(IFERROR(VLOOKUP(B17,'[1]Din Rep'!$B:$M,7,0),VLOOKUP(C17,'[1]Din Rep'!$C:$M,6,0)),"") -> 3.8335 | F17: =IFERROR(IFERROR(VLOOKUP(B17,'[1]Din Rep'!$B:$M,8,0),VLOOKUP(C17,'[1]Din Rep'!$C:$M,7,0)),"") -> 9 | G17: =IFERROR(IFERROR(VLOOKUP(B17,'[1]Din Rep'!$B:$M,10,0),VLOOKUP(C17,'[1]Din Rep'!$C:$M,9,0)),"") -> 2.347724012 | H17: =IFERROR(IFERROR(VLOOKUP(B17,'[1]Din Rep'!$B:$M,11,0),VLOOKUP(C17,'[1]Din Rep'!$C:$M,10,0)),"") -> 0 | I17: =IFERROR(IFERROR(VLOOKUP(B17,'[1]Din Rep'!$B:$M,12,0),VLOOKUP(C17,'[1]Din Rep'!$C:$M,11,0)),"") -> 45 DD
B18: A369MC | C18: =IFERROR(VLOOKUP(B18,'[1]Din Rep'!$B:$M,2,0),"") -> CHAVEIRO FOFO DE NEOPRENE - MORMAII | D18: =IFERROR(IFERROR(VLOOKUP(B18,'[1]Din Rep'!$B:$M,5,0),VLOOKUP(C18,'[1]Din Rep'!$C:$M,4,0)),"") -> 3.605088 | E18: =IFERROR(IFERROR(VLOOKUP(B18,'[1]Din Rep'!$B:$M,7,0),VLOOKUP(C18,'[1]Din Rep'!$C:$M,6,0)),"") -> 3.8352 | F18: =IFERROR(IFERROR(VLOOKUP(B18,'[1]Din Rep'!$B:$M,8,0),VLOOKUP(C18,'[1]Din Rep'!$C:$M,7,0)),"") -> 9.9264 | G18: =IFERROR(IFERROR(VLOOKUP(B18,'[1]Din Rep'!$B:$M,10,0),VLOOKUP(C18,'[1]Din Rep'!$C:$M,9,0)),"") -> 2.277647059 | H18: =IFERROR(IFERROR(VLOOKUP(B18,'[1]Din Rep'!$B:$M,11,0),VLOOKUP(C18,'[1]Din Rep'!$C:$M,10,0)),"") -> 0.12 | I18: =IFERROR(IFERROR(VLOOKUP(B18,'[1]Din Rep'!$B:$M,12,0),VLOOKUP(C18,'[1]Din Rep'!$C:$M,11,0)),"") -> 45 DD
B19: A370MC | C19: =IFERROR(VLOOKUP(B19,'[1]Din Rep'!$B:$M,2,0),"") -> LIXEIRA/PORTA GARRAFA DE NEOPRENE - MORMAII | D19: =IFERROR(IFERROR(VLOOKUP(B19,'[1]Din Rep'!$B:$M,5,0),VLOOKUP(C19,'[1]Din Rep'!$C:$M,4,0)),"") -> 8.22171 | E19: =IFERROR(IFERROR(VLOOKUP(B19,'[1]Din Rep'!$B:$M,7,0),VLOOKUP(C19,'[1]Din Rep'!$C:$M,6,0)),"") -> 8.7465 | F19: =IFERROR(IFERROR(VLOOKUP(B19,'[1]Din Rep'!$B:$M,8,0),VLOOKUP(C19,'[1]Din Rep'!$C:$M,7,0)),"") -> 22.638 | G19: =IFERROR(IFERROR(VLOOKUP(B19,'[1]Din Rep'!$B:$M,10,0),VLOOKUP(C19,'[1]Din Rep'!$C:$M,9,0)),"") -> 2.329411765 | H19: =IFERROR(IFERROR(VLOOKUP(B19,'[1]Din Rep'!$B:$M,11,0),VLOOKUP(C19,'[1]Din Rep'!$C:$M,10,0)),"") -> 0.1 | I19: =IFERROR(IFERROR(VLOOKUP(B19,'[1]Din Rep'!$B:$M,12,0),VLOOKUP(C19,'[1]Din Rep'!$C:$M,11,0)),"") -> 45 DD
B20: A601A | C20: =IFERROR(VLOOKUP(B20,'[1]Din Rep'!$B:$M,2,0),"") -> CHAVEIRO TENIS NEOPRENE - MORMAII | D20: =IFERROR(IFERROR(VLOOKUP(B20,'[1]Din Rep'!$B:$M,5,0),VLOOKUP(C20,'[1]Din Rep'!$C:$M,4,0)),"") -> 3.605088 | E20: =IFERROR(IFERROR(VLOOKUP(B20,'[1]Din Rep'!$B:$M,7,0),VLOOKUP(C20,'[1]Din Rep'!$C:$M,6,0)),"") -> 3.8352 | F20: =IFERROR(IFERROR(VLOOKUP(B20,'[1]Din Rep'!$B:$M,8,0),VLOOKUP(C20,'[1]Din Rep'!$C:$M,7,0)),"") -> 9.9264 | G20: =IFERROR(IFERROR(VLOOKUP(B20,'[1]Din Rep'!$B:$M,10,0),VLOOKUP(C20,'[1]Din Rep'!$C:$M,9,0)),"") -> 2.277647059 | H20: =IFERROR(IFERROR(VLOOKUP(B20,'[1]Din Rep'!$B:$M,11,0),VLOOKUP(C20,'[1]Din Rep'!$C:$M,10,0)),"") -> 0.12 | I20: =IFERROR(IFERROR(VLOOKUP(B20,'[1]Din Rep'!$B:$M,12,0),VLOOKUP(C20,'[1]Din Rep'!$C:$M,11,0)),"") -> 45 DD
B21: A601B | C21: =IFERROR(VLOOKUP(B21,'[1]Din Rep'!$B:$M,2,0),"") -> CHAVEIRO PEIXE NEOPRENE - MORMAII | D21: =IFERROR(IFERROR(VLOOKUP(B21,'[1]Din Rep'!$B:$M,5,0),VLOOKUP(C21,'[1]Din Rep'!$C:$M,4,0)),"") -> 3.605088 | E21: =IFERROR(IFERROR(VLOOKUP(B21,'[1]Din Rep'!$B:$M,7,0),VLOOKUP(C21,'[1]Din Rep'!$C:$M,6,0)),"") -> 3.8352 | F21: =IFERROR(IFERROR(VLOOKUP(B21,'[1]Din Rep'!$B:$M,8,0),VLOOKUP(C21,'[1]Din Rep'!$C:$M,7,0)),"") -> 9.9264 | G21: =IFERROR(IFERROR(VLOOKUP(B21,'[1]Din Rep'!$B:$M,10,0),VLOOKUP(C21,'[1]Din Rep'!$C:$M,9,0)),"") -> 2.277647059 | H21: =IFERROR(IFERROR(VLOOKUP(B21,'[1]Din Rep'!$B:$M,11,0),VLOOKUP(C21,'[1]Din Rep'!$C:$M,10,0)),"") -> 0.12 | I21: =IFERROR(IFERROR(VLOOKUP(B21,'[1]Din Rep'!$B:$M,12,0),VLOOKUP(C21,'[1]Din Rep'!$C:$M,11,0)),"") -> 45 DD
B22: A601S | C22: =IFERROR(VLOOKUP(B22,'[1]Din Rep'!$B:$M,2,0),"") -> CHAVEIRO ROUPA DE NEOPRENE - MORMAII | D22: =IFERROR(IFERROR(VLOOKUP(B22,'[1]Din Rep'!$B:$M,5,0),VLOOKUP(C22,'[1]Din Rep'!$C:$M,4,0)),"") -> 3.605088 | E22: =IFERROR(IFERROR(VLOOKUP(B22,'[1]Din Rep'!$B:$M,7,0),VLOOKUP(C22,'[1]Din Rep'!$C:$M,6,0)),"") -> 3.8352 | F22: =IFERROR(IFERROR(VLOOKUP(B22,'[1]Din Rep'!$B:$M,8,0),VLOOKUP(C22,'[1]Din Rep'!$C:$M,7,0)),"") -> 9.9264 | G22: =IFERROR(IFERROR(VLOOKUP(B22,'[1]Din Rep'!$B:$M,10,0),VLOOKUP(C22,'[1]Din Rep'!$C:$M,9,0)),"") -> 2.277647059 | H22: =IFERROR(IFERROR(VLOOKUP(B22,'[1]Din Rep'!$B:$M,11,0),VLOOKUP(C22,'[1]Din Rep'!$C:$M,10,0)),"") -> 0.12 | I22: =IFERROR(IFERROR(VLOOKUP(B22,'[1]Din Rep'!$B:$M,12,0),VLOOKUP(C22,'[1]Din Rep'!$C:$M,11,0)),"") -> 45 DD
B23: A604A | C23: =IFERROR(VLOOKUP(B23,'[1]Din Rep'!$B:$M,2,0),"") -> CHAVEIRO PORTA NIQUEL NEOPRENE - MORMAII | D23: =IFERROR(IFERROR(VLOOKUP(B23,'[1]Din Rep'!$B:$M,5,0),VLOOKUP(C23,'[1]Din Rep'!$C:$M,4,0)),"") -> 3.605088 | E23: =IFERROR(IFERROR(VLOOKUP(B23,'[1]Din Rep'!$B:$M,7,0),VLOOKUP(C23,'[1]Din Rep'!$C:$M,6,0)),"") -> 3.8352 | F23: =IFERROR(IFERROR(VLOOKUP(B23,'[1]Din Rep'!$B:$M,8,0),VLOOKUP(C23,'[1]Din Rep'!$C:$M,7,0)),"") -> 9.9264 | G23: =IFERROR(IFERROR(VLOOKUP(B23,'[1]Din Rep'!$B:$M,10,0),VLOOKUP(C23,'[1]Din Rep'!$C:$M,9,0)),"") -> 2.277647059 | H23: =IFERROR(IFERROR(VLOOKUP(B23,'[1]Din Rep'!$B:$M,11,0),VLOOKUP(C23,'[1]Din Rep'!$C:$M,10,0)),"") -> 0.12 | I23: =IFERROR(IFERROR(VLOOKUP(B23,'[1]Din Rep'!$B:$M,12,0),VLOOKUP(C23,'[1]Din Rep'!$C:$M,11,0)),"") -> 45 DD
B24: A607B | C24: =IFERROR(VLOOKUP(B24,'[1]Din Rep'!$B:$M,2,0),"") -> CHAVEIRO GOLFINHO DE NEOPRENE - MORMAII | D24: =IFERROR(IFERROR(VLOOKUP(B24,'[1]Din Rep'!$B:$M,5,0),VLOOKUP(C24,'[1]Din Rep'!$C:$M,4,0)),"") -> 3.605088 | E24: =IFERROR(IFERROR(VLOOKUP(B24,'[1]Din Rep'!$B:$M,7,0),VLOOKUP(C24,'[1]Din Rep'!$C:$M,6,0)),"") -> 3.8352 | F24: =IFERROR(IFERROR(VLOOKUP(B24,'[1]Din Rep'!$B:$M,8,0),VLOOKUP(C24,'[1]Din Rep'!$C:$M,7,0)),"") -> 9.9264 | G24: =IFERROR(IFERROR(VLOOKUP(B24,'[1]Din Rep'!$B:$M,10,0),VLOOKUP(C24,'[1]Din Rep'!$C:$M,9,0)),"") -> 2.277647059 | H24: =IFERROR(IFERROR(VLOOKUP(B24,'[1]Din Rep'!$B:$M,11,0),VLOOKUP(C24,'[1]Din Rep'!$C:$M,10,0)),"") -> 0.12 | I24: =IFERROR(IFERROR(VLOOKUP(B24,'[1]Din Rep'!$B:$M,12,0),VLOOKUP(C24,'[1]Din Rep'!$C:$M,11,0)),"") -> 45 DD
B25: A608B | C25: =IFERROR(VLOOKUP(B25,'[1]Din Rep'!$B:$M,2,0),"") -> CHAVEIRO TARTARUGA NEOPRENE - MORMAII | D25: =IFERROR(IFERROR(VLOOKUP(B25,'[1]Din Rep'!$B:$M,5,0),VLOOKUP(C25,'[1]Din Rep'!$C:$M,4,0)),"") -> 3.605088 | E25: =IFERROR(IFERROR(VLOOKUP(B25,'[1]Din Rep'!$B:$M,7,0),VLOOKUP(C25,'[1]Din Rep'!$C:$M,6,0)),"") -> 3.8352 | F25: =IFERROR(IFERROR(VLOOKUP(B25,'[1]Din Rep'!$B:$M,8,0),VLOOKUP(C25,'[1]Din Rep'!$C:$M,7,0)),"") -> 9.9264 | G25: =IFERROR(IFERROR(VLOOKUP(B25,'[1]Din Rep'!$B:$M,10,0),VLOOKUP(C25,'[1]Din Rep'!$C:$M,9,0)),"") -> 2.277647059 | H25: =IFERROR(IFERROR(VLOOKUP(B25,'[1]Din Rep'!$B:$M,11,0),VLOOKUP(C25,'[1]Din Rep'!$C:$M,10,0)),"") -> 0.12 | I25: =IFERROR(IFERROR(VLOOKUP(B25,'[1]Din Rep'!$B:$M,12,0),VLOOKUP(C25,'[1]Din Rep'!$C:$M,11,0)),"") -> 45 DD
B26: A609B | C26: =IFERROR(VLOOKUP(B26,'[1]Din Rep'!$B:$M,2,0),"") -> CHAVEIRO BALEIA FRANCA DE NEOPRENE - MORMAII | D26: =IFERROR(IFERROR(VLOOKUP(B26,'[1]Din Rep'!$B:$M,5,0),VLOOKUP(C26,'[1]Din Rep'!$C:$M,4,0)),"") -> 3.605088 | E26: =IFERROR(IFERROR(VLOOKUP(B26,'[1]Din Rep'!$B:$M,7,0),VLOOKUP(C26,'[1]Din Rep'!$C:$M,6,0)),"") -> 3.8352 | F26: =IFERROR(IFERROR(VLOOKUP(B26,'[1]Din Rep'!$B:$M,8,0),VLOOKUP(C26,'[1]Din Rep'!$C:$M,7,0)),"") -> 9.9264 | G26: =IFERROR(IFERROR(VLOOKUP(B26,'[1]Din Rep'!$B:$M,10,0),VLOOKUP(C26,'[1]Din Rep'!$C:$M,9,0)),"") -> 2.277647059 | H26: =IFERROR(IFERROR(VLOOKUP(B26,'[1]Din Rep'!$B:$M,11,0),VLOOKUP(C26,'[1]Din Rep'!$C:$M,10,0)),"") -> 0.12 | I26: =IFERROR(IFERROR(VLOOKUP(B26,'[1]Din Rep'!$B:$M,12,0),VLOOKUP(C26,'[1]Din Rep'!$C:$M,11,0)),"") -> 45 DD
B27: AC0104 | C27: =IFERROR(VLOOKUP(B27,'[1]Din Rep'!$B:$M,2,0),"") -> JOGO COM 02 CAPAS DE BANCO (MOTORISTA E PASSAGEIRO) | D27: =IFERROR(IFERROR(VLOOKUP(B27,'[1]Din Rep'!$B:$M,5,0),VLOOKUP(C27,'[1]Din Rep'!$C:$M,4,0)),"") -> 156.5241 | E27: =IFERROR(IFERROR(VLOOKUP(B27,'[1]Din Rep'!$B:$M,7,0),VLOOKUP(C27,'[1]Din Rep'!$C:$M,6,0)),"") -> 166.515 | F27: =IFERROR(IFERROR(VLOOKUP(B27,'[1]Din Rep'!$B:$M,8,0),VLOOKUP(C27,'[1]Din Rep'!$C:$M,7,0)),"") -> 430.98 | G27: =IFERROR(IFERROR(VLOOKUP(B27,'[1]Din Rep'!$B:$M,10,0),VLOOKUP(C27,'[1]Din Rep'!$C:$M,9,0)),"") -> 2.329411765 | H27: =IFERROR(IFERROR(VLOOKUP(B27,'[1]Din Rep'!$B:$M,11,0),VLOOKUP(C27,'[1]Din Rep'!$C:$M,10,0)),"") -> 0.1 | I27: =IFERROR(IFERROR(VLOOKUP(B27,'[1]Din Rep'!$B:$M,12,0),VLOOKUP(C27,'[1]Din Rep'!$C:$M,11,0)),"") -> 45 DD
B28: AC0004 | C28: =IFERROR(VLOOKUP(B28,'[1]Din Rep'!$B:$M,2,0),"") -> PORTA ÓCULOS DE NEOPRENE P/ CARRO - MORMAII | D28: =IFERROR(IFERROR(VLOOKUP(B28,'[1]Din Rep'!$B:$M,5,0),VLOOKUP(C28,'[1]Din Rep'!$C:$M,4,0)),"") -> 11.9051 | E28: =IFERROR(IFERROR(VLOOKUP(B28,'[1]Din Rep'!$B:$M,7,0),VLOOKUP(C28,'[1]Din Rep'!$C:$M,6,0)),"") -> 12.665 | F28: =IFERROR(IFERROR(VLOOKUP(B28,'[1]Din Rep'!$B:$M,8,0),VLOOKUP(C28,'[1]Din Rep'!$C:$M,7,0)),"") -> 32.78 | G28: =IFERROR(IFERROR(VLOOKUP(B28,'[1]Din Rep'!$B:$M,10,0),VLOOKUP(C28,'[1]Din Rep'!$C:$M,9,0)),"") -> 2.329411765 | H28: =IFERROR(IFERROR(VLOOKUP(B28,'[1]Din Rep'!$B:$M,11,0),VLOOKUP(C28,'[1]Din Rep'!$C:$M,10,0)),"") -> 0.1 | I28: =IFERROR(IFERROR(VLOOKUP(B28,'[1]Din Rep'!$B:$M,12,0),VLOOKUP(C28,'[1]Din Rep'!$C:$M,11,0)),"") -> 45 DD
B29: AC0009 | C29: =IFERROR(VLOOKUP(B29,'[1]Din Rep'!$B:$M,2,0),"") -> BOLSA PRAIA DE NEOPRENE 40X50CM ACESSÓRIOS MORMAII | D29: =IFERROR(IFERROR(VLOOKUP(B29,'[1]Din Rep'!$B:$M,5,0),VLOOKUP(C29,'[1]Din Rep'!$C:$M,4,0)),"") -> 56.729 | E29: =IFERROR(IFERROR(VLOOKUP(B29,'[1]Din Rep'!$B:$M,7,0),VLOOKUP(C29,'[1]Din Rep'!$C:$M,6,0)),"") -> 60.35 | F29: =IFERROR(IFERROR(VLOOKUP(B29,'[1]Din Rep'!$B:$M,8,0),VLOOKUP(C29,'[1]Din Rep'!$C:$M,7,0)),"") -> 159.9 | G29: =IFERROR(IFERROR(VLOOKUP(B29,'[1]Din Rep'!$B:$M,10,0),VLOOKUP(C29,'[1]Din Rep'!$C:$M,9,0)),"") -> 2.384589892 | H29: =IFERROR(IFERROR(VLOOKUP(B29,'[1]Din Rep'!$B:$M,11,0),VLOOKUP(C29,'[1]Din Rep'!$C:$M,10,0)),"") -> 0.1 | I29: =IFERROR(IFERROR(VLOOKUP(B29,'[1]Din Rep'!$B:$M,12,0),VLOOKUP(C29,'[1]Din Rep'!$C:$M,11,0)),"") -> 45 DD
B30: AC0113 | C30: =IFERROR(VLOOKUP(B30,'[1]Din Rep'!$B:$M,2,0),"") -> BOLSA UTILITÁRIA DE NEOPRENE ACESSÓRIOS MORMAII | D30: =IFERROR(IFERROR(VLOOKUP(B30,'[1]Din Rep'!$B:$M,5,0),VLOOKUP(C30,'[1]Din Rep'!$C:$M,4,0)),"") -> 56.729 | E30: =IFERROR(IFERROR(VLOOKUP(B30,'[1]Din Rep'!$B:$M,7,0),VLOOKUP(C30,'[1]Din Rep'!$C:$M,6,0)),"") -> 60.35 | F30: =IFERROR(IFERROR(VLOOKUP(B30,'[1]Din Rep'!$B:$M,8,0),VLOOKUP(C30,'[1]Din Rep'!$C:$M,7,0)),"") -> 159.9 | G30: =IFERROR(IFERROR(VLOOKUP(B30,'[1]Din Rep'!$B:$M,10,0),VLOOKUP(C30,'[1]Din Rep'!$C:$M,9,0)),"") -> 2.384589892 | H30: =IFERROR(IFERROR(VLOOKUP(B30,'[1]Din Rep'!$B:$M,11,0),VLOOKUP(C30,'[1]Din Rep'!$C:$M,10,0)),"") -> 0.1 | I30: =IFERROR(IFERROR(VLOOKUP(B30,'[1]Din Rep'!$B:$M,12,0),VLOOKUP(C30,'[1]Din Rep'!$C:$M,11,0)),"") -> 45 DD
B31: AC0011 | C31: =IFERROR(VLOOKUP(B31,'[1]Din Rep'!$B:$M,2,0),"") -> MÁSCARA DE NEOPRENE P/ DORMIR - MORMAII | D31: =IFERROR(IFERROR(VLOOKUP(B31,'[1]Din Rep'!$B:$M,5,0),VLOOKUP(C31,'[1]Din Rep'!$C:$M,4,0)),"") -> 7.23095 | E31: =IFERROR(IFERROR(VLOOKUP(B31,'[1]Din Rep'!$B:$M,7,0),VLOOKUP(C31,'[1]Din Rep'!$C:$M,6,0)),"") -> 7.6925 | F31: =IFERROR(IFERROR(VLOOKUP(B31,'[1]Din Rep'!$B:$M,8,0),VLOOKUP(C31,'[1]Din Rep'!$C:$M,7,0)),"") -> 19.91 | G31: =IFERROR(IFERROR(VLOOKUP(B31,'[1]Din Rep'!$B:$M,10,0),VLOOKUP(C31,'[1]Din Rep'!$C:$M,9,0)),"") -> 2.329411765 | H31: =IFERROR(IFERROR(VLOOKUP(B31,'[1]Din Rep'!$B:$M,11,0),VLOOKUP(C31,'[1]Din Rep'!$C:$M,10,0)),"") -> 0.1 | I31: =IFERROR(IFERROR(VLOOKUP(B31,'[1]Din Rep'!$B:$M,12,0),VLOOKUP(C31,'[1]Din Rep'!$C:$M,11,0)),"") -> 45 DD
B32: AC0013 | C32: =IFERROR(VLOOKUP(B32,'[1]Din Rep'!$B:$M,2,0),"") -> LUVA ACADEMIA DE NEOPRENE MEIO DEDO ACESSÓRIOS MORMAII | D32: =IFERROR(IFERROR(VLOOKUP(B32,'[1]Din Rep'!$B:$M,5,0),VLOOKUP(C32,'[1]Din Rep'!$C:$M,4,0)),"") -> 18.377 | E32: =IFERROR(IFERROR(VLOOKUP(B32,'[1]Din Rep'!$B:$M,7,0),VLOOKUP(C32,'[1]Din Rep'!$C:$M,6,0)),"") -> 19.55 | F32: =IFERROR(IFERROR(VLOOKUP(B32,'[1]Din Rep'!$B:$M,8,0),VLOOKUP(C32,'[1]Din Rep'!$C:$M,7,0)),"") -> 49.9 | G32: =IFERROR(IFERROR(VLOOKUP(B32,'[1]Din Rep'!$B:$M,10,0),VLOOKUP(C32,'[1]Din Rep'!$C:$M,9,0)),"") -> 2.297186701 | H32: =IFERROR(IFERROR(VLOOKUP(B32,'[1]Din Rep'!$B:$M,11,0),VLOOKUP(C32,'[1]Din Rep'!$C:$M,10,0)),"") -> 0.1 | I32: =IFERROR(IFERROR(VLOOKUP(B32,'[1]Din Rep'!$B:$M,12,0),VLOOKUP(C32,'[1]Din Rep'!$C:$M,11,0)),"") -> 45 DD
B33: AC0014 | C33: =IFERROR(VLOOKUP(B33,'[1]Din Rep'!$B:$M,2,0),"") -> ALMOFADA DE NEOPRENE P/ PESCOÇO - MORMAII | D33: =IFERROR(IFERROR(VLOOKUP(B33,'[1]Din Rep'!$B:$M,5,0),VLOOKUP(C33,'[1]Din Rep'!$C:$M,4,0)),"") -> 27.03816 | E33: =IFERROR(IFERROR(VLOOKUP(B33,'[1]Din Rep'!$B:$M,7,0),VLOOKUP(C33,'[1]Din Rep'!$C:$M,6,0)),"") -> 28.764 | F33: =IFERROR(IFERROR(VLOOKUP(B33,'[1]Din Rep'!$B:$M,8,0),VLOOKUP(C33,'[1]Din Rep'!$C:$M,7,0)),"") -> 74.448 | G33: =IFERROR(IFERROR(VLOOKUP(B33,'[1]Din Rep'!$B:$M,10,0),VLOOKUP(C33,'[1]Din Rep'!$C:$M,9,0)),"") -> 2.329411765 | H33: =IFERROR(IFERROR(VLOOKUP(B33,'[1]Din Rep'!$B:$M,11,0),VLOOKUP(C33,'[1]Din Rep'!$C:$M,10,0)),"") -> 0.1 | I33: =IFERROR(IFERROR(VLOOKUP(B33,'[1]Din Rep'!$B:$M,12,0),VLOOKUP(C33,'[1]Din Rep'!$C:$M,11,0)),"") -> 45 DD
B34: AC0024 | C34: =IFERROR(VLOOKUP(B34,'[1]Din Rep'!$B:$M,2,0),"") -> ESTOJO DE NEOPRENE C/ ZÍPER P/ ÓCULOS - MORMAII | D34: =IFERROR(IFERROR(VLOOKUP(B34,'[1]Din Rep'!$B:$M,5,0),VLOOKUP(C34,'[1]Din Rep'!$C:$M,4,0)),"") -> 9.68388 | E34: =IFERROR(IFERROR(VLOOKUP(B34,'[1]Din Rep'!$B:$M,7,0),VLOOKUP(C34,'[1]Din Rep'!$C:$M,6,0)),"") -> 10.302 | F34: =IFERROR(IFERROR(VLOOKUP(B34,'[1]Din Rep'!$B:$M,8,0),VLOOKUP(C34,'[1]Din Rep'!$C:$M,7,0)),"") -> 26.664 | G34: =IFERROR(IFERROR(VLOOKUP(B34,'[1]Din Rep'!$B:$M,10,0),VLOOKUP(C34,'[1]Din Rep'!$C:$M,9,0)),"") -> 2.329411765 | H34: =IFERROR(IFERROR(VLOOKUP(B34,'[1]Din Rep'!$B:$M,11,0),VLOOKUP(C34,'[1]Din Rep'!$C:$M,10,0)),"") -> 0.1 | I34: =IFERROR(IFERROR(VLOOKUP(B34,'[1]Din Rep'!$B:$M,12,0),VLOOKUP(C34,'[1]Din Rep'!$C:$M,11,0)),"") -> 45 DD
B35: AC0029 | C35: =IFERROR(VLOOKUP(B35,'[1]Din Rep'!$B:$M,2,0),"") -> BRACELETE PORTA VALOR DE NEOPRENE - MORMAII | D35: =IFERROR(IFERROR(VLOOKUP(B35,'[1]Din Rep'!$B:$M,5,0),VLOOKUP(C35,'[1]Din Rep'!$C:$M,4,0)),"") -> 7.00723 | E35: =IFERROR(IFERROR(VLOOKUP(B35,'[1]Din Rep'!$B:$M,7,0),VLOOKUP(C35,'[1]Din Rep'!$C:$M,6,0)),"") -> 7.4545 | F35: =IFERROR(IFERROR(VLOOKUP(B35,'[1]Din Rep'!$B:$M,8,0),VLOOKUP(C35,'[1]Din Rep'!$C:$M,7,0)),"") -> 19.294 | G35: =IFERROR(IFERROR(VLOOKUP(B35,'[1]Din Rep'!$B:$M,10,0),VLOOKUP(C35,'[1]Din Rep'!$C:$M,9,0)),"") -> 2.329411765 | H35: =IFERROR(IFERROR(VLOOKUP(B35,'[1]Din Rep'!$B:$M,11,0),VLOOKUP(C35,'[1]Din Rep'!$C:$M,10,0)),"") -> 0.1 | I35: =IFERROR(IFERROR(VLOOKUP(B35,'[1]Din Rep'!$B:$M,12,0),VLOOKUP(C35,'[1]Din Rep'!$C:$M,11,0)),"") -> 45 DD
B36: AC0030 | C36: =IFERROR(VLOOKUP(B36,'[1]Din Rep'!$B:$M,2,0),"") -> BRACELETE PORTA CHAVE DE NEOPRENE - MORMAII | D36: =IFERROR(IFERROR(VLOOKUP(B36,'[1]Din Rep'!$B:$M,5,0),VLOOKUP(C36,'[1]Din Rep'!$C:$M,4,0)),"") -> 7.00723 | E36: =IFERROR(IFERROR(VLOOKUP(B36,'[1]Din Rep'!$B:$M,7,0),VLOOKUP(C36,'[1]Din Rep'!$C:$M,6,0)),"") -> 7.4545 | F36: =IFERROR(IFERROR(VLOOKUP(B36,'[1]Din Rep'!$B:$M,8,0),VLOOKUP(C36,'[1]Din Rep'!$C:$M,7,0)),"") -> 19.294 | G36: =IFERROR(IFERROR(VLOOKUP(B36,'[1]Din Rep'!$B:$M,10,0),VLOOKUP(C36,'[1]Din Rep'!$C:$M,9,0)),"") -> 2.329411765 | H36: =IFERROR(IFERROR(VLOOKUP(B36,'[1]Din Rep'!$B:$M,11,0),VLOOKUP(C36,'[1]Din Rep'!$C:$M,10,0)),"") -> 0.1 | I36: =IFERROR(IFERROR(VLOOKUP(B36,'[1]Din Rep'!$B:$M,12,0),VLOOKUP(C36,'[1]Din Rep'!$C:$M,11,0)),"") -> 45 DD
B37: AC0031 | C37: =IFERROR(VLOOKUP(B37,'[1]Din Rep'!$B:$M,2,0),"") -> PORTA CELULAR DE BRAÇO DE NEOPRENE - MORMAII | D37: =IFERROR(IFERROR(VLOOKUP(B37,'[1]Din Rep'!$B:$M,5,0),VLOOKUP(C37,'[1]Din Rep'!$C:$M,4,0)),"") -> 13.03968 | E37: =IFERROR(IFERROR(VLOOKUP(B37,'[1]Din Rep'!$B:$M,7,0),VLOOKUP(C37,'[1]Din Rep'!$C:$M,6,0)),"") -> 13.872 | F37: =IFERROR(IFERROR(VLOOKUP(B37,'[1]Din Rep'!$B:$M,8,0),VLOOKUP(C37,'[1]Din Rep'!$C:$M,7,0)),"") -> 35.904 | G37: =IFERROR(IFERROR(VLOOKUP(B37,'[1]Din Rep'!$B:$M,10,0),VLOOKUP(C37,'[1]Din Rep'!$C:$M,9,0)),"") -> 2.329411765 | H37: =IFERROR(IFERROR(VLOOKUP(B37,'[1]Din Rep'!$B:$M,11,0),VLOOKUP(C37,'[1]Din Rep'!$C:$M,10,0)),"") -> 0.1 | I37: =IFERROR(IFERROR(VLOOKUP(B37,'[1]Din Rep'!$B:$M,12,0),VLOOKUP(C37,'[1]Din Rep'!$C:$M,11,0)),"") -> 45 DD
B38: AC0035 | C38: =IFERROR(VLOOKUP(B38,'[1]Din Rep'!$B:$M,2,0),"") -> MINI LANCHEIRA DE NEOPRENE - MORMAII | D38: =IFERROR(IFERROR(VLOOKUP(B38,'[1]Din Rep'!$B:$M,5,0),VLOOKUP(C38,'[1]Din Rep'!$C:$M,4,0)),"") -> 23.0911 | E38: =IFERROR(IFERROR(VLOOKUP(B38,'[1]Din Rep'!$B:$M,7,0),VLOOKUP(C38,'[1]Din Rep'!$C:$M,6,0)),"") -> 24.565 | F38: =IFERROR(IFERROR(VLOOKUP(B38,'[1]Din Rep'!$B:$M,8,0),VLOOKUP(C38,'[1]Din Rep'!$C:$M,7,0)),"") -> 63.58 | G38: =IFERROR(IFERROR(VLOOKUP(B38,'[1]Din Rep'!$B:$M,10,0),VLOOKUP(C38,'[1]Din Rep'!$C:$M,9,0)),"") -> 2.329411765 | H38: =IFERROR(IFERROR(VLOOKUP(B38,'[1]Din Rep'!$B:$M,11,0),VLOOKUP(C38,'[1]Din Rep'!$C:$M,10,0)),"") -> 0.1 | I38: =IFERROR(IFERROR(VLOOKUP(B38,'[1]Din Rep'!$B:$M,12,0),VLOOKUP(C38,'[1]Din Rep'!$C:$M,11,0)),"") -> 45 DD
B39: AC0091 | C39: =IFERROR(VLOOKUP(B39,'[1]Din Rep'!$B:$M,2,0),"") -> CHAVEIRO LOGO DE NEOPRENE - MORMAII | D39: =IFERROR(IFERROR(VLOOKUP(B39,'[1]Din Rep'!$B:$M,5,0),VLOOKUP(C39,'[1]Din Rep'!$C:$M,4,0)),"") -> 3.605088 | E39: =IFERROR(IFERROR(VLOOKUP(B39,'[1]Din Rep'!$B:$M,7,0),VLOOKUP(C39,'[1]Din Rep'!$C:$M,6,0)),"") -> 3.8352 | F39: =IFERROR(IFERROR(VLOOKUP(B39,'[1]Din Rep'!$B:$M,8,0),VLOOKUP(C39,'[1]Din Rep'!$C:$M,7,0)),"") -> 9.9264 | G39: =IFERROR(IFERROR(VLOOKUP(B39,'[1]Din Rep'!$B:$M,10,0),VLOOKUP(C39,'[1]Din Rep'!$C:$M,9,0)),"") -> 2.277647059 | H39: =IFERROR(IFERROR(VLOOKUP(B39,'[1]Din Rep'!$B:$M,11,0),VLOOKUP(C39,'[1]Din Rep'!$C:$M,10,0)),"") -> 0.12 | I39: =IFERROR(IFERROR(VLOOKUP(B39,'[1]Din Rep'!$B:$M,12,0),VLOOKUP(C39,'[1]Din Rep'!$C:$M,11,0)),"") -> 45 DD
B40: AC0092 | C40: =IFERROR(VLOOKUP(B40,'[1]Din Rep'!$B:$M,2,0),"") -> CHAVEIRO BONÉ NEOPRENE- MORMAII | D40: =IFERROR(IFERROR(VLOOKUP(B40,'[1]Din Rep'!$B:$M,5,0),VLOOKUP(C40,'[1]Din Rep'!$C:$M,4,0)),"") -> 3.605088 | E40: =IFERROR(IFERROR(VLOOKUP(B40,'[1]Din Rep'!$B:$M,7,0),VLOOKUP(C40,'[1]Din Rep'!$C:$M,6,0)),"") -> 3.8352 | F40: =IFERROR(IFERROR(VLOOKUP(B40,'[1]Din Rep'!$B:$M,8,0),VLOOKUP(C40,'[1]Din Rep'!$C:$M,7,0)),"") -> 9.9264 | G40: =IFERROR(IFERROR(VLOOKUP(B40,'[1]Din Rep'!$B:$M,10,0),VLOOKUP(C40,'[1]Din Rep'!$C:$M,9,0)),"") -> 2.277647059 | H40: =IFERROR(IFERROR(VLOOKUP(B40,'[1]Din Rep'!$B:$M,11,0),VLOOKUP(C40,'[1]Din Rep'!$C:$M,10,0)),"") -> 0.12 | I40: =IFERROR(IFERROR(VLOOKUP(B40,'[1]Din Rep'!$B:$M,12,0),VLOOKUP(C40,'[1]Din Rep'!$C:$M,11,0)),"") -> 45 DD
B41: AC0093 | C41: =IFERROR(VLOOKUP(B41,'[1]Din Rep'!$B:$M,2,0),"") -> CHAVEIRO PIRAMIDE NEOPRENE - MORMAII | D41: =IFERROR(IFERROR(VLOOKUP(B41,'[1]Din Rep'!$B:$M,5,0),VLOOKUP(C41,'[1]Din Rep'!$C:$M,4,0)),"") -> 3.605088 | E41: =IFERROR(IFERROR(VLOOKUP(B41,'[1]Din Rep'!$B:$M,7,0),VLOOKUP(C41,'[1]Din Rep'!$C:$M,6,0)),"") -> 3.8352 | F41: =IFERROR(IFERROR(VLOOKUP(B41,'[1]Din Rep'!$B:$M,8,0),VLOOKUP(C41,'[1]Din Rep'!$C:$M,7,0)),"") -> 9.9264 | G41: =IFERROR(IFERROR(VLOOKUP(B41,'[1]Din Rep'!$B:$M,10,0),VLOOKUP(C41,'[1]Din Rep'!$C:$M,9,0)),"") -> 2.277647059 | H41: =IFERROR(IFERROR(VLOOKUP(B41,'[1]Din Rep'!$B:$M,11,0),VLOOKUP(C41,'[1]Din Rep'!$C:$M,10,0)),"") -> 0.12 | I41: =IFERROR(IFERROR(VLOOKUP(B41,'[1]Din Rep'!$B:$M,12,0),VLOOKUP(C41,'[1]Din Rep'!$C:$M,11,0)),"") -> 45 DD
B42: AC0094 | C42: =IFERROR(VLOOKUP(B42,'[1]Din Rep'!$B:$M,2,0),"") -> CHAVEIRO PORTA CARTÃO DE NEOPRENE - MORMAII | D42: =IFERROR(IFERROR(VLOOKUP(B42,'[1]Din Rep'!$B:$M,5,0),VLOOKUP(C42,'[1]Din Rep'!$C:$M,4,0)),"") -> 3.605088 | E42: =IFERROR(IFERROR(VLOOKUP(B42,'[1]Din Rep'!$B:$M,7,0),VLOOKUP(C42,'[1]Din Rep'!$C:$M,6,0)),"") -> 3.8352 | F42: =IFERROR(IFERROR(VLOOKUP(B42,'[1]Din Rep'!$B:$M,8,0),VLOOKUP(C42,'[1]Din Rep'!$C:$M,7,0)),"") -> 9.9264 | G42: =IFERROR(IFERROR(VLOOKUP(B42,'[1]Din Rep'!$B:$M,10,0),VLOOKUP(C42,'[1]Din Rep'!$C:$M,9,0)),"") -> 2.277647059 | H42: =IFERROR(IFERROR(VLOOKUP(B42,'[1]Din Rep'!$B:$M,11,0),VLOOKUP(C42,'[1]Din Rep'!$C:$M,10,0)),"") -> 0.12 | I42: =IFERROR(IFERROR(VLOOKUP(B42,'[1]Din Rep'!$B:$M,12,0),VLOOKUP(C42,'[1]Din Rep'!$C:$M,11,0)),"") -> 45 DD
B43: AC0095 | C43: =IFERROR(VLOOKUP(B43,'[1]Din Rep'!$B:$M,2,0),"") -> CHAVEIRO MOTOBOY NEOPRENE ACESSÓRIOS MORMAII | D43: =IFERROR(IFERROR(VLOOKUP(B43,'[1]Din Rep'!$B:$M,5,0),VLOOKUP(C43,'[1]Din Rep'!$C:$M,4,0)),"") -> 3.605088 | E43: =IFERROR(IFERROR(VLOOKUP(B43,'[1]Din Rep'!$B:$M,7,0),VLOOKUP(C43,'[1]Din Rep'!$C:$M,6,0)),"") -> 3.8352 | F43: =IFERROR(IFERROR(VLOOKUP(B43,'[1]Din Rep'!$B:$M,8,0),VLOOKUP(C43,'[1]Din Rep'!$C:$M,7,0)),"") -> 9.9264 | G43: =IFERROR(IFERROR(VLOOKUP(B43,'[1]Din Rep'!$B:$M,10,0),VLOOKUP(C43,'[1]Din Rep'!$C:$M,9,0)),"") -> 2.277647059 | H43: =IFERROR(IFERROR(VLOOKUP(B43,'[1]Din Rep'!$B:$M,11,0),VLOOKUP(C43,'[1]Din Rep'!$C:$M,10,0)),"") -> 0.12 | I43: =IFERROR(IFERROR(VLOOKUP(B43,'[1]Din Rep'!$B:$M,12,0),VLOOKUP(C43,'[1]Din Rep'!$C:$M,11,0)),"") -> 45 DD
B44: AO0006 | C44: =IFERROR(VLOOKUP(B44,'[1]Din Rep'!$B:$M,2,0),"") -> MINI NECESSAIRE OPORTUNIDADES MORMAII | D44: =IFERROR(IFERROR(VLOOKUP(B44,'[1]Din Rep'!$B:$M,5,0),VLOOKUP(C44,'[1]Din Rep'!$C:$M,4,0)),"") -> 8.82096 | E44: =IFERROR(IFERROR(VLOOKUP(B44,'[1]Din Rep'!$B:$M,7,0),VLOOKUP(C44,'[1]Din Rep'!$C:$M,6,0)),"") -> 9.384 | F44: =IFERROR(IFERROR(VLOOKUP(B44,'[1]Din Rep'!$B:$M,8,0),VLOOKUP(C44,'[1]Din Rep'!$C:$M,7,0)),"") -> 24.288 | G44: =IFERROR(IFERROR(VLOOKUP(B44,'[1]Din Rep'!$B:$M,10,0),VLOOKUP(C44,'[1]Din Rep'!$C:$M,9,0)),"") -> 2.329411765 | H44: =IFERROR(IFERROR(VLOOKUP(B44,'[1]Din Rep'!$B:$M,11,0),VLOOKUP(C44,'[1]Din Rep'!$C:$M,10,0)),"") -> 0.1 | I44: =IFERROR(IFERROR(VLOOKUP(B44,'[1]Din Rep'!$B:$M,12,0),VLOOKUP(C44,'[1]Din Rep'!$C:$M,11,0)),"") -> 45 DD
B45: A602B | C45: =IFERROR(VLOOKUP(B45,'[1]Din Rep'!$B:$M,2,0),"") -> CHAVEIRO TUBARÃO | D45: =IFERROR(IFERROR(VLOOKUP(B45,'[1]Din Rep'!$B:$M,5,0),VLOOKUP(C45,'[1]Din Rep'!$C:$M,4,0)),"") -> 3.605088 | E45: =IFERROR(IFERROR(VLOOKUP(B45,'[1]Din Rep'!$B:$M,7,0),VLOOKUP(C45,'[1]Din Rep'!$C:$M,6,0)),"") -> 3.8352 | F45: =IFERROR(IFERROR(VLOOKUP(B45,'[1]Din Rep'!$B:$M,8,0),VLOOKUP(C45,'[1]Din Rep'!$C:$M,7,0)),"") -> 9.9264 | G45: =IFERROR(IFERROR(VLOOKUP(B45,'[1]Din Rep'!$B:$M,10,0),VLOOKUP(C45,'[1]Din Rep'!$C:$M,9,0)),"") -> 2.277647059 | H45: =IFERROR(IFERROR(VLOOKUP(B45,'[1]Din Rep'!$B:$M,11,0),VLOOKUP(C45,'[1]Din Rep'!$C:$M,10,0)),"") -> 0.12 | I45: =IFERROR(IFERROR(VLOOKUP(B45,'[1]Din Rep'!$B:$M,12,0),VLOOKUP(C45,'[1]Din Rep'!$C:$M,11,0)),"") -> 45 DD
B46: AC0096 | C46: =IFERROR(VLOOKUP(B46,'[1]Din Rep'!$B:$M,2,0),"") -> SEGURANÇA FECHADA ÓCULOS | D46: =IFERROR(IFERROR(VLOOKUP(B46,'[1]Din Rep'!$B:$M,5,0),VLOOKUP(C46,'[1]Din Rep'!$C:$M,4,0)),"") -> 5.20149 | E46: =IFERROR(IFERROR(VLOOKUP(B46,'[1]Din Rep'!$B:$M,7,0),VLOOKUP(C46,'[1]Din Rep'!$C:$M,6,0)),"") -> 5.5335 | F46: =IFERROR(IFERROR(VLOOKUP(B46,'[1]Din Rep'!$B:$M,8,0),VLOOKUP(C46,'[1]Din Rep'!$C:$M,7,0)),"") -> 14.322 | G46: =IFERROR(IFERROR(VLOOKUP(B46,'[1]Din Rep'!$B:$M,10,0),VLOOKUP(C46,'[1]Din Rep'!$C:$M,9,0)),"") -> 2.277647059 | H46: =IFERROR(IFERROR(VLOOKUP(B46,'[1]Din Rep'!$B:$M,11,0),VLOOKUP(C46,'[1]Din Rep'!$C:$M,10,0)),"") -> 0.12 | I46: =IFERROR(IFERROR(VLOOKUP(B46,'[1]Din Rep'!$B:$M,12,0),VLOOKUP(C46,'[1]Din Rep'!$C:$M,11,0)),"") -> 45 DD
B47: AC0097 | C47: =IFERROR(VLOOKUP(B47,'[1]Din Rep'!$B:$M,2,0),"") -> CHAVEIRO JET SKY | D47: =IFERROR(IFERROR(VLOOKUP(B47,'[1]Din Rep'!$B:$M,5,0),VLOOKUP(C47,'[1]Din Rep'!$C:$M,4,0)),"") -> 3.605088 | E47: =IFERROR(IFERROR(VLOOKUP(B47,'[1]Din Rep'!$B:$M,7,0),VLOOKUP(C47,'[1]Din Rep'!$C:$M,6,0)),"") -> 3.8352 | F47: =IFERROR(IFERROR(VLOOKUP(B47,'[1]Din Rep'!$B:$M,8,0),VLOOKUP(C47,'[1]Din Rep'!$C:$M,7,0)),"") -> 9.9264 | G47: =IFERROR(IFERROR(VLOOKUP(B47,'[1]Din Rep'!$B:$M,10,0),VLOOKUP(C47,'[1]Din Rep'!$C:$M,9,0)),"") -> 2.277647059 | H47: =IFERROR(IFERROR(VLOOKUP(B47,'[1]Din Rep'!$B:$M,11,0),VLOOKUP(C47,'[1]Din Rep'!$C:$M,10,0)),"") -> 0.12 | I47: =IFERROR(IFERROR(VLOOKUP(B47,'[1]Din Rep'!$B:$M,12,0),VLOOKUP(C47,'[1]Din Rep'!$C:$M,11,0)),"") -> 45 DD
B48: AC0098 | C48: =IFERROR(VLOOKUP(B48,'[1]Din Rep'!$B:$M,2,0),"") -> CHAVEIRO DADO | D48: =IFERROR(IFERROR(VLOOKUP(B48,'[1]Din Rep'!$B:$M,5,0),VLOOKUP(C48,'[1]Din Rep'!$C:$M,4,0)),"") -> 3.605088 | E48: =IFERROR(IFERROR(VLOOKUP(B48,'[1]Din Rep'!$B:$M,7,0),VLOOKUP(C48,'[1]Din Rep'!$C:$M,6,0)),"") -> 3.8352 | F48: =IFERROR(IFERROR(VLOOKUP(B48,'[1]Din Rep'!$B:$M,8,0),VLOOKUP(C48,'[1]Din Rep'!$C:$M,7,0)),"") -> 9.9264 | G48: =IFERROR(IFERROR(VLOOKUP(B48,'[1]Din Rep'!$B:$M,10,0),VLOOKUP(C48,'[1]Din Rep'!$C:$M,9,0)),"") -> 2.277647059 | H48: =IFERROR(IFERROR(VLOOKUP(B48,'[1]Din Rep'!$B:$M,11,0),VLOOKUP(C48,'[1]Din Rep'!$C:$M,10,0)),"") -> 0.12 | I48: =IFERROR(IFERROR(VLOOKUP(B48,'[1]Din Rep'!$B:$M,12,0),VLOOKUP(C48,'[1]Din Rep'!$C:$M,11,0)),"") -> 45 DD
B49: AC0099 | C49: =IFERROR(VLOOKUP(B49,'[1]Din Rep'!$B:$M,2,0),"") -> CHAVEIRO SANDÁLIA | D49: =IFERROR(IFERROR(VLOOKUP(B49,'[1]Din Rep'!$B:$M,5,0),VLOOKUP(C49,'[1]Din Rep'!$C:$M,4,0)),"") -> 3.605088 | E49: =IFERROR(IFERROR(VLOOKUP(B49,'[1]Din Rep'!$B:$M,7,0),VLOOKUP(C49,'[1]Din Rep'!$C:$M,6,0)),"") -> 3.8352 | F49: =IFERROR(IFERROR(VLOOKUP(B49,'[1]Din Rep'!$B:$M,8,0),VLOOKUP(C49,'[1]Din Rep'!$C:$M,7,0)),"") -> 9.9264 | G49: =IFERROR(IFERROR(VLOOKUP(B49,'[1]Din Rep'!$B:$M,10,0),VLOOKUP(C49,'[1]Din Rep'!$C:$M,9,0)),"") -> 2.277647059 | H49: =IFERROR(IFERROR(VLOOKUP(B49,'[1]Din Rep'!$B:$M,11,0),VLOOKUP(C49,'[1]Din Rep'!$C:$M,10,0)),"") -> 0.12 | I49: =IFERROR(IFERROR(VLOOKUP(B49,'[1]Din Rep'!$B:$M,12,0),VLOOKUP(C49,'[1]Din Rep'!$C:$M,11,0)),"") -> 45 DD
B50: AC0100 | C50: =IFERROR(VLOOKUP(B50,'[1]Din Rep'!$B:$M,2,0),"") -> CHAVEIRO PRANCHA | D50: =IFERROR(IFERROR(VLOOKUP(B50,'[1]Din Rep'!$B:$M,5,0),VLOOKUP(C50,'[1]Din Rep'!$C:$M,4,0)),"") -> 3.605088 | E50: =IFERROR(IFERROR(VLOOKUP(B50,'[1]Din Rep'!$B:$M,7,0),VLOOKUP(C50,'[1]Din Rep'!$C:$M,6,0)),"") -> 3.8352 | F50: =IFERROR(IFERROR(VLOOKUP(B50,'[1]Din Rep'!$B:$M,8,0),VLOOKUP(C50,'[1]Din Rep'!$C:$M,7,0)),"") -> 9.9264 | G50: =IFERROR(IFERROR(VLOOKUP(B50,'[1]Din Rep'!$B:$M,10,0),VLOOKUP(C50,'[1]Din Rep'!$C:$M,9,0)),"") -> 2.277647059 | H50: =IFERROR(IFERROR(VLOOKUP(B50,'[1]Din Rep'!$B:$M,11,0),VLOOKUP(C50,'[1]Din Rep'!$C:$M,10,0)),"") -> 0.12 | I50: =IFERROR(IFERROR(VLOOKUP(B50,'[1]Din Rep'!$B:$M,12,0),VLOOKUP(C50,'[1]Din Rep'!$C:$M,11,0)),"") -> 45 DD
B51: AC0101 | C51: =IFERROR(VLOOKUP(B51,'[1]Din Rep'!$B:$M,2,0),"") -> CHAVEIRO MOSQUETÃO | D51: =IFERROR(IFERROR(VLOOKUP(B51,'[1]Din Rep'!$B:$M,5,0),VLOOKUP(C51,'[1]Din Rep'!$C:$M,4,0)),"") -> 5.7528 | E51: =IFERROR(IFERROR(VLOOKUP(B51,'[1]Din Rep'!$B:$M,7,0),VLOOKUP(C51,'[1]Din Rep'!$C:$M,6,0)),"") -> 6.12 | F51: =IFERROR(IFERROR(VLOOKUP(B51,'[1]Din Rep'!$B:$M,8,0),VLOOKUP(C51,'[1]Din Rep'!$C:$M,7,0)),"") -> 16.13 | G51: =IFERROR(IFERROR(VLOOKUP(B51,'[1]Din Rep'!$B:$M,10,0),VLOOKUP(C51,'[1]Din Rep'!$C:$M,9,0)),"") -> 2.319346405 | H51: =IFERROR(IFERROR(VLOOKUP(B51,'[1]Din Rep'!$B:$M,11,0),VLOOKUP(C51,'[1]Din Rep'!$C:$M,10,0)),"") -> 0.12 | I51: =IFERROR(IFERROR(VLOOKUP(B51,'[1]Din Rep'!$B:$M,12,0),VLOOKUP(C51,'[1]Din Rep'!$C:$M,11,0)),"") -> 45 DD
B52: AO0019 | C52: =IFERROR(VLOOKUP(B52,'[1]Din Rep'!$B:$M,2,0),"") -> BOLSA DE MÃO DE NEOPRENE ACESSÓRIOS OPORTUNIDADES MORMAII | D52: =IFERROR(IFERROR(VLOOKUP(B52,'[1]Din Rep'!$B:$M,5,0),VLOOKUP(C52,'[1]Din Rep'!$C:$M,4,0)),"") -> 12.59224 | E52: =IFERROR(IFERROR(VLOOKUP(B52,'[1]Din Rep'!$B:$M,7,0),VLOOKUP(C52,'[1]Din Rep'!$C:$M,6,0)),"") -> 13.396 | F52: =IFERROR(IFERROR(VLOOKUP(B52,'[1]Din Rep'!$B:$M,8,0),VLOOKUP(C52,'[1]Din Rep'!$C:$M,7,0)),"") -> 34.9 | G52: =IFERROR(IFERROR(VLOOKUP(B52,'[1]Din Rep'!$B:$M,10,0),VLOOKUP(C52,'[1]Din Rep'!$C:$M,9,0)),"") -> 2.34472977 | H52: =IFERROR(IFERROR(VLOOKUP(B52,'[1]Din Rep'!$B:$M,11,0),VLOOKUP(C52,'[1]Din Rep'!$C:$M,10,0)),"") -> 0.1 | I52: =IFERROR(IFERROR(VLOOKUP(B52,'[1]Din Rep'!$B:$M,12,0),VLOOKUP(C52,'[1]Din Rep'!$C:$M,11,0)),"") -> 45 DD
B53: AO0010 | C53: =IFERROR(VLOOKUP(B53,'[1]Din Rep'!$B:$M,2,0),"") -> BOLSA ACESSÓRIOS OPORTUNIDADES MORMAII | D53: =IFERROR(IFERROR(VLOOKUP(B53,'[1]Din Rep'!$B:$M,5,0),VLOOKUP(C53,'[1]Din Rep'!$C:$M,4,0)),"") -> 28.10882 | E53: =IFERROR(IFERROR(VLOOKUP(B53,'[1]Din Rep'!$B:$M,7,0),VLOOKUP(C53,'[1]Din Rep'!$C:$M,6,0)),"") -> 29.903 | F53: =IFERROR(IFERROR(VLOOKUP(B53,'[1]Din Rep'!$B:$M,8,0),VLOOKUP(C53,'[1]Din Rep'!$C:$M,7,0)),"") -> 77.9 | G53: =IFERROR(IFERROR(VLOOKUP(B53,'[1]Din Rep'!$B:$M,10,0),VLOOKUP(C53,'[1]Din Rep'!$C:$M,9,0)),"") -> 2.344580811 | H53: =IFERROR(IFERROR(VLOOKUP(B53,'[1]Din Rep'!$B:$M,11,0),VLOOKUP(C53,'[1]Din Rep'!$C:$M,10,0)),"") -> 0.1 | I53: =IFERROR(IFERROR(VLOOKUP(B53,'[1]Din Rep'!$B:$M,12,0),VLOOKUP(C53,'[1]Din Rep'!$C:$M,11,0)),"") -> 45 DD
B54: AC0112 | C54: =IFERROR(VLOOKUP(B54,'[1]Din Rep'!$B:$M,2,0),"") -> BOLSA UTILITÁRIA GRANDE DE NEOPRENE ACESSÓRIOS MORMAII | D54: =IFERROR(IFERROR(VLOOKUP(B54,'[1]Din Rep'!$B:$M,5,0),VLOOKUP(C54,'[1]Din Rep'!$C:$M,4,0)),"") -> 68.714 | E54: =IFERROR(IFERROR(VLOOKUP(B54,'[1]Din Rep'!$B:$M,7,0),VLOOKUP(C54,'[1]Din Rep'!$C:$M,6,0)),"") -> 73.1 | F54: =IFERROR(IFERROR(VLOOKUP(B54,'[1]Din Rep'!$B:$M,8,0),VLOOKUP(C54,'[1]Din Rep'!$C:$M,7,0)),"") -> 189.9 | G54: =IFERROR(IFERROR(VLOOKUP(B54,'[1]Din Rep'!$B:$M,10,0),VLOOKUP(C54,'[1]Din Rep'!$C:$M,9,0)),"") -> 2.338030096 | H54: =IFERROR(IFERROR(VLOOKUP(B54,'[1]Din Rep'!$B:$M,11,0),VLOOKUP(C54,'[1]Din Rep'!$C:$M,10,0)),"") -> 0.1 | I54: =IFERROR(IFERROR(VLOOKUP(B54,'[1]Din Rep'!$B:$M,12,0),VLOOKUP(C54,'[1]Din Rep'!$C:$M,11,0)),"") -> 45 DD
B55: AC0109 | C55: =IFERROR(VLOOKUP(B55,'[1]Din Rep'!$B:$M,2,0),"") -> MINI TRAVESSEIRO DE NEOPRENE ACESSÓRIOS MORMAII | D55: =IFERROR(IFERROR(VLOOKUP(B55,'[1]Din Rep'!$B:$M,5,0),VLOOKUP(C55,'[1]Din Rep'!$C:$M,4,0)),"") -> 17.9775 | E55: =IFERROR(IFERROR(VLOOKUP(B55,'[1]Din Rep'!$B:$M,7,0),VLOOKUP(C55,'[1]Din Rep'!$C:$M,6,0)),"") -> 19.125 | F55: =IFERROR(IFERROR(VLOOKUP(B55,'[1]Din Rep'!$B:$M,8,0),VLOOKUP(C55,'[1]Din Rep'!$C:$M,7,0)),"") -> 49.9 | G55: =IFERROR(IFERROR(VLOOKUP(B55,'[1]Din Rep'!$B:$M,10,0),VLOOKUP(C55,'[1]Din Rep'!$C:$M,9,0)),"") -> 2.348235294 | H55: =IFERROR(IFERROR(VLOOKUP(B55,'[1]Din Rep'!$B:$M,11,0),VLOOKUP(C55,'[1]Din Rep'!$C:$M,10,0)),"") -> 0.1 | I55: =IFERROR(IFERROR(VLOOKUP(B55,'[1]Din Rep'!$B:$M,12,0),VLOOKUP(C55,'[1]Din Rep'!$C:$M,11,0)),"") -> 45 DD
B56: AC0120 | C56: =IFERROR(VLOOKUP(B56,'[1]Din Rep'!$B:$M,2,0),"") -> PORTA CELULAR DE NEOPRENE C/ VISOR PLÁSTICO ACESSÓRIOS MORMAII | D56: =IFERROR(IFERROR(VLOOKUP(B56,'[1]Din Rep'!$B:$M,5,0),VLOOKUP(C56,'[1]Din Rep'!$C:$M,4,0)),"") -> 10.18725 | E56: =IFERROR(IFERROR(VLOOKUP(B56,'[1]Din Rep'!$B:$M,7,0),VLOOKUP(C56,'[1]Din Rep'!$C:$M,6,0)),"") -> 10.8375 | F56: =IFERROR(IFERROR(VLOOKUP(B56,'[1]Din Rep'!$B:$M,8,0),VLOOKUP(C56,'[1]Din Rep'!$C:$M,7,0)),"") -> 29.9 | G56: =IFERROR(IFERROR(VLOOKUP(B56,'[1]Din Rep'!$B:$M,10,0),VLOOKUP(C56,'[1]Din Rep'!$C:$M,9,0)),"") -> 2.483044983 | H56: =IFERROR(IFERROR(VLOOKUP(B56,'[1]Din Rep'!$B:$M,11,0),VLOOKUP(C56,'[1]Din Rep'!$C:$M,10,0)),"") -> 0.1 | I56: =IFERROR(IFERROR(VLOOKUP(B56,'[1]Din Rep'!$B:$M,12,0),VLOOKUP(C56,'[1]Din Rep'!$C:$M,11,0)),"") -> 45 DD
A57: THERMO DRINK | B57: AC0129 | C57: =IFERROR(VLOOKUP(B57,'[1]Din Rep'!$B:$M,2,0),"") -> CAPA DE NEOPRENE P/ GALÃO DE ÁGUA 10L THERMO DRINK ACESSÓRIOS MORMAII | D57: =IFERROR(IFERROR(VLOOKUP(B57,'[1]Din Rep'!$B:$M,5,0),VLOOKUP(C57,'[1]Din Rep'!$C:$M,4,0)),"") -> 23.8901 | E57: =IFERROR(IFERROR(VLOOKUP(B57,'[1]Din Rep'!$B:$M,7,0),VLOOKUP(C57,'[1]Din Rep'!$C:$M,6,0)),"") -> 25.415 | F57: =IFERROR(IFERROR(VLOOKUP(B57,'[1]Din Rep'!$B:$M,8,0),VLOOKUP(C57,'[1]Din Rep'!$C:$M,7,0)),"") -> 65.9 | G57: =IFERROR(IFERROR(VLOOKUP(B57,'[1]Din Rep'!$B:$M,10,0),VLOOKUP(C57,'[1]Din Rep'!$C:$M,9,0)),"") -> 2.333661224 | H57: =IFERROR(IFERROR(VLOOKUP(B57,'[1]Din Rep'!$B:$M,11,0),VLOOKUP(C57,'[1]Din Rep'!$C:$M,10,0)),"") -> 0.1 | I57: =IFERROR(IFERROR(VLOOKUP(B57,'[1]Din Rep'!$B:$M,12,0),VLOOKUP(C57,'[1]Din Rep'!$C:$M,11,0)),"") -> 45 DD
B58: AC0128 | C58: =IFERROR(VLOOKUP(B58,'[1]Din Rep'!$B:$M,2,0),"") -> CAPA DE NEOPRENE P/ GALÃO DE ÁGUA 20L THERMO DRINK ACESSÓRIOS MORMAII | D58: =IFERROR(IFERROR(VLOOKUP(B58,'[1]Din Rep'!$B:$M,5,0),VLOOKUP(C58,'[1]Din Rep'!$C:$M,4,0)),"") -> 31.8801 | E58: =IFERROR(IFERROR(VLOOKUP(B58,'[1]Din Rep'!$B:$M,7,0),VLOOKUP(C58,'[1]Din Rep'!$C:$M,6,0)),"") -> 33.915 | F58: =IFERROR(IFERROR(VLOOKUP(B58,'[1]Din Rep'!$B:$M,8,0),VLOOKUP(C58,'[1]Din Rep'!$C:$M,7,0)),"") -> 87.9 | G58: =IFERROR(IFERROR(VLOOKUP(B58,'[1]Din Rep'!$B:$M,10,0),VLOOKUP(C58,'[1]Din Rep'!$C:$M,9,0)),"") -> 2.332596196 | H58: =IFERROR(IFERROR(VLOOKUP(B58,'[1]Din Rep'!$B:$M,11,0),VLOOKUP(C58,'[1]Din Rep'!$C:$M,10,0)),"") -> 0.1 | I58: =IFERROR(IFERROR(VLOOKUP(B58,'[1]Din Rep'!$B:$M,12,0),VLOOKUP(C58,'[1]Din Rep'!$C:$M,11,0)),"") -> 45 DD
B59: AC0134 | C59: =IFERROR(VLOOKUP(B59,'[1]Din Rep'!$B:$M,2,0),"") -> PORTA LONG NECK 330ML DE NEOPRENE THERMO DRINK ACESSÓRIOS MORMAII | D59: =IFERROR(IFERROR(VLOOKUP(B59,'[1]Din Rep'!$B:$M,5,0),VLOOKUP(C59,'[1]Din Rep'!$C:$M,4,0)),"") -> 7.9101 | E59: =IFERROR(IFERROR(VLOOKUP(B59,'[1]Din Rep'!$B:$M,7,0),VLOOKUP(C59,'[1]Din Rep'!$C:$M,6,0)),"") -> 8.415 | F59: =IFERROR(IFERROR(VLOOKUP(B59,'[1]Din Rep'!$B:$M,8,0),VLOOKUP(C59,'[1]Din Rep'!$C:$M,7,0)),"") -> 21.9 | G59: =IFERROR(IFERROR(VLOOKUP(B59,'[1]Din Rep'!$B:$M,10,0),VLOOKUP(C59,'[1]Din Rep'!$C:$M,9,0)),"") -> 2.342245989 | H59: =IFERROR(IFERROR(VLOOKUP(B59,'[1]Din Rep'!$B:$M,11,0),VLOOKUP(C59,'[1]Din Rep'!$C:$M,10,0)),"") -> 0.1 | I59: =IFERROR(IFERROR(VLOOKUP(B59,'[1]Din Rep'!$B:$M,12,0),VLOOKUP(C59,'[1]Din Rep'!$C:$M,11,0)),"") -> 45 DD
B60: AC0133 | C60: =IFERROR(VLOOKUP(B60,'[1]Din Rep'!$B:$M,2,0),"") -> PORTA GARRAFA 600ML DE NEOPRENE THERMO DRINK ACESSÓRIOS MORMAII | D60: =IFERROR(IFERROR(VLOOKUP(B60,'[1]Din Rep'!$B:$M,5,0),VLOOKUP(C60,'[1]Din Rep'!$C:$M,4,0)),"") -> 10.3071 | E60: =IFERROR(IFERROR(VLOOKUP(B60,'[1]Din Rep'!$B:$M,7,0),VLOOKUP(C60,'[1]Din Rep'!$C:$M,6,0)),"") -> 10.965 | F60: =IFERROR(IFERROR(VLOOKUP(B60,'[1]Din Rep'!$B:$M,8,0),VLOOKUP(C60,'[1]Din Rep'!$C:$M,7,0)),"") -> 28.9 | G60: =IFERROR(IFERROR(VLOOKUP(B60,'[1]Din Rep'!$B:$M,10,0),VLOOKUP(C60,'[1]Din Rep'!$C:$M,9,0)),"") -> 2.372093023 | H60: =IFERROR(IFERROR(VLOOKUP(B60,'[1]Din Rep'!$B:$M,11,0),VLOOKUP(C60,'[1]Din Rep'!$C:$M,10,0)),"") -> 0.1 | I60: =IFERROR(IFERROR(VLOOKUP(B60,'[1]Din Rep'!$B:$M,12,0),VLOOKUP(C60,'[1]Din Rep'!$C:$M,11,0)),"") -> 45 DD
B61: AC0132 | C61: =IFERROR(VLOOKUP(B61,'[1]Din Rep'!$B:$M,2,0),"") -> PORTA GARRAFA 1L DE NEOPRENE THERMO DRINK ACESSÓRIOS MORMAII | D61: =IFERROR(IFERROR(VLOOKUP(B61,'[1]Din Rep'!$B:$M,5,0),VLOOKUP(C61,'[1]Din Rep'!$C:$M,4,0)),"") -> 11.1061 | E61: =IFERROR(IFERROR(VLOOKUP(B61,'[1]Din Rep'!$B:$M,7,0),VLOOKUP(C61,'[1]Din Rep'!$C:$M,6,0)),"") -> 11.815 | F61: =IFERROR(IFERROR(VLOOKUP(B61,'[1]Din Rep'!$B:$M,8,0),VLOOKUP(C61,'[1]Din Rep'!$C:$M,7,0)),"") -> 30.9 | G61: =IFERROR(IFERROR(VLOOKUP(B61,'[1]Din Rep'!$B:$M,10,0),VLOOKUP(C61,'[1]Din Rep'!$C:$M,9,0)),"") -> 2.353787558 | H61: =IFERROR(IFERROR(VLOOKUP(B61,'[1]Din Rep'!$B:$M,11,0),VLOOKUP(C61,'[1]Din Rep'!$C:$M,10,0)),"") -> 0.1 | I61: =IFERROR(IFERROR(VLOOKUP(B61,'[1]Din Rep'!$B:$M,12,0),VLOOKUP(C61,'[1]Din Rep'!$C:$M,11,0)),"") -> 45 DD
B62: AC0135 | C62: =IFERROR(VLOOKUP(B62,'[1]Din Rep'!$B:$M,2,0),"") -> PORTA LATA 350ML DE NEOPRENE THERMO DRINK ACESSÓRIOS MORMAII | D62: =IFERROR(IFERROR(VLOOKUP(B62,'[1]Din Rep'!$B:$M,5,0),VLOOKUP(C62,'[1]Din Rep'!$C:$M,4,0)),"") -> 5.9925 | E62: =IFERROR(IFERROR(VLOOKUP(B62,'[1]Din Rep'!$B:$M,7,0),VLOOKUP(C62,'[1]Din Rep'!$C:$M,6,0)),"") -> 6.375 | F62: =IFERROR(IFERROR(VLOOKUP(B62,'[1]Din Rep'!$B:$M,8,0),VLOOKUP(C62,'[1]Din Rep'!$C:$M,7,0)),"") -> 16.9 | G62: =IFERROR(IFERROR(VLOOKUP(B62,'[1]Din Rep'!$B:$M,10,0),VLOOKUP(C62,'[1]Din Rep'!$C:$M,9,0)),"") -> 2.385882353 | H62: =IFERROR(IFERROR(VLOOKUP(B62,'[1]Din Rep'!$B:$M,11,0),VLOOKUP(C62,'[1]Din Rep'!$C:$M,10,0)),"") -> 0.1 | I62: =IFERROR(IFERROR(VLOOKUP(B62,'[1]Din Rep'!$B:$M,12,0),VLOOKUP(C62,'[1]Din Rep'!$C:$M,11,0)),"") -> 45 DD
B63: AC0136 | C63: =IFERROR(VLOOKUP(B63,'[1]Din Rep'!$B:$M,2,0),"") -> PORTA LATA 470ML DE NEOPRENE THERMO DRINK ACESSÓRIOS MORMAII | D63: =IFERROR(IFERROR(VLOOKUP(B63,'[1]Din Rep'!$B:$M,5,0),VLOOKUP(C63,'[1]Din Rep'!$C:$M,4,0)),"") -> 6.3121 | E63: =IFERROR(IFERROR(VLOOKUP(B63,'[1]Din Rep'!$B:$M,7,0),VLOOKUP(C63,'[1]Din Rep'!$C:$M,6,0)),"") -> 6.715 | F63: =IFERROR(IFERROR(VLOOKUP(B63,'[1]Din Rep'!$B:$M,8,0),VLOOKUP(C63,'[1]Din Rep'!$C:$M,7,0)),"") -> 17.9 | G63: =IFERROR(IFERROR(VLOOKUP(B63,'[1]Din Rep'!$B:$M,10,0),VLOOKUP(C63,'[1]Din Rep'!$C:$M,9,0)),"") -> 2.399106478 | H63: =IFERROR(IFERROR(VLOOKUP(B63,'[1]Din Rep'!$B:$M,11,0),VLOOKUP(C63,'[1]Din Rep'!$C:$M,10,0)),"") -> 0.1 | I63: =IFERROR(IFERROR(VLOOKUP(B63,'[1]Din Rep'!$B:$M,12,0),VLOOKUP(C63,'[1]Din Rep'!$C:$M,11,0)),"") -> 45 DD
B64: AC0137 | C64: =IFERROR(VLOOKUP(B64,'[1]Din Rep'!$B:$M,2,0),"") -> PORTA LATA 700ML DE NEOPRENE THERMO DRINK ACESSÓRIOS MORMAII | D64: =IFERROR(IFERROR(VLOOKUP(B64,'[1]Din Rep'!$B:$M,5,0),VLOOKUP(C64,'[1]Din Rep'!$C:$M,4,0)),"") -> 7.1111 | E64: =IFERROR(IFERROR(VLOOKUP(B64,'[1]Din Rep'!$B:$M,7,0),VLOOKUP(C64,'[1]Din Rep'!$C:$M,6,0)),"") -> 7.565 | F64: =IFERROR(IFERROR(VLOOKUP(B64,'[1]Din Rep'!$B:$M,8,0),VLOOKUP(C64,'[1]Din Rep'!$C:$M,7,0)),"") -> 19.9 | G64: =IFERROR(IFERROR(VLOOKUP(B64,'[1]Din Rep'!$B:$M,10,0),VLOOKUP(C64,'[1]Din Rep'!$C:$M,9,0)),"") -> 2.367481824 | H64: =IFERROR(IFERROR(VLOOKUP(B64,'[1]Din Rep'!$B:$M,11,0),VLOOKUP(C64,'[1]Din Rep'!$C:$M,10,0)),"") -> 0.1 | I64: =IFERROR(IFERROR(VLOOKUP(B64,'[1]Din Rep'!$B:$M,12,0),VLOOKUP(C64,'[1]Din Rep'!$C:$M,11,0)),"") -> 45 DD
B65: AC0138 | C65: =IFERROR(VLOOKUP(B65,'[1]Din Rep'!$B:$M,2,0),"") -> KIT DESCANSO DE COPO EM NEOPRENE THERMO DRINK ACESSÓRIOS MORMAII | D65: =IFERROR(IFERROR(VLOOKUP(B65,'[1]Din Rep'!$B:$M,5,0),VLOOKUP(C65,'[1]Din Rep'!$C:$M,4,0)),"") -> 3.9151 | E65: =IFERROR(IFERROR(VLOOKUP(B65,'[1]Din Rep'!$B:$M,7,0),VLOOKUP(C65,'[1]Din Rep'!$C:$M,6,0)),"") -> 4.165 | F65: =IFERROR(IFERROR(VLOOKUP(B65,'[1]Din Rep'!$B:$M,8,0),VLOOKUP(C65,'[1]Din Rep'!$C:$M,7,0)),"") -> 10.9 | G65: =IFERROR(IFERROR(VLOOKUP(B65,'[1]Din Rep'!$B:$M,10,0),VLOOKUP(C65,'[1]Din Rep'!$C:$M,9,0)),"") -> 2.355342137 | H65: =IFERROR(IFERROR(VLOOKUP(B65,'[1]Din Rep'!$B:$M,11,0),VLOOKUP(C65,'[1]Din Rep'!$C:$M,10,0)),"") -> 0.1 | I65: =IFERROR(IFERROR(VLOOKUP(B65,'[1]Din Rep'!$B:$M,12,0),VLOOKUP(C65,'[1]Din Rep'!$C:$M,11,0)),"") -> 45 DD
B66: AC0131 | C66: =IFERROR(VLOOKUP(B66,'[1]Din Rep'!$B:$M,2,0),"") -> PORTA GARRAFA 500ML DE NEOPRENE THERMO DRINK ACESSÓRIOS MORMAII | D66: =IFERROR(IFERROR(VLOOKUP(B66,'[1]Din Rep'!$B:$M,5,0),VLOOKUP(C66,'[1]Din Rep'!$C:$M,4,0)),"") -> 7.9101 | E66: =IFERROR(IFERROR(VLOOKUP(B66,'[1]Din Rep'!$B:$M,7,0),VLOOKUP(C66,'[1]Din Rep'!$C:$M,6,0)),"") -> 8.415 | F66: =IFERROR(IFERROR(VLOOKUP(B66,'[1]Din Rep'!$B:$M,8,0),VLOOKUP(C66,'[1]Din Rep'!$C:$M,7,0)),"") -> 21.9 | G66: =IFERROR(IFERROR(VLOOKUP(B66,'[1]Din Rep'!$B:$M,10,0),VLOOKUP(C66,'[1]Din Rep'!$C:$M,9,0)),"") -> 2.342245989 | H66: =IFERROR(IFERROR(VLOOKUP(B66,'[1]Din Rep'!$B:$M,11,0),VLOOKUP(C66,'[1]Din Rep'!$C:$M,10,0)),"") -> 0.1 | I66: =IFERROR(IFERROR(VLOOKUP(B66,'[1]Din Rep'!$B:$M,12,0),VLOOKUP(C66,'[1]Din Rep'!$C:$M,11,0)),"") -> 45 DD
B67: AC0130 | C67: =IFERROR(VLOOKUP(B67,'[1]Din Rep'!$B:$M,2,0),"") -> PORTA GARRAFA DE NEOPRENE P/ ÁGUA 1,5L THERMO DRINK ACESSÓRIOS MORMAII | D67: =IFERROR(IFERROR(VLOOKUP(B67,'[1]Din Rep'!$B:$M,5,0),VLOOKUP(C67,'[1]Din Rep'!$C:$M,4,0)),"") -> 11.1061 | E67: =IFERROR(IFERROR(VLOOKUP(B67,'[1]Din Rep'!$B:$M,7,0),VLOOKUP(C67,'[1]Din Rep'!$C:$M,6,0)),"") -> 11.815 | F67: =IFERROR(IFERROR(VLOOKUP(B67,'[1]Din Rep'!$B:$M,8,0),VLOOKUP(C67,'[1]Din Rep'!$C:$M,7,0)),"") -> 30.9 | G67: =IFERROR(IFERROR(VLOOKUP(B67,'[1]Din Rep'!$B:$M,10,0),VLOOKUP(C67,'[1]Din Rep'!$C:$M,9,0)),"") -> 2.353787558 | H67: =IFERROR(IFERROR(VLOOKUP(B67,'[1]Din Rep'!$B:$M,11,0),VLOOKUP(C67,'[1]Din Rep'!$C:$M,10,0)),"") -> 0.1 | I67: =IFERROR(IFERROR(VLOOKUP(B67,'[1]Din Rep'!$B:$M,12,0),VLOOKUP(C67,'[1]Din Rep'!$C:$M,11,0)),"") -> 45 DD

Sheet Plan1
